Workbook

Sheet Notes
A1: General | O1: Rounding
B2: Workbook and sheets are protected to prevent accidental changes. No password. | N2: Written Premium | O2: 2
B3: Values in blue are unprotected. | N3: Earned Premium | O3: 4
N4: Incurred Losses | O4: 2
A5: Scenarios
B6: Set initial year for tables
B7: Select scenarios for Weights, Retention, Growth Rate, and Random Values
B8: Update values for Weights, Retentions, Growth Rates, and Random Values as desired
A10: Rates
B11: Details of a fictional rating plan, with individual rate changes over a 5 year period
B12: Weights are expected distribution of new business by rate variable
B13: Parallelogram calculations
A15: Policies
B16: Random policies, one per day, based on weights and renewal rate
B17: Six-month policy period, so each policy will randomly renew or non-renew every 6 months
B18: Polciy details to calculate actual earned premium by AY and extension of exposures for earned premium at current rate level are included
A20: Policy X
B21: By selecting a day from the first 6 months, you can see the rest of the history from that new/renewal date
A23: Mix
B24: Calculation of average rate factors by month and year
B25: Calculation of average relativity to current rate level by month and year
B26: Method 1 - Divide current average relativity by period average relativity
B27: Method 2 - Average of period relativities
A29: Trends
B30: Summay of unadjusted and adjusted data to see impact on calculated trends
A32: UW Factors
B33: Example of an underwriting factor based on modeling output and constrained rate factors.
A35: RandNo
B36: Hidden sheet used to store the random values used for Random Scenario 7.
A38: Simulations
B39: Set Random Scenario to 7.
B40: Use buttons below to create random numbers and run simulations as desired
B41: Results are shown in the Simulations sheet.
C45: Random Values | D45: Simulations | E45: Total
B46: Start Time: | C46: 45687.79494 | D46: 45687.88163
B47: End Time: | C47: 45687.80859 | D47: 45687.88671
B48: Elapsed Time: | C48: =end_time_RV-start_time_RV -> 00:19:39 | D48: =end_time_Sims-start_time_Sims -> 00:07:19 | E48: =C48+D48 -> 00:26:58
B51: Iterations: | C51: 1000
B52: Seed Value: | C52: 177279
B54: Iteration: | C54: 1

Sheet Scenarios
A1: Initial Year: | B1: 2020
A3: Weights: | B3: 7
A4: Scenario: | B4: =VLOOKUP(ScenarioNo,ScenarioNameTable,2) -> All Equal Weights - With Shifting
A6: Retention: | B6: 5
A7: Growth Rate: | B7: 1
A8: Random: | B8: 1
A10: Claim Severity: | B10: 400
A11: Claim CoV: | B11: 0.2
A12: Claim Std Dev: | B12: =ClaimSeverity*ClaimCoV -> 80
A13: Claim Inflation: | B13: 0.05
C15: Scenario Descriptions | M15: Retentions | P15: Growth
B16: 1 | C16: Only Territory Experiences Shifting | L16: 1 | M16: 1 | O16: 1 | P16: 0
B17: 2 | C17: Territory and Limit Experience Shifting | L17: 2 | M17: 0.9 | O17: 2 | P17: 0.05
B18: 3 | C18: Territory, Limit, and Rating Group 1 Shifting | L18: 3 | M18: 0.85 | O18: 3 | P18: 0.1
B19: 4 | C19: Territory, Limit, and Rating Groups 1 & 2 Shifting | L19: 4 | M19: 0.8 | O19: 4 | P19: 0.15
B20: 5 | C20: All Rating Variables Experience Shifting | L20: 5 | M20: 0.75 | O20: 5 | P20: 0.2
B21: 6 | C21: All Equal Weights - No Shifting | L21: 6 | M21: 0.5 | O21: 6 | P21: 0.25
B22: 7 | C22: All Equal Weights - With Shifting | L22: 7 | M22: 0 | O22: 7 | P22: 0.3
C24: Territory Relativities - Year 1 | K24: Territory Relativities - Year 2 | S24: Territory Relativities - Year 3 | AA24: Territory Relativities - Year 4 | AI24: Territory Relativities - Year 5 | AQ24: Liability/Amount Factors - Year 1 | AX24: Liability/Amount Factors - Year 2 | BE24: Liability/Amount Factors - Year 3 | BL24: Liability/Amount Factors - Year 4 | BS24: Liability/Amount Factors - Year 5 | BZ24: Rating Group 1 - Year 1 | CE24: Rating Group 1 - Year 2 | CJ24: Rating Group 1 - Year 3 | CO24: Rating Group 1 - Year 4 | CT24: Rating Group 1 - Year 5 | CY24: Rating Group 2 - Year 1 | DG24: Rating Group 2 - Year 2 | DO24: Rating Group 2 - Year 3 | DW24: Rating Group 2 - Year 4 | EE24: Rating Group 2 - Year 5 | EM24: Rating Group 3 - Year 1 | EW24: Rating Group 3 - Year 2 | FG24: Rating Group 3 - Year 3 | FQ24: Rating Group 3 - Year 4 | GA24: Rating Group 3 - Year 5
C25: 1 | D25: 2 | E25: 3 | F25: 4 | G25: 5 | H25: 6 | I25: 7 | J25: 8 | K25: 1 | L25: 2 | M25: 3 | N25: 4 | O25: 5 | P25: 6 | Q25: 7 | R25: 8 | S25: 1 | T25: 2 | U25: 3 | V25: 4 | W25: 5 | X25: 6 | Y25: 7 | Z25: 8 | AA25: 1 | AB25: 2 | AC25: 3 | AD25: 4 | AE25: 5 | AF25: 6 | AG25: 7 | AH25: 8 | AI25: 1 | AJ25: 2 | AK25: 3 | AL25: 4 | AM25: 5 | AN25: 6 | AO25: 7 | AP25: 8 | AQ25: 1 | AR25: 2 | AS25: 3 | AT25: 4 | AU25: 5 | AV25: 6 | AW25: 7 | AX25: 1 | AY25: 2 | AZ25: 3 | BA25: 4 | BB25: 5 | BC25: 6 | BD25: 7 | BE25: 1 | BF25: 2 | BG25: 3 | BH25: 4 | BI25: 5 | BJ25: 6 | BK25: 7 | BL25: 1 | BM25: 2 | BN25: 3 | BO25: 4 | BP25: 5 | BQ25: 6 | BR25: 7 | BS25: 1 | BT25: 2 | BU25: 3 | BV25: 4 | BW25: 5 | BX25: 6 | BY25: 7 | BZ25: 1 | CA25: 2 | CB25: 3 | CC25: 4 | CD25: 5 | CE25: 1 | CF25: 2 | CG25: 3 | CH25: 4 | CI25: 5 | CJ25: 1 | CK25: 2 | CL25: 3 | CM25: 4 | CN25: 5 | CO25: 1 | CP25: 2 | CQ25: 3 | CR25: 4 | CS25: 5 | CT25: 1 | CU25: 2 | CV25: 3 | CW25: 4 | CX25: 5 | CY25: 1 | CZ25: 2 | DA25: 3 | DB25: 4 | DC25: 5 | DD25: 6 | DE25: 7 | DF25: 8 | DG25: 1 | DH25: 2 | DI25: 3 | DJ25: 4 | DK25: 5 | DL25: 6 | DM25: 7 | DN25: 8 | DO25: 1 | DP25: 2 | DQ25: 3 | DR25: 4 | DS25: 5 | DT25: 6 | DU25: 7 | DV25: 8 | DW25: 1 | DX25: 2 | DY25: 3 | DZ25: 4 | EA25: 5 | EB25: 6 | EC25: 7 | ED25: 8 | EE25: 1 | EF25: 2 | EG25: 3 | EH25: 4 | EI25: 5 | EJ25: 6 | EK25: 7 | EL25: 8 | EM25: 1 | EN25: 2 | EO25: 3 | EP25: 4 | EQ25: 5 | ER25: 6 | ES25: 7 | ET25: 8 | EU25: 9 | EV25: 10 | EW25: 1 | EX25: 2 | EY25: 3 | EZ25: 4 | FA25: 5 | FB25: 6 | FC25: 7 | FD25: 8 | FE25: 9 | FF25: 10 | FG25: 1 | FH25: 2 | FI25: 3 | FJ25: 4 | FK25: 5 | FL25: 6 | FM25: 7 | FN25: 8 | FO25: 9 | FP25: 10 | FQ25: 1 | FR25: 2 | FS25: 3 | FT25: 4 | FU25: 5 | FV25: 6 | FW25: 7 | FX25: 8 | FY25: 9 | FZ25: 10 | GA25: 1 | GB25: 2 | GC25: 3 | GD25: 4 | GE25: 5 | GF25: 6 | GG25: 7 | GH25: 8 | GI25: 9 | GJ25: 10
C26: 1 | D26: =C26+1 -> 2 | E26: =D26+1 -> 3 | F26: 4 | G26: 5 | H26: 6 | I26: 7 | J26: 8 | K26: 9 | L26: 10 | M26: 11 | N26: 12 | O26: 13 | P26: 14 | Q26: 15 | R26: 16 | S26: 17 | T26: 18 | U26: 19 | V26: 20 | W26: 21 | X26: 22 | Y26: 23 | Z26: 24 | AA26: 25 | AB26: 26 | AC26: 27 | AD26: 28 | AE26: 29 | AF26: 30 | AG26: 31 | AH26: 32 | AI26: 33 | AJ26: 34 | AK26: 35 | AL26: 36 | AM26: 37 | AN26: 38 | AO26: 39 | AP26: 40 | AQ26: 41 | AR26: 42 | AS26: 43 | AT26: 44 | AU26: 45 | AV26: 46 | AW26: 47 | AX26: 48 | AY26: 49 | AZ26: 50 | BA26: 51 | BB26: 52 | BC26: 53 | BD26: 54 | BE26: 55 | BF26: 56 | BG26: 57 | BH26: 58 | BI26: 59 | BJ26: 60 | BK26: 61 | BL26: 62 | BM26: 63 | BN26: 64 | BO26: 65 | BP26: 66 | BQ26: =BP26+1 -> 67 | BR26: 68 | BS26: 69 | BT26: 70 | BU26: 71 | BV26: 72 | BW26: 73 | BX26: 74 | BY26: 75 | BZ26: 76 | CA26: 77 | CB26: 78 | CC26: 79 | CD26: 80 | CE26: 81 | CF26: 82 | CG26: 83 | CH26: 84 | CI26: 85 | CJ26: 86 | CK26: 87 | CL26: 88 | CM26: 89 | CN26: 90 | CO26: 91 | CP26: 92 | CQ26: 93 | CR26: 94 | CS26: 95 | CT26: 96 | CU26: 97 | CV26: 98 | CW26: 99 | CX26: 100 | CY26: 101 | CZ26: 102 | DA26: 103 | DB26: 104 | DC26: 105 | DD26: 106 | DE26: 107 | DF26: 108 | DG26: 109 | DH26: 110 | DI26: 111 | DJ26: 112 | DK26: 113 | DL26: 114 | DM26: 115 | DN26: 116 | DO26: 117 | DP26: 118 | DQ26: 119 | DR26: 120 | DS26: 121 | DT26: 122 | DU26: 123 | DV26: 124 | DW26: 125 | DX26: 126 | DY26: 127 | DZ26: 128 | EA26: 129 | EB26: 130 | EC26: =EB26+1 -> 131 | ED26: 132 | EE26: 133 | EF26: 134 | EG26: 135 | EH26: 136 | EI26: 137 | EJ26: 138 | EK26: 139 | EL26: 140 | EM26: 141 | EN26: 142 | EO26: 143 | EP26: 144 | EQ26: 145 | ER26: 146 | ES26: 147 | ET26: 148 | EU26: 149 | EV26: 150 | EW26: 151 | EX26: 152 | EY26: 153 | EZ26: 154 | FA26: 155 | FB26: 156 | FC26: 157 | FD26: 158 | FE26: 159 | FF26: 160 | FG26: 161 | FH26: 162 | FI26: 163 | FJ26: 164 | FK26: 165 | FL26: 166 | FM26: 167 | FN26: 168 | FO26: 169 | FP26: 170 | FQ26: 171 | FR26: 172 | FS26: 173 | FT26: 174 | FU26: 175 | FV26: 176 | FW26: 177 | FX26: 178 | FY26: 179 | FZ26: 180 | GA26: 181 | GB26: 182 | GC26: 183 | GD26: 184 | GE26: 185 | GF26: 186 | GG26: 187 | GH26: 188 | GI26: 189 | GJ26: 190
B27: 1 | C27: 1 | D27: 0 | E27: 0 | F27: 0 | G27: 0 | H27: 0 | I27: 0 | J27: 0 | K27: 0.85 | L27: 0.15 | M27: 0 | N27: 0 | O27: 0 | P27: 0 | Q27: 0 | R27: 0 | S27: 0.6 | T27: 0.2 | U27: 0.1 | V27: 0.05 | W27: 0.05 | X27: 0 | Y27: 0 | Z27: 0 | AA27: 0.35 | AB27: 0.25 | AC27: 0.15 | AD27: 0.1 | AE27: 0.05 | AF27: 0.05 | AG27: 0.05 | AH27: 0 | AI27: 0.3 | AJ27: 0.25 | AK27: 0.15 | AL27: 0.1 | AM27: 0.05 | AN27: 0.05 | AO27: 0.05 | AP27: 0.05 | AQ27: 1 | AR27: 0 | AS27: 0 | AT27: 0 | AU27: 0 | AV27: 0 | AW27: 0 | AX27: 1 | AY27: 0 | AZ27: 0 | BA27: 0 | BB27: 0 | BC27: 0 | BD27: 0 | BE27: 1 | BF27: 0 | BG27: 0 | BH27: 0 | BI27: 0 | BJ27: 0 | BK27: 0 | BL27: 1 | BM27: 0 | BN27: 0 | BO27: 0 | BP27: 0 | BQ27: 0 | BR27: 0 | BS27: 1 | BT27: 0 | BU27: 0 | BV27: 0 | BW27: 0 | BX27: 0 | BY27: 0 | BZ27: 0 | CA27: 1 | CB27: 0 | CC27: 0 | CD27: 0 | CE27: 0 | CF27: 1 | CG27: 0 | CH27: 0 | CI27: 0 | CJ27: 0 | CK27: 1 | CL27: 0 | CM27: 0 | CN27: 0 | CO27: 0 | CP27: 1 | CQ27: 0 | CR27: 0 | CS27: 0 | CT27: 0 | CU27: 1 | CV27: 0 | CW27: 0 | CX27: 0 | CY27: 0 | CZ27: 0 | DA27: 0 | DB27: 0 | DC27: 0 | DD27: 1 | DE27: 0 | DF27: 0 | DG27: 0 | DH27: 0 | DI27: 0 | DJ27: 0 | DK27: 0 | DL27: 1 | DM27: 0 | DN27: 0 | DO27: 0 | DP27: 0 | DQ27: 0 | DR27: 0 | DS27: 0 | DT27: 1 | DU27: 0 | DV27: 0 | DW27: 0 | DX27: 0 | DY27: 0 | DZ27: 0 | EA27: 0 | EB27: 1 | EC27: 0 | ED27: 0 | EE27: 0 | EF27: 0 | EG27: 0 | EH27: 0 | EI27: 0 | EJ27: 1 | EK27: 0 | EL27: 0 | EM27: 1 | EN27: 0 | EO27: 0 | EP27: 0 | EQ27: 0 | ER27: 0 | ES27: 0 | ET27: 0 | EU27: 0 | EV27: 0 | EW27: 1 | EX27: 0 | EY27: 0 | EZ27: 0 | FA27: 0 | FB27: 0 | FC27: 0 | FD27: 0 | FE27: 0 | FF27: 0 | FG27: 1 | FH27: 0 | FI27: 0 | FJ27: 0 | FK27: 0 | FL27: 0 | FM27: 0 | FN27: 0 | FO27: 0 | FP27: 0 | FQ27: 1 | FR27: 0 | FS27: 0 | FT27: 0 | FU27: 0 | FV27: 0 | FW27: 0 | FX27: 0 | FY27: 0 | FZ27: 0 | GA27: 1 | GB27: 0 | GC27: 0 | GD27: 0 | GE27: 0 | GF27: 0 | GG27: 0 | GH27: 0 | GI27: 0 | GJ27: 0
B28: 2 | C28: 1 | D28: 0 | E28: 0 | F28: 0 | G28: 0 | H28: 0 | I28: 0 | J28: 0 | K28: 0.85 | L28: 0.15 | M28: 0 | N28: 0 | O28: 0 | P28: 0 | Q28: 0 | R28: 0 | S28: 0.6 | T28: 0.2 | U28: 0.1 | V28: 0.05 | W28: 0.05 | X28: 0 | Y28: 0 | Z28: 0 | AA28: 0.35 | AB28: 0.25 | AC28: 0.15 | AD28: 0.1 | AE28: 0.05 | AF28: 0.05 | AG28: 0.05 | AH28: 0 | AI28: 0.3 | AJ28: 0.25 | AK28: 0.15 | AL28: 0.1 | AM28: 0.05 | AN28: 0.05 | AO28: 0.05 | AP28: 0.05 | AQ28: 1 | AR28: 0 | AS28: 0 | AT28: 0 | AU28: 0 | AV28: 0 | AW28: 0 | AX28: 0.55 | AY28: 0.3 | AZ28: 0.15 | BA28: 0 | BB28: 0 | BC28: 0 | BD28: 0 | BE28: 0.1 | BF28: 0.6 | BG28: 0.15 | BH28: 0.1 | BI28: 0.05 | BJ28: 0 | BK28: 0 | BL28: 0.05 | BM28: 0.55 | BN28: 0.15 | BO28: 0.1 | BP28: 0.05 | BQ28: 0.05 | BR28: 0.05 | BS28: 0.05 | BT28: 0.45 | BU28: 0.18 | BV28: 0.12 | BW28: 0.08 | BX28: 0.06 | BY28: 0.06 | BZ28: 0 | CA28: 1 | CB28: 0 | CC28: 0 | CD28: 0 | CE28: 0 | CF28: 1 | CG28: 0 | CH28: 0 | CI28: 0 | CJ28: 0 | CK28: 1 | CL28: 0 | CM28: 0 | CN28: 0 | CO28: 0 | CP28: 1 | CQ28: 0 | CR28: 0 | CS28: 0 | CT28: 0 | CU28: 1 | CV28: 0 | CW28: 0 | CX28: 0 | CY28: 0 | CZ28: 0 | DA28: 0 | DB28: 0 | DC28: 0 | DD28: 1 | DE28: 0 | DF28: 0 | DG28: 0 | DH28: 0 | DI28: 0 | DJ28: 0 | DK28: 0 | DL28: 1 | DM28: 0 | DN28: 0 | DO28: 0 | DP28: 0 | DQ28: 0 | DR28: 0 | DS28: 0 | DT28: 1 | DU28: 0 | DV28: 0 | DW28: 0 | DX28: 0 | DY28: 0 | DZ28: 0 | EA28: 0 | EB28: 1 | EC28: 0 | ED28: 0 | EE28: 0 | EF28: 0 | EG28: 0 | EH28: 0 | EI28: 0 | EJ28: 1 | EK28: 0 | EL28: 0 | EM28: 1 | EN28: 0 | EO28: 0 | EP28: 0 | EQ28: 0 | ER28: 0 | ES28: 0 | ET28: 0 | EU28: 0 | EV28: 0 | EW28: 1 | EX28: 0 | EY28: 0 | EZ28: 0 | FA28: 0 | FB28: 0 | FC28: 0 | FD28: 0 | FE28: 0 | FF28: 0 | FG28: 1 | FH28: 0 | FI28: 0 | FJ28: 0 | FK28: 0 | FL28: 0 | FM28: 0 | FN28: 0 | FO28: 0 | FP28: 0 | FQ28: 1 | FR28: 0 | FS28: 0 | FT28: 0 | FU28: 0 | FV28: 0 | FW28: 0 | FX28: 0 | FY28: 0 | FZ28: 0 | GA28: 1 | GB28: 0 | GC28: 0 | GD28: 0 | GE28: 0 | GF28: 0 | GG28: 0 | GH28: 0 | GI28: 0 | GJ28: 0
B29: 3 | C29: 1 | D29: 0 | E29: 0 | F29: 0 | G29: 0 | H29: 0 | I29: 0 | J29: 0 | K29: 0.85 | L29: 0.15 | M29: 0 | N29: 0 | O29: 0 | P29: 0 | Q29: 0 | R29: 0 | S29: 0.6 | T29: 0.2 | U29: 0.1 | V29: 0.05 | W29: 0.05 | X29: 0 | Y29: 0 | Z29: 0 | AA29: 0.35 | AB29: 0.25 | AC29: 0.15 | AD29: 0.1 | AE29: 0.05 | AF29: 0.05 | AG29: 0.05 | AH29: 0 | AI29: 0.3 | AJ29: 0.25 | AK29: 0.15 | AL29: 0.1 | AM29: 0.05 | AN29: 0.05 | AO29: 0.05 | AP29: 0.05 | AQ29: 1 | AR29: 0 | AS29: 0 | AT29: 0 | AU29: 0 | AV29: 0 | AW29: 0 | AX29: 0.55 | AY29: 0.3 | AZ29: 0.15 | BA29: 0 | BB29: 0 | BC29: 0 | BD29: 0 | BE29: 0.1 | BF29: 0.6 | BG29: 0.15 | BH29: 0.1 | BI29: 0.05 | BJ29: 0 | BK29: 0 | BL29: 0.05 | BM29: 0.55 | BN29: 0.15 | BO29: 0.1 | BP29: 0.05 | BQ29: 0.05 | BR29: 0.05 | BS29: 0.05 | BT29: 0.45 | BU29: 0.18 | BV29: 0.12 | BW29: 0.08 | BX29: 0.06 | BY29: 0.06 | BZ29: 0 | CA29: 1 | CB29: 0 | CC29: 0 | CD29: 0 | CE29: 0.1 | CF29: 0.7 | CG29: 0.2 | CH29: 0 | CI29: 0 | CJ29: 0.1 | CK29: 0.6 | CL29: 0.15 | CM29: 0.1 | CN29: 0.05 | CO29: 0.1 | CP29: 0.5 | CQ29: 0.15 | CR29: 0.15 | CS29: 0.1 | CT29: 0.1 | CU29: 0.45 | CV29: 0.15 | CW29: 0.15 | CX29: 0.15 | CY29: 0 | CZ29: 0 | DA29: 0 | DB29: 0 | DC29: 0 | DD29: 1 | DE29: 0 | DF29: 0 | DG29: 0 | DH29: 0 | DI29: 0 | DJ29: 0 | DK29: 0 | DL29: 1 | DM29: 0 | DN29: 0 | DO29: 0 | DP29: 0 | DQ29: 0 | DR29: 0 | DS29: 0 | DT29: 1 | DU29: 0 | DV29: 0 | DW29: 0 | DX29: 0 | DY29: 0 | DZ29: 0 | EA29: 0 | EB29: 1 | EC29: 0 | ED29: 0 | EE29: 0 | EF29: 0 | EG29: 0 | EH29: 0 | EI29: 0 | EJ29: 1 | EK29: 0 | EL29: 0 | EM29: 1 | EN29: 0 | EO29: 0 | EP29: 0 | EQ29: 0 | ER29: 0 | ES29: 0 | ET29: 0 | EU29: 0 | EV29: 0 | EW29: 1 | EX29: 0 | EY29: 0 | EZ29: 0 | FA29: 0 | FB29: 0 | FC29: 0 | FD29: 0 | FE29: 0 | FF29: 0 | FG29: 1 | FH29: 0 | FI29: 0 | FJ29: 0 | FK29: 0 | FL29: 0 | FM29: 0 | FN29: 0 | FO29: 0 | FP29: 0 | FQ29: 1 | FR29: 0 | FS29: 0 | FT29: 0 | FU29: 0 | FV29: 0 | FW29: 0 | FX29: 0 | FY29: 0 | FZ29: 0 | GA29: 1 | GB29: 0 | GC29: 0 | GD29: 0 | GE29: 0 | GF29: 0 | GG29: 0 | GH29: 0 | GI29: 0 | GJ29: 0
B30: 4 | C30: 1 | D30: 0 | E30: 0 | F30: 0 | G30: 0 | H30: 0 | I30: 0 | J30: 0 | K30: 0.85 | L30: 0.15 | M30: 0 | N30: 0 | O30: 0 | P30: 0 | Q30: 0 | R30: 0 | S30: 0.6 | T30: 0.2 | U30: 0.1 | V30: 0.05 | W30: 0.05 | X30: 0 | Y30: 0 | Z30: 0 | AA30: 0.35 | AB30: 0.25 | AC30: 0.15 | AD30: 0.1 | AE30: 0.05 | AF30: 0.05 | AG30: 0.05 | AH30: 0 | AI30: 0.3 | AJ30: 0.25 | AK30: 0.15 | AL30: 0.1 | AM30: 0.05 | AN30: 0.05 | AO30: 0.05 | AP30: 0.05 | AQ30: 1 | AR30: 0 | AS30: 0 | AT30: 0 | AU30: 0 | AV30: 0 | AW30: 0 | AX30: 0.55 | AY30: 0.3 | AZ30: 0.15 | BA30: 0 | BB30: 0 | BC30: 0 | BD30: 0 | BE30: 0.1 | BF30: 0.6 | BG30: 0.15 | BH30: 0.1 | BI30: 0.05 | BJ30: 0 | BK30: 0 | BL30: 0.05 | BM30: 0.55 | BN30: 0.15 | BO30: 0.1 | BP30: 0.05 | BQ30: 0.05 | BR30: 0.05 | BS30: 0.05 | BT30: 0.45 | BU30: 0.18 | BV30: 0.12 | BW30: 0.08 | BX30: 0.06 | BY30: 0.06 | BZ30: 0 | CA30: 1 | CB30: 0 | CC30: 0 | CD30: 0 | CE30: 0.1 | CF30: 0.7 | CG30: 0.2 | CH30: 0 | CI30: 0 | CJ30: 0.1 | CK30: 0.6 | CL30: 0.15 | CM30: 0.1 | CN30: 0.05 | CO30: 0.1 | CP30: 0.5 | CQ30: 0.15 | CR30: 0.15 | CS30: 0.1 | CT30: 0.1 | CU30: 0.45 | CV30: 0.15 | CW30: 0.15 | CX30: 0.15 | CY30: 0 | CZ30: 0 | DA30: 0 | DB30: 0 | DC30: 0 | DD30: 1 | DE30: 0 | DF30: 0 | DG30: 0 | DH30: 0 | DI30: 0 | DJ30: 0 | DK30: 0 | DL30: 0.8 | DM30: 0.1 | DN30: 0.1 | DO30: 0 | DP30: 0 | DQ30: 0 | DR30: 0.1 | DS30: 0.1 | DT30: 0.6 | DU30: 0.1 | DV30: 0.1 | DW30: 0 | DX30: 0.1 | DY30: 0.1 | DZ30: 0.1 | EA30: 0.1 | EB30: 0.4 | EC30: 0.1 | ED30: 0.1 | EE30: 0.1 | EF30: 0.1 | EG30: 0.1 | EH30: 0.1 | EI30: 0.1 | EJ30: 0.3 | EK30: 0.1 | EL30: 0.1 | EM30: 1 | EN30: 0 | EO30: 0 | EP30: 0 | EQ30: 0 | ER30: 0 | ES30: 0 | ET30: 0 | EU30: 0 | EV30: 0 | EW30: 1 | EX30: 0 | EY30: 0 | EZ30: 0 | FA30: 0 | FB30: 0 | FC30: 0 | FD30: 0 | FE30: 0 | FF30: 0 | FG30: 1 | FH30: 0 | FI30: 0 | FJ30: 0 | FK30: 0 | FL30: 0 | FM30: 0 | FN30: 0 | FO30: 0 | FP30: 0 | FQ30: 1 | FR30: 0 | FS30: 0 | FT30: 0 | FU30: 0 | FV30: 0 | FW30: 0 | FX30: 0 | FY30: 0 | FZ30: 0 | GA30: 1 | GB30: 0 | GC30: 0 | GD30: 0 | GE30: 0 | GF30: 0 | GG30: 0 | GH30: 0 | GI30: 0 | GJ30: 0
B31: 5 | C31: 1 | D31: 0 | E31: 0 | F31: 0 | G31: 0 | H31: 0 | I31: 0 | J31: 0 | K31: 0.85 | L31: 0.15 | M31: 0 | N31: 0 | O31: 0 | P31: 0 | Q31: 0 | R31: 0 | S31: 0.6 | T31: 0.2 | U31: 0.1 | V31: 0.05 | W31: 0.05 | X31: 0 | Y31: 0 | Z31: 0 | AA31: 0.35 | AB31: 0.25 | AC31: 0.15 | AD31: 0.1 | AE31: 0.05 | AF31: 0.05 | AG31: 0.05 | AH31: 0 | AI31: 0.3 | AJ31: 0.25 | AK31: 0.15 | AL31: 0.1 | AM31: 0.05 | AN31: 0.05 | AO31: 0.05 | AP31: 0.05 | AQ31: 1 | AR31: 0 | AS31: 0 | AT31: 0 | AU31: 0 | AV31: 0 | AW31: 0 | AX31: 0.55 | AY31: 0.3 | AZ31: 0.15 | BA31: 0 | BB31: 0 | BC31: 0 | BD31: 0 | BE31: 0.1 | BF31: 0.6 | BG31: 0.15 | BH31: 0.1 | BI31: 0.05 | BJ31: 0 | BK31: 0 | BL31: 0.05 | BM31: 0.55 | BN31: 0.15 | BO31: 0.1 | BP31: 0.05 | BQ31: 0.05 | BR31: 0.05 | BS31: 0.05 | BT31: 0.45 | BU31: 0.18 | BV31: 0.12 | BW31: 0.08 | BX31: 0.06 | BY31: 0.06 | BZ31: 0 | CA31: 1 | CB31: 0 | CC31: 0 | CD31: 0 | CE31: 0.1 | CF31: 0.7 | CG31: 0.2 | CH31: 0 | CI31: 0 | CJ31: 0.1 | CK31: 0.6 | CL31: 0.15 | CM31: 0.1 | CN31: 0.05 | CO31: 0.1 | CP31: 0.5 | CQ31: 0.15 | CR31: 0.15 | CS31: 0.1 | CT31: 0.1 | CU31: 0.45 | CV31: 0.15 | CW31: 0.15 | CX31: 0.15 | CY31: 0 | CZ31: 0 | DA31: 0 | DB31: 0 | DC31: 0 | DD31: 1 | DE31: 0 | DF31: 0 | DG31: 0 | DH31: 0 | DI31: 0 | DJ31: 0 | DK31: 0 | DL31: 0.8 | DM31: 0.1 | DN31: 0.1 | DO31: 0 | DP31: 0 | DQ31: 0 | DR31: 0.1 | DS31: 0.1 | DT31: 0.6 | DU31: 0.1 | DV31: 0.1 | DW31: 0 | DX31: 0.1 | DY31: 0.1 | DZ31: 0.1 | EA31: 0.1 | EB31: 0.4 | EC31: 0.1 | ED31: 0.1 | EE31: 0.1 | EF31: 0.1 | EG31: 0.1 | EH31: 0.1 | EI31: 0.1 | EJ31: 0.3 | EK31: 0.1 | EL31: 0.1 | EM31: 1 | EN31: 0 | EO31: 0 | EP31: 0 | EQ31: 0 | ER31: 0 | ES31: 0 | ET31: 0 | EU31: 0 | EV31: 0 | EW31: 0.75 | EX31: 0.1 | EY31: 0.1 | EZ31: 0.05 | FA31: 0 | FB31: 0 | FC31: 0 | FD31: 0 | FE31: 0 | FF31: 0 | FG31: 0.5 | FH31: 0.1 | FI31: 0.1 | FJ31: 0.1 | FK31: 0.1 | FL31: 0.1 | FM31: 0 | FN31: 0 | FO31: 0 | FP31: 0 | FQ31: 0.3 | FR31: 0.1 | FS31: 0.1 | FT31: 0.1 | FU31: 0.1 | FV31: 0.1 | FW31: 0.1 | FX31: 0.1 | FY31: 0 | FZ31: 0 | GA31: 0.1 | GB31: 0.1 | GC31: 0.1 | GD31: 0.1 | GE31: 0.1 | GF31: 0.1 | GG31: 0.1 | GH31: 0.1 | GI31: 0.1 | GJ31: 0.1
B32: 6 | C32: 0.125 | D32: 0.125 | E32: 0.125 | F32: 0.125 | G32: 0.125 | H32: 0.125 | I32: 0.125 | J32: 0.125 | K32: 0.125 | L32: 0.125 | M32: 0.125 | N32: 0.125 | O32: 0.125 | P32: 0.125 | Q32: 0.125 | R32: 0.125 | S32: 0.125 | T32: 0.125 | U32: 0.125 | V32: 0.125 | W32: 0.125 | X32: 0.125 | Y32: 0.125 | Z32: 0.125 | AA32: 0.125 | AB32: 0.125 | AC32: 0.125 | AD32: 0.125 | AE32: 0.125 | AF32: 0.125 | AG32: 0.125 | AH32: 0.125 | AI32: 0.125 | AJ32: 0.125 | AK32: 0.125 | AL32: 0.125 | AM32: 0.125 | AN32: 0.125 | AO32: 0.125 | AP32: 0.125 | AQ32: 0.1428571429 | AR32: 0.1428571429 | AS32: 0.1428571429 | AT32: 0.1428571429 | AU32: 0.1428571429 | AV32: 0.1428571429 | AW32: 0.1428571429 | AX32: 0.1428571429 | AY32: 0.1428571429 | AZ32: 0.1428571429 | BA32: 0.1428571429 | BB32: 0.1428571429 | BC32: 0.1428571429 | BD32: 0.1428571429 | BE32: 0.1428571429 | BF32: 0.1428571429 | BG32: 0.1428571429 | BH32: 0.1428571429 | BI32: 0.1428571429 | BJ32: 0.1428571429 | BK32: 0.1428571429 | BL32: 0.1428571429 | BM32: 0.1428571429 | BN32: 0.1428571429 | BO32: 0.1428571429 | BP32: 0.1428571429 | BQ32: 0.1428571429 | BR32: 0.1428571429 | BS32: 0.1428571429 | BT32: 0.1428571429 | BU32: 0.1428571429 | BV32: 0.1428571429 | BW32: 0.1428571429 | BX32: 0.1428571429 | BY32: 0.1428571429 | BZ32: 0.2 | CA32: 0.2 | CB32: 0.2 | CC32: 0.2 | CD32: 0.2 | CE32: 0.2 | CF32: 0.2 | CG32: 0.2 | CH32: 0.2 | CI32: 0.2 | CJ32: 0.2 | CK32: 0.2 | CL32: 0.2 | CM32: 0.2 | CN32: 0.2 | CO32: 0.2 | CP32: 0.2 | CQ32: 0.2 | CR32: 0.2 | CS32: 0.2 | CT32: 0.2 | CU32: 0.2 | CV32: 0.2 | CW32: 0.2 | CX32: 0.2 | CY32: 0.125 | CZ32: 0.125 | DA32: 0.125 | DB32: 0.125 | DC32: 0.125 | DD32: 0.125 | DE32: 0.125 | DF32: 0.125 | DG32: 0.125 | DH32: 0.125 | DI32: 0.125 | DJ32: 0.125 | DK32: 0.125 | DL32: 0.125 | DM32: 0.125 | DN32: 0.125 | DO32: 0.125 | DP32: 0.125 | DQ32: 0.125 | DR32: 0.125 | DS32: 0.125 | DT32: 0.125 | DU32: 0.125 | DV32: 0.125 | DW32: 0.125 | DX32: 0.125 | DY32: 0.125 | DZ32: 0.125 | EA32: 0.125 | EB32: 0.125 | EC32: 0.125 | ED32: 0.125 | EE32: 0.125 | EF32: 0.125 | EG32: 0.125 | EH32: 0.125 | EI32: 0.125 | EJ32: 0.125 | EK32: 0.125 | EL32: 0.125 | EM32: 0.1 | EN32: 0.1 | EO32: 0.1 | EP32: 0.1 | EQ32: 0.1 | ER32: 0.1 | ES32: 0.1 | ET32: 0.1 | EU32: 0.1 | EV32: 0.1 | EW32: 0.1 | EX32: 0.1 | EY32: 0.1 | EZ32: 0.1 | FA32: 0.1 | FB32: 0.1 | FC32: 0.1 | FD32: 0.1 | FE32: 0.1 | FF32: 0.1 | FG32: 0.1 | FH32: 0.1 | FI32: 0.1 | FJ32: 0.1 | FK32: 0.1 | FL32: 0.1 | FM32: 0.1 | FN32: 0.1 | FO32: 0.1 | FP32: 0.1 | FQ32: 0.1 | FR32: 0.1 | FS32: 0.1 | FT32: 0.1 | FU32: 0.1 | FV32: 0.1 | FW32: 0.1 | FX32: 0.1 | FY32: 0.1 | FZ32: 0.1 | GA32: 0.1 | GB32: 0.1 | GC32: 0.1 | GD32: 0.1 | GE32: 0.1 | GF32: 0.1 | GG32: 0.1 | GH32: 0.1 | GI32: 0.1 | GJ32: 0.1
B33: 7 | C33: 0.125 | D33: 0.125 | E33: 0.125 | F33: 0.125 | G33: 0.125 | H33: 0.125 | I33: 0.125 | J33: 0.125 | K33: 0.09 | L33: 0.13 | M33: 0.13 | N33: 0.13 | O33: 0.13 | P33: 0.13 | Q33: 0.13 | R33: 0.13 | S33: 0.055 | T33: 0.135 | U33: 0.135 | V33: 0.135 | W33: 0.135 | X33: 0.135 | Y33: 0.135 | Z33: 0.135 | AA33: 0.02 | AB33: 0.14 | AC33: 0.14 | AD33: 0.14 | AE33: 0.14 | AF33: 0.14 | AG33: 0.14 | AH33: 0.14 | AI33: 0 | AJ33: 0.14 | AK33: 0.14 | AL33: 0.14 | AM33: 0.145 | AN33: 0.145 | AO33: 0.145 | AP33: 0.145 | AQ33: 0.1428571429 | AR33: 0.1428571429 | AS33: 0.1428571429 | AT33: 0.1428571429 | AU33: 0.1428571429 | AV33: 0.1428571429 | AW33: 0.1428571429 | AX33: 0.118 | AY33: 0.147 | AZ33: 0.147 | BA33: 0.147 | BB33: 0.147 | BC33: 0.147 | BD33: 0.147 | BE33: 0.1 | BF33: 0.15 | BG33: 0.15 | BH33: 0.15 | BI33: 0.15 | BJ33: 0.15 | BK33: 0.15 | BL33: 0.07 | BM33: 0.155 | BN33: 0.155 | BO33: 0.155 | BP33: 0.155 | BQ33: 0.155 | BR33: 0.155 | BS33: 0.04 | BT33: 0.16 | BU33: 0.16 | BV33: 0.16 | BW33: 0.16 | BX33: 0.16 | BY33: 0.16 | BZ33: 0.2 | CA33: 0.2 | CB33: 0.2 | CC33: 0.2 | CD33: 0.2 | CE33: 0.16 | CF33: 0.21 | CG33: 0.21 | CH33: 0.21 | CI33: 0.21 | CJ33: 0.12 | CK33: 0.22 | CL33: 0.22 | CM33: 0.22 | CN33: 0.22 | CO33: 0.08 | CP33: 0.23 | CQ33: 0.23 | CR33: 0.23 | CS33: 0.23 | CT33: 0.04 | CU33: 0.24 | CV33: 0.24 | CW33: 0.24 | CX33: 0.24 | CY33: 0.125 | CZ33: 0.125 | DA33: 0.125 | DB33: 0.125 | DC33: 0.125 | DD33: 0.125 | DE33: 0.125 | DF33: 0.125 | DG33: 0.13 | DH33: 0.13 | DI33: 0.13 | DJ33: 0.13 | DK33: 0.13 | DL33: 0.09 | DM33: 0.13 | DN33: 0.13 | DO33: 0.135 | DP33: 0.135 | DQ33: 0.135 | DR33: 0.135 | DS33: 0.135 | DT33: 0.055 | DU33: 0.135 | DV33: 0.135 | DW33: 0.14 | DX33: 0.14 | DY33: 0.14 | DZ33: 0.14 | EA33: 0.14 | EB33: 0.02 | EC33: 0.14 | ED33: 0.14 | EE33: 0.145 | EF33: 0.14 | EG33: 0.14 | EH33: 0.14 | EI33: 0.145 | EJ33: 0 | EK33: 0.145 | EL33: 0.145 | EM33: 0.082 | EN33: 0.102 | EO33: 0.102 | EP33: 0.102 | EQ33: 0.102 | ER33: 0.102 | ES33: 0.102 | ET33: 0.102 | EU33: 0.102 | EV33: 0.102 | EW33: 0.064 | EX33: 0.104 | EY33: 0.104 | EZ33: 0.104 | FA33: 0.104 | FB33: 0.104 | FC33: 0.104 | FD33: 0.104 | FE33: 0.104 | FF33: 0.104 | FG33: 0.046 | FH33: 0.106 | FI33: 0.106 | FJ33: 0.106 | FK33: 0.106 | FL33: 0.106 | FM33: 0.106 | FN33: 0.106 | FO33: 0.106 | FP33: 0.106 | FQ33: 0.028 | FR33: 0.108 | FS33: 0.108 | FT33: 0.108 | FU33: 0.108 | FV33: 0.108 | FW33: 0.108 | FX33: 0.108 | FY33: 0.108 | FZ33: 0.108 | GA33: 0.01 | GB33: 0.11 | GC33: 0.11 | GD33: 0.11 | GE33: 0.11 | GF33: 0.11 | GG33: 0.11 | GH33: 0.11 | GI33: 0.11 | GJ33: 0.11
C40: Copy and Paste Special | Values from "Random Values" to change random values in another test
C42: Random Values - Test 1 | I42: Random Values - Test 2 | O42: Random Values - Test 3 | U42: Random Values - Test 4 | AA42: Random Values - Test 5 | AG42: Random Values - Test 6 | AM42: Random Values - Test 7 | AS42: Random Values
B43: No | C43: Rand1 | D43: Rand2 | E43: Rand3 | F43: Rand4 | G43: Rand5 | H43: Rand6 | I43: Rand1 | J43: Rand2 | K43: Rand3 | L43: Rand4 | M43: Rand5 | N43: Rand6 | O43: Rand1 | P43: Rand2 | Q43: Rand3 | R43: Rand4 | S43: Rand5 | T43: Rand6 | U43: Rand1 | V43: Rand2 | W43: Rand3 | X43: Rand4 | Y43: Rand5 | Z43: Rand6 | AA43: Rand1 | AB43: Rand2 | AC43: Rand3 | AD43: Rand4 | AE43: Rand5 | AF43: Rand6 | AG43: Rand1 | AH43: Rand2 | AI43: Rand3 | AJ43: Rand4 | AK43: Rand5 | AL43: Rand6 | AM43: Rand1 | AN43: Rand2 | AO43: Rand3 | AP43: Rand4 | AQ43: Rand5 | AR43: Rand6 | AS43: Rand1 | AT43: Rand2 | AU43: Rand3 | AV43: Rand4 | AW43: Rand5 | AX43: Rand6
B44: 1 | C44: 0.7944042202 | D44: 0.4713312463 | E44: 0.09900323053 | F44: 0.9802428709 | G44: 0.1804132467 | H44: 0.3999422543 | I44: 0.5102277431 | J44: 0.02311506875 | K44: 0.4832700561 | L44: 0.7710442494 | M44: 0.5705077422 | N44: 0.6024409742 | O44: 0.9723932253 | P44: 0.6305094941 | Q44: 0.2621518641 | R44: 0.1150826046 | S44: 0.5200538672 | T44: 0.6450775722 | U44: 0.1607614386 | V44: 0.121499388 | W44: 0.5292581438 | X44: 0.7977115825 | Y44: 0.6684142562 | Z44: 0.3477689319 | AA44: 0.1385709875 | AB44: 0.446124122 | AC44: 0.7089351756 | AD44: 0.3189428964 | AE44: 0.01224166613 | AF44: 0.8274583723 | AG44: 0.305011036 | AH44: 0.961568424 | AI44: 0.7584049343 | AJ44: 0.04370195715 | AK44: 0.867886327 | AL44: 0.9296333935 | AM44: =VLOOKUP(Iteration,Rand1Select,1+$B44) -> 0.8759489655 | AN44: =VLOOKUP(Iteration,Rand2Select,1+$B44) -> 0.8795916438 | AO44: =VLOOKUP(Iteration,Rand3Select,1+$B44) -> 0.1002228856 | AP44: =VLOOKUP(Iteration,Rand4Select,1+$B44) -> 0.06327146292 | AQ44: =VLOOKUP(Iteration,Rand5Select,1+$B44) -> 0.1506724954 | AR44: =VLOOKUP(Iteration,Rand6Select,1+$B44) -> 0.3415901065 | AS44: =RAND() -> 0.3092284116 | AT44: 0.3274003247 | AU44: 0.5747428546 | AV44: 0.7918022779 | AW44: 0.5891051243 | AX44: 0.8645433422
B45: =B44+1 -> 2 | C45: 0.8730242251 | D45: 0.7910936596 | E45: 0.9662000194 | F45: 0.7500865869 | G45: 0.5590936426 | H45: 0.7040714606 | I45: 0.4033232545 | J45: 0.1745060863 | K45: 0.1116716778 | L45: 0.1662768103 | M45: 0.4551087679 | N45: 0.046135702 | O45: 0.430669418 | P45: 0.2063224416 | Q45: 0.7333834843 | R45: 0.7374775075 | S45: 0.7682002804 | T45: 0.1765749887 | U45: 0.1745755234 | V45: 0.369251994 | W45: 0.6274759999 | X45: 0.03497152141 | Y45: 0.4717125742 | Z45: 0.1323151123 | AA45: 0.6039353309 | AB45: 0.6934952637 | AC45: 0.6950626382 | AD45: 0.4356226352 | AE45: 0.01876779618 | AF45: 0.9995582182 | AG45: 0.5829691711 | AH45: 0.9063034691 | AI45: 0.581693042 | AJ45: 0.8125704177 | AK45: 0.1371547967 | AL45: 0.3184507058 | AM45: 0.08166790009 | AN45: 0.3027955294 | AO45: 0.5223715305 | AP45: 0.3281720877 | AQ45: 0.8009543419 | AR45: 0.7922884226 | AS45: =RAND() -> 0.2228790089 | AT45: 0.3398294567 | AU45: 0.8606055736 | AV45: 0.7283344084 | AW45: 0.7306301779 | AX45: 0.5990246976
B46: =B45+1 -> 3 | C46: 0.8168517245 | D46: 0.4563825349 | E46: 0.5907315621 | F46: 0.9024134788 | G46: 0.9185026666 | H46: 0.9350122497 | I46: 0.7884730476 | J46: 0.9933748507 | K46: 0.3903290421 | L46: 0.4618606413 | M46: 0.68893904 | N46: 0.1817235602 | O46: 0.9591745773 | P46: 0.4800270546 | Q46: 0.1015073117 | R46: 0.9272605993 | S46: 0.3438808386 | T46: 0.1514974505 | U46: 0.9090512689 | V46: 0.8712201665 | W46: 0.6564975832 | X46: 0.2492938754 | Y46: 0.4624905897 | Z46: 0.4242720278 | AA46: 0.1332155828 | AB46: 0.1090760653 | AC46: 0.6711163259 | AD46: 0.05633490768 | AE46: 0.4982830031 | AF46: 0.2067458341 | AG46: 0.5545715962 | AH46: 0.07864144985 | AI46: 0.8239919422 | AJ46: 0.4908175367 | AK46: 0.4678889291 | AL46: 0.3695911589 | AM46: 0.6314422488 | AN46: 0.8968923688 | AO46: 0.2187551856 | AP46: 0.341514647 | AQ46: 0.3432118297 | AR46: 0.3019488454 | AS46: =RAND() -> 0.811646019 | AT46: 0.7190481153 | AU46: 0.3420473913 | AV46: 0.7132989444 | AW46: 0.7550404985 | AX46: 0.1636834967
B47: 4 | C47: 0.0213644512 | D47: 0.3944882278 | E47: 0.2623159341 | F47: 0.8430258618 | G47: 0.03114149039 | H47: 0.985157099 | I47: 0.4934786433 | J47: 0.2574169641 | K47: 0.44678516 | L47: 0.04223170299 | M47: 0.2930050273 | N47: 0.4259032048 | O47: 0.6156536653 | P47: 0.09507346482 | Q47: 0.4881239024 | R47: 0.9897018618 | S47: 0.939672203 | T47: 0.0001343009886 | U47: 0.07743441695 | V47: 0.4052032424 | W47: 0.3972146932 | X47: 0.3384514219 | Y47: 0.155080241 | Z47: 0.8373341676 | AA47: 0.1062498823 | AB47: 0.168520897 | AC47: 0.2338448893 | AD47: 0.5702070764 | AE47: 0.4732875776 | AF47: 0.2874611161 | AG47: 0.04121986289 | AH47: 0.7599969107 | AI47: 0.328658422 | AJ47: 0.7384770154 | AK47: 0.3509295113 | AL47: 0.312361089 | AM47: 0.4188257456 | AN47: 0.9609763622 | AO47: 0.1786154509 | AP47: 0.3148536682 | AQ47: 0.1746302843 | AR47: 0.6252014637 | AS47: =RAND() -> 0.6693205422 | AT47: 0.05258471304 | AU47: 0.5235302058 | AV47: 0.8925766553 | AW47: 0.5276758858 | AX47: 0.8077290248
B48: 5 | C48: 0.07927469414 | D48: 0.8682442106 | E48: 0.7279042707 | F48: 0.6031314302 | G48: 0.2973336192 | H48: 0.4374876372 | I48: 0.6410494031 | J48: 0.8568567993 | K48: 0.2935089621 | L48: 0.2726175085 | M48: 0.6107622957 | N48: 0.1359297328 | O48: 0.1709223606 | P48: 0.8244004449 | Q48: 0.3232969458 | R48: 0.8591787833 | S48: 0.4535326049 | T48: 0.4955360716 | U48: 0.9759276153 | V48: 0.9395672485 | W48: 0.9286242977 | X48: 0.3760601389 | Y48: 0.9030335392 | Z48: 0.571329433 | AA48: 0.7204134114 | AB48: 0.2313772438 | AC48: 0.7567724078 | AD48: 0.357805136 | AE48: 0.04154932409 | AF48: 0.4830978035 | AG48: 0.1442164446 | AH48: 0.3800496038 | AI48: 0.1330223899 | AJ48: 0.9685909575 | AK48: 0.6619272177 | AL48: 0.6020321507 | AM48: 0.9340556264 | AN48: 0.9171008468 | AO48: 0.3395009637 | AP48: 0.04223650694 | AQ48: 0.4933021665 | AR48: 0.7862419486 | AS48: =RAND() -> 0.8864390606 | AT48: 0.6645403647 | AU48: 0.6142491522 | AV48: 0.8895894977 | AW48: 0.5108999193 | AX48: 0.8083825438
B49: 6 | C49: 0.5337410052 | D49: 0.7946993193 | E49: 0.3185618578 | F49: 0.2081286174 | G49: 0.7577590395 | H49: 0.6446281888 | I49: 0.1097188345 | J49: 0.0609522371 | K49: 0.3091301943 | L49: 0.6165737312 | M49: 0.7847802846 | N49: 0.7144923677 | O49: 0.7614217153 | P49: 0.1330274699 | Q49: 0.8825637021 | R49: 0.4095633784 | S49: 0.02784572014 | T49: 0.9344577075 | U49: 0.133965232 | V49: 0.02381993695 | W49: 0.7006314808 | X49: 0.4745461985 | Y49: 0.1342891551 | Z49: 0.2702899241 | AA49: 0.2589116174 | AB49: 0.7922486374 | AC49: 0.1145683574 | AD49: 0.5907171011 | AE49: 0.6971340181 | AF49: 0.2070844879 | AG49: 0.410332655 | AH49: 0.9798352783 | AI49: 0.0336252248 | AJ49: 0.9361934476 | AK49: 0.3246767128 | AL49: 0.9751524559 | AM49: 0.1937248707 | AN49: 0.5410979986 | AO49: 0.1729454994 | AP49: 0.8553882837 | AQ49: 0.5360047817 | AR49: 0.8482254744 | AS49: =RAND() -> 0.862803753 | AT49: 0.2432007693 | AU49: 0.04033322087 | AV49: 0.187025769 | AW49: 0.4811162801 | AX49: 0.674700971
B50: 7 | C50: 0.5998648388 | D50: 0.5387292713 | E50: 0.6748681625 | F50: 0.004720997784 | G50: 0.6859229892 | H50: 0.7673765218 | I50: 0.320389242 | J50: 0.3035085657 | K50: 0.3116355569 | L50: 0.7769642846 | M50: 0.6306521329 | N50: 0.584160614 | O50: 0.330798479 | P50: 0.2206793372 | Q50: 0.3832160641 | R50: 0.1249854725 | S50: 0.4026736146 | T50: 0.1798604822 | U50: 0.6683939364 | V50: 0.2625260872 | W50: 0.5770588858 | X50: 0.4347445203 | Y50: 0.5206085052 | Z50: 0.7317730758 | AA50: 0.9595940524 | AB50: 0.8314165749 | AC50: 0.2401114709 | AD50: 0.6022850637 | AE50: 0.9333266725 | AF50: 0.3532689132 | AG50: 0.8797144076 | AH50: 0.9381543119 | AI50: 0.4477465848 | AJ50: 0.9259839899 | AK50: 0.6294994063 | AL50: 0.7264840587 | AM50: 0.6861404777 | AN50: 0.3794947267 | AO50: 0.4118086696 | AP50: 0.6175320745 | AQ50: 0.09924215078 | AR50: 0.2144599557 | AS50: =RAND() -> 0.06826063555 | AT50: 0.08849242829 | AU50: 0.6699616463 | AV50: 0.180797086 | AW50: 0.7638000351 | AX50: 0.4504792243
B51: 8 | C51: 0.6097545004 | D51: 0.03743901144 | E51: 0.1344310847 | F51: 0.6196257502 | G51: 0.08267871873 | H51: 0.8464418922 | I51: 0.8962636522 | J51: 0.3309027939 | K51: 0.1168677528 | L51: 0.8065798764 | M51: 0.6869064928 | N51: 0.4563838204 | O51: 0.3380164181 | P51: 0.2694953897 | Q51: 0.8597390969 | R51: 0.7737882464 | S51: 0.5287971327 | T51: 0.5556238169 | U51: 0.69180904 | V51: 0.7875516727 | W51: 0.9630191151 | X51: 0.6560808577 | Y51: 0.4684639098 | Z51: 0.6073894097 | AA51: 0.8859097603 | AB51: 0.2709063549 | AC51: 0.06124387235 | AD51: 0.6513526019 | AE51: 0.1063293085 | AF51: 0.402679578 | AG51: 0.3793894429 | AH51: 0.8853428611 | AI51: 0.07860402005 | AJ51: 0.9139022875 | AK51: 0.2889159575 | AL51: 0.2376338836 | AM51: 0.3321236372 | AN51: 0.1706399918 | AO51: 0.4151288271 | AP51: 0.163803339 | AQ51: 0.2729943991 | AR51: 0.8967013359 | AS51: =RAND() -> 0.33105048 | AT51: 0.8944352132 | AU51: 0.678029492 | AV51: 0.7205015534 | AW51: 0.7100062353 | AX51: 0.2685656598
B52: 9 | C52: 0.2414700102 | D52: 0.3923778528 | E52: 0.3702737675 | F52: 0.3514449556 | G52: 0.72903053 | H52: 0.2502806787 | I52: 0.9346803535 | J52: 0.9147225406 | K52: 0.39527364 | L52: 0.5442406189 | M52: 0.05467884555 | N52: 0.2413775814 | O52: 0.8128206673 | P52: 0.5428395387 | Q52: 0.9292219334 | R52: 0.06738019982 | S52: 0.9105263714 | T52: 0.03402541106 | U52: 0.6284534035 | V52: 0.2860805113 | W52: 0.5842353287 | X52: 0.5251381761 | Y52: 0.4567209007 | Z52: 0.1143879832 | AA52: 0.5058871524 | AB52: 0.5576516513 | AC52: 0.3550284251 | AD52: 0.8417568633 | AE52: 0.09052563604 | AF52: 0.2212828142 | AG52: 0.5235209513 | AH52: 0.4199908126 | AI52: 0.4224103969 | AJ52: 0.07838715265 | AK52: 0.7807193097 | AL52: 0.2126088421 | AM52: 0.2119842172 | AN52: 0.5656978488 | AO52: 0.4329393506 | AP52: 0.7143816352 | AQ52: 0.3488445878 | AR52: 0.1946427226 | AS52: =RAND() -> 0.622969438 | AT52: 0.2636419522 | AU52: 0.03251286066 | AV52: 0.5599657043 | AW52: 0.6114051036 | AX52: 0.516083278
B53: 10 | C53: 0.1285360688 | D53: 0.8913066047 | E53: 0.2058568679 | F53: 0.09226224833 | G53: 0.6167903227 | H53: 0.9922030305 | I53: 0.6636148907 | J53: 0.6601696248 | K53: 0.4424301312 | L53: 0.2848099224 | M53: 0.07583161061 | N53: 0.556131197 | O53: 0.03691067155 | P53: 0.7006686589 | Q53: 0.08825517313 | R53: 0.3905934548 | S53: 0.3559378187 | T53: 0.105113114 | U53: 0.9559601217 | V53: 0.621052712 | W53: 0.2973873677 | X53: 0.4906863374 | Y53: 0.5215789016 | Z53: 0.8223631572 | AA53: 0.6903246043 | AB53: 0.3294875069 | AC53: 0.9809267675 | AD53: 0.2197912895 | AE53: 0.08276668429 | AF53: 0.5968260676 | AG53: 0.2179059097 | AH53: 0.08183745612 | AI53: 0.7196117607 | AJ53: 0.874391126 | AK53: 0.3758770135 | AL53: 0.8113843595 | AM53: 0.5564723015 | AN53: 0.01254332066 | AO53: 0.7336947918 | AP53: 0.4319704771 | AQ53: 0.7674732208 | AR53: 0.2043219805 | AS53: =RAND() -> 0.552591288 | AT53: 0.6563631297 | AU53: 0.7301664819 | AV53: 0.4201509108 | AW53: 0.1226865236 | AX53: 0.648044951
B54: 11 | C54: 0.3234205189 | D54: 0.1287458775 | E54: 0.07053952763 | F54: 0.2000419072 | G54: 0.7645616009 | H54: 0.0966138952 | I54: 0.8824926888 | J54: 0.1987324965 | K54: 0.7023022313 | L54: 0.6316937946 | M54: 0.5669902492 | N54: 0.1605054184 | O54: 0.4105941237 | P54: 0.2609869271 | Q54: 0.4650044735 | R54: 0.3449298399 | S54: 0.2167425862 | T54: 0.6245344804 | U54: 0.6050749999 | V54: 0.2871793654 | W54: 0.3557490275 | X54: 0.02627752981 | Y54: 0.9078675358 | Z54: 0.5902149006 | AA54: 0.1062844398 | AB54: 0.8106515569 | AC54: 0.2985307886 | AD54: 0.8568953375 | AE54: 0.9316615752 | AF54: 0.9574677489 | AG54: 0.5311648015 | AH54: 0.07822342561 | AI54: 0.8160444963 | AJ54: 0.7108053264 | AK54: 0.01303110954 | AL54: 0.2448426656 | AM54: 0.2582985759 | AN54: 0.9634497762 | AO54: 0.4563674331 | AP54: 0.35873276 | AQ54: 0.2605497241 | AR54: 0.652273953 | AS54: =RAND() -> 0.7817919151 | AT54: 0.6227415974 | AU54: 0.232641001 | AV54: 0.9594434226 | AW54: 0.9070125011 | AX54: 0.7982579603
B55: 12 | C55: 0.1947934352 | D55: 0.4121316338 | E55: 0.8799532159 | F55: 0.4662484937 | G55: 0.3624360016 | H55: 0.8495804002 | I55: 0.7576821358 | J55: 0.2760884663 | K55: 0.4423535547 | L55: 0.5360183818 | M55: 0.1844688527 | N55: 0.5115480295 | O55: 0.3929794006 | P55: 0.4493130736 | Q55: 0.4077612522 | R55: 0.666204948 | S55: 0.05516237943 | T55: 0.548039151 | U55: 0.09916777558 | V55: 0.8576306797 | W55: 0.6281867343 | X55: 0.8426184118 | Y55: 0.7307254633 | Z55: 0.1627220392 | AA55: 0.3577136997 | AB55: 0.5591237332 | AC55: 0.0008057713337 | AD55: 0.8682002093 | AE55: 0.155522427 | AF55: 0.9776700437 | AG55: 0.6708490526 | AH55: 0.5707771612 | AI55: 0.2065387224 | AJ55: 0.9321266641 | AK55: 0.775006758 | AL55: 0.4056957518 | AM55: 0.8844481707 | AN55: 0.6739017963 | AO55: 0.3510326147 | AP55: 0.7773594856 | AQ55: 0.4719330072 | AR55: 0.3149487972 | AS55: =RAND() -> 0.6573343335 | AT55: 0.00523168019 | AU55: 0.4918017505 | AV55: 0.7074487577 | AW55: 0.6417438216 | AX55: 0.4560813327
B56: 13 | C56: 0.6853927604 | D56: 0.3222171328 | E56: 0.9122599511 | F56: 0.190851592 | G56: 0.824820087 | H56: 0.6483755574 | I56: 0.8970090266 | J56: 0.977860253 | K56: 0.1999443493 | L56: 0.5144411931 | M56: 0.4656178654 | N56: 0.8893061748 | O56: 0.2227674177 | P56: 0.6717601024 | Q56: 0.688002738 | R56: 0.3501004793 | S56: 0.1772854549 | T56: 0.8682199565 | U56: 0.7953591345 | V56: 0.8668825076 | W56: 0.2409528559 | X56: 0.1412759802 | Y56: 0.3547476494 | Z56: 0.1363723435 | AA56: 0.7897187528 | AB56: 0.3075077514 | AC56: 0.9360690251 | AD56: 0.8076352306 | AE56: 0.9339302802 | AF56: 0.480966716 | AG56: 0.5581931922 | AH56: 0.05679112525 | AI56: 0.02386661954 | AJ56: 0.1294186342 | AK56: 0.9943382709 | AL56: 0.08830065938 | AM56: 0.9986141324 | AN56: 0.5405315757 | AO56: 0.6664877534 | AP56: 0.6122385859 | AQ56: 0.9534447789 | AR56: 0.9948319793 | AS56: =RAND() -> 0.5315248352 | AT56: 0.7576738837 | AU56: 0.2833390233 | AV56: 0.326435757 | AW56: 0.1508954132 | AX56: 0.6422022449
B57: 14 | C57: 0.9649172411 | D57: 0.8320268053 | E57: 0.9645716885 | F57: 0.3524992666 | G57: 0.3295254516 | H57: 0.5591893368 | I57: 0.8839486897 | J57: 0.3952968049 | K57: 0.1406385138 | L57: 0.3924407891 | M57: 0.001600764081 | N57: 0.495769681 | O57: 0.5771649319 | P57: 0.1070761753 | Q57: 0.8806444248 | R57: 0.8316849052 | S57: 0.7444886429 | T57: 0.01614813521 | U57: 0.3225286688 | V57: 0.5700032247 | W57: 0.3039481599 | X57: 0.9724978947 | Y57: 0.5922188912 | Z57: 0.3564597876 | AA57: 0.2064392453 | AB57: 0.4332800973 | AC57: 0.4401566042 | AD57: 0.3313467436 | AE57: 0.4447346638 | AF57: 0.04023441498 | AG57: 0.8639186868 | AH57: 0.7547925998 | AI57: 0.2303227849 | AJ57: 0.146393177 | AK57: 0.008573951026 | AL57: 0.7867739406 | AM57: 0.1157720089 | AN57: 0.8841847181 | AO57: 0.1592702866 | AP57: 0.7728234529 | AQ57: 0.5994246006 | AR57: 0.8889592886 | AS57: =RAND() -> 0.8216934187 | AT57: 0.07558257151 | AU57: 0.7819254499 | AV57: 0.3150026285 | AW57: 0.9911296122 | AX57: 0.8223510013
B58: 15 | C58: 0.150503727 | D58: 0.7450401555 | E58: 0.6329101591 | F58: 0.7417356446 | G58: 0.4748061086 | H58: 0.5832112394 | I58: 0.2395093785 | J58: 0.3650127499 | K58: 0.1388304175 | L58: 0.6376974746 | M58: 0.4337598533 | N58: 0.4319021043 | O58: 0.8458879643 | P58: 0.773818197 | Q58: 0.3284286914 | R58: 0.07333990315 | S58: 0.1641745027 | T58: 0.6549813415 | U58: 0.3568296723 | V58: 0.4428602482 | W58: 0.973498098 | X58: 0.002365199531 | Y58: 0.9170554363 | Z58: 0.08464175564 | AA58: 0.3505675773 | AB58: 0.05315242014 | AC58: 0.09508588364 | AD58: 0.3739817207 | AE58: 0.5552279079 | AF58: 0.0601620268 | AG58: 0.6734450408 | AH58: 0.88936992 | AI58: 0.4636566657 | AJ58: 0.783493254 | AK58: 0.8391402252 | AL58: 0.9337894584 | AM58: 0.07283109426 | AN58: 0.2100978494 | AO58: 0.0509788394 | AP58: 0.482902348 | AQ58: 0.0774397254 | AR58: 0.5927467942 | AS58: =RAND() -> 0.7295859723 | AT58: 0.1086467461 | AU58: 0.5867021267 | AV58: 0.004606739726 | AW58: 0.8222475065 | AX58: 0.471566052
B59: 16 | C59: 0.7500314847 | D59: 0.7392996358 | E59: 0.6610084926 | F59: 0.7182654722 | G59: 0.3206977959 | H59: 0.05228268267 | I59: 0.3732460705 | J59: 0.311529242 | K59: 0.6213760855 | L59: 0.3870234831 | M59: 0.3431661758 | N59: 0.5977617462 | O59: 0.3419508161 | P59: 0.6484952148 | Q59: 0.1999249212 | R59: 0.1188805812 | S59: 0.4690695469 | T59: 0.4339168154 | U59: 0.3887826929 | V59: 0.4714366889 | W59: 0.8835526538 | X59: 0.7095082725 | Y59: 0.6833326105 | Z59: 0.8424097656 | AA59: 0.604410913 | AB59: 0.5197252573 | AC59: 0.3842452489 | AD59: 0.7003020159 | AE59: 0.3166522289 | AF59: 0.04488486582 | AG59: 0.2916087007 | AH59: 0.8875208082 | AI59: 0.4224281112 | AJ59: 0.00574901569 | AK59: 0.9838446801 | AL59: 0.9877710127 | AM59: 0.2135556936 | AN59: 0.5992407799 | AO59: 0.2031847239 | AP59: 0.2146651745 | AQ59: 0.3330305815 | AR59: 0.7603759766 | AS59: =RAND() -> 0.7565832309 | AT59: 0.7804115181 | AU59: 0.7772208802 | AV59: 0.9833241367 | AW59: 0.504625826 | AX59: 0.7881612663
B60: 17 | C60: 0.336500964 | D60: 0.5239782099 | E60: 0.304276684 | F60: 0.7645232087 | G60: 0.06323176981 | H60: 0.640165836 | I60: 0.9921791025 | J60: 0.02925427122 | K60: 0.6198777753 | L60: 0.3651485025 | M60: 0.8853053831 | N60: 0.9157648994 | O60: 0.9748181985 | P60: 0.4465942665 | Q60: 0.620997892 | R60: 0.6768469929 | S60: 0.7727322538 | T60: 0.6017498083 | U60: 0.6327168724 | V60: 0.5633219354 | W60: 0.2847204987 | X60: 0.2590076267 | Y60: 0.8771698073 | Z60: 0.6552079514 | AA60: 0.9515460848 | AB60: 0.7551254566 | AC60: 0.3154475065 | AD60: 0.3159735138 | AE60: 0.7075858575 | AF60: 0.388036634 | AG60: 0.8585533499 | AH60: 0.7362125113 | AI60: 0.8461958511 | AJ60: 0.2561058032 | AK60: 0.4259385638 | AL60: 0.4361306378 | AM60: 0.9431763291 | AN60: 0.0186650157 | AO60: 0.4520724416 | AP60: 0.12087816 | AQ60: 0.6848493218 | AR60: 0.1080133319 | AS60: =RAND() -> 0.432385919 | AT60: 0.8210219472 | AU60: 0.7243700782 | AV60: 0.03404155993 | AW60: 0.7962051469 | AX60: 0.7082980235
B61: 18 | C61: 0.0978100695 | D61: 0.612552392 | E61: 0.02586225947 | F61: 0.4417983802 | G61: 0.7823022617 | H61: 0.3426173039 | I61: 0.6832118252 | J61: 0.4526911563 | K61: 0.2104480184 | L61: 0.2009479996 | M61: 0.1610275615 | N61: 0.22470688 | O61: 0.1944772934 | P61: 0.243631846 | Q61: 0.8709386785 | R61: 0.999723552 | S61: 0.5370418362 | T61: 0.5105506699 | U61: 0.2710393924 | V61: 0.6564308019 | W61: 0.598761013 | X61: 0.3880923728 | Y61: 0.5046763786 | Z61: 0.3284535933 | AA61: 0.8881986296 | AB61: 0.9983730757 | AC61: 0.2130591252 | AD61: 0.4218552457 | AE61: 0.3853419285 | AF61: 0.2678628713 | AG61: 0.1021080212 | AH61: 0.970589208 | AI61: 0.2490105975 | AJ61: 0.2177666163 | AK61: 0.1302767063 | AL61: 0.6360976514 | AM61: 0.7364311218 | AN61: 0.9373332262 | AO61: 0.02639317513 | AP61: 0.03523480892 | AQ61: 0.711119175 | AR61: 0.4510265589 | AS61: =RAND() -> 0.6593000196 | AT61: 0.7903640319 | AU61: 0.9019667116 | AV61: 0.5575013293 | AW61: 0.9159119739 | AX61: 0.218234691
B62: 19 | C62: 0.1724464283 | D62: 0.07288435413 | E62: 0.8526579421 | F62: 0.0424945879 | G62: 0.9167797961 | H62: 0.923347743 | I62: 0.07919472604 | J62: 0.9798864658 | K62: 0.2216087074 | L62: 0.03926244989 | M62: 0.2396895338 | N62: 0.5141994341 | O62: 0.1060104522 | P62: 0.1149728702 | Q62: 0.1309262536 | R62: 0.06378703001 | S62: 0.03469431212 | T62: 0.2489966838 | U62: 0.8442587446 | V62: 0.1974279309 | W62: 0.6754889673 | X62: 0.9330185748 | Y62: 0.6958777951 | Z62: 0.937167322 | AA62: 0.4185405628 | AB62: 0.1427806103 | AC62: 0.8953792303 | AD62: 0.5932041265 | AE62: 0.3779621831 | AF62: 0.1088387545 | AG62: 0.1633538643 | AH62: 0.2092048474 | AI62: 0.1239875752 | AJ62: 0.3292575249 | AK62: 0.9062569723 | AL62: 0.210926414 | AM62: 0.0978166461 | AN62: 0.8380058408 | AO62: 0.02797931433 | AP62: 0.5806780457 | AQ62: 0.07463139296 | AR62: 0.451710999 | AS62: =RAND() -> 0.3317600413 | AT62: 0.8586427069 | AU62: 0.9076553656 | AV62: 0.5719067281 | AW62: 0.5720954519 | AX62: 0.5522953064
B63: 20 | C63: 0.7660487072 | D63: 0.6516202013 | E63: 0.2437845994 | F63: 0.7321745124 | G63: 0.5141217811 | H63: 0.8166312706 | I63: 0.2737553604 | J63: 0.9830067484 | K63: 0.1570795728 | L63: 0.5621762018 | M63: 0.62873026 | N63: 0.1364275274 | O63: 0.7559006621 | P63: 0.8682847755 | Q63: 0.8342116664 | R63: 0.8642341616 | S63: 0.7947717955 | T63: 0.4943516408 | U63: 0.5587536015 | V63: 0.6865779233 | W63: 0.9587183957 | X63: 0.3349011936 | Y63: 0.01975315021 | Z63: 0.2445458764 | AA63: 0.7121415951 | AB63: 0.5976027085 | AC63: 0.6765841252 | AD63: 0.6510552511 | AE63: 0.2892957989 | AF63: 0.2852434525 | AG63: 0.4502586186 | AH63: 0.3005580618 | AI63: 0.8478755032 | AJ63: 0.8398052017 | AK63: 0.616847828 | AL63: 0.797823399 | AM63: 0.7277103662 | AN63: 0.6034562588 | AO63: 0.7870758772 | AP63: 0.5163087845 | AQ63: 0.5946294069 | AR63: 0.7979853153 | AS63: =RAND() -> 0.2006823378 | AT63: 0.02716731607 | AU63: 0.8015677022 | AV63: 0.2293500369 | AW63: 0.5193055543 | AX63: 0.05607674373
B64: 21 | C64: 0.902544045 | D64: 0.871229712 | E64: 0.2098519653 | F64: 0.352466069 | G64: 0.4299359031 | H64: 0.2071363741 | I64: 0.7760072684 | J64: 0.8944041686 | K64: 0.1888909211 | L64: 0.6694304682 | M64: 0.7199594866 | N64: 0.1171676959 | O64: 0.8695187301 | P64: 0.191005237 | Q64: 0.5654903897 | R64: 0.9394950067 | S64: 0.5524864091 | T64: 0.729686198 | U64: 0.193946942 | V64: 0.6830530461 | W64: 0.6500930219 | X64: 0.2122051336 | Y64: 0.0939206804 | Z64: 0.7089626647 | AA64: 0.1595718366 | AB64: 0.6953809016 | AC64: 0.7847828084 | AD64: 0.3526841627 | AE64: 0.4447683587 | AF64: 0.5496946709 | AG64: 0.7327887247 | AH64: 0.1008564709 | AI64: 0.813801059 | AJ64: 0.7733613368 | AK64: 0.9485941234 | AL64: 0.5683151543 | AM64: 0.8833783269 | AN64: 0.5922002196 | AO64: 0.4057212472 | AP64: 0.6810352206 | AQ64: 0.3905313611 | AR64: 0.4016794562 | AS64: =RAND() -> 0.3940383837 | AT64: 0.2751584213 | AU64: 0.2708253171 | AV64: 0.6357264885 | AW64: 0.320393316 | AX64: 0.1476594679
B65: 22 | C65: 0.7257166433 | D65: 0.3454171694 | E65: 0.6457901973 | F65: 0.5762060148 | G65: 0.7096589035 | H65: 0.8095264156 | I65: 0.5019206148 | J65: 0.0233720008 | K65: 0.7643700015 | L65: 0.4673428168 | M65: 0.1782952965 | N65: 0.2873814473 | O65: 0.6210840749 | P65: 0.0425108241 | Q65: 0.4385997548 | R65: 0.4149853575 | S65: 0.590677546 | T65: 0.4637949023 | U65: 0.1254019643 | V65: 0.04368213802 | W65: 0.8624201428 | X65: 0.1488352928 | Y65: 0.494247847 | Z65: 0.2841166737 | AA65: 0.5946541386 | AB65: 0.1640345478 | AC65: 0.53964813 | AD65: 0.720686008 | AE65: 0.3154637553 | AF65: 0.9262411462 | AG65: 0.5941719806 | AH65: 0.7897712475 | AI65: 0.9089276079 | AJ65: 0.07897472456 | AK65: 0.3721756016 | AL65: 0.136907735 | AM65: 0.7178270817 | AN65: 0.7081826925 | AO65: 0.2994799614 | AP65: 0.2094999552 | AQ65: 0.3726375103 | AR65: 0.600545764 | AS65: =RAND() -> 0.4872181541 | AT65: 0.3119687331 | AU65: 0.7131716175 | AV65: 0.6289343467 | AW65: 0.01024263309 | AX65: 0.9894885174
B66: 23 | C66: 0.449287927 | D66: 0.4736712586 | E66: 0.8154762826 | F66: 0.5693330486 | G66: 0.9413594475 | H66: 0.09958825603 | I66: 0.370280506 | J66: 0.9508973467 | K66: 0.6592031898 | L66: 0.7682668041 | M66: 0.1991373457 | N66: 0.3890804712 | O66: 0.4216611118 | P66: 0.03841859136 | Q66: 0.7652421507 | R66: 0.5555656999 | S66: 0.6659832581 | T66: 0.3265074032 | U66: 0.7197671515 | V66: 0.9682450219 | W66: 0.4400831529 | X66: 0.9484047477 | Y66: 0.7405241468 | Z66: 0.9011189178 | AA66: 0.001336371794 | AB66: 0.6795097548 | AC66: 0.6036817978 | AD66: 0.5391291636 | AE66: 0.04472800654 | AF66: 0.3555576453 | AG66: 0.8099198282 | AH66: 0.6556474972 | AI66: 0.04348740842 | AJ66: 0.1134567625 | AK66: 0.5554502744 | AL66: 0.3417582987 | AM66: 0.9976229072 | AN66: 0.3010922074 | AO66: 0.05661934614 | AP66: 0.7436736226 | AQ66: 0.004383027554 | AR66: 0.1616006494 | AS66: =RAND() -> 0.97854457 | AT66: 0.6941068908 | AU66: 0.3399822571 | AV66: 0.08631557642 | AW66: 0.7778533245 | AX66: 0.1614822918
B67: 24 | C67: 0.02010408447 | D67: 0.4103134757 | E67: 0.002603506476 | F67: 0.03009615277 | G67: 0.7819095601 | H67: 0.1886961643 | I67: 0.5605172604 | J67: 0.8908123525 | K67: 0.6943062659 | L67: 0.8195907748 | M67: 0.3303627593 | N67: 0.8650739625 | O67: 0.8195523561 | P67: 0.4845301144 | Q67: 0.3484970264 | R67: 0.8227005089 | S67: 0.4362024335 | T67: 0.5422812674 | U67: 0.1906648162 | V67: 0.9972181103 | W67: 0.5997010815 | X67: 0.06884218948 | Y67: 0.8571666419 | Z67: 0.4313128777 | AA67: 0.3641103475 | AB67: 0.6711641545 | AC67: 0.8500350203 | AD67: 0.6085170924 | AE67: 0.6377960764 | AF67: 0.2687196873 | AG67: 0.9099020579 | AH67: 0.1535761416 | AI67: 0.4214162058 | AJ67: 0.06984910701 | AK67: 0.631628733 | AL67: 0.07632462479 | AM67: 0.7463091612 | AN67: 0.1372928619 | AO67: 0.4074546099 | AP67: 0.219949007 | AQ67: 0.3124545813 | AR67: 0.4429745674 | AS67: =RAND() -> 0.5540902896 | AT67: 0.9642467922 | AU67: 0.01852628608 | AV67: 0.7755235836 | AW67: 0.01176996057 | AX67: 0.9992494616
B68: 25 | C68: 0.431934456 | D68: 0.9824206862 | E68: 0.112928027 | F68: 0.765240618 | G68: 0.7598964494 | H68: 0.959921573 | I68: 0.01854120988 | J68: 0.8509793477 | K68: 0.7619952533 | L68: 0.1884840571 | M68: 0.211798528 | N68: 0.03576369404 | O68: 0.08610506512 | P68: 0.2942085066 | Q68: 0.5077402692 | R68: 0.4575407433 | S68: 0.3968843042 | T68: 0.7114807553 | U68: 0.07665904009 | V68: 0.4717165549 | W68: 0.4481438547 | X68: 0.8903972832 | Y68: 0.7283612063 | Z68: 0.225973141 | AA68: 0.007338413858 | AB68: 0.7905515938 | AC68: 0.1366164312 | AD68: 0.4190297451 | AE68: 0.1413319235 | AF68: 0.3389666101 | AG68: 0.2741021697 | AH68: 0.5795144887 | AI68: 0.9622049882 | AJ68: 0.8202516426 | AK68: 0.04022117386 | AL68: 0.3407338503 | AM68: 0.9235292077 | AN68: 0.4714033008 | AO68: 0.6756885648 | AP68: 0.2422336936 | AQ68: 0.9658156037 | AR68: 0.3927370906 | AS68: =RAND() -> 0.9099668786 | AT68: 0.4145390482 | AU68: 0.9618260431 | AV68: 0.3796345066 | AW68: 0.3752113343 | AX68: 0.9603123091
B69: 26 | C69: 0.861941695 | D69: 0.02365108082 | E69: 0.2528398733 | F69: 0.8525418892 | G69: 0.1579838884 | H69: 0.5293388681 | I69: 0.8173833179 | J69: 0.08032391244 | K69: 0.9645337324 | L69: 0.4956931441 | M69: 0.6403885881 | N69: 0.1445730891 | O69: 0.259858702 | P69: 0.9509735985 | Q69: 0.3176220851 | R69: 0.2680789134 | S69: 0.300555792 | T69: 0.9971936975 | U69: 0.4026157428 | V69: 0.5486123128 | W69: 0.3142798028 | X69: 0.2765404872 | Y69: 0.4142220819 | Z69: 0.3040583389 | AA69: 0.385039024 | AB69: 0.4245927541 | AC69: 0.4521870852 | AD69: 0.4913227616 | AE69: 0.06042454958 | AF69: 0.9077659614 | AG69: 0.1648850332 | AH69: 0.2922851542 | AI69: 0.416698461 | AJ69: 0.3516344239 | AK69: 0.08498799346 | AL69: 0.8922205017 | AM69: 0.5595326424 | AN69: 0.8784347773 | AO69: 0.3462674618 | AP69: 0.7595471144 | AQ69: 0.7105054855 | AR69: 0.09929668903 | AS69: =RAND() -> 0.789532377 | AT69: 0.638544167 | AU69: 0.6324779566 | AV69: 0.7440800685 | AW69: 0.293796439 | AX69: 0.494884875
B70: 27 | C70: 0.633904372 | D70: 0.600073604 | E70: 0.01821224078 | F70: 0.9172067801 | G70: 0.419458985 | H70: 0.6066991204 | I70: 0.01192800236 | J70: 0.7382130117 | K70: 0.3792601919 | L70: 0.6867248554 | M70: 0.9691461959 | N70: 0.5911082903 | O70: 0.8070557454 | P70: 0.3246252584 | Q70: 0.7678433896 | R70: 0.2099790328 | S70: 0.9934752479 | T70: 0.3463831564 | U70: 0.7834876553 | V70: 0.8615847608 | W70: 0.271367151 | X70: 0.3615624613 | Y70: 0.5038035718 | Z70: 0.3048334223 | AA70: 0.8877300215 | AB70: 0.4828224836 | AC70: 0.2675826558 | AD70: 0.3125078402 | AE70: 0.3121846107 | AF70: 0.3108802528 | AG70: 0.2202530627 | AH70: 0.8367355723 | AI70: 0.4960365102 | AJ70: 0.03479904097 | AK70: 0.5549669441 | AL70: 0.1443841951 | AM70: 0.8360316157 | AN70: 0.6167519689 | AO70: 0.5961884856 | AP70: 0.6426044106 | AQ70: 0.04961699247 | AR70: 0.4995763898 | AS70: =RAND() -> 0.93058101 | AT70: 0.9007862957 | AU70: 0.2644906527 | AV70: 0.5365637484 | AW70: 0.320604017 | AX70: 0.439337878
B71: 28 | C71: 0.4474664827 | D71: 0.3438193854 | E71: 0.6080175665 | F71: 0.6063342178 | G71: 0.4983211511 | H71: 0.235634658 | I71: 0.6612341591 | J71: 0.51957529 | K71: 0.8198765642 | L71: 0.1981215975 | M71: 0.6367168955 | N71: 0.5724698546 | O71: 0.1955369948 | P71: 0.1792322223 | Q71: 0.8748343726 | R71: 0.4523141105 | S71: 0.9706189103 | T71: 0.8326499575 | U71: 0.1821358252 | V71: 0.05567042369 | W71: 0.9430117874 | X71: 0.9826683942 | Y71: 0.5011590753 | Z71: 0.2299936592 | AA71: 0.3931938974 | AB71: 0.334265407 | AC71: 0.8516939806 | AD71: 0.3364501339 | AE71: 0.9532942311 | AF71: 0.1070270366 | AG71: 0.1272822069 | AH71: 0.07551117757 | AI71: 0.4890442134 | AJ71: 0.3541493043 | AK71: 0.6573109772 | AL71: 0.1392175938 | AM71: 0.3905068636 | AN71: 0.9610655308 | AO71: 0.9989522696 | AP71: 0.125939846 | AQ71: 0.2502390146 | AR71: 0.1763617992 | AS71: =RAND() -> 0.9590837407 | AT71: 0.2596486572 | AU71: 0.2533362117 | AV71: 0.3884311959 | AW71: 0.2314361987 | AX71: 0.2896331596
B72: 29 | C72: 0.856768169 | D72: 0.8823425422 | E72: 0.8457372238 | F72: 0.7613715105 | G72: 0.9690929593 | H72: 0.8796433078 | I72: 0.2341685554 | J72: 0.3062374273 | K72: 0.8361199018 | L72: 0.3112480386 | M72: 0.7417934266 | N72: 0.1789667557 | O72: 0.9509087607 | P72: 0.4375592223 | Q72: 0.7562740751 | R72: 0.6188099242 | S72: 0.6184799064 | T72: 0.417840983 | U72: 0.3069009629 | V72: 0.8864006963 | W72: 0.6369072181 | X72: 0.4172269349 | Y72: 0.1916961717 | Z72: 0.2992763769 | AA72: 0.2848040838 | AB72: 0.7222304933 | AC72: 0.3284977511 | AD72: 0.7405739933 | AE72: 0.3484915422 | AF72: 0.5775067934 | AG72: 0.2477142781 | AH72: 0.727600996 | AI72: 0.5913213146 | AJ72: 0.3231809561 | AK72: 0.7634235645 | AL72: 0.9620242681 | AM72: 0.7626646161 | AN72: 0.9378294349 | AO72: 0.5205803514 | AP72: 0.9659115672 | AQ72: 0.1820033193 | AR72: 0.2006320357 | AS72: =RAND() -> 0.4353542341 | AT72: 0.4252639349 | AU72: 0.9623056737 | AV72: 0.09639832747 | AW72: 0.7676662804 | AX72: 0.6932684849
B73: 30 | C73: 0.9190891256 | D73: 0.3653799754 | E73: 0.785310159 | F73: 0.8894860365 | G73: 0.5549512534 | H73: 0.8265577694 | I73: 0.7577313366 | J73: 0.6292108758 | K73: 0.9106810804 | L73: 0.2054627586 | M73: 0.2657013794 | N73: 0.5060274876 | O73: 0.0576338594 | P73: 0.9037020334 | Q73: 0.9807019556 | R73: 0.005008378426 | S73: 0.5793752494 | T73: 0.9681807487 | U73: 0.07491932735 | V73: 0.3294758339 | W73: 0.2858874193 | X73: 0.3701922553 | Y73: 0.05900476713 | Z73: 0.095550469 | AA73: 0.7337492507 | AB73: 0.5779232497 | AC73: 0.5039890579 | AD73: 0.5889928403 | AE73: 0.261190325 | AF73: 0.8569562906 | AG73: 0.8390280511 | AH73: 0.08452988005 | AI73: 0.8895447734 | AJ73: 0.9145040995 | AK73: 0.5057210806 | AL73: 0.517378012 | AM73: 0.9769408703 | AN73: 0.9159239531 | AO73: 0.2034378052 | AP73: 0.5135623217 | AQ73: 0.2233192921 | AR73: 0.9014419317 | AS73: =RAND() -> 0.9948368216 | AT73: 0.1309075843 | AU73: 0.7009479907 | AV73: 0.26723472 | AW73: 0.3792652553 | AX73: 0.1359821854
B74: 31 | C74: 0.6537458942 | D74: 0.3560635365 | E74: 0.8311936067 | F74: 0.06472482723 | G74: 0.3158887884 | H74: 0.646775109 | I74: 0.2803768185 | J74: 0.05442619323 | K74: 0.05957285779 | L74: 0.862662575 | M74: 0.3354750816 | N74: 0.3911049082 | O74: 0.106803934 | P74: 0.7424711993 | Q74: 0.3073025377 | R74: 0.5524042003 | S74: 0.5409251553 | T74: 0.587723689 | U74: 0.8730466823 | V74: 0.08115661786 | W74: 0.6281546603 | X74: 0.6728816533 | Y74: 0.8818994706 | Z74: 0.07691570727 | AA74: 0.3130746961 | AB74: 0.2311714291 | AC74: 0.2906602247 | AD74: 0.3383020108 | AE74: 0.2819964536 | AF74: 0.7613528552 | AG74: 0.8105389951 | AH74: 0.8107839434 | AI74: 0.07261607909 | AJ74: 0.564983152 | AK74: 0.7749409379 | AL74: 0.3547814508 | AM74: 0.0293635726 | AN74: 0.4439817071 | AO74: 0.09914034605 | AP74: 0.8554123044 | AQ74: 0.2770447135 | AR74: 0.6656504273 | AS74: =RAND() -> 0.6312447135 | AT74: 0.6711756009 | AU74: 0.1139487699 | AV74: 0.3387510807 | AW74: 0.3952197984 | AX74: 0.636241047
B75: 32 | C75: 0.2749867177 | D75: 0.6919771823 | E75: 0.3461580597 | F75: 0.3274534268 | G75: 0.02274105648 | H75: 0.891219102 | I75: 0.9392240442 | J75: 0.7313868384 | K75: 0.04330853335 | L75: 0.5086850614 | M75: 0.1779327918 | N75: 0.6126895504 | O75: 0.03935108923 | P75: 0.894516274 | Q75: 0.1189394808 | R75: 0.08548928633 | S75: 0.4132365038 | T75: 0.1895493562 | U75: 0.4540865739 | V75: 0.3045110697 | W75: 0.9956336269 | X75: 0.7632354668 | Y75: 0.836099838 | Z75: 0.65437739 | AA75: 0.13807136 | AB75: 0.3908512754 | AC75: 0.09175777741 | AD75: 0.4123789841 | AE75: 0.7167674026 | AF75: 0.7793528527 | AG75: 0.3491222039 | AH75: 0.41338451 | AI75: 0.5392258837 | AJ75: 0.9265295407 | AK75: 0.1699190748 | AL75: 0.1055872116 | AM75: 0.7238410711 | AN75: 0.9102845192 | AO75: 0.5167080164 | AP75: 0.3129556179 | AQ75: 0.5203484297 | AR75: 0.2106103897 | AS75: =RAND() -> 0.06254251467 | AT75: 0.6049495234 | AU75: 0.6571430061 | AV75: 0.9794330209 | AW75: 0.5357350457 | AX75: 0.6143547636
B76: 33 | C76: 0.7231306447 | D76: 0.3489757861 | E76: 0.1819550184 | F76: 0.1522992594 | G76: 0.903032574 | H76: 0.4380971589 | I76: 0.02155427614 | J76: 0.3823405342 | K76: 0.4499520249 | L76: 0.1902093648 | M76: 0.2751726822 | N76: 0.2061795929 | O76: 0.503624951 | P76: 0.4806932489 | Q76: 0.2784295474 | R76: 0.4502308599 | S76: 0.8707501343 | T76: 0.7432095675 | U76: 0.3181887631 | V76: 0.8544150457 | W76: 0.6679961509 | X76: 0.7818360797 | Y76: 0.9964224746 | Z76: 0.7810905409 | AA76: 0.4725985571 | AB76: 0.7030359563 | AC76: 0.6273454887 | AD76: 0.9950126166 | AE76: 0.7717346665 | AF76: 0.5377949673 | AG76: 0.5069798273 | AH76: 0.7987500152 | AI76: 0.6125351111 | AJ76: 0.34267018 | AK76: 0.4390780094 | AL76: 0.6413917609 | AM76: 0.2726717591 | AN76: 0.04744786024 | AO76: 0.1374791265 | AP76: 0.1785458922 | AQ76: 0.7644973397 | AR76: 0.7504741549 | AS76: =RAND() -> 0.4566201218 | AT76: 0.1736014167 | AU76: 0.08035955063 | AV76: 0.1497483709 | AW76: 0.9586599862 | AX76: 0.7176366704
B77: 34 | C77: 0.5366007227 | D77: 0.8031792133 | E77: 0.4386317036 | F77: 0.667353731 | G77: 0.6900237905 | H77: 0.2986772241 | I77: 0.1107274066 | J77: 0.911775877 | K77: 0.4519494298 | L77: 0.5008399543 | M77: 0.3804510193 | N77: 0.1195275169 | O77: 0.6341089146 | P77: 0.1455473802 | Q77: 0.3734682797 | R77: 0.2903777351 | S77: 0.2017380263 | T77: 0.02448059482 | U77: 0.1820760034 | V77: 0.9868048672 | W77: 0.8442366273 | X77: 0.4032836639 | Y77: 0.2054373574 | Z77: 0.6877213693 | AA77: 0.380959923 | AB77: 0.9061708197 | AC77: 0.9512697326 | AD77: 0.4338813676 | AE77: 0.9238768933 | AF77: 0.4328302377 | AG77: 0.6824577236 | AH77: 0.1334031111 | AI77: 0.1640419147 | AJ77: 0.044524152 | AK77: 0.7873363138 | AL77: 0.7738983878 | AM77: 0.1668901443 | AN77: 0.9652425051 | AO77: 0.092243433 | AP77: 0.8046144247 | AQ77: 0.5473704338 | AR77: 0.5441519022 | AS77: =RAND() -> 0.9735809854 | AT77: 0.6706126647 | AU77: 0.1296174455 | AV77: 0.8186477134 | AW77: 0.9315859779 | AX77: 0.957691779
B78: 35 | C78: 0.3142095564 | D78: 0.00556163422 | E78: 0.3833538508 | F78: 0.191055498 | G78: 0.9202390838 | H78: 0.2788425366 | I78: 0.7604146584 | J78: 0.3249667403 | K78: 0.8548117913 | L78: 0.8930220235 | M78: 0.7214639264 | N78: 0.06194312376 | O78: 0.2769799679 | P78: 0.5576518673 | Q78: 0.6776236635 | R78: 0.5537810384 | S78: 0.4493373367 | T78: 0.6158727282 | U78: 0.2768335701 | V78: 0.9938292514 | W78: 0.8313685011 | X78: 0.8380907126 | Y78: 0.272911376 | Z78: 0.669507525 | AA78: 0.8724183805 | AB78: 0.2385840186 | AC78: 0.9023765142 | AD78: 0.2305033511 | AE78: 0.6197072051 | AF78: 0.4795300055 | AG78: 0.5402328258 | AH78: 0.801105172 | AI78: 0.6386302467 | AJ78: 0.3186407154 | AK78: 0.5890114893 | AL78: 0.05468626942 | AM78: 0.549603641 | AN78: 0.4115045667 | AO78: 0.4642176032 | AP78: 0.4453907609 | AQ78: 0.3402916789 | AR78: 0.1108115315 | AS78: =RAND() -> 0.7531474791 | AT78: 0.9705674637 | AU78: 0.4454954167 | AV78: 0.1247552663 | AW78: 0.7830643318 | AX78: 0.01164402161
B79: 36 | C79: 0.9006695373 | D79: 0.8350901426 | E79: 0.04216776085 | F79: 0.4930109074 | G79: 0.4897133354 | H79: 0.1475368712 | I79: 0.4952368148 | J79: 0.867917908 | K79: 0.1274327702 | L79: 0.2435541651 | M79: 0.1824472962 | N79: 0.006348895982 | O79: 0.05693071912 | P79: 0.03418531445 | Q79: 0.6719000597 | R79: 0.8494882832 | S79: 0.1433933365 | T79: 0.6637697868 | U79: 0.909207275 | V79: 0.900509662 | W79: 0.1310685085 | X79: 0.4546165744 | Y79: 0.1394540722 | Z79: 0.5357460779 | AA79: 0.6522165688 | AB79: 0.4732691941 | AC79: 0.1312685759 | AD79: 0.5791363404 | AE79: 0.6481330786 | AF79: 0.8499291377 | AG79: 0.01319447102 | AH79: 0.6869300107 | AI79: 0.7795128619 | AJ79: 0.3755112632 | AK79: 0.9787949062 | AL79: 0.7465414598 | AM79: 0.1428571939 | AN79: 0.9112803936 | AO79: 0.5769938231 | AP79: 0.4036159515 | AQ79: 0.4744063616 | AR79: 0.005254030228 | AS79: =RAND() -> 0.6139330207 | AT79: 0.05329988352 | AU79: 0.7793926433 | AV79: 0.622433656 | AW79: 0.4615841104 | AX79: 0.690402483
B80: 37 | C80: 0.7259954154 | D80: 0.9046965677 | E80: 0.6052140086 | F80: 0.5398328881 | G80: 0.4695957768 | H80: 0.1101975707 | I80: 0.3981615674 | J80: 0.8586528721 | K80: 0.9841331306 | L80: 0.8884501942 | M80: 0.6898791768 | N80: 0.3982565182 | O80: 0.3635628066 | P80: 0.5843756842 | Q80: 0.5743028731 | R80: 0.03683896695 | S80: 0.816543166 | T80: 0.4695533127 | U80: 0.09851416274 | V80: 0.3528456359 | W80: 0.4933314403 | X80: 0.6452976055 | Y80: 0.4462216598 | Z80: 0.7390003107 | AA80: 0.8041705383 | AB80: 0.3183548133 | AC80: 0.1607937396 | AD80: 0.6908163699 | AE80: 0.631219089 | AF80: 0.7461637881 | AG80: 0.8885190802 | AH80: 0.7409574286 | AI80: 0.9970408444 | AJ80: 0.09856206364 | AK80: 0.1897303053 | AL80: 0.05690674 | AM80: 0.3264144063 | AN80: 0.5837668777 | AO80: 0.7400689721 | AP80: 0.574777782 | AQ80: 0.7209270597 | AR80: 0.226162374 | AS80: =RAND() -> 0.2026746781 | AT80: 0.1207774195 | AU80: 0.4636740792 | AV80: 0.03846090428 | AW80: 0.1789601676 | AX80: 0.005961055345
B81: 38 | C81: 0.7946179369 | D81: 0.4568466603 | E81: 0.6783457599 | F81: 0.8335700897 | G81: 0.7376527388 | H81: 0.3858100565 | I81: 0.9756226096 | J81: 0.4269689506 | K81: 0.161473424 | L81: 0.03952731726 | M81: 0.4450549252 | N81: 0.2939657173 | O81: 0.2364551611 | P81: 0.226018189 | Q81: 0.1990631281 | R81: 0.1465797694 | S81: 0.3301107498 | T81: 0.7348467219 | U81: 0.8474083239 | V81: 0.2532431374 | W81: 0.1755705049 | X81: 0.9813004076 | Y81: 0.6988407697 | Z81: 0.8790780635 | AA81: 0.1093841472 | AB81: 0.9054494142 | AC81: 0.03791917301 | AD81: 0.3654069886 | AE81: 0.9349999921 | AF81: 0.909211378 | AG81: 0.3502728014 | AH81: 0.0008244495808 | AI81: 0.1239433232 | AJ81: 0.009975003117 | AK81: 0.2354023519 | AL81: 0.31484596 | AM81: 0.323289156 | AN81: 0.988365531 | AO81: 0.1841320992 | AP81: 0.8612800837 | AQ81: 0.4722707272 | AR81: 0.7882298231 | AS81: =RAND() -> 0.6684494655 | AT81: 0.2870033396 | AU81: 0.4948225656 | AV81: 0.8501149924 | AW81: 0.7429141081 | AX81: 0.649566348
B82: 39 | C82: 0.9073810181 | D82: 0.5949514365 | E82: 0.2462294433 | F82: 0.9939074695 | G82: 0.102123619 | H82: 0.1405090953 | I82: 0.6696585016 | J82: 0.8497080961 | K82: 0.843559008 | L82: 0.8854020941 | M82: 0.6021286855 | N82: 0.4451559128 | O82: 0.2332906286 | P82: 0.2001608398 | Q82: 0.4189507877 | R82: 0.2560106932 | S82: 0.8467370613 | T82: 0.8634319491 | U82: 0.007848023643 | V82: 0.1122673436 | W82: 0.3876545896 | X82: 0.4578766652 | Y82: 0.6757026079 | Z82: 0.8738676097 | AA82: 0.8701465852 | AB82: 0.6704540434 | AC82: 0.3965579582 | AD82: 0.3615875718 | AE82: 0.733789478 | AF82: 0.08288772161 | AG82: 0.7910737153 | AH82: 0.262348023 | AI82: 0.6345612442 | AJ82: 0.2127446379 | AK82: 0.3968149282 | AL82: 0.9147231756 | AM82: 0.3775257468 | AN82: 0.6958952546 | AO82: 0.7395769954 | AP82: 0.7893097997 | AQ82: 0.4330224395 | AR82: 0.6151500344 | AS82: =RAND() -> 0.08245117092 | AT82: 0.5786428919 | AU82: 0.8733485245 | AV82: 0.4868746415 | AW82: 0.8197844838 | AX82: 0.5272277829
B83: 40 | C83: 0.02745256863 | D83: 0.4164369357 | E83: 0.8757831509 | F83: 0.7265349934 | G83: 0.07199398165 | H83: 0.833784126 | I83: 0.822819415 | J83: 0.0792204729 | K83: 0.08092822858 | L83: 0.9367801588 | M83: 0.7343492387 | N83: 0.1756333801 | O83: 0.7962487587 | P83: 0.2009737771 | Q83: 0.7615936806 | R83: 0.8697241954 | S83: 0.01314060809 | T83: 0.4487408258 | U83: 0.5498283357 | V83: 0.8351473873 | W83: 0.4636642458 | X83: 0.4503766409 | Y83: 0.1704928928 | Z83: 0.1466710886 | AA83: 0.0719796994 | AB83: 0.4356855696 | AC83: 0.2503964118 | AD83: 0.4716081437 | AE83: 0.5734624305 | AF83: 0.2924915979 | AG83: 0.7938900901 | AH83: 0.1362473123 | AI83: 0.934004161 | AJ83: 0.1369666726 | AK83: 0.4451554366 | AL83: 0.4697928042 | AM83: 0.0177334547 | AN83: 0.2468290329 | AO83: 0.3478394747 | AP83: 0.08011078835 | AQ83: 0.843919158 | AR83: 0.0325217247 | AS83: =RAND() -> 0.119678837 | AT83: 0.6459034741 | AU83: 0.2953276909 | AV83: 0.890864457 | AW83: 0.01605162997 | AX83: 0.2766131717
B84: 41 | C84: 0.1568078963 | D84: 0.261014832 | E84: 0.9678159221 | F84: 0.06100895279 | G84: 0.1459948826 | H84: 0.1330473988 | I84: 0.6723106855 | J84: 0.03503273603 | K84: 0.0007744172052 | L84: 0.6411981236 | M84: 0.6651402274 | N84: 0.9756446313 | O84: 0.5795631036 | P84: 0.8495162439 | Q84: 0.216260493 | R84: 0.6303100069 | S84: 0.6652120691 | T84: 0.3921386419 | U84: 0.9608803135 | V84: 0.2596396754 | W84: 0.458792166 | X84: 0.1158639894 | Y84: 0.01423775287 | Z84: 0.06056741189 | AA84: 0.3991553214 | AB84: 0.7017449622 | AC84: 0.3750339061 | AD84: 0.1864680555 | AE84: 0.1087663371 | AF84: 0.1491037694 | AG84: 0.3834169709 | AH84: 0.2398357525 | AI84: 0.7223957622 | AJ84: 0.2234203961 | AK84: 0.7447598517 | AL84: 0.409677827 | AM84: 0.8758578897 | AN84: 0.2609588504 | AO84: 0.8867605329 | AP84: 0.6705374122 | AQ84: 0.9192734361 | AR84: 0.7735096812 | AS84: =RAND() -> 0.7163540511 | AT84: 0.3945323865 | AU84: 0.4292394551 | AV84: 0.7912902744 | AW84: 0.08234045897 | AX84: 0.3284178311
B85: 42 | C85: 0.5254090425 | D85: 0.5961180688 | E85: 0.6228369866 | F85: 0.5401312298 | G85: 0.1810602022 | H85: 0.2857010729 | I85: 0.3577234745 | J85: 0.6686206653 | K85: 0.5545071091 | L85: 0.4701529173 | M85: 0.9432568206 | N85: 0.2589942934 | O85: 0.1960562426 | P85: 0.1048110246 | Q85: 0.2701853328 | R85: 0.5732728079 | S85: 0.5638159858 | T85: 0.006034767374 | U85: 0.1205752347 | V85: 0.6621496703 | W85: 0.2412380159 | X85: 0.09411916162 | Y85: 0.3485928473 | Z85: 0.6217265453 | AA85: 0.9726171381 | AB85: 0.8081809766 | AC85: 0.5810753826 | AD85: 0.2627409437 | AE85: 0.07504087886 | AF85: 0.01143450289 | AG85: 0.5320541712 | AH85: 0.09689128401 | AI85: 0.1701767219 | AJ85: 0.3590151791 | AK85: 0.726613937 | AL85: 0.3151889552 | AM85: 0.402741909 | AN85: 0.1552759409 | AO85: 0.61637187 | AP85: 0.4482687712 | AQ85: 0.206577301 | AR85: 0.5087367296 | AS85: =RAND() -> 0.0831655383 | AT85: 0.5481693567 | AU85: 0.3065983834 | AV85: 0.04501854205 | AW85: 0.1177431236 | AX85: 0.2782438991
B86: 43 | C86: 0.8313844312 | D86: 0.4453729697 | E86: 0.8565922304 | F86: 0.6184613831 | G86: 0.9773606035 | H86: 0.2476326597 | I86: 0.1591001222 | J86: 0.2355910282 | K86: 0.7734260155 | L86: 0.4066051986 | M86: 0.6062310592 | N86: 0.02424935639 | O86: 0.4686326398 | P86: 0.038998889 | Q86: 0.6852253181 | R86: 0.5924784542 | S86: 0.5049341917 | T86: 0.9234009668 | U86: 0.2898174885 | V86: 0.5115246117 | W86: 0.463906116 | X86: 0.01879941116 | Y86: 0.3109462319 | Z86: 0.6191651159 | AA86: 0.9339718344 | AB86: 0.2654087844 | AC86: 0.5680518498 | AD86: 0.8566456936 | AE86: 0.5962378428 | AF86: 0.7074204617 | AG86: 0.2878068961 | AH86: 0.5291423635 | AI86: 0.999133778 | AJ86: 0.4526725096 | AK86: 0.4052451273 | AL86: 0.3201008649 | AM86: 0.2058178782 | AN86: 0.8497050405 | AO86: 0.07591432333 | AP86: 0.6555410028 | AQ86: 0.4920656085 | AR86: 0.6159828305 | AS86: =RAND() -> 0.7377705487 | AT86: 0.9253415453 | AU86: 0.3035754364 | AV86: 0.7790773015 | AW86: 0.7537861121 | AX86: 0.6867173992
B87: 44 | C87: 0.6362881706 | D87: 0.1118584574 | E87: 0.8040644925 | F87: 0.7673401277 | G87: 0.1511812911 | H87: 0.4808698678 | I87: 0.8029580877 | J87: 0.8867320284 | K87: 0.3025906039 | L87: 0.453999421 | M87: 0.7359710686 | N87: 0.1028676393 | O87: 0.789624188 | P87: 0.247330921 | Q87: 0.5235165687 | R87: 0.8574385578 | S87: 0.626388859 | T87: 0.3582199396 | U87: 0.9574947073 | V87: 0.7599721172 | W87: 0.06693325257 | X87: 0.2064002735 | Y87: 0.2887656019 | Z87: 0.09480301122 | AA87: 0.4335212261 | AB87: 0.9400996051 | AC87: 0.8914625735 | AD87: 0.5990069882 | AE87: 0.89601423 | AF87: 0.4874202376 | AG87: 0.006786307492 | AH87: 0.3384520147 | AI87: 0.8311611832 | AJ87: 0.8238277322 | AK87: 0.6443267947 | AL87: 0.5869704349 | AM87: 0.5829058886 | AN87: 0.07177662849 | AO87: 0.6896575689 | AP87: 0.8498253822 | AQ87: 0.130900979 | AR87: 0.7929627895 | AS87: =RAND() -> 0.4482678131 | AT87: 0.1393165629 | AU87: 0.988031408 | AV87: 0.3407224489 | AW87: 0.05090333293 | AX87: 0.206922386
B88: 45 | C88: 0.902623305 | D88: 0.4229837372 | E88: 0.4002412452 | F88: 0.3873747436 | G88: 0.7034190981 | H88: 0.235959614 | I88: 0.9610698884 | J88: 0.8451434336 | K88: 0.9387691967 | L88: 0.07396547471 | M88: 0.02260285893 | N88: 0.6831921889 | O88: 0.7759315739 | P88: 0.6772364474 | Q88: 0.2764130811 | R88: 0.7892525184 | S88: 0.06453801218 | T88: 0.4847997246 | U88: 0.7796658344 | V88: 0.9170726925 | W88: 0.5073729444 | X88: 0.1662166861 | Y88: 0.3226286277 | Z88: 0.1994144893 | AA88: 0.09042381421 | AB88: 0.6055700868 | AC88: 0.4839554366 | AD88: 0.2662861633 | AE88: 0.8538736473 | AF88: 0.4209957862 | AG88: 0.08596279387 | AH88: 0.4229176848 | AI88: 0.6220120428 | AJ88: 0.1840090692 | AK88: 0.5626720232 | AL88: 0.3886586347 | AM88: 0.2801941037 | AN88: 0.1769852042 | AO88: 0.05881601572 | AP88: 0.5061690211 | AQ88: 0.9159939885 | AR88: 0.4533681273 | AS88: =RAND() -> 0.701651178 | AT88: 0.7304011514 | AU88: 0.761662417 | AV88: 0.3353569606 | AW88: 0.18156079 | AX88: 0.1534462414
B89: 46 | C89: 0.4221800347 | D89: 0.764678264 | E89: 0.7043469604 | F89: 0.04971991357 | G89: 0.498978931 | H89: 0.862334122 | I89: 0.1324313819 | J89: 0.05854459149 | K89: 0.9537013878 | L89: 0.7644159639 | M89: 0.3798613238 | N89: 0.7231971399 | O89: 0.5146003512 | P89: 0.6251440603 | Q89: 0.3798033915 | R89: 0.690872887 | S89: 0.32339711 | T89: 0.3926031039 | U89: 0.7192971811 | V89: 0.4861563821 | W89: 0.9354511719 | X89: 0.3406221845 | Y89: 0.4230023622 | Z89: 0.5114775408 | AA89: 0.7889758303 | AB89: 0.3180770381 | AC89: 0.6842104513 | AD89: 0.4828872421 | AE89: 0.7975955955 | AF89: 0.7388393428 | AG89: 0.9722072274 | AH89: 0.4063758056 | AI89: 0.7451385973 | AJ89: 0.3191953942 | AK89: 0.7980865399 | AL89: 0.6610119437 | AM89: 0.14017272 | AN89: 0.4845894575 | AO89: 0.7576761246 | AP89: 0.7570477724 | AQ89: 0.8934175968 | AR89: 0.8356164694 | AS89: =RAND() -> 0.7155341277 | AT89: 0.1740559762 | AU89: 0.1167022313 | AV89: 0.74609532 | AW89: 0.6471760206 | AX89: 0.9998151757
B90: 47 | C90: 0.1010767831 | D90: 0.2808361637 | E90: 0.4212247345 | F90: 0.04881481042 | G90: 0.6517348624 | H90: 0.2455499398 | I90: 0.7459477506 | J90: 0.1431509026 | K90: 0.1655800272 | L90: 0.4688135654 | M90: 0.7820899244 | N90: 0.8377776942 | O90: 0.8897441654 | P90: 0.3211079607 | Q90: 0.2911983939 | R90: 0.03462634832 | S90: 0.6220030784 | T90: 0.01129045961 | U90: 0.8061822601 | V90: 0.8307985618 | W90: 0.7471026309 | X90: 0.8909736779 | Y90: 0.2012044298 | Z90: 0.07532436649 | AA90: 0.2265160762 | AB90: 0.3416525107 | AC90: 0.9363064802 | AD90: 0.1023011996 | AE90: 0.5364989139 | AF90: 0.5070590463 | AG90: 0.2959049745 | AH90: 0.5341514266 | AI90: 0.9332598972 | AJ90: 0.9833368581 | AK90: 0.8115144133 | AL90: 0.007988263586 | AM90: 0.3922070861 | AN90: 0.8795867562 | AO90: 0.9295894504 | AP90: 0.5321825147 | AQ90: 0.6505388618 | AR90: 0.7859783769 | AS90: =RAND() -> 0.2061802177 | AT90: 0.5774717543 | AU90: 0.65369874 | AV90: 0.01569487582 | AW90: 0.2370310621 | AX90: 0.272151853
B91: 48 | C91: 0.2993771264 | D91: 0.9971978573 | E91: 0.5143460788 | F91: 0.1367863895 | G91: 0.4286281164 | H91: 0.9313105693 | I91: 0.3003973359 | J91: 0.1759326991 | K91: 0.9592405404 | L91: 0.5913659916 | M91: 0.1160865826 | N91: 0.5864537972 | O91: 0.4882351734 | P91: 0.770424936 | Q91: 0.04105939409 | R91: 0.01102062135 | S91: 0.4701952519 | T91: 0.4104156179 | U91: 0.9043134858 | V91: 0.2796363219 | W91: 0.7464936874 | X91: 0.08718304085 | Y91: 0.663294553 | Z91: 0.7993633454 | AA91: 0.6830642296 | AB91: 0.3265274149 | AC91: 0.02234141011 | AD91: 0.3764222083 | AE91: 0.6288877783 | AF91: 0.1287986913 | AG91: 0.4336150919 | AH91: 0.9872015289 | AI91: 0.3327223486 | AJ91: 0.6587344655 | AK91: 0.4226427218 | AL91: 0.8235875663 | AM91: 0.07769334316 | AN91: 0.1786646843 | AO91: 0.545868516 | AP91: 0.06096529961 | AQ91: 0.2484987974 | AR91: 0.08107185364 | AS91: =RAND() -> 0.8887912928 | AT91: 0.5129358893 | AU91: 0.8919388031 | AV91: 0.7079300975 | AW91: 0.2693992934 | AX91: 0.6968183621
B92: 49 | C92: 0.1262923113 | D92: 0.06644157528 | E92: 0.06177610157 | F92: 0.9611991747 | G92: 0.4602658942 | H92: 0.1389550393 | I92: 0.4254665509 | J92: 0.08266319072 | K92: 0.4926617284 | L92: 0.454280757 | M92: 0.4553469138 | N92: 0.3936849712 | O92: 0.3236371345 | P92: 0.6941253635 | Q92: 0.182887329 | R92: 0.3616030696 | S92: 0.0732273124 | T92: 0.2673689645 | U92: 0.6920397315 | V92: 0.3783300409 | W92: 0.2782538283 | X92: 0.4633684168 | Y92: 0.7374292462 | Z92: 0.6758876981 | AA92: 0.8879832759 | AB92: 0.4506537842 | AC92: 0.9863009022 | AD92: 0.3978005604 | AE92: 0.18860915 | AF92: 0.4662337323 | AG92: 0.04069842769 | AH92: 0.167374529 | AI92: 0.8485729822 | AJ92: 0.6902705375 | AK92: 0.355604597 | AL92: 0.1639625926 | AM92: 0.8839665055 | AN92: 0.5167214274 | AO92: 0.4884741902 | AP92: 0.5995559096 | AQ92: 0.03414779902 | AR92: 0.4447538257 | AS92: =RAND() -> 0.1248963928 | AT92: 0.8584596101 | AU92: 0.7606991904 | AV92: 0.6183099506 | AW92: 0.3159708457 | AX92: 0.9242160691
B93: 50 | C93: 0.4762443895 | D93: 0.9768719678 | E93: 0.2505216057 | F93: 0.3222133077 | G93: 0.05127645717 | H93: 0.2237847249 | I93: 0.07689643878 | J93: 0.4361419223 | K93: 0.3817482455 | L93: 0.6469493078 | M93: 0.9604157225 | N93: 0.8513004544 | O93: 0.6058137301 | P93: 0.6292297239 | Q93: 0.3262761566 | R93: 0.4292815257 | S93: 0.5199465072 | T93: 0.8675674804 | U93: 0.6577946252 | V93: 0.5339625312 | W93: 0.7915666286 | X93: 0.5907817454 | Y93: 0.5424434099 | Z93: 0.4311104087 | AA93: 0.1638661341 | AB93: 0.6709527699 | AC93: 0.9912684032 | AD93: 0.7712697494 | AE93: 0.9115857903 | AF93: 0.7920735766 | AG93: 0.826289871 | AH93: 0.3683078206 | AI93: 0.3670513352 | AJ93: 0.5686008532 | AK93: 0.5599186593 | AL93: 0.1398071032 | AM93: 0.3144512177 | AN93: 0.734179616 | AO93: 0.7238285542 | AP93: 0.546467185 | AQ93: 0.3761143684 | AR93: 0.5443207026 | AS93: =RAND() -> 0.3668015426 | AT93: 0.4982563973 | AU93: 0.5599806745 | AV93: 0.3749401035 | AW93: 0.8077519429 | AX93: 0.8617748764
B94: 51 | C94: 0.8235443661 | D94: 0.9578889259 | E94: 0.7443617576 | F94: 0.6940079068 | G94: 0.2979876429 | H94: 0.4090935011 | I94: 0.5860206011 | J94: 0.9438089251 | K94: 0.6634851961 | L94: 0.5020967054 | M94: 0.3559932474 | N94: 0.596053769 | O94: 0.1190395892 | P94: 0.7092386533 | Q94: 0.9438329552 | R94: 0.4049893085 | S94: 0.9319086992 | T94: 0.992986483 | U94: 0.252056804 | V94: 0.4565452299 | W94: 0.7562219086 | X94: 0.130364334 | Y94: 0.04747301768 | Z94: 0.8718981776 | AA94: 0.3539256217 | AB94: 0.7754689194 | AC94: 0.1076354934 | AD94: 0.8248245198 | AE94: 0.3033991719 | AF94: 0.3384408292 | AG94: 0.1577180685 | AH94: 0.3215791947 | AI94: 0.6222545554 | AJ94: 0.04092032286 | AK94: 0.5503570043 | AL94: 0.7038516744 | AM94: 0.1625844836 | AN94: 0.5744197965 | AO94: 0.5157513022 | AP94: 0.2051840425 | AQ94: 0.9409739375 | AR94: 0.861281693 | AS94: =RAND() -> 0.8507777519 | AT94: 0.8787863666 | AU94: 0.611374156 | AV94: 0.2981074622 | AW94: 0.8876542162 | AX94: 0.8022017221
B95: 52 | C95: 0.6047930265 | D95: 0.8367370334 | E95: 0.07435635109 | F95: 0.9693896536 | G95: 0.6318411584 | H95: 0.5594729992 | I95: 0.3601887797 | J95: 0.5709396093 | K95: 0.4190462452 | L95: 0.9377051605 | M95: 0.8284327571 | N95: 0.5653317848 | O95: 0.04862499717 | P95: 0.7784080663 | Q95: 0.2536449751 | R95: 0.2288037703 | S95: 0.2639435724 | T95: 0.9065784675 | U95: 0.06903858345 | V95: 0.1206032389 | W95: 0.3376258118 | X95: 0.9146985294 | Y95: 0.1178061123 | Z95: 0.047295611 | AA95: 0.4292982997 | AB95: 0.7676250049 | AC95: 0.7381516365 | AD95: 0.4567193895 | AE95: 0.2696690432 | AF95: 0.5478856128 | AG95: 0.5133639728 | AH95: 0.1593591617 | AI95: 0.9131012043 | AJ95: 0.6455553028 | AK95: 0.6850156319 | AL95: 0.3034351548 | AM95: 0.1369224787 | AN95: 0.01335501671 | AO95: 0.5835255384 | AP95: 0.1681814194 | AQ95: 0.4116173983 | AR95: 0.5009138584 | AS95: =RAND() -> 0.7581715234 | AT95: 0.08632253922 | AU95: 0.09477576182 | AV95: 0.8610974474 | AW95: 0.4688410292 | AX95: 0.3630147093
B96: 53 | C96: 0.4145090559 | D96: 0.269495069 | E96: 0.2125348926 | F96: 0.04748742529 | G96: 0.7993981443 | H96: 0.1210788327 | I96: 0.4054738705 | J96: 0.8051835464 | K96: 0.4729934964 | L96: 0.222139325 | M96: 0.4476288525 | N96: 0.5032546231 | O96: 0.05184881931 | P96: 0.279939656 | Q96: 0.9146910987 | R96: 0.8736089092 | S96: 0.3722677662 | T96: 0.06248893218 | U96: 0.941575027 | V96: 0.8193318049 | W96: 0.7445936204 | X96: 0.246800198 | Y96: 0.6812406383 | Z96: 0.1540596601 | AA96: 0.5641897117 | AB96: 0.7142203313 | AC96: 0.8484569836 | AD96: 0.7924606219 | AE96: 0.08890130871 | AF96: 0.9295847605 | AG96: 0.7193231328 | AH96: 0.8566318555 | AI96: 0.4437422852 | AJ96: 0.148113626 | AK96: 0.2165994719 | AL96: 0.6713231561 | AM96: 0.8451951146 | AN96: 0.5050820708 | AO96: 0.2370753884 | AP96: 0.149245441 | AQ96: 0.6915205121 | AR96: 0.497971952 | AS96: =RAND() -> 0.3742964364 | AT96: 0.6121386007 | AU96: 0.933741862 | AV96: 0.5962949027 | AW96: 0.9974323502 | AX96: 0.1091945002
B97: 54 | C97: 0.6155508199 | D97: 0.2556098628 | E97: 0.3296790456 | F97: 0.2658932104 | G97: 0.05034443853 | H97: 0.1818919849 | I97: 0.8154833774 | J97: 0.6221241297 | K97: 0.9988121108 | L97: 0.9397682514 | M97: 0.266872973 | N97: 0.1334958751 | O97: 0.7757398089 | P97: 0.3414858214 | Q97: 0.8677137904 | R97: 0.1121417865 | S97: 0.4748032245 | T97: 0.3179075368 | U97: 0.9079236153 | V97: 0.1477707906 | W97: 0.4615706984 | X97: 0.2488304103 | Y97: 0.3531067422 | Z97: 0.1350875189 | AA97: 0.5911331395 | AB97: 0.4414303396 | AC97: 0.03429882061 | AD97: 0.4684947991 | AE97: 0.4200355089 | AF97: 0.8059847917 | AG97: 0.2777108761 | AH97: 0.0386443415 | AI97: 0.08340312741 | AJ97: 0.4213024409 | AK97: 0.5188925227 | AL97: 0.3405705217 | AM97: 0.2640173435 | AN97: 0.5418027639 | AO97: 0.1433081627 | AP97: 0.5333849192 | AQ97: 0.2138106823 | AR97: 0.6964339018 | AS97: =RAND() -> 0.8425003452 | AT97: 0.4308525818 | AU97: 0.01838982863 | AV97: 0.6889273259 | AW97: 0.9208943761 | AX97: 0.4571170206
B98: 55 | C98: 0.8168616208 | D98: 0.7951238091 | E98: 0.1202142194 | F98: 0.4300695338 | G98: 0.4506586738 | H98: 0.3180674552 | I98: 0.8571875296 | J98: 0.8326359817 | K98: 0.8852647963 | L98: 0.7080644913 | M98: 0.8367797308 | N98: 0.8240500734 | O98: 0.219980753 | P98: 0.3186725654 | Q98: 0.1507570287 | R98: 0.9040686195 | S98: 0.3748601823 | T98: 0.5375535202 | U98: 0.5995063736 | V98: 0.2931098173 | W98: 0.3716143061 | X98: 0.1354587429 | Y98: 0.6632390938 | Z98: 0.3707603027 | AA98: 0.8948476953 | AB98: 0.7187311062 | AC98: 0.235662156 | AD98: 0.3407753861 | AE98: 0.2270374152 | AF98: 0.4732256018 | AG98: 0.3446771673 | AH98: 0.9279112658 | AI98: 0.4104615314 | AJ98: 0.6601539366 | AK98: 0.622590181 | AL98: 0.4046228832 | AM98: 0.06413024664 | AN98: 0.0834351182 | AO98: 0.5114628673 | AP98: 0.5864718556 | AQ98: 0.2484416366 | AR98: 0.7196393609 | AS98: =RAND() -> 0.5196112245 | AT98: 0.5158012302 | AU98: 0.8675345737 | AV98: 0.7552497892 | AW98: 0.540015164 | AX98: 0.8890408322
B99: 56 | C99: 0.6140203978 | D99: 0.6910928415 | E99: 0.3421332306 | F99: 0.007113063828 | G99: 0.4839545795 | H99: 0.01800713526 | I99: 0.4740985649 | J99: 0.9085198187 | K99: 0.5932637121 | L99: 0.9348792386 | M99: 0.7941128521 | N99: 0.5678389329 | O99: 0.8186979776 | P99: 0.09177302625 | Q99: 0.8293465028 | R99: 0.3169550417 | S99: 0.475404027 | T99: 0.8853950945 | U99: 0.6437768552 | V99: 0.5355579671 | W99: 0.4699858039 | X99: 0.3501719223 | Y99: 0.7453260671 | Z99: 0.4098420249 | AA99: 0.8060805959 | AB99: 0.8871578497 | AC99: 0.160727599 | AD99: 0.5459576765 | AE99: 0.4063563971 | AF99: 0.5956967408 | AG99: 0.8180293951 | AH99: 0.7845903902 | AI99: 0.4385409115 | AJ99: 0.09441240721 | AK99: 0.7002430268 | AL99: 0.3801804223 | AM99: 0.4315527678 | AN99: 0.9406547546 | AO99: 0.08393967152 | AP99: 0.2481949329 | AQ99: 0.2775443792 | AR99: 0.2317490578 | AS99: =RAND() -> 0.3324628212 | AT99: 0.8706468717 | AU99: 0.1127028466 | AV99: 0.847541113 | AW99: 0.02625682934 | AX99: 0.39835792
B100: 57 | C100: 0.5699698973 | D100: 0.5718844644 | E100: 0.3785440015 | F100: 0.2976263181 | G100: 0.5192323975 | H100: 0.1463324301 | I100: 0.02679462492 | J100: 0.19368164 | K100: 0.03815491495 | L100: 0.3198121722 | M100: 0.751437345 | N100: 0.09781870415 | O100: 0.6682862865 | P100: 0.0521941619 | Q100: 0.1598997098 | R100: 0.5658702944 | S100: 0.9815392603 | T100: 0.8570617843 | U100: 0.8561381308 | V100: 0.3751494349 | W100: 0.6392292449 | X100: 0.5594800121 | Y100: 0.4767299397 | Z100: 0.8403204329 | AA100: 0.4005080484 | AB100: 0.1376183058 | AC100: 0.7979699193 | AD100: 0.6263027576 | AE100: 0.2584577582 | AF100: 0.8907561982 | AG100: 0.04870207873 | AH100: 0.5345961123 | AI100: 0.1905588517 | AJ100: 0.2592737726 | AK100: 0.1056136612 | AL100: 0.5424884386 | AM100: 0.213501513 | AN100: 0.6101457477 | AO100: 0.5231865048 | AP100: 0.4875740409 | AQ100: 0.9787493348 | AR100: 0.6377417445 | AS100: =RAND() -> 0.9368754159 | AT100: 0.361624829 | AU100: 0.7757664809 | AV100: 0.3503366334 | AW100: 0.05475998237 | AX100: 0.1372803991
B101: 58 | C101: 0.9750156948 | D101: 0.6700058743 | E101: 0.2808431538 | F101: 0.4049793026 | G101: 0.8892069097 | H101: 0.2574703658 | I101: 0.877743058 | J101: 0.959545576 | K101: 0.4582282882 | L101: 0.9158535226 | M101: 0.4171192534 | N101: 0.8836953106 | O101: 0.6637255512 | P101: 0.3039598751 | Q101: 0.297415424 | R101: 0.3768691019 | S101: 0.2873822241 | T101: 0.6745146915 | U101: 0.1598162347 | V101: 0.7812416709 | W101: 0.3186796233 | X101: 0.5804658019 | Y101: 0.6610695786 | Z101: 0.7998702647 | AA101: 0.1694660914 | AB101: 0.2503538838 | AC101: 0.1114316663 | AD101: 0.3596003119 | AE101: 0.02127111579 | AF101: 0.1029128518 | AG101: 0.482925239 | AH101: 0.03614855296 | AI101: 0.3603066363 | AJ101: 0.3134853272 | AK101: 0.2121254848 | AL101: 0.03850227638 | AM101: 0.6525063515 | AN101: 0.8157230616 | AO101: 0.1729142666 | AP101: 0.0332916975 | AQ101: 0.9470949173 | AR101: 0.5302983522 | AS101: =RAND() -> 0.7263422004 | AT101: 0.1734904684 | AU101: 0.01722709827 | AV101: 0.2441707313 | AW101: 0.713895633 | AX101: 0.5851887015
B102: 59 | C102: 0.8537716694 | D102: 0.2454394008 | E102: 0.6246362901 | F102: 0.1868847819 | G102: 0.5939929708 | H102: 0.1312528405 | I102: 0.6605897245 | J102: 0.1810205581 | K102: 0.6567819421 | L102: 0.9398655988 | M102: 0.08848078094 | N102: 0.4435300621 | O102: 0.728673072 | P102: 0.2156802604 | Q102: 0.9222628082 | R102: 0.2325836153 | S102: 0.4751179416 | T102: 0.3612092554 | U102: 0.1264101824 | V102: 0.5610316289 | W102: 0.9013818721 | X102: 0.9910145584 | Y102: 0.939770174 | Z102: 0.5389104778 | AA102: 0.1017688001 | AB102: 0.7006478044 | AC102: 0.2684300678 | AD102: 0.3541824113 | AE102: 0.1450264739 | AF102: 0.2732935965 | AG102: 0.05530550144 | AH102: 0.458824555 | AI102: 0.4931566406 | AJ102: 0.5751521346 | AK102: 0.8284854811 | AL102: 0.6095443627 | AM102: 0.6684386134 | AN102: 0.744340241 | AO102: 0.008826196194 | AP102: 0.7920737863 | AQ102: 0.5136768222 | AR102: 0.7085245252 | AS102: =RAND() -> 0.2295401553 | AT102: 0.4461052705 | AU102: 0.4161007166 | AV102: 0.3800034256 | AW102: 0.1306614229 | AX102: 0.8267125565
B103: 60 | C103: 0.9023504361 | D103: 0.5872341291 | E103: 0.6465850865 | F103: 0.2625830241 | G103: 0.9824193469 | H103: 0.830797656 | I103: 0.7793842797 | J103: 0.5975551466 | K103: 0.4204351119 | L103: 0.1757855661 | M103: 0.6892911211 | N103: 0.4829352749 | O103: 0.4500854128 | P103: 0.6976611318 | Q103: 0.3201749091 | R103: 0.9116260334 | S103: 0.5265771647 | T103: 0.3878147353 | U103: 0.3585209995 | V103: 0.5814909941 | W103: 0.3727417122 | X103: 0.1275927474 | Y103: 0.4526441728 | Z103: 0.6032250036 | AA103: 0.2318423289 | AB103: 0.5581324615 | AC103: 0.7462264848 | AD103: 0.9592960834 | AE103: 0.4464798304 | AF103: 0.8152770825 | AG103: 0.239155239 | AH103: 0.3369842695 | AI103: 0.05316387682 | AJ103: 0.2589889272 | AK103: 0.5652772336 | AL103: 0.230803641 | AM103: 0.5593014956 | AN103: 0.7599413395 | AO103: 0.08330476284 | AP103: 0.7654223442 | AQ103: 0.3365751505 | AR103: 0.04365801811 | AS103: =RAND() -> 0.1822343883 | AT103: 0.9807700091 | AU103: 0.641061135 | AV103: 0.6717102242 | AW103: 0.8560758457 | AX103: 0.9186125778
B104: 61 | C104: 0.4567703251 | D104: 0.5895923466 | E104: 0.1146043084 | F104: 0.7957325488 | G104: 0.6835275098 | H104: 0.4459637098 | I104: 0.257931431 | J104: 0.1425115799 | K104: 0.7843187284 | L104: 0.9483799575 | M104: 0.4235181405 | N104: 0.2079688859 | O104: 0.256916249 | P104: 0.4400300804 | Q104: 0.1813968258 | R104: 0.06494079068 | S104: 0.8194131466 | T104: 0.1164259082 | U104: 0.5096655963 | V104: 0.1227325171 | W104: 0.04337705838 | X104: 0.6373315043 | Y104: 0.4024992907 | Z104: 0.7655002252 | AA104: 0.9389483778 | AB104: 0.2255500863 | AC104: 0.8269880964 | AD104: 0.8568985096 | AE104: 0.3346443597 | AF104: 0.328937932 | AG104: 0.02237723315 | AH104: 0.8803618954 | AI104: 0.5977889941 | AJ104: 0.1337257992 | AK104: 0.0364403377 | AL104: 0.5465815247 | AM104: 0.2582338452 | AN104: 0.9962801337 | AO104: 0.3007259965 | AP104: 0.7837921977 | AQ104: 0.4874480367 | AR104: 0.1163215041 | AS104: =RAND() -> 0.7667808812 | AT104: 0.9604563764 | AU104: 0.9421401217 | AV104: 0.4851457098 | AW104: 0.8710655203 | AX104: 0.8690148493
B105: 62 | C105: 0.0769326706 | D105: 0.8278409967 | E105: 0.9648803772 | F105: 0.3067791059 | G105: 0.1883946845 | H105: 0.7867851442 | I105: 0.7876133316 | J105: 0.3237958819 | K105: 0.2436879854 | L105: 0.2319119658 | M105: 0.306958148 | N105: 0.4275909167 | O105: 0.5406204999 | P105: 0.6207990887 | Q105: 0.4930898773 | R105: 0.4215072765 | S105: 0.2222071871 | T105: 0.6457984835 | U105: 0.2329944508 | V105: 0.3771111234 | W105: 0.5574106635 | X105: 0.504798183 | Y105: 0.5871550533 | Z105: 0.2044739821 | AA105: 0.08920085564 | AB105: 0.0499351544 | AC105: 0.6253842438 | AD105: 0.5862396894 | AE105: 0.6781453423 | AF105: 0.7520244439 | AG105: 0.3692234808 | AH105: 0.3213207707 | AI105: 0.8902806109 | AJ105: 0.8494615075 | AK105: 0.8971409509 | AL105: 0.7565358455 | AM105: 0.4843738079 | AN105: 0.3753374815 | AO105: 0.7633914948 | AP105: 0.8509360552 | AQ105: 0.6136257648 | AR105: 0.6016391516 | AS105: =RAND() -> 0.2631457407 | AT105: 0.7946561931 | AU105: 0.8551835587 | AV105: 0.1136020169 | AW105: 0.2820420557 | AX105: 0.07953774709
B106: 63 | C106: 0.5643667904 | D106: 0.245227803 | E106: 0.6336491354 | F106: 0.877775904 | G106: 0.4461092014 | H106: 0.8026820636 | I106: 0.09303981233 | J106: 0.6600487683 | K106: 0.1614811273 | L106: 0.813888702 | M106: 0.01629910151 | N106: 0.2193357601 | O106: 0.521073183 | P106: 0.8409149242 | Q106: 0.7103539609 | R106: 0.5866058974 | S106: 0.5933630488 | T106: 0.8359955943 | U106: 0.8221645366 | V106: 0.7608015777 | W106: 0.3196098997 | X106: 0.1359095201 | Y106: 0.7670026701 | Z106: 0.6116313017 | AA106: 0.618456442 | AB106: 0.1261447116 | AC106: 0.5942163172 | AD106: 0.7479903049 | AE106: 0.6586152966 | AF106: 0.8794857567 | AG106: 0.5836054507 | AH106: 0.9284193322 | AI106: 0.1380678182 | AJ106: 0.9145293581 | AK106: 0.8405131717 | AL106: 0.5834104438 | AM106: 0.5246428847 | AN106: 0.1614442468 | AO106: 0.7181074023 | AP106: 0.4702442288 | AQ106: 0.1862034202 | AR106: 0.2232618928 | AS106: =RAND() -> 0.3947235103 | AT106: 0.9122549038 | AU106: 0.6570876189 | AV106: 0.8705870785 | AW106: 0.5270737191 | AX106: 0.6382992584
B107: 64 | C107: 0.3125031147 | D107: 0.8729976846 | E107: 0.577979667 | F107: 0.9693594901 | G107: 0.6021455055 | H107: 0.4215359462 | I107: 0.9838706439 | J107: 0.6898748214 | K107: 0.1841490599 | L107: 0.3083523826 | M107: 0.8347616558 | N107: 0.4569585258 | O107: 0.2100328691 | P107: 0.3944629773 | Q107: 0.4117744893 | R107: 0.6114837802 | S107: 0.3280009252 | T107: 0.9483962361 | U107: 0.6391755344 | V107: 0.7260616902 | W107: 0.9737696249 | X107: 0.5734083162 | Y107: 0.8157689749 | Z107: 0.3974118308 | AA107: 0.7697962284 | AB107: 0.547179841 | AC107: 0.6060673359 | AD107: 0.5997062017 | AE107: 0.3432995012 | AF107: 0.7095231094 | AG107: 0.4097271069 | AH107: 0.7057344031 | AI107: 0.5788939445 | AJ107: 0.4921272288 | AK107: 0.8163224812 | AL107: 0.407270763 | AM107: 0.1852687597 | AN107: 0.4707875252 | AO107: 0.7633224726 | AP107: 0.5876004696 | AQ107: 0.5526379347 | AR107: 0.5631666183 | AS107: =RAND() -> 0.418968912 | AT107: 0.757999938 | AU107: 0.3984368559 | AV107: 0.5128145916 | AW107: 0.3045008348 | AX107: 0.4219010182
B108: 65 | C108: 0.8630336494 | D108: 0.962535983 | E108: 0.7545253485 | F108: 0.40312459 | G108: 0.6368854219 | H108: 0.2763068791 | I108: 0.6340027696 | J108: 0.4489920999 | K108: 0.8041471934 | L108: 0.02398068207 | M108: 0.07274322427 | N108: 0.5867218915 | O108: 0.9791667129 | P108: 0.5133216355 | Q108: 0.3157747218 | R108: 0.8440634712 | S108: 0.7653017272 | T108: 0.2980958686 | U108: 0.9742605949 | V108: 0.3058125355 | W108: 0.5219804877 | X108: 0.04239156505 | Y108: 0.9263679316 | Z108: 0.5631199194 | AA108: 0.8139823962 | AB108: 0.03551695879 | AC108: 0.05626763881 | AD108: 0.660750164 | AE108: 0.1717531287 | AF108: 0.9956255521 | AG108: 0.7822914467 | AH108: 0.7632280226 | AI108: 0.2914645577 | AJ108: 0.8311943241 | AK108: 0.5722232546 | AL108: 0.5307639612 | AM108: =VLOOKUP(Iteration,Rand1Select,1+$B108) -> 0.04659181833 | AN108: =VLOOKUP(Iteration,Rand2Select,1+$B108) -> 0.2272669673 | AO108: =VLOOKUP(Iteration,Rand3Select,1+$B108) -> 0.08708888292 | AP108: =VLOOKUP(Iteration,Rand4Select,1+$B108) -> 0.9971894622 | AQ108: =VLOOKUP(Iteration,Rand5Select,1+$B108) -> 0.3883319497 | AR108: =VLOOKUP(Iteration,Rand6Select,1+$B108) -> 0.616633594 | AS108: =RAND() -> 0.6423041908 | AT108: 0.4241515043 | AU108: 0.1981722229 | AV108: 0.8062056203 | AW108: 0.2909844384 | AX108: 0.1392196167
B109: 66 | C109: 0.5671576057 | D109: 0.2913512364 | E109: 0.5038892783 | F109: 0.9979235378 | G109: 0.8265506113 | H109: 0.3615834263 | I109: 0.9727342659 | J109: 0.4082124597 | K109: 0.4615677759 | L109: 0.3985154186 | M109: 0.7335664179 | N109: 0.9653066517 | O109: 0.4007022286 | P109: 0.7561285599 | Q109: 0.7252362806 | R109: 0.1361056933 | S109: 0.9046066926 | T109: 0.9415007982 | U109: 0.7591836436 | V109: 0.8682839869 | W109: 0.4027300563 | X109: 0.4426347494 | Y109: 0.5893461181 | Z109: 0.580402079 | AA109: 0.5507137216 | AB109: 0.436323861 | AC109: 0.04432425965 | AD109: 0.2551724621 | AE109: 0.3154233237 | AF109: 0.2248933129 | AG109: 0.9156026495 | AH109: 0.2651321779 | AI109: 0.4535335702 | AJ109: 0.7898840625 | AK109: 0.7425573996 | AL109: 0.773344366 | AM109: 0.3705205917 | AN109: 0.8418008089 | AO109: 0.1750547886 | AP109: 0.4209493399 | AQ109: 0.5137572289 | AR109: 0.1741892099 | AS109: =RAND() -> 0.4872774646 | AT109: 0.7832876915 | AU109: 0.4969956883 | AV109: 0.7760092073 | AW109: 0.4431471027 | AX109: 0.7222561647
B110: =B109+1 -> 67 | C110: 0.8737879295 | D110: 0.3630251569 | E110: 0.4479064654 | F110: 0.2500292471 | G110: 0.07734551308 | H110: 0.923963274 | I110: 0.03635166014 | J110: 0.742205616 | K110: 0.05543267156 | L110: 0.7058543159 | M110: 0.4039160137 | N110: 0.2140485229 | O110: 0.7719541319 | P110: 0.02772835008 | Q110: 0.07382458231 | R110: 0.5797802471 | S110: 0.9588719614 | T110: 0.671313312 | U110: 0.9013006014 | V110: 0.7161815514 | W110: 0.761104551 | X110: 0.461594665 | Y110: 0.7200294203 | Z110: 0.5647712758 | AA110: 0.05402181612 | AB110: 0.4795663155 | AC110: 0.7011501412 | AD110: 0.82651375 | AE110: 0.1004164333 | AF110: 0.872309949 | AG110: 0.3293675791 | AH110: 0.7598357176 | AI110: 0.04161415707 | AJ110: 0.7494610737 | AK110: 0.1553138353 | AL110: 0.4504055967 | AM110: 0.3625404239 | AN110: 0.5337827802 | AO110: 0.4208616614 | AP110: 0.3795891404 | AQ110: 0.9274594188 | AR110: 0.5351527333 | AS110: =RAND() -> 0.8803055105 | AT110: 0.4040558651 | AU110: 0.6294329241 | AV110: 0.6153046569 | AW110: 0.1646757205 | AX110: 0.4173987413
B111: 68 | C111: 0.1390451178 | D111: 0.2997171966 | E111: 0.394309546 | F111: 0.7563397899 | G111: 0.1576267615 | H111: 0.7508715206 | I111: 0.8038785998 | J111: 0.3263123365 | K111: 0.07289337193 | L111: 0.6564810025 | M111: 0.2570815936 | N111: 0.08519480475 | O111: 0.7025351171 | P111: 0.6448563492 | Q111: 0.2328926427 | R111: 0.8779972862 | S111: 0.6047816421 | T111: 0.3853703566 | U111: 0.9169250039 | V111: 0.4292818849 | W111: 0.4568085498 | X111: 0.6493310011 | Y111: 0.5283027508 | Z111: 0.8316144173 | AA111: 0.01952286571 | AB111: 0.7069258606 | AC111: 0.801775043 | AD111: 0.1714900612 | AE111: 0.1467339644 | AF111: 0.4500059112 | AG111: 0.1055439621 | AH111: 0.5070307961 | AI111: 0.6407215785 | AJ111: 0.5748593557 | AK111: 0.8138622509 | AL111: 0.2293719441 | AM111: 0.4325624704 | AN111: 0.2885863781 | AO111: 0.09182727337 | AP111: 0.251411438 | AQ111: 0.253918767 | AR111: 0.7888710499 | AS111: =RAND() -> 0.3254042882 | AT111: 0.04856521979 | AU111: 0.9040140867 | AV111: 0.08724702361 | AW111: 0.6181859296 | AX111: 0.7462739906
B112: 69 | C112: 0.9725905098 | D112: 0.2012876522 | E112: 0.08775571273 | F112: 0.3083295678 | G112: 0.8769232913 | H112: 0.269588282 | I112: 0.2908741668 | J112: 0.2715503756 | K112: 0.7399332346 | L112: 0.3057750407 | M112: 0.8881495003 | N112: 0.6663717824 | O112: 0.9836730369 | P112: 0.5556866518 | Q112: 0.7179766028 | R112: 0.7526623265 | S112: 0.5935394495 | T112: 0.7136526238 | U112: 0.9070656368 | V112: 0.6243301575 | W112: 0.5247889207 | X112: 0.5548960515 | Y112: 0.9437631447 | Z112: 0.5242056138 | AA112: 0.739523583 | AB112: 0.2420862029 | AC112: 0.1415876309 | AD112: 0.4600027181 | AE112: 0.6309665739 | AF112: 0.2477990506 | AG112: 0.9030245229 | AH112: 0.2527394796 | AI112: 0.09308033187 | AJ112: 0.9641122661 | AK112: 0.6487163689 | AL112: 0.07355656368 | AM112: 0.2717517018 | AN112: 0.2194270492 | AO112: 0.04127174616 | AP112: 0.08021944761 | AQ112: 0.7593429685 | AR112: 0.7053894401 | AS112: =RAND() -> 0.08178444546 | AT112: 0.6130101179 | AU112: 0.3753252605 | AV112: 0.2971450521 | AW112: 0.7953468971 | AX112: 0.4091128659
B113: 70 | C113: 0.6384233988 | D113: 0.4021370694 | E113: 0.9275603812 | F113: 0.1157401863 | G113: 0.66392194 | H113: 0.09129263188 | I113: 0.6512269779 | J113: 0.8645639542 | K113: 0.8357571324 | L113: 0.6311892181 | M113: 0.327432058 | N113: 0.9832115689 | O113: 0.10737558 | P113: 0.6755669398 | Q113: 0.07407528901 | R113: 0.1504005066 | S113: 0.9438973786 | T113: 0.5111364236 | U113: 0.9858965266 | V113: 0.8413871904 | W113: 0.5295470544 | X113: 0.8889353656 | Y113: 0.8950490327 | Z113: 0.2659845417 | AA113: 0.8554235321 | AB113: 0.8130469547 | AC113: 0.5231881715 | AD113: 0.6507471924 | AE113: 0.3717474089 | AF113: 0.9963220383 | AG113: 0.3451873186 | AH113: 0.1045756276 | AI113: 0.2388946686 | AJ113: 0.2320880047 | AK113: 0.8766948906 | AL113: 0.6791674151 | AM113: 0.04391789436 | AN113: 0.7786506414 | AO113: 0.743414402 | AP113: 0.1984707117 | AQ113: 0.2261636257 | AR113: 0.86031425 | AS113: =RAND() -> 0.26972875 | AT113: 0.5841978955 | AU113: 0.5784704105 | AV113: 0.2796189773 | AW113: 0.503641958 | AX113: 0.8985152427
B114: 71 | C114: 0.465392844 | D114: 0.2345873139 | E114: 0.4154723326 | F114: 0.3258929038 | G114: 0.9523531005 | H114: 0.4548631524 | I114: 0.3674754027 | J114: 0.3305402793 | K114: 0.5487678956 | L114: 0.01266408839 | M114: 0.1457879416 | N114: 0.2463733474 | O114: 0.2780189832 | P114: 0.4842063441 | Q114: 0.1947079283 | R114: 0.8539885039 | S114: 0.9666143716 | T114: 0.3065908231 | U114: 0.8956057511 | V114: 0.0725780065 | W114: 0.9227462402 | X114: 0.7361380425 | Y114: 0.1909100029 | Z114: 0.7600114205 | AA114: 0.09814490269 | AB114: 0.5481377041 | AC114: 0.7201761992 | AD114: 0.1676766274 | AE114: 0.378926062 | AF114: 0.07003914994 | AG114: 0.5501489709 | AH114: 0.715490934 | AI114: 0.5960075133 | AJ114: 0.4286178037 | AK114: 0.1069648651 | AL114: 0.7262642545 | AM114: 0.5457176566 | AN114: 0.2332430482 | AO114: 0.6730582118 | AP114: 0.2171910405 | AQ114: 0.5639218688 | AR114: 0.8695998788 | AS114: =RAND() -> 0.3135701408 | AT114: 0.3860393182 | AU114: 0.9037678126 | AV114: 0.02342728 | AW114: 0.562370715 | AX114: 0.9426741325
B115: 72 | C115: 0.4946121792 | D115: 0.2548369212 | E115: 0.7940722074 | F115: 0.9857417215 | G115: 0.6258041379 | H115: 0.6525494352 | I115: 0.5455571799 | J115: 0.9552974524 | K115: 0.7013479622 | L115: 0.2880126915 | M115: 0.7599836378 | N115: 0.4299549991 | O115: 0.7996025524 | P115: 0.8119534107 | Q115: 0.3652522889 | R115: 0.4687516613 | S115: 0.1620800467 | T115: 0.3971187649 | U115: 0.6071879963 | V115: 0.2924611873 | W115: 0.7064463645 | X115: 0.5509647329 | Y115: 0.07347240249 | Z115: 0.9394654622 | AA115: 0.9658482489 | AB115: 0.02652909433 | AC115: 0.03963967523 | AD115: 0.2563355161 | AE115: 0.1600536907 | AF115: 0.8020877596 | AG115: 0.5069230874 | AH115: 0.114886766 | AI115: 0.480548591 | AJ115: 0.01704836785 | AK115: 0.6008294514 | AL115: 0.517016587 | AM115: 0.5229233503 | AN115: 0.9101762772 | AO115: 0.7134114504 | AP115: 0.4781076908 | AQ115: 0.273486495 | AR115: 0.8570628166 | AS115: =RAND() -> 0.5146160188 | AT115: 0.1229243009 | AU115: 0.4200127912 | AV115: 0.131466686 | AW115: 0.2701125543 | AX115: 0.002014627952
B116: 73 | C116: 0.8227036415 | D116: 0.8999335743 | E116: 0.9539053499 | F116: 0.6148005629 | G116: 0.2850732553 | H116: 0.4639646833 | I116: 0.2962775329 | J116: 0.5653488646 | K116: 0.3978955172 | L116: 0.6826177479 | M116: 0.576516756 | N116: 0.01937340269 | O116: 0.465560989 | P116: 0.7862011513 | Q116: 0.3789828216 | R116: 0.7607717535 | S116: 0.5112467921 | T116: 0.02363417338 | U116: 0.4148561973 | V116: 0.7256226642 | W116: 0.1863598685 | X116: 0.2790534456 | Y116: 0.8803922786 | Z116: 0.6102857205 | AA116: 0.2670591842 | AB116: 0.87416108 | AC116: 0.04300483561 | AD116: 0.6906605876 | AE116: 0.9736111525 | AF116: 0.8906808029 | AG116: 0.4646405487 | AH116: 0.911729118 | AI116: 0.6675470159 | AJ116: 0.4879416524 | AK116: 0.7338031986 | AL116: 0.1794267601 | AM116: 0.3309913278 | AN116: 0.4447452426 | AO116: 0.2919977307 | AP116: 0.4316248298 | AQ116: 0.16377455 | AR116: 0.5362145305 | AS116: =RAND() -> 0.6181193086 | AT116: 0.2740322203 | AU116: 0.6654995984 | AV116: 0.2223479139 | AW116: 0.3487988936 | AX116: 0.3124694748
B117: 74 | C117: 0.0001770018514 | D117: 0.7624946289 | E117: 0.3347289191 | F117: 0.1315919939 | G117: 0.164472191 | H117: 0.2133961566 | I117: 0.2142796186 | J117: 0.09214789855 | K117: 0.4361861754 | L117: 0.2040677718 | M117: 0.609726045 | N117: 0.6276827724 | O117: 0.8720141189 | P117: 0.7082481046 | Q117: 0.3978008556 | R117: 0.4526743477 | S117: 0.4486059154 | T117: 0.7345374991 | U117: 0.02190766169 | V117: 0.1411980666 | W117: 0.9769692229 | X117: 0.2316468714 | Y117: 0.6184885199 | Z117: 0.1692547087 | AA117: 0.9076470884 | AB117: 0.717045849 | AC117: 0.8964503283 | AD117: 0.1888785056 | AE117: 0.7166308907 | AF117: 0.3817327503 | AG117: 0.6379409203 | AH117: 0.6045078289 | AI117: 0.8862223398 | AJ117: 0.4850082769 | AK117: 0.4394050317 | AL117: 0.1442887422 | AM117: 0.1252322197 | AN117: 0.08243238926 | AO117: 0.8948009014 | AP117: 0.2997721434 | AQ117: 0.8734645844 | AR117: 0.5116378069 | AS117: =RAND() -> 0.3728025121 | AT117: 0.2926420324 | AU117: 0.1536480088 | AV117: 0.8440108245 | AW117: 0.6679007077 | AX117: 0.5287009646
B118: 75 | C118: 0.6859474025 | D118: 0.5900000195 | E118: 0.8882696753 | F118: 0.4236587716 | G118: 0.4633731467 | H118: 0.9699507168 | I118: 0.9930220689 | J118: 0.506175455 | K118: 0.1292923541 | L118: 0.7418568831 | M118: 0.1430346702 | N118: 0.6278843185 | O118: 0.03095394154 | P118: 0.64101649 | Q118: 0.9112494019 | R118: 0.8125847701 | S118: 0.8361004546 | T118: 0.4900020962 | U118: 0.9364087453 | V118: 0.3606624121 | W118: 0.1264680711 | X118: 0.7962763232 | Y118: 0.8746832592 | Z118: 0.4433158296 | AA118: 0.7787707334 | AB118: 0.5389257726 | AC118: 0.2157261927 | AD118: 0.075968738 | AE118: 0.06351925914 | AF118: 0.3614689844 | AG118: 0.4303845228 | AH118: 0.9127943391 | AI118: 0.5001346041 | AJ118: 0.1558559983 | AK118: 0.07235319772 | AL118: 0.4462767434 | AM118: 0.7746750712 | AN118: 0.6326888204 | AO118: 0.7582053542 | AP118: 0.6967340112 | AQ118: 0.2902318835 | AR118: 0.7342327237 | AS118: =RAND() -> 0.5331257695 | AT118: 0.9867045528 | AU118: 0.6693883065 | AV118: 0.274090468 | AW118: 0.6809745726 | AX118: 0.01436226376
B119: 76 | C119: 0.8038361774 | D119: 0.3774604422 | E119: 0.809967189 | F119: 0.02016353413 | G119: 0.3200299733 | H119: 0.1898197606 | I119: 0.7358608865 | J119: 0.1869783989 | K119: 0.9537881346 | L119: 0.1841013501 | M119: 0.5801970192 | N119: 0.2157423179 | O119: 0.3229376391 | P119: 0.5075433554 | Q119: 0.9693029632 | R119: 0.4554009433 | S119: 0.171797274 | T119: 0.7818681693 | U119: 0.5829618209 | V119: 0.3149054538 | W119: 0.8473907362 | X119: 0.9347864492 | Y119: 0.6723303491 | Z119: 0.7414031869 | AA119: 0.757212413 | AB119: 0.3003217614 | AC119: 0.409609107 | AD119: 0.1522196436 | AE119: 0.6981369023 | AF119: 0.1290126498 | AG119: 0.007246676219 | AH119: 0.3318006472 | AI119: 0.6888130828 | AJ119: 0.267521338 | AK119: 0.5570096539 | AL119: 0.4897913357 | AM119: 0.6673499346 | AN119: 0.02946591377 | AO119: 0.09005010128 | AP119: 0.939136982 | AQ119: 0.339917779 | AR119: 0.05735373497 | AS119: =RAND() -> 0.6228386421 | AT119: 0.09523003901 | AU119: 0.5594069098 | AV119: 0.06760874769 | AW119: 0.4038997622 | AX119: 0.3807162863
B120: 77 | C120: 0.9872400387 | D120: 0.02274422088 | E120: 0.661297978 | F120: 0.7085849764 | G120: 0.1778328138 | H120: 0.8231311588 | I120: 0.6696731461 | J120: 0.2580588614 | K120: 0.5465152945 | L120: 0.1771949603 | M120: 0.08472780378 | N120: 0.3257742596 | O120: 0.3156433961 | P120: 0.1483289511 | Q120: 0.9595597886 | R120: 0.6247155574 | S120: 0.05252080287 | T120: 0.3058105024 | U120: 0.9332072137 | V120: 0.9588320166 | W120: 0.04132026352 | X120: 0.3692170647 | Y120: 0.9315295314 | Z120: 0.266513875 | AA120: 0.06875677712 | AB120: 0.570461137 | AC120: 0.5720679761 | AD120: 0.7063576049 | AE120: 0.3562453377 | AF120: 0.6676638953 | AG120: 0.4060358898 | AH120: 0.2514297803 | AI120: 0.08887190402 | AJ120: 0.8818737786 | AK120: 0.3427186398 | AL120: 0.735544784 | AM120: 0.6538150907 | AN120: 0.3839954734 | AO120: 0.5158415437 | AP120: 0.5995623469 | AQ120: 0.4783967137 | AR120: 0.802773416 | AS120: =RAND() -> 0.5828727138 | AT120: 0.577424509 | AU120: 0.4383163962 | AV120: 0.968142855 | AW120: 0.3276484709 | AX120: 0.06333828457
B121: 78 | C121: 0.7114650746 | D121: 0.4643143501 | E121: 0.4465781691 | F121: 0.2464235598 | G121: 0.806234387 | H121: 0.5539660824 | I121: 0.5456787163 | J121: 0.8053945997 | K121: 0.2386603706 | L121: 0.05647623274 | M121: 0.1282835555 | N121: 0.03949632987 | O121: 0.8947835781 | P121: 0.5056508703 | Q121: 0.1884894764 | R121: 0.3158950833 | S121: 0.3681138867 | T121: 0.9951789381 | U121: 0.984258493 | V121: 0.1958681435 | W121: 0.6606455668 | X121: 0.4223858474 | Y121: 0.7175314249 | Z121: 0.5903161054 | AA121: 0.6267169364 | AB121: 0.6836610412 | AC121: 0.5229541724 | AD121: 0.8488907802 | AE121: 0.8720973995 | AF121: 0.2766392458 | AG121: 0.6547754311 | AH121: 0.237098551 | AI121: 0.2257005642 | AJ121: 0.9426357809 | AK121: 0.3048317227 | AL121: 0.2952104039 | AM121: 0.1384503841 | AN121: 0.623324275 | AO121: 0.4119901657 | AP121: 0.39288342 | AQ121: 0.6378500462 | AR121: 0.3596662283 | AS121: =RAND() -> 0.9418250135 | AT121: 0.8045347401 | AU121: 0.6980480583 | AV121: 0.8991763517 | AW121: 0.774957114 | AX121: 0.3887146258
B122: 79 | C122: 0.2397120097 | D122: 0.02336020829 | E122: 0.441855518 | F122: 0.6527386891 | G122: 0.9853234892 | H122: 0.8186378874 | I122: 0.02049025078 | J122: 0.8634610541 | K122: 0.7078062697 | L122: 0.08697232529 | M122: 0.4281664828 | N122: 0.8410002254 | O122: 0.1913822939 | P122: 0.7088897601 | Q122: 0.2740130834 | R122: 0.07769054824 | S122: 0.7767599361 | T122: 0.1302601178 | U122: 0.3678073931 | V122: 0.7313303127 | W122: 0.02545789099 | X122: 0.3778347497 | Y122: 0.8908089167 | Z122: 0.8251408124 | AA122: 0.6027662113 | AB122: 0.5675582518 | AC122: 0.05543942042 | AD122: 0.05172201754 | AE122: 0.6036264756 | AF122: 0.5999610402 | AG122: 0.6337822742 | AH122: 0.2639410106 | AI122: 0.7086811359 | AJ122: 0.339052993 | AK122: 0.4484753944 | AL122: 0.9306172953 | AM122: 0.03995221853 | AN122: 0.1840854287 | AO122: 0.8904754519 | AP122: 0.8766286969 | AQ122: 0.1223196387 | AR122: 0.4970322251 | AS122: =RAND() -> 0.3163706818 | AT122: 0.07642486205 | AU122: 0.9139435259 | AV122: 0.8625996215 | AW122: 0.9895375198 | AX122: 0.9502147494
B123: 80 | C123: 0.3901971222 | D123: 0.1167347009 | E123: 0.2663893862 | F123: 0.4385246818 | G123: 0.720919669 | H123: 0.4346954025 | I123: 0.5379062435 | J123: 0.1061177981 | K123: 0.916235046 | L123: 0.890946308 | M123: 0.3010299359 | N123: 0.5131754034 | O123: 0.05867177616 | P123: 0.5567349 | Q123: 0.6134656556 | R123: 0.3049936687 | S123: 0.7983767479 | T123: 0.8708304563 | U123: 0.3753144751 | V123: 0.4456950741 | W123: 0.1204931504 | X123: 0.3860261413 | Y123: 0.9281011194 | Z123: 0.4353241646 | AA123: 0.1950304715 | AB123: 0.8574816392 | AC123: 0.608780141 | AD123: 0.6335475995 | AE123: 0.4613384866 | AF123: 0.4633606937 | AG123: 0.7619563589 | AH123: 0.6075411618 | AI123: 0.8012312082 | AJ123: 0.50661193 | AK123: 0.3056491602 | AL123: 0.9720091712 | AM123: 0.2067235708 | AN123: 0.1030592918 | AO123: 0.8917261362 | AP123: 0.2717673779 | AQ123: 0.7179220915 | AR123: 0.09830093384 | AS123: =RAND() -> 0.9637394525 | AT123: 0.1270492165 | AU123: 0.3791249109 | AV123: 0.2723213221 | AW123: 0.9586420876 | AX123: 0.1831514125
B124: 81 | C124: 0.1561654042 | D124: 0.3615942837 | E124: 0.225953662 | F124: 0.8860173156 | G124: 0.2385277161 | H124: 0.7353536466 | I124: 0.5197099845 | J124: 0.8844852362 | K124: 0.7812974022 | L124: 0.2859900051 | M124: 0.1007746185 | N124: 0.6851772511 | O124: 0.1937135498 | P124: 0.1184424719 | Q124: 0.1222379022 | R124: 0.07939346659 | S124: 0.5632416951 | T124: 0.1876158707 | U124: 0.9511928293 | V124: 0.7620352816 | W124: 0.7374711792 | X124: 0.8555420569 | Y124: 0.06187763047 | Z124: 0.6584123689 | AA124: 0.1273841296 | AB124: 0.8902143776 | AC124: 0.6272000951 | AD124: 0.1524795636 | AE124: 0.2234409606 | AF124: 0.9415971012 | AG124: 0.3148644924 | AH124: 0.8786315875 | AI124: 0.8489661161 | AJ124: 0.6352493945 | AK124: 0.3338527525 | AL124: 0.07928335082 | AM124: 0.2800789475 | AN124: 0.2298657298 | AO124: 0.7653544545 | AP124: 0.2347277999 | AQ124: 0.9715810418 | AR124: 0.9418947101 | AS124: =RAND() -> 0.05991766699 | AT124: 0.7033184072 | AU124: 0.2867029153 | AV124: 0.8777543236 | AW124: 0.4926935199 | AX124: 0.2232194856
B125: 82 | C125: 0.6120262304 | D125: 0.5655510382 | E125: 0.495013398 | F125: 0.8541479277 | G125: 0.4800847677 | H125: 0.7451683914 | I125: 0.5955740938 | J125: 0.0008854417438 | K125: 0.4933723013 | L125: 0.2044388142 | M125: 0.412662396 | N125: 0.1111476821 | O125: 0.728756378 | P125: 0.3290404541 | Q125: 0.1513517835 | R125: 0.447382964 | S125: 0.5282143189 | T125: 0.7916497943 | U125: 0.5834796728 | V125: 0.6262419546 | W125: 0.3430898712 | X125: 0.3431867454 | Y125: 0.460459578 | Z125: 0.1178928283 | AA125: 0.4566435633 | AB125: 0.3193048349 | AC125: 0.2679168632 | AD125: 0.6269089603 | AE125: 0.007940543412 | AF125: 0.8269304439 | AG125: 0.1768450599 | AH125: 0.08133186987 | AI125: 0.7260124434 | AJ125: 0.1857334469 | AK125: 0.1037471718 | AL125: 0.1863154003 | AM125: 0.7765045166 | AN125: 0.1357623339 | AO125: 0.9498283863 | AP125: 0.8382171392 | AQ125: 0.526705265 | AR125: 0.4064136744 | AS125: =RAND() -> 0.1603863441 | AT125: 0.9977036857 | AU125: 0.1883994489 | AV125: 0.4072229378 | AW125: 0.5386126618 | AX125: 0.3229820605
B126: 83 | C126: 0.4379852784 | D126: 0.5151950854 | E126: 0.9054756713 | F126: 0.8672165463 | G126: 0.09595835502 | H126: 0.5058042842 | I126: 0.2255658798 | J126: 0.8457404911 | K126: 0.2629583071 | L126: 0.3548024514 | M126: 0.4105292025 | N126: 0.9173107226 | O126: 0.9447500379 | P126: 0.9848594664 | Q126: 0.5584061204 | R126: 0.983241154 | S126: 0.9788856256 | T126: 0.8894648515 | U126: 0.4289727283 | V126: 0.9634723373 | W126: 0.6996955592 | X126: 0.4787946391 | Y126: 0.7493631062 | Z126: 0.3504532286 | AA126: 0.6469027611 | AB126: 0.5213691346 | AC126: 0.3603582516 | AD126: 0.05794271884 | AE126: 0.8690239082 | AF126: 0.6776834034 | AG126: 0.6293792779 | AH126: 0.7709065932 | AI126: 0.9286246251 | AJ126: 0.9552619431 | AK126: 0.02627521495 | AL126: 0.1203545366 | AM126: 0.8252527118 | AN126: 0.7466247678 | AO126: 0.6678299308 | AP126: 0.7381373048 | AQ126: 0.6005293727 | AR126: 0.2144559026 | AS126: =RAND() -> 0.9238558698 | AT126: 0.1815711248 | AU126: 0.6686052173 | AV126: 0.4706970435 | AW126: 0.414022576 | AX126: 0.3819049729
B127: 84 | C127: 0.3189977612 | D127: 0.4900121401 | E127: 0.4023012269 | F127: 0.9132036062 | G127: 0.02856973622 | H127: 0.1565706325 | I127: 0.9902150347 | J127: 0.1656686602 | K127: 0.8725702971 | L127: 0.6844505512 | M127: 0.9327401484 | N127: 0.1819174189 | O127: 0.2253013553 | P127: 0.417226294 | Q127: 0.5654842395 | R127: 0.7359932351 | S127: 0.1157526749 | T127: 0.5514572964 | U127: 0.7496965135 | V127: 0.07084340816 | W127: 0.8621822504 | X127: 0.2440083983 | Y127: 0.5339127006 | Z127: 0.2900698273 | AA127: 0.5405438408 | AB127: 0.360254969 | AC127: 0.7179014157 | AD127: 0.08169336613 | AE127: 0.651069729 | AF127: 0.2712055109 | AG127: 0.04310521145 | AH127: 0.1591454157 | AI127: 0.1386875503 | AJ127: 0.6702359045 | AK127: 0.3248140723 | AL127: 0.1418016083 | AM127: 0.002433419228 | AN127: 0.3658807278 | AO127: 0.6370552778 | AP127: 0.3447122574 | AQ127: 0.09896671772 | AR127: 0.6230318546 | AS127: =RAND() -> 0.08011032412 | AT127: 0.8535424224 | AU127: 0.6394545638 | AV127: 0.3776046141 | AW127: 0.08196646813 | AX127: 0.01867369684
B128: 85 | C128: 0.673405161 | D128: 0.1361668971 | E128: 0.5576416163 | F128: 0.9659884806 | G128: 0.2548287899 | H128: 0.7431134025 | I128: 0.3609739246 | J128: 0.7850604144 | K128: 0.2221638936 | L128: 0.9857538883 | M128: 0.2443520827 | N128: 0.3685905237 | O128: 0.1769818487 | P128: 0.8174959916 | Q128: 0.8612938765 | R128: 0.2923338069 | S128: 0.4229001025 | T128: 0.0911292245 | U128: 0.07349433698 | V128: 0.891296238 | W128: 0.845381692 | X128: 0.221137582 | Y128: 0.9170634267 | Z128: 0.03027272751 | AA128: 0.9848163566 | AB128: 0.01619534302 | AC128: 0.2635357334 | AD128: 0.2314006059 | AE128: 0.9822633042 | AF128: 0.3925243024 | AG128: 0.1090864353 | AH128: 0.5089440556 | AI128: 0.5716375021 | AJ128: 0.03654474565 | AK128: 0.6161916711 | AL128: 0.8014823948 | AM128: 0.688115418 | AN128: 0.8400830626 | AO128: 0.5471892953 | AP128: 0.2934810519 | AQ128: 0.6314256787 | AR128: 0.5866960883 | AS128: =RAND() -> 0.5855874486 | AT128: 0.1405077537 | AU128: 0.88308932 | AV128: 0.8487059777 | AW128: 0.8051116864 | AX128: 0.3456044984
B129: 86 | C129: 0.3710560552 | D129: 0.4749244338 | E129: 0.7612916798 | F129: 0.7343638144 | G129: 0.7050826415 | H129: 0.9722329036 | I129: 0.5036070832 | J129: 0.9224301695 | K129: 0.196294585 | L129: 0.1615334271 | M129: 0.7943365832 | N129: 0.6823876968 | O129: 0.6485540166 | P129: 0.750631222 | Q129: 0.278388721 | R129: 0.6217974055 | S129: 0.6514955098 | T129: 0.7072797584 | U129: 0.02557143547 | V129: 0.4041455991 | W129: 0.9082738437 | X129: 0.09834652227 | Y129: 0.07454400229 | Z129: 0.4126342922 | AA129: 0.002656351933 | AB129: 0.3549424724 | AC129: 0.2011649119 | AD129: 0.8119922196 | AE129: 0.986996822 | AF129: 0.3144693038 | AG129: 0.5922184809 | AH129: 0.9335625904 | AI129: 0.8844643269 | AJ129: 0.7328313802 | AK129: 0.8353829049 | AL129: 0.03715224518 | AM129: 0.4168970585 | AN129: 0.3590654135 | AO129: 0.8008570671 | AP129: 0.07919371128 | AQ129: 0.3882358074 | AR129: 0.06502711773 | AS129: =RAND() -> 0.2986683238 | AT129: 0.2207387237 | AU129: 0.7843803064 | AV129: 0.448274689 | AW129: 0.8558729541 | AX129: 0.8391822813
B130: 87 | C130: 0.9574379695 | D130: 0.7597759442 | E130: 0.3815944042 | F130: 0.1182488303 | G130: 0.4141668952 | H130: 0.288367413 | I130: 0.8957302771 | J130: 0.7137031207 | K130: 0.0364124795 | L130: 0.6868328664 | M130: 0.6490851402 | N130: 0.05477533897 | O130: 0.9880392137 | P130: 0.2684135076 | Q130: 0.2642255604 | R130: 0.08319159494 | S130: 0.5214493705 | T130: 0.6526480355 | U130: 0.8640625567 | V130: 0.6736590971 | W130: 0.4525970821 | X130: 0.4427499194 | Y130: 0.01609709276 | Z130: 0.6848161454 | AA130: 0.4796782262 | AB130: 0.6794918727 | AC130: 0.2712152325 | AD130: 0.4400487455 | AE130: 0.3164400242 | AF130: 0.1364811841 | AG130: 0.2458972495 | AH130: 0.5177627424 | AI130: 0.2146914338 | AJ130: 0.9180111406 | AK130: 0.8460552684 | AL130: 0.3582947734 | AM130: 0.5605692267 | AN130: 0.1648502946 | AO130: 0.775144279 | AP130: 0.0134986043 | AQ130: 0.7427443862 | AR130: 0.7095628381 | AS130: =RAND() -> 0.2853927105 | AT130: 0.1065899264 | AU130: 0.2391688669 | AV130: 0.5050966969 | AW130: 0.2779799084 | AX130: 0.4530134819
B131: 88 | C131: 0.21685557 | D131: 0.8276712978 | E131: 0.03589920321 | F131: 0.2836579455 | G131: 0.9934889066 | H131: 0.2378096203 | I131: 0.2914805618 | J131: 0.9767969454 | K131: 0.1806884709 | L131: 0.7711867267 | M131: 0.767496531 | N131: 0.4631021012 | O131: 0.5292879816 | P131: 0.4146578942 | Q131: 0.5280565372 | R131: 0.08073411638 | S131: 0.02348248405 | T131: 0.2138473265 | U131: 0.9859406845 | V131: 0.7148335047 | W131: 0.9137008771 | X131: 0.7305433881 | Y131: 0.7665515794 | Z131: 0.6535273242 | AA131: 0.7561843534 | AB131: 0.7251571347 | AC131: 0.06185107043 | AD131: 0.442206662 | AE131: 0.7622611006 | AF131: 0.9565538424 | AG131: 0.1188171589 | AH131: 0.7051031635 | AI131: 0.7909940433 | AJ131: 0.3226779411 | AK131: 0.4165874643 | AL131: 0.1513056463 | AM131: 0.07700145245 | AN131: 0.09679985046 | AO131: 0.5839110613 | AP131: 0.773755312 | AQ131: 0.7419017553 | AR131: 0.9748692513 | AS131: =RAND() -> 0.2096511395 | AT131: 0.9725500727 | AU131: 0.4014436423 | AV131: 0.1388899304 | AW131: 0.9465434101 | AX131: 0.0252839651
B132: 89 | C132: 0.2084658997 | D132: 0.3039429824 | E132: 0.734678011 | F132: 0.8917028058 | G132: 0.1638282142 | H132: 0.3969354923 | I132: 0.6758035865 | J132: 0.3110932889 | K132: 0.8588948568 | L132: 0.5523112638 | M132: 0.2070820805 | N132: 0.2126705112 | O132: 0.6049710589 | P132: 0.5234235717 | Q132: 0.7148451534 | R132: 0.8346544554 | S132: 0.121609679 | T132: 0.568825099 | U132: 0.03174533127 | V132: 0.7162704835 | W132: 0.1758969381 | X132: 0.9341193068 | Y132: 0.2767622713 | Z132: 0.9405524437 | AA132: 0.6884646803 | AB132: 0.7033143067 | AC132: 0.1136706069 | AD132: 0.7857272671 | AE132: 0.872561249 | AF132: 0.1989193126 | AG132: 0.4031247582 | AH132: 0.9582236235 | AI132: 0.3915434932 | AJ132: 0.458644845 | AK132: 0.696333489 | AL132: 0.8702677504 | AM132: 0.8728585839 | AN132: 0.9405385852 | AO132: 0.1502254605 | AP132: 0.4909710288 | AQ132: 0.7438803315 | AR132: 0.2697092891 | AS132: =RAND() -> 0.5556290519 | AT132: 0.476489659 | AU132: 0.8789307449 | AV132: 0.8239152245 | AW132: 0.8374925791 | AX132: 0.1350314228
B133: 90 | C133: 0.1449515911 | D133: 0.2202268121 | E133: 0.5200440437 | F133: 0.8192124298 | G133: 0.4579151489 | H133: 0.6332228147 | I133: 0.3064172893 | J133: 0.1542139946 | K133: 0.8803725588 | L133: 0.1351051952 | M133: 0.0194425449 | N133: 0.6424761312 | O133: 0.8743127155 | P133: 0.4746946319 | Q133: 0.7868741308 | R133: 0.4135849452 | S133: 0.8557980144 | T133: 0.9179814797 | U133: 0.4269973782 | V133: 0.2521644847 | W133: 0.3184454986 | X133: 0.1023872834 | Y133: 0.5700076834 | Z133: 0.5688330054 | AA133: 0.3899429393 | AB133: 0.7453184178 | AC133: 0.4072103747 | AD133: 0.07475042519 | AE133: 0.3044586213 | AF133: 0.8260370581 | AG133: 0.7471072207 | AH133: 0.7425949892 | AI133: 0.4255785696 | AJ133: 0.6441957407 | AK133: 0.05524686804 | AL133: 0.08307776703 | AM133: 0.8873257637 | AN133: 0.428060174 | AO133: 0.9109380245 | AP133: 0.2828663588 | AQ133: 0.1770925522 | AR133: 0.05041134357 | AS133: =RAND() -> 0.350453698 | AT133: 0.3283295941 | AU133: 0.6006926594 | AV133: 0.6969185122 | AW133: 0.9637260155 | AX133: 0.4202530017
B134: 91 | C134: 0.1251159196 | D134: 0.4624108429 | E134: 0.1165853162 | F134: 0.6415608524 | G134: 0.7413370005 | H134: 0.2200638675 | I134: 0.4265828956 | J134: 0.4646019051 | K134: 0.7458765179 | L134: 0.6855217957 | M134: 0.3475727794 | N134: 0.523123215 | O134: 0.8671345398 | P134: 0.4133879798 | Q134: 0.2987249412 | R134: 0.7361123001 | S134: 0.788847483 | T134: 0.1500145281 | U134: 0.5247379172 | V134: 0.7808358752 | W134: 0.8801087676 | X134: 0.05005742429 | Y134: 0.6452479399 | Z134: 0.2352644358 | AA134: 0.1210753589 | AB134: 0.4724215327 | AC134: 0.8476343469 | AD134: 0.2453228421 | AE134: 0.6408237675 | AF134: 0.7489877166 | AG134: 0.3714217316 | AH134: 0.7133347299 | AI134: 0.1603828358 | AJ134: 0.3389860173 | AK134: 0.7157868413 | AL134: 0.2704677744 | AM134: 0.3253085017 | AN134: 0.09678202868 | AO134: 0.9373330474 | AP134: 0.2640529275 | AQ134: 0.2475120425 | AR134: 0.9001386762 | AS134: =RAND() -> 0.8244616086 | AT134: 0.3229654949 | AU134: 0.7509274027 | AV134: 0.4586898219 | AW134: 0.7359364962 | AX134: 0.4502778545
B135: 92 | C135: 0.2670574835 | D135: 0.04372854183 | E135: 0.9130052119 | F135: 0.1329879646 | G135: 0.3863656565 | H135: 0.7163158959 | I135: 0.3892290648 | J135: 0.6839655529 | K135: 0.4757025072 | L135: 0.709320044 | M135: 0.2905654875 | N135: 0.09831024072 | O135: 0.4997578678 | P135: 0.5672303157 | Q135: 0.101460717 | R135: 0.3174396982 | S135: 0.9105692701 | T135: 0.7362948177 | U135: 0.3407967811 | V135: 0.9360445163 | W135: 0.6584874271 | X135: 0.3026942512 | Y135: 0.2298853852 | Z135: 0.3329470578 | AA135: 0.4283525871 | AB135: 0.5274545124 | AC135: 0.1984258048 | AD135: 0.2851216572 | AE135: 0.938001914 | AF135: 0.4724612505 | AG135: 0.1134375654 | AH135: 0.8057784838 | AI135: 0.4049119351 | AJ135: 0.1420447762 | AK135: 0.3341641279 | AL135: 0.807528238 | AM135: 0.5047074556 | AN135: 0.1342566013 | AO135: 0.8700498343 | AP135: 0.6873755455 | AQ135: 0.8635851145 | AR135: 0.2129561901 | AS135: =RAND() -> 0.5981093333 | AT135: 0.9469270494 | AU135: 0.9580362613 | AV135: 0.2364039008 | AW135: 0.3096075823 | AX135: 0.04484875967
B136: 93 | C136: 0.5798898227 | D136: 0.5849206746 | E136: 0.4903561177 | F136: 0.1549380743 | G136: 0.1887953784 | H136: 0.604914826 | I136: 0.6715648656 | J136: 0.9612612078 | K136: 0.7407229695 | L136: 0.2899424513 | M136: 0.332622693 | N136: 0.0417980368 | O136: 0.3429508246 | P136: 0.08619339559 | Q136: 0.3968756233 | R136: 0.04349889321 | S136: 0.4975404 | T136: 0.06013941878 | U136: 0.1994348874 | V136: 0.7886792089 | W136: 0.3317352078 | X136: 0.490110348 | Y136: 0.2786131591 | Z136: 0.5319677065 | AA136: 0.6469436704 | AB136: 0.3433505984 | AC136: 0.8023672731 | AD136: 0.4287926691 | AE136: 0.951132372 | AF136: 0.4941254046 | AG136: 0.9787366528 | AH136: 0.4082032617 | AI136: 0.9611621711 | AJ136: 0.03824289311 | AK136: 0.6201439405 | AL136: 0.03880492961 | AM136: 0.67396909 | AN136: 0.5784124732 | AO136: 0.2236939073 | AP136: 0.004260718822 | AQ136: 0.7208712697 | AR136: 0.3760051131 | AS136: =RAND() -> 0.5655638802 | AT136: 0.6450866391 | AU136: 0.3541552154 | AV136: 0.9824070924 | AW136: 0.6612372359 | AX136: 0.7714981105
B137: 94 | C137: 0.5940221424 | D137: 0.9036396334 | E137: 0.1535223766 | F137: 0.2563910247 | G137: 0.8017058823 | H137: 0.315968193 | I137: 0.989996555 | J137: 0.1933577967 | K137: 0.3932557136 | L137: 0.1022751651 | M137: 0.7581416411 | N137: 0.8868545187 | O137: 0.5602321477 | P137: 0.8526751754 | Q137: 0.8231982664 | R137: 0.8661163082 | S137: 0.8042715249 | T137: 0.6618662781 | U137: 0.1795980804 | V137: 0.9679941648 | W137: 0.2143467821 | X137: 0.3851433077 | Y137: 0.1215792768 | Z137: 0.1952646897 | AA137: 0.9197565956 | AB137: 0.4656065579 | AC137: 0.6882811654 | AD137: 0.4256003848 | AE137: 0.9356690121 | AF137: 0.1765684442 | AG137: 0.981388106 | AH137: 0.6537776094 | AI137: 0.1409110797 | AJ137: 0.7579664662 | AK137: 0.2049376343 | AL137: 0.7113804856 | AM137: 0.4813086987 | AN137: 0.5137060881 | AO137: 0.1448783875 | AP137: 0.2305461168 | AQ137: 0.4699966908 | AR137: 0.5198539495 | AS137: =RAND() -> 0.9612056126 | AT137: 0.8580486602 | AU137: 0.9154219092 | AV137: 0.4504250357 | AW137: 0.9007221778 | AX137: 0.8617542656
B138: 95 | C138: 0.7004258985 | D138: 0.8901262062 | E138: 0.1728995334 | F138: 0.3049831963 | G138: 0.12538978 | H138: 0.0381746114 | I138: 0.7558129551 | J138: 0.5379054315 | K138: 0.3077583658 | L138: 0.8268464337 | M138: 0.8602643591 | N138: 0.927246012 | O138: 0.1881639349 | P138: 0.3681082341 | Q138: 0.1023961613 | R138: 0.4484723049 | S138: 0.4391718399 | T138: 0.1034176566 | U138: 0.9918582863 | V138: 0.7058469417 | W138: 0.5492554188 | X138: 0.9820905613 | Y138: 0.41914777 | Z138: 0.3455784266 | AA138: 0.9596389587 | AB138: 0.5011584137 | AC138: 0.7221227173 | AD138: 0.2246687925 | AE138: 0.3133828711 | AF138: 0.5201416111 | AG138: 0.2868761242 | AH138: 0.815530668 | AI138: 0.4128449945 | AJ138: 0.379891552 | AK138: 0.9486671409 | AL138: 0.870634556 | AM138: 0.8014163375 | AN138: 0.09204155207 | AO138: 0.1224748492 | AP138: 0.2083671689 | AQ138: 0.9471687675 | AR138: 0.3768206239 | AS138: =RAND() -> 0.8925086412 | AT138: 0.1875001742 | AU138: 0.3290976178 | AV138: 0.2547156865 | AW138: 0.2680377645 | AX138: 0.4318658238
B139: 96 | C139: 0.5376649104 | D139: 0.4411039696 | E139: 0.864300996 | F139: 0.28784166 | G139: 0.9801859769 | H139: 0.005681015918 | I139: 0.5362846874 | J139: 0.8019538473 | K139: 0.7210045117 | L139: 0.6201136437 | M139: 0.2058707003 | N139: 0.5730701778 | O139: 0.05913683574 | P139: 0.6012091866 | Q139: 0.9350454372 | R139: 0.9936156587 | S139: 0.05807495211 | T139: 0.4072747891 | U139: 0.09610289751 | V139: 0.2729367569 | W139: 0.0686851922 | X139: 0.7120454292 | Y139: 0.3352238919 | Z139: 0.2188014481 | AA139: 0.1533858112 | AB139: 0.4375542915 | AC139: 0.9394081571 | AD139: 0.5484532079 | AE139: 0.4313785613 | AF139: 0.6392561222 | AG139: 0.2912272619 | AH139: 0.9102197312 | AI139: 0.3343817086 | AJ139: 0.5645785038 | AK139: 0.06170616823 | AL139: 0.1173125446 | AM139: 0.5522140265 | AN139: 0.6418862343 | AO139: 0.9037357569 | AP139: 0.7423722744 | AQ139: 0.2795075178 | AR139: 0.3778810501 | AS139: =RAND() -> 0.07132134357 | AT139: 0.3123008457 | AU139: 0.2364434522 | AV139: 0.4998157339 | AW139: 0.6284699924 | AX139: 0.1477337533
B140: 97 | C140: 0.2815342784 | D140: 0.5898928157 | E140: 0.5919086075 | F140: 0.4128770619 | G140: 0.7108941654 | H140: 0.6230753716 | I140: 0.4868391564 | J140: 0.6473832841 | K140: 0.8789572781 | L140: 0.2839491557 | M140: 0.632043968 | N140: 0.9074250049 | O140: 0.505664715 | P140: 0.02996171326 | Q140: 0.1568529575 | R140: 0.1837230286 | S140: 0.7272674969 | T140: 0.6534387539 | U140: 0.9257769804 | V140: 0.9088618683 | W140: 0.8997493692 | X140: 0.7913607144 | Y140: 0.6451538364 | Z140: 0.2007268745 | AA140: 0.5838148299 | AB140: 0.6980046016 | AC140: 0.02949233866 | AD140: 0.0508444808 | AE140: 0.3948782165 | AF140: 0.6634322282 | AG140: 0.04832832605 | AH140: 0.3814824083 | AI140: 0.1535035525 | AJ140: 0.8188147728 | AK140: 0.09081865007 | AL140: 0.3205252904 | AM140: 0.3539591432 | AN140: 0.825298965 | AO140: 0.605302155 | AP140: 0.4254521728 | AQ140: 0.1784263253 | AR140: 0.3463184237 | AS140: =RAND() -> 0.8779647991 | AT140: 0.9691755755 | AU140: 0.1810778654 | AV140: 0.8062091857 | AW140: 0.4584097375 | AX140: 0.2220334078
B141: 98 | C141: 0.1678929332 | D141: 0.003852538862 | E141: 0.3228870797 | F141: 0.1216422428 | G141: 0.6493821443 | H141: 0.1004212915 | I141: 0.6112569993 | J141: 0.223570933 | K141: 0.7199914293 | L141: 0.2871588072 | M141: 0.193297269 | N141: 0.4094325243 | O141: 0.4187335776 | P141: 0.8241698816 | Q141: 0.2764096161 | R141: 0.2971773312 | S141: 0.7428793727 | T141: 0.9811317642 | U141: 0.6068162999 | V141: 0.9399237706 | W141: 0.2836269842 | X141: 0.4028053217 | Y141: 0.05286332314 | Z141: 0.9602159958 | AA141: 0.8911110524 | AB141: 0.9861244434 | AC141: 0.330132501 | AD141: 0.6191800446 | AE141: 0.5919209892 | AF141: 0.4743916905 | AG141: 0.6452719313 | AH141: 0.8074449887 | AI141: 0.6031257443 | AJ141: 0.7766229725 | AK141: 0.7860840253 | AL141: 0.0007279572183 | AM141: 0.2238092422 | AN141: 0.7137204409 | AO141: 0.8020555973 | AP141: 0.4584268332 | AQ141: 0.231364727 | AR141: 0.4636503458 | AS141: =RAND() -> 0.9497391329 | AT141: 0.2162327128 | AU141: 0.6910947574 | AV141: 0.1207373329 | AW141: 0.8458907538 | AX141: 0.09610564314
B142: 99 | C142: 0.2899103872 | D142: 0.6257162406 | E142: 0.2676864795 | F142: 0.8423013703 | G142: 0.9153891291 | H142: 0.845852901 | I142: 0.11138031 | J142: 0.3297054783 | K142: 0.197746324 | L142: 0.6142685365 | M142: 0.5049671977 | N142: 0.8071882154 | O142: 0.6665657424 | P142: 0.04097859272 | Q142: 0.6377833782 | R142: 0.1300176015 | S142: 0.7696872174 | T142: 0.3715107389 | U142: 0.01672054366 | V142: 0.3139424735 | W142: 0.2571351625 | X142: 0.04798806425 | Y142: 0.6720991053 | Z142: 0.8855618792 | AA142: 0.592668764 | AB142: 0.97265393 | AC142: 0.2202440158 | AD142: 0.9302695916 | AE142: 0.2403831487 | AF142: 0.8226487542 | AG142: 0.2706235673 | AH142: 0.4057182862 | AI142: 0.7607876712 | AJ142: 0.9994411683 | AK142: 0.8997278251 | AL142: 0.3593812382 | AM142: 0.4765025973 | AN142: 0.9199770093 | AO142: 0.9949373603 | AP142: 0.3003597856 | AQ142: 0.5109650493 | AR142: 0.2312224507 | AS142: =RAND() -> 0.1831886075 | AT142: 0.3896260728 | AU142: 0.1685676203 | AV142: 0.3472208467 | AW142: 0.5547622814 | AX142: 0.6627589231
B143: 100 | C143: 0.7654448271 | D143: 0.7028603094 | E143: 0.2988847224 | F143: 0.4545217741 | G143: 0.5313602384 | H143: 0.3998237256 | I143: 0.2793062446 | J143: 0.2874876972 | K143: 0.2742535907 | L143: 0.9120332243 | M143: 0.5967918328 | N143: 0.8265126046 | O143: 0.7233935083 | P143: 0.5246940426 | Q143: 0.7804073746 | R143: 0.3097690163 | S143: 0.5009491259 | T143: 0.3211529038 | U143: 0.6714356328 | V143: 0.36763139 | W143: 0.6813621828 | X143: 0.427188415 | Y143: 0.7512720993 | Z143: 0.3966245886 | AA143: 0.08658708521 | AB143: 0.06507483834 | AC143: 0.2571954281 | AD143: 0.4099159552 | AE143: 0.7090042886 | AF143: 0.1749459596 | AG143: 0.9076152633 | AH143: 0.7351595947 | AI143: 0.01436841773 | AJ143: 0.2936605264 | AK143: 0.580795978 | AL143: 0.8770532099 | AM143: 0.06919157505 | AN143: 0.1241443157 | AO143: 0.004365801811 | AP143: 0.3894901276 | AQ143: 0.2944175005 | AR143: 0.007302522659 | AS143: =RAND() -> 0.5730106728 | AT143: 0.6642586882 | AU143: 0.8359273848 | AV143: 0.5742512058 | AW143: 0.8973383785 | AX143: 0.743940495
B144: 101 | C144: 0.1495666394 | D144: 0.7992121558 | E144: 0.7051954866 | F144: 0.0418756821 | G144: 0.8918231352 | H144: 0.8472953691 | I144: 0.08819717762 | J144: 0.3074733272 | K144: 0.2552156129 | L144: 0.07202463598 | M144: 0.2121205298 | N144: 0.05779258979 | O144: 0.3590480063 | P144: 0.1938360786 | Q144: 0.9712964926 | R144: 0.01863522675 | S144: 0.1742930504 | T144: 0.02081925396 | U144: 0.9418939269 | V144: 0.8260323699 | W144: 0.06981888972 | X144: 0.5856803038 | Y144: 0.1225331527 | Z144: 0.2814243671 | AA144: 0.389369373 | AB144: 0.01554246173 | AC144: 0.1183750861 | AD144: 0.18299823 | AE144: 0.5152752037 | AF144: 0.4228659916 | AG144: 0.5874516512 | AH144: 0.6199194592 | AI144: 0.7802051372 | AJ144: 0.4740978618 | AK144: 0.205068734 | AL144: 0.01096215208 | AM144: 0.426317513 | AN144: 0.7303313613 | AO144: 0.3993592858 | AP144: 0.9648115039 | AQ144: 0.2647998929 | AR144: 0.1301731467 | AS144: =RAND() -> 0.124072198 | AT144: 0.5935284245 | AU144: 0.7601621461 | AV144: 0.3101460459 | AW144: 0.5275009735 | AX144: 0.1866586638
B145: 102 | C145: 0.6229524362 | D145: 0.01155248964 | E145: 0.6317998586 | F145: 0.08514880689 | G145: 0.9779349448 | H145: 0.8802126998 | I145: 0.5050925925 | J145: 0.09087343202 | K145: 0.7286112969 | L145: 0.8246347914 | M145: 0.4243643373 | N145: 0.6845830121 | O145: 0.4627493665 | P145: 0.1195735642 | Q145: 0.9206541585 | R145: 0.2123227262 | S145: 0.8838868717 | T145: 0.4856556064 | U145: 0.3441149574 | V145: 0.4808862306 | W145: 0.3737470417 | X145: 0.8478807561 | Y145: 0.5675107183 | Z145: 0.539270288 | AA145: 0.06046511048 | AB145: 0.8204910557 | AC145: 0.09800727356 | AD145: 0.4781140837 | AE145: 0.3176992617 | AF145: 0.5885088218 | AG145: 0.5894086961 | AH145: 0.1868683093 | AI145: 0.5816043573 | AJ145: 0.972720476 | AK145: 0.8793108585 | AL145: 0.2420370714 | AM145: 0.3868610859 | AN145: 0.19320333 | AO145: 0.382042408 | AP145: 0.6482101679 | AQ145: 0.8289334774 | AR145: 0.345728755 | AS145: =RAND() -> 0.002391630376 | AT145: 0.3691828011 | AU145: 0.1656760181 | AV145: 0.6777162233 | AW145: 0.695481086 | AX145: 0.2450438774
B146: 103 | C146: 0.6291430623 | D146: 0.6308224696 | E146: 0.07046142208 | F146: 0.1337556651 | G146: 0.1865619374 | H146: 0.4622198887 | I146: 0.4648112548 | J146: 0.3023372218 | K146: 0.9953111691 | L146: 0.03350407984 | M146: 0.07434048135 | N146: 0.2816479982 | O146: 0.6493826465 | P146: 0.7043752836 | Q146: 0.9145933787 | R146: 0.4656031034 | S146: 0.1202537181 | T146: 0.435186116 | U146: 0.985328732 | V146: 0.2508989445 | W146: 0.7088199937 | X146: 0.8452752597 | Y146: 0.514438721 | Z146: 0.4219852199 | AA146: 0.7891051648 | AB146: 0.3511212479 | AC146: 0.7447793641 | AD146: 0.1273363066 | AE146: 0.6216686208 | AF146: 0.3793236651 | AG146: 0.2306409553 | AH146: 0.1581445675 | AI146: 0.5699078269 | AJ146: 0.3177247538 | AK146: 0.5097311382 | AL146: 0.2071536294 | AM146: 0.09696620703 | AN146: 0.1477881074 | AO146: 0.6185023189 | AP146: 0.557425797 | AQ146: 0.3981904387 | AR146: 0.1340594888 | AS146: =RAND() -> 0.2265238288 | AT146: 0.98896721 | AU146: 0.6374589436 | AV146: 0.9640044658 | AW146: 0.6174122643 | AX146: 0.4501510854
B147: 104 | C147: 0.2641616553 | D147: 0.9087396233 | E147: 0.790906646 | F147: 0.5158085569 | G147: 0.1113450765 | H147: 0.6812254256 | I147: 0.8276608657 | J147: 0.308983947 | K147: 0.5221310094 | L147: 0.4326700998 | M147: 0.8237080456 | N147: 0.1316064215 | O147: 0.2449052453 | P147: 0.6980286334 | Q147: 0.3939956364 | R147: 0.0902228739 | S147: 0.1956729429 | T147: 0.415025773 | U147: 0.6178663202 | V147: 0.5238599807 | W147: 0.646744124 | X147: 0.07453812886 | Y147: 0.1387199534 | Z147: 0.7860512242 | AA147: 0.8279110013 | AB147: 0.9612571049 | AC147: 0.8950473232 | AD147: 0.8454904832 | AE147: 0.8357450919 | AF147: 0.8019726337 | AG147: 0.5411538504 | AH147: 0.6858478588 | AI147: 0.2670351946 | AJ147: 0.9711046296 | AK147: 0.7836259657 | AL147: 0.944035949 | AM147: 0.1289433241 | AN147: 0.6919317245 | AO147: 0.2930947542 | AP147: 0.3890440464 | AQ147: 0.8429464102 | AR147: 0.9015746117 | AS147: =RAND() -> 0.8869007278 | AT147: 0.6418543906 | AU147: 0.7478877501 | AV147: 0.6484036988 | AW147: 0.3501186406 | AX147: 0.1971786749
B148: 105 | C148: 0.06063400028 | D148: 0.657860331 | E148: 0.1737161904 | F148: 0.7275323452 | G148: 0.7475997966 | H148: 0.3011453729 | I148: 0.024468483 | J148: 0.7717560369 | K148: 0.8656767033 | L148: 0.3607616762 | M148: 0.5020209552 | N148: 0.9545389435 | O148: 0.4662211097 | P148: 0.9251955506 | Q148: 0.05597536653 | R148: 0.6698902153 | S148: 0.07919347709 | T148: 0.6779757797 | U148: 0.8634683862 | V148: 0.3293959923 | W148: 0.3322267692 | X148: 0.03071722648 | Y148: 0.4580568904 | Z148: 0.9888562826 | AA148: 0.06085474567 | AB148: 0.2867287709 | AC148: 0.1291407408 | AD148: 0.6349533998 | AE148: 0.8671710558 | AF148: 0.7593132111 | AG148: 0.7596692288 | AH148: 0.8020489092 | AI148: 0.127753759 | AJ148: 0.3570932388 | AK148: 0.4299601126 | AL148: 0.3656703439 | AM148: 0.7336345315 | AN148: 0.5233070254 | AO148: 0.3049009442 | AP148: 0.903893888 | AQ148: 0.2385979295 | AR148: 0.8890072703 | AS148: =RAND() -> 0.4846839069 | AT148: 0.8835567285 | AU148: 0.7126669765 | AV148: 0.5342186398 | AW148: 0.8035270889 | AX148: 0.136715548
B149: 106 | C149: 0.1634222445 | D149: 0.4870130392 | E149: 0.3812365558 | F149: 0.8114656478 | G149: 0.7172436926 | H149: 0.2556048083 | I149: 0.9337445488 | J149: 0.5919105128 | K149: 0.01233277884 | L149: 0.4663540466 | M149: 0.7460785435 | N149: 0.2168793982 | O149: 0.9472812584 | P149: 0.6996777407 | Q149: 0.949640341 | R149: 0.4247885041 | S149: 0.3604201685 | T149: 0.6738114001 | U149: 0.6537291973 | V149: 0.975181976 | W149: 0.6255995361 | X149: 0.2192935028 | Y149: 0.4504465915 | Z149: 0.0823770454 | AA149: 0.9833736255 | AB149: 0.9097370949 | AC149: 0.7719450464 | AD149: 0.449469476 | AE149: 0.4747135119 | AF149: 0.415969395 | AG149: 0.5460139977 | AH149: 0.29377016 | AI149: 0.6177247518 | AJ149: 0.5202917042 | AK149: 0.548291751 | AL149: 0.7154071842 | AM149: 0.2551932335 | AN149: 0.5752626657 | AO149: 0.6002318859 | AP149: 0.2677305937 | AQ149: 0.2993850708 | AR149: 0.9942752123 | AS149: =RAND() -> 0.4136925954 | AT149: 0.7741496428 | AU149: 0.4048558135 | AV149: 0.5051059775 | AW149: 0.9575069 | AX149: 0.3193347304
B150: 107 | C150: 0.1643504306 | D150: 0.2594990044 | E150: 0.601001984 | F150: 0.8774678116 | G150: 0.0858446465 | H150: 0.3723621858 | I150: 0.6275282563 | J150: 0.4745421287 | K150: 0.2665165712 | L150: 0.2416063062 | M150: 0.321910765 | N150: 0.3468252878 | O150: 0.6717553046 | P150: 0.8313565365 | Q150: 0.08690212482 | R150: 0.2958283504 | S150: 0.8575045404 | T150: 0.8258068842 | U150: 0.4675534046 | V150: 0.9907672942 | W150: 0.7106991071 | X150: 0.7679637127 | Y150: 0.5639757625 | Z150: 0.6450852023 | AA150: 0.3029109232 | AB150: 0.9595466796 | AC150: 0.2911917495 | AD150: 0.8273586024 | AE150: 0.6989355838 | AF150: 0.2964011472 | AG150: 0.9303507534 | AH150: 0.6003314471 | AI150: 0.1614391833 | AJ150: 0.8094468958 | AK150: 0.02336265566 | AL150: 0.3703553934 | AM150: 0.3711201549 | AN150: 0.9686511159 | AO150: 0.4094905257 | AP150: 0.6385617852 | AQ150: 0.06129854918 | AR150: 0.6632736325 | AS150: =RAND() -> 0.2178789126 | AT150: 0.006684220623 | AU150: 0.1103060011 | AV150: 0.733570627 | AW150: 0.7935430662 | AX150: 0.09379729673
B151: 108 | C151: 0.5223813818 | D151: 0.1109961229 | E151: 0.3600276399 | F151: 0.3521121628 | G151: 0.5964961257 | H151: 0.3186063315 | I151: 0.8089553306 | J151: 0.4216293714 | K151: 0.5181781838 | L151: 0.08183680339 | M151: 0.4865845682 | N151: 0.02865722131 | O151: 0.9534764421 | P151: 0.2884781827 | Q151: 0.1626969259 | R151: 0.1647917992 | S151: 0.3145014487 | T151: 0.4939813707 | U151: 0.7000979458 | V151: 0.004869888065 | W151: 0.941618843 | X151: 0.9038984437 | Y151: 0.5041913427 | Z151: 0.4488347987 | AA151: 0.01166744018 | AB151: 0.4123951915 | AC151: 0.4522873225 | AD151: 0.08088945906 | AE151: 0.6107348496 | AF151: 0.1467339944 | AG151: 0.3942441576 | AH151: 0.8867862756 | AI151: 0.4976088844 | AJ151: 0.8559197093 | AK151: 0.6405612982 | AL151: 0.8864885872 | AM151: 0.9190303087 | AN151: 0.5782196522 | AO151: 0.8334602118 | AP151: 0.5765442848 | AQ151: 0.880233407 | AR151: 0.1393716335 | AS151: =RAND() -> 0.3979528203 | AT151: 0.3748066178 | AU151: 0.07173188079 | AV151: 0.6646198931 | AW151: 0.9555628853 | AX151: 0.7196725041
B152: 109 | C152: 0.8435586405 | D152: 0.6908344332 | E152: 0.2269509849 | F152: 0.942636361 | G152: 0.1361933423 | H152: 0.1845168588 | I152: 0.6236704777 | J152: 0.5962849804 | K152: 0.3128174454 | L152: 0.1111486779 | M152: 0.4350831487 | N152: 0.9861947779 | O152: 0.8789010547 | P152: 0.9492112545 | Q152: 0.3905077703 | R152: 0.8334048263 | S152: 0.1589036711 | T152: 0.7408757599 | U152: 0.8464141554 | V152: 0.9350145256 | W152: 0.1839088831 | X152: 0.1503670049 | Y152: 0.97771463 | Z152: 0.7134616436 | AA152: 0.1101113832 | AB152: 0.9948278469 | AC152: 0.5869377492 | AD152: 0.9199211117 | AE152: 0.05135455034 | AF152: 0.8738299064 | AG152: 0.9868902566 | AH152: 0.8815203416 | AI152: 0.9722325985 | AJ152: 0.8771614503 | AK152: 0.5162375516 | AL152: 0.7599823492 | AM152: 0.7757270932 | AN152: 0.06781238317 | AO152: 0.1938143373 | AP152: 0.2986685634 | AQ152: 0.2969029546 | AR152: 0.9492978454 | AS152: =RAND() -> 0.3269823763 | AT152: 0.9193271168 | AU152: 0.04408248837 | AV152: 0.3558853108 | AW152: 0.4786495457 | AX152: 0.2626438894
B153: 110 | C153: 0.936670817 | D153: 0.8978410039 | E153: 0.2713761844 | F153: 0.03710621892 | G153: 0.4181326366 | H153: 0.3828677989 | I153: 0.3195274065 | J153: 0.5623919531 | K153: 0.3063650287 | L153: 0.9509939198 | M153: 0.710495494 | N153: 0.482997266 | O153: 0.4317374497 | P153: 0.01552778165 | Q153: 0.4876458661 | R153: 0.09692861066 | S153: 0.7799047929 | T153: 0.7008135292 | U153: 0.2116254652 | V153: 0.8481372822 | W153: 0.03603443674 | X153: 0.6488380461 | Y153: 0.02695587333 | Z153: 0.1127748209 | AA153: 0.1401655345 | AB153: 0.2083945412 | AC153: 0.6968308177 | AD153: 0.7573203502 | AE153: 0.7115311213 | AF153: 0.7761867066 | AG153: 0.04398382638 | AH153: 0.5233547376 | AI153: 0.06064092556 | AJ153: 0.3872705714 | AK153: 0.3946507853 | AL153: 0.06588359848 | AM153: 0.1418550014 | AN153: 0.5816391706 | AO153: 0.65346241 | AP153: 0.4615803957 | AQ153: 0.8639719486 | AR153: 0.7423585653 | AS153: =RAND() -> 0.3203559614 | AT153: 0.1468177453 | AU153: 0.3984949148 | AV153: 0.6425795775 | AW153: 0.7111481556 | AX153: 0.876473113
B154: 111 | C154: 0.01864179795 | D154: 0.9818581716 | E154: 0.9422110009 | F154: 0.4149398822 | G154: 0.5336558546 | H154: 0.4276984728 | I154: 0.5023218851 | J154: 0.6041408679 | K154: 0.1290685301 | L154: 0.3611142366 | M154: 0.8252728088 | N154: 0.1064803181 | O154: 0.961752849 | P154: 0.07839555012 | Q154: 0.3848967381 | R154: 0.6507591806 | S154: 0.824869471 | T154: 0.9927390134 | U154: 0.8788160277 | V154: 0.6840964013 | W154: 0.6010864709 | X154: 0.4355463114 | Y154: 0.02404363162 | Z154: 0.6819491276 | AA154: 0.8396966425 | AB154: 0.7282665673 | AC154: 0.1510716254 | AD154: 0.09574528942 | AE154: 0.4327133592 | AF154: 0.4157608903 | AG154: 0.03015387309 | AH154: 0.3764251073 | AI154: 0.1884155855 | AJ154: 0.9463302403 | AK154: 0.2608844411 | AL154: 0.5718219399 | AM154: 0.9223164916 | AN154: 0.2798438668 | AO154: 0.3398868442 | AP154: 0.1724908948 | AQ154: 0.3990320563 | AR154: 0.882158339 | AS154: =RAND() -> 0.3814810435 | AT154: 0.3694074898 | AU154: 0.7889869545 | AV154: 0.4952866595 | AW154: 0.1135641694 | AX154: 0.4956650243
B155: 112 | C155: 0.2636311223 | D155: 0.01942384895 | E155: 0.9172638319 | F155: 0.2439997009 | G155: 0.7392474038 | H155: 0.6829377009 | I155: 0.1565323455 | J155: 0.5083587931 | K155: 0.01982329825 | L155: 0.38743227 | M155: 0.1327981531 | N155: 0.6908928941 | O155: 0.7849309496 | P155: 0.06089139698 | Q155: 0.4575907261 | R155: 0.3712475633 | S155: 0.4108902286 | T155: 0.09868712443 | U155: 0.9257650338 | V155: 0.5583307013 | W155: 0.4079416877 | X155: 0.05884109469 | Y155: 0.9240871346 | Z155: 0.1004305661 | AA155: 0.4837947145 | AB155: 0.3870400797 | AC155: 0.7048814173 | AD155: 0.1310642338 | AE155: 0.7944065836 | AF155: 0.1374858984 | AG155: 0.18897296 | AH155: 0.3093901575 | AI155: 0.2187951112 | AJ155: 0.7257846071 | AK155: 0.1202850433 | AL155: 0.4386998922 | AM155: 0.8818963766 | AN155: 0.9036746025 | AO155: 0.02200758457 | AP155: 0.8783214092 | AQ155: 0.02255046368 | AR155: 0.3433132172 | AS155: =RAND() -> 0.9317055295 | AT155: 0.835653051 | AU155: 0.3184988612 | AV155: 0.7863888031 | AW155: 0.4385127543 | AX155: 0.7744131613
B156: 113 | C156: 0.9513411017 | D156: 0.6251618799 | E156: 0.3472059494 | F156: 0.9926574409 | G156: 0.7767605175 | H156: 0.4700231563 | I156: 0.6008224975 | J156: 0.07617807592 | K156: 0.2916776669 | L156: 0.7787600372 | M156: 0.2413649651 | N156: 0.8852742629 | O156: 0.01743704725 | P156: 0.2315037021 | Q156: 0.4057859622 | R156: 0.9655712949 | S156: 0.4701695872 | T156: 0.2583725986 | U156: 0.8544739264 | V156: 0.9250604153 | W156: 0.2896167896 | X156: 0.3000830382 | Y156: 0.7513442358 | Z156: 0.3670082088 | AA156: 0.06832738849 | AB156: 0.6076292069 | AC156: 0.5160192522 | AD156: 0.7639378327 | AE156: 0.6745611334 | AF156: 0.9134969221 | AG156: 0.7484376282 | AH156: 0.4535979007 | AI156: 0.4305584236 | AJ156: 0.5496197505 | AK156: 0.5555057011 | AL156: 0.4953343472 | AM156: 0.2877636552 | AN156: 0.5643479228 | AO156: 0.9389632344 | AP156: 0.9326438308 | AQ156: 0.6533990502 | AR156: 0.005685985088 | AS156: =RAND() -> 0.01122121656 | AT156: 0.2084035937 | AU156: 0.6238194437 | AV156: 0.1001268245 | AW156: 0.3524239579 | AX156: 0.04773394532
B157: 114 | C157: 0.9022347727 | D157: 0.5832608365 | E157: 0.7408059205 | F157: 0.07296095737 | G157: 0.865990862 | H157: 0.4435669517 | I157: 0.7403588323 | J157: 0.2821333777 | K157: 0.0430867083 | L157: 0.8062535536 | M157: 0.5958855614 | N157: 0.4815530166 | O157: 0.5677006906 | P157: 0.6044010022 | Q157: 0.2773263268 | R157: 0.5078039298 | S157: 0.02350214704 | T157: 0.6406599302 | U157: 0.6153933623 | V157: 0.4064376649 | W157: 0.4038772488 | X157: 0.543809334 | Y157: 0.9218091849 | Z157: 0.6642093081 | AA157: 0.1748587395 | AB157: 0.9278650925 | AC157: 0.4223239696 | AD157: 0.3356203953 | AE157: 0.5661986908 | AF157: 0.3461882531 | AG157: 0.3836455738 | AH157: 0.3228108084 | AI157: 0.1015909832 | AJ157: 0.8663829125 | AK157: 0.7270022836 | AL157: 0.4715478678 | AM157: 0.6538410187 | AN157: 0.9233313799 | AO157: 0.7356426716 | AP157: 0.1917346716 | AQ157: 0.6941418648 | AR157: 0.8185554743 | AS157: =RAND() -> 0.7182308584 | AT157: 0.9740147929 | AU157: 0.8951134981 | AV157: 0.3221304592 | AW157: 0.7404176472 | AX157: 0.2410365492
B158: 115 | C158: 0.9332748734 | D158: 0.4769547637 | E158: 0.4294687026 | F158: 0.2694324102 | G158: 0.7077850668 | H158: 0.3745873232 | I158: 0.5723251502 | J158: 0.5154830506 | K158: 0.9041698657 | L158: 0.8067169989 | M158: 0.5617909517 | N158: 0.04677084589 | O158: 0.2018391717 | P158: 0.8115424999 | Q158: 0.06868091639 | R158: 0.2998003784 | S158: 0.9458722429 | T158: 0.9842721523 | U158: 0.6191147662 | V158: 0.3311355179 | W158: 0.151048099 | X158: 0.4771216429 | Y158: 0.5627157744 | Z158: 0.1413870746 | AA158: 0.8011178421 | AB158: 0.6090175004 | AC158: 0.1926375084 | AD158: 0.338228779 | AE158: 0.743949096 | AF158: 0.8751176544 | AG158: 0.08607486843 | AH158: 0.4360215702 | AI158: 0.1199896638 | AJ158: 0.4172362324 | AK158: 0.8365691708 | AL158: 0.8427015816 | AM158: 0.4920713305 | AN158: 0.01087075472 | AO158: 0.3904651999 | AP158: 0.3357878327 | AQ158: 0.4595476985 | AR158: 0.1674836278 | AS158: =RAND() -> 0.4479871904 | AT158: 0.6112439773 | AU158: 0.04399216795 | AV158: 0.7974900842 | AW158: 0.4925363725 | AX158: 0.6012364451
B159: 116 | C159: 0.7751672516 | D159: 0.4716163989 | E159: 0.06112327836 | F159: 0.4133115809 | G159: 0.8664642819 | H159: 0.03944680264 | I159: 0.2249363629 | J159: 0.05788598937 | K159: 0.1236971176 | L159: 0.7236603418 | M159: 0.1645958438 | N159: 0.96970065 | O159: 0.3959739058 | P159: 0.7452110995 | Q159: 0.03198784178 | R159: 0.6323201407 | S159: 0.3283270266 | T159: 0.65217856 | U159: 0.3844741459 | V159: 0.03314690939 | W159: 0.8994749942 | X159: 0.701721337 | Y159: 0.6726513599 | Z159: 0.1842610669 | AA159: 0.8701386726 | AB159: 0.1091901156 | AC159: 0.2892941186 | AD159: 0.2965616149 | AE159: 0.662989334 | AF159: 0.7272664128 | AG159: 0.1761433877 | AH159: 0.7043417223 | AI159: 0.04936959184 | AJ159: 0.6208800746 | AK159: 0.7621283947 | AL159: 0.7036124587 | AM159: 0.1054931879 | AN159: 0.692283392 | AO159: 0.2289150953 | AP159: 0.5771512985 | AQ159: 0.4379273653 | AR159: 0.195589304 | AS159: =RAND() -> 0.2705735253 | AT159: 0.4227481448 | AU159: 0.640213211 | AV159: 0.9967628905 | AW159: 0.414463074 | AX159: 0.7352028052
B160: 117 | C160: 0.1039752936 | D160: 0.5257817601 | E160: 0.5079483438 | F160: 0.04007092993 | G160: 0.6902192819 | H160: 0.3786579065 | I160: 0.2555691918 | J160: 0.1583401702 | K160: 0.5538415886 | L160: 0.6456565227 | M160: 0.8183347838 | N160: 0.4369754229 | O160: 0.2369547453 | P160: 0.7650343789 | Q160: 0.2769282981 | R160: 0.3468811756 | S160: 0.01804379217 | T160: 0.5652705719 | U160: 0.8067692202 | V160: 0.126285812 | W160: 0.5260386835 | X160: 0.6973485889 | Y160: 0.7293101261 | Z160: 0.6584945773 | AA160: 0.7212546785 | AB160: 0.8564941664 | AC160: 0.8559548248 | AD160: 0.3160939789 | AE160: 0.5309438861 | AF160: 0.4942540873 | AG160: 0.3830941344 | AH160: 0.3046076739 | AI160: 0.874739108 | AJ160: 0.1940738851 | AK160: 0.7644410528 | AL160: 0.152221529 | AM160: 0.06838923693 | AN160: 0.5034531951 | AO160: 0.4923129678 | AP160: 0.5199920535 | AQ160: 0.866496861 | AR160: 0.5741018653 | AS160: =RAND() -> 0.1517220378 | AT160: 0.3992057664 | AU160: 0.6702596867 | AV160: 0.8577991595 | AW160: 0.3454009075 | AX160: 0.3218264686
B161: 118 | C161: 0.7045531558 | D161: 0.470288862 | E161: 0.9299706371 | F161: 0.967942472 | G161: 0.557899909 | H161: 0.5615960761 | I161: 0.3360417483 | J161: 0.7674118183 | K161: 0.6889802949 | L161: 0.3587794222 | M161: 0.9363916797 | N161: 0.6123900846 | O161: 0.830221079 | P161: 0.3268423801 | Q161: 0.5030342234 | R161: 0.4607404507 | S161: 0.2071227807 | T161: 0.3562153056 | U161: 0.7679397007 | V161: 0.1690365335 | W161: 0.1902082011 | X161: 0.9515805043 | Y161: 0.7928247874 | Z161: 0.09650807616 | AA161: 0.2274996867 | AB161: 0.8280728044 | AC161: 0.5750549753 | AD161: 0.2911925726 | AE161: 0.3106237946 | AF161: 0.3902567437 | AG161: 0.5897083752 | AH161: 0.06403695595 | AI161: 0.8120320027 | AJ161: 0.157252476 | AK161: 0.3376844645 | AL161: 0.8895036094 | AM161: 0.2077162266 | AN161: 0.4412206411 | AO161: 0.8033766747 | AP161: 0.6281763315 | AQ161: 0.9271628857 | AR161: 0.9875754118 | AS161: =RAND() -> 0.2311076917 | AT161: 0.3954518626 | AU161: 0.5344427023 | AV161: 0.3228209305 | AW161: 0.5354316269 | AX161: 0.1339536804
B162: 119 | C162: 0.9991117758 | D162: 0.9134459958 | E162: 0.5204692066 | F162: 0.5037751912 | G162: 0.3614201039 | H162: 0.1993722819 | I162: 0.728413286 | J162: 0.06688559868 | K162: 0.3914507075 | L162: 0.6200925188 | M162: 0.6581063026 | N162: 0.1191180946 | O162: 0.6302069698 | P162: 0.6654092358 | Q162: 0.7836544586 | R162: 0.2239321915 | S162: 0.5114302753 | T162: 0.9782899187 | U162: 0.265627973 | V162: 0.1279448386 | W162: 0.3256171608 | X162: 0.8280910908 | Y162: 0.3380760625 | Z162: 0.03284910681 | AA162: 0.224338634 | AB162: 0.3432291839 | AC162: 0.1073884966 | AD162: 0.2082807709 | AE162: 0.3932337338 | AF162: 0.3876864031 | AG162: 0.3591618598 | AH162: 0.8699846466 | AI162: 0.6448698294 | AJ162: 0.1416098491 | AK162: 0.4627736751 | AL162: 0.8041578505 | AM162: 0.3931898475 | AN162: 0.7015877366 | AO162: 0.2539135814 | AP162: 0.6810038686 | AQ162: 0.3935412765 | AR162: 0.2876210809 | AS162: =RAND() -> 0.7738096801 | AT162: 0.6055849289 | AU162: 0.5098847681 | AV162: 0.647468151 | AW162: 0.9862330047 | AX162: 0.388145335
B163: 120 | C163: 0.8913993449 | D163: 0.7283045593 | E163: 0.05211841612 | F163: 0.5394012211 | G163: 0.6859759945 | H163: 0.7631229355 | I163: 0.8352648835 | J163: 0.9893567627 | K163: 0.2937586872 | L163: 0.05198439221 | M163: 0.01598169603 | N163: 0.7625102254 | O163: 0.4838865594 | P163: 0.6545545024 | Q163: 0.01290921421 | R163: 0.06160191566 | S163: 0.6460812441 | T163: 0.3631316474 | U163: 0.2820123782 | V163: 0.3340086311 | W163: 0.8966010528 | X163: 0.7061578884 | Y163: 0.3902652336 | Z163: 0.4603470627 | AA163: 0.6641051006 | AB163: 0.321910409 | AC163: 0.6524856665 | AD163: 0.9652993643 | AE163: 0.2118125208 | AF163: 0.9412683211 | AG163: 0.4914361484 | AH163: 0.2026319302 | AI163: 0.4247419886 | AJ163: 0.1775812123 | AK163: 0.7166926589 | AL163: 0.6076559706 | AM163: 0.9639052153 | AN163: 0.1369781494 | AO163: 0.6886187792 | AP163: 0.8278801441 | AQ163: 0.9867767096 | AR163: 0.2035851479 | AS163: =RAND() -> 0.4502097359 | AT163: 0.1883982655 | AU163: 0.4002966948 | AV163: 0.07295179779 | AW163: 0.8359228124 | AX163: 0.8988097917
B164: 121 | C164: 0.2016593678 | D164: 0.6039125601 | E164: 0.9563680731 | F164: 0.4371032982 | G164: 0.3013334194 | H164: 0.2143902535 | I164: 0.4689964979 | J164: 0.01356103217 | K164: 0.5061788652 | L164: 0.720383114 | M164: 0.7513215331 | N164: 0.8961675675 | O164: 0.9966694571 | P164: 0.8724980554 | Q164: 0.3703857734 | R164: 0.1885436445 | S164: 0.9011835384 | T164: 0.005422779396 | U164: 0.2583442048 | V164: 0.7294168108 | W164: 0.5093317597 | X164: 0.2470065381 | Y164: 0.5660009621 | Z164: 0.9456078103 | AA164: 0.004553235936 | AB164: 0.206703712 | AC164: 0.3603465659 | AD164: 0.2438572851 | AE164: 0.4326582619 | AF164: 0.2181550376 | AG164: 0.2282056485 | AH164: 0.5601226359 | AI164: 0.4598234131 | AJ164: 0.4917111831 | AK164: 0.7168664715 | AL164: 0.1166205025 | AM164: 0.05785042048 | AN164: 0.8688318133 | AO164: 0.2130554318 | AP164: 0.1586746573 | AQ164: 0.4174585938 | AR164: 0.6948897243 | AS164: =RAND() -> 0.5234850229 | AT164: 0.6266905727 | AU164: 0.08112376425 | AV164: 0.4349186867 | AW164: 0.2610683035 | AX164: 0.02489836335
B165: 122 | C165: 0.4232874154 | D165: 0.7921682215 | E165: 0.3454633072 | F165: 0.361901393 | G165: 0.9873108994 | H165: 0.5073197 | I165: 0.8968859147 | J165: 0.471826846 | K165: 0.7686141894 | L165: 0.6864719596 | M165: 0.04452519961 | N165: 0.8458465131 | O165: 0.1061394878 | P165: 0.7657228247 | Q165: 0.4495675626 | R165: 0.1986486644 | S165: 0.8334676262 | T165: 0.7864952812 | U165: 0.1729320995 | V165: 0.8339315219 | W165: 0.8035959349 | X165: 0.9854821108 | Y165: 0.7431519983 | Z165: 0.08293936582 | AA165: 0.8814817381 | AB165: 0.9782101652 | AC165: 0.08827338478 | AD165: 0.2265004847 | AE165: 0.0228975339 | AF165: 0.4869735789 | AG165: 0.2993402024 | AH165: 0.1809452521 | AI165: 0.2612052509 | AJ165: 0.7919280524 | AK165: 0.3104709112 | AL165: 0.09277069599 | AM165: 0.7952408791 | AN165: 0.4966961145 | AO165: 0.5915887356 | AP165: 0.7895210981 | AQ165: 0.9317483902 | AR165: 0.440885663 | AS165: =RAND() -> 0.9735538039 | AT165: 0.03640015325 | AU165: 0.4894691133 | AV165: 0.1822435846 | AW165: 0.392709816 | AX165: 0.2659969931
B166: 123 | C166: 0.6286540042 | D166: 0.8288409959 | E166: 0.9094663102 | F166: 0.02730040354 | G166: 0.5911350071 | H166: 0.304369721 | I166: 0.2128341275 | J166: 0.914873627 | K166: 0.6341400885 | L166: 0.1776970757 | M166: 0.8746381276 | N166: 0.02070957166 | O166: 0.7290093646 | P166: 0.8849862701 | Q166: 0.975802256 | R166: 0.138477214 | S166: 0.2603737632 | T166: 0.4330304348 | U166: 0.4032067231 | V166: 0.477691942 | W166: 0.01644259456 | X166: 0.3971823306 | Y166: 0.16681307 | Z166: 0.9415444174 | AA166: 0.986188336 | AB166: 0.813278356 | AC166: 0.2980815898 | AD166: 0.00957695651 | AE166: 0.4763275917 | AF166: 0.9058973647 | AG166: 0.03324323272 | AH166: 0.791398418 | AI166: 0.1074472244 | AJ166: 0.7146519023 | AK166: 0.7408219895 | AL166: 0.962947311 | AM166: 0.2128912807 | AN166: 0.330327332 | AO166: 0.2879590392 | AP166: 0.2147918344 | AQ166: 0.6573726535 | AR166: 0.7306688428 | AS166: =RAND() -> 0.3022866227 | AT166: 0.2598995772 | AU166: 0.2399731297 | AV166: 0.0005220706702 | AW166: 0.6710624189 | AX166: 0.3699166747
B167: 124 | C167: 0.9044022537 | D167: 0.3730771965 | E167: 0.2526919168 | F167: 0.08459888869 | G167: 0.9330055976 | H167: 0.1271139214 | I167: 0.4127994182 | J167: 0.7950304781 | K167: 0.7432724202 | L167: 0.1378550051 | M167: 0.9932401152 | N167: 0.9967321491 | O167: 0.2224246965 | P167: 0.1643349621 | Q167: 0.7506994797 | R167: 0.3346037141 | S167: 0.9909543217 | T167: 0.585583494 | U167: 0.09332349182 | V167: 0.8033303597 | W167: 0.3773019012 | X167: 0.8054748405 | Y167: 0.06221289402 | Z167: 0.7131136379 | AA167: 0.1249447305 | AB167: 0.1524197942 | AC167: 0.5797768482 | AD167: 0.5576190118 | AE167: 0.2056976166 | AF167: 0.2031452106 | AG167: 0.01589759962 | AH167: 0.4234402499 | AI167: 0.8099779479 | AJ167: 0.421122766 | AK167: 0.359979402 | AL167: 0.9908589925 | AM167: 0.007974743843 | AN167: 0.1152613163 | AO167: 0.6404374838 | AP167: 0.4230494499 | AQ167: 0.6125189066 | AR167: 0.7155063152 | AS167: =RAND() -> 0.5144085813 | AT167: 0.09426833527 | AU167: 0.3004951918 | AV167: 0.2409347441 | AW167: 0.2542509148 | AX167: 0.6399077274
B168: 125 | C168: 0.198424376 | D168: 0.8098790912 | E168: 0.3184321213 | F168: 0.4860433718 | G168: 0.170052038 | H168: 0.4904555341 | I168: 0.4838159681 | J168: 0.3792647439 | K168: 0.03953771301 | L168: 0.8582029642 | M168: 0.3875169639 | N168: 0.8219135128 | O168: 0.3464791915 | P168: 0.2713680202 | Q168: 0.3311463805 | R168: 0.318665229 | S168: 0.6679421044 | T168: 0.1011996144 | U168: 0.709602091 | V168: 0.009806043807 | W168: 0.8774545147 | X168: 0.4209213748 | Y168: 0.5430537385 | Z168: 0.3228164713 | AA168: 0.2362392008 | AB168: 0.7103168813 | AC168: 0.3101648888 | AD168: 0.6336857967 | AE168: 0.02531394133 | AF168: 0.2447654113 | AG168: 0.4941705174 | AH168: 0.976447382 | AI168: 0.9100081062 | AJ168: 0.3546945102 | AK168: 0.8921909517 | AL168: 0.6647314289 | AM168: 0.6661203504 | AN168: 0.5904764533 | AO168: 0.4457340837 | AP168: 0.03356713057 | AQ168: 0.5385230184 | AR168: 0.8859328628 | AS168: =RAND() -> 0.3697726856 | AT168: 0.713344193 | AU168: 0.292526745 | AV168: 0.06681602648 | AW168: 0.8234857285 | AX168: 0.5200353712
B169: 126 | C169: 0.7216761648 | D169: 0.7306774914 | E169: 0.1445807226 | F169: 0.7887253233 | G169: 0.6887687746 | H169: 0.4038411265 | I169: 0.1164908673 | J169: 0.02434781499 | K169: 0.1280283515 | L169: 0.04442933993 | M169: 0.05177836067 | N169: 0.2751530221 | O169: 0.8543061475 | P169: 0.7104736373 | Q169: 0.7797167181 | R169: 0.6274627321 | S169: 0.9906759059 | T169: 0.7343689451 | U169: 0.05781152321 | V169: 0.9511198004 | W169: 0.7803448745 | X169: 0.1328751824 | Y169: 0.5016755697 | Z169: 0.139173116 | AA169: 0.5754991218 | AB169: 0.2827092502 | AC169: 0.362129598 | AD169: 0.06597864349 | AE169: 0.2104713471 | AF169: 0.5240169946 | AG169: 0.2809626164 | AH169: 0.8421378172 | AI169: 0.7201707998 | AJ169: 0.5239610304 | AK169: 0.05048786463 | AL169: 0.1063121785 | AM169: 0.9989955425 | AN169: 0.6122797728 | AO169: 0.8791484833 | AP169: 0.4336425066 | AQ169: 0.8236820698 | AR169: 0.9373363256 | AS169: =RAND() -> 0.8236291633 | AT169: 0.2230411079 | AU169: 0.204153325 | AV169: 0.373499917 | AW169: 0.9388557423 | AX169: 0.143485238
B170: 127 | C170: 0.8513033103 | D170: 0.9019708005 | E170: 0.540080358 | F170: 0.3117944102 | G170: 0.07105636083 | H170: 0.5863045013 | I170: 0.6657798225 | J170: 0.4734077654 | K170: 0.07504108933 | L170: 0.9429111597 | M170: 0.1198299821 | N170: 0.3076940624 | O170: 0.2082933045 | P170: 0.7964157053 | Q170: 0.5221889763 | R170: 0.1934773876 | S170: 0.8484354891 | T170: 0.3935723856 | U170: 0.4196182534 | V170: 0.06080852768 | W170: 0.3885377808 | X170: 0.05183190601 | Y170: 0.5960380213 | Z170: 0.987670115 | AA170: 0.04958670706 | AB170: 0.9202425065 | AC170: 0.9236274933 | AD170: 0.8514968801 | AE170: 0.9257442355 | AF170: 0.005546424191 | AG170: 0.54329188 | AH170: 0.8447141127 | AI170: 0.7234232576 | AJ170: 0.5299947666 | AK170: 0.1390963989 | AL170: 0.9215027266 | AM170: 0.7659339309 | AN170: 0.392023623 | AO170: 0.7184926867 | AP170: 0.7260311246 | AQ170: 0.4661907554 | AR170: 0.2825766206 | AS170: =RAND() -> 0.1590107363 | AT170: 0.7101244388 | AU170: 0.7208406146 | AV170: 0.7904065979 | AW170: 0.7241805676 | AX170: 0.1915941511
B171: 128 | C171: 0.5974445375 | D171: 0.001292741906 | E171: 0.8989298877 | F171: 0.6851661512 | G171: 0.7841074191 | H171: 0.9747361866 | I171: 0.2336297258 | J171: 0.01936997812 | K171: 0.7174699816 | L171: 0.3364993952 | M171: 0.8946240511 | N171: 0.6292692887 | O171: 0.8327815352 | P171: 0.5794262934 | Q171: 0.5305868955 | R171: 0.3930221527 | S171: 0.9437379497 | T171: 0.04828763991 | U171: 0.8931151004 | V171: 0.3526718124 | W171: 0.8524552281 | X171: 0.1631413953 | Y171: 0.693346806 | Z171: 0.6023781511 | AA171: 0.742404943 | AB171: 0.4020924471 | AC171: 0.4555991003 | AD171: 0.9957352832 | AE171: 0.3987169758 | AF171: 0.3922169466 | AG171: 0.3477129562 | AH171: 0.2672875763 | AI171: 0.3904762529 | AJ171: 0.5426237502 | AK171: 0.07876373085 | AL171: 0.5724046633 | AM171: 0.1059268713 | AN171: 0.9548306465 | AO171: 0.7191978693 | AP171: 0.8085210323 | AQ171: 0.9822071791 | AR171: 0.186003685 | AS171: =RAND() -> 0.8358337403 | AT171: 0.4885497862 | AU171: 0.6299584288 | AV171: 0.5601329609 | AW171: 0.9064672836 | AX171: 0.3834154107
B172: 129 | C172: 0.2504055892 | D172: 0.8602974111 | E172: 0.885403716 | F172: 0.6748055596 | G172: 0.6844187324 | H172: 0.4883820158 | I172: 0.2564315704 | J172: 0.3418986947 | K172: 0.433800241 | L172: 0.01565117729 | M172: 0.7999647139 | N172: 0.6155436607 | O172: 0.902816514 | P172: 0.2684220992 | Q172: 0.7086773735 | R172: 0.2429169931 | S172: 0.5565629356 | T172: 0.2784921358 | U172: 0.6495202563 | V172: 0.3626932826 | W172: 0.8131526691 | X172: 0.6286291499 | Y172: 0.8126468503 | Z172: 0.4653410903 | AA172: 0.7603854603 | AB172: 0.9560235083 | AC172: 0.8170710895 | AD172: 0.7662061902 | AE172: 0.6743534895 | AF172: 0.7758804591 | AG172: 0.2516404312 | AH172: 0.1743541996 | AI172: 0.1498546392 | AJ172: 0.398981 | AK172: 0.2693545036 | AL172: 0.8695161101 | AM172: =VLOOKUP(Iteration,Rand1Select,1+$B172) -> 0.3510237336 | AN172: =VLOOKUP(Iteration,Rand2Select,1+$B172) -> 0.2477938533 | AO172: =VLOOKUP(Iteration,Rand3Select,1+$B172) -> 0.3483689427 | AP172: =VLOOKUP(Iteration,Rand4Select,1+$B172) -> 0.369584024 | AQ172: =VLOOKUP(Iteration,Rand5Select,1+$B172) -> 0.2910304666 | AR172: =VLOOKUP(Iteration,Rand6Select,1+$B172) -> 0.3457786441 | AS172: =RAND() -> 0.7672492357 | AT172: 0.9015364556 | AU172: 0.6885830495 | AV172: 0.6923317886 | AW172: 0.4895725638 | AX172: 0.9378107253
B173: 130 | C173: 0.7116043945 | D173: 0.5717378652 | E173: 0.4280839363 | F173: 0.1143793501 | G173: 0.9206084535 | H173: 0.467833626 | I173: 0.8401269847 | J173: 0.9659548359 | K173: 0.7062401864 | L173: 0.1337353249 | M173: 0.3748815562 | N173: 0.3409764966 | O173: 0.5918128961 | P173: 0.8638772322 | Q173: 0.4008648553 | R173: 0.6756051888 | S173: 0.09257057689 | T173: 0.8268540262 | U173: 0.4127417513 | V173: 0.5351223456 | W173: 0.03285400306 | X173: 0.3701318016 | Y173: 0.9284688718 | Z173: 0.7309420657 | AA173: 0.7713842146 | AB173: 0.4395772102 | AC173: 0.161022723 | AD173: 0.9322290159 | AE173: 0.8029364221 | AF173: 0.3031637155 | AG173: 0.274991502 | AH173: 0.2489111033 | AI173: 0.03106780513 | AJ173: 0.1822346992 | AK173: 0.9885414328 | AL173: 0.3762542775 | AM173: 0.2580060959 | AN173: 0.3622514009 | AO173: 0.004495859146 | AP173: 0.1982969046 | AQ173: 0.2314429283 | AR173: 0.1937853098 | AS173: =RAND() -> 0.4804662154 | AT173: 0.4725004948 | AU173: 0.6051712845 | AV173: 0.01205753156 | AW173: 0.3710316906 | AX173: 0.9902358734
B174: =B173+1 -> 131 | C174: 0.2849973961 | D174: 0.1874705504 | E174: 0.9435640412 | F174: 0.7125001418 | G174: 0.8447004166 | H174: 0.8181579996 | I174: 0.9207045989 | J174: 0.58171966 | K174: 0.1111351244 | L174: 0.2103536978 | M174: 0.7768159936 | N174: 0.2792554144 | O174: 0.2912834322 | P174: 0.5790312706 | Q174: 0.482333644 | R174: 0.1543010196 | S174: 0.7029940693 | T174: 0.9518978625 | U174: 0.7484682272 | V174: 0.4882167077 | W174: 0.2283487629 | X174: 0.2889902136 | Y174: 0.2422002663 | Z174: 0.9315166798 | AA174: 0.4496034987 | AB174: 0.02343499455 | AC174: 0.6322926959 | AD174: 0.8700538628 | AE174: 0.9590218954 | AF174: 0.6967573643 | AG174: 0.5216721754 | AH174: 0.280297761 | AI174: 0.9533531694 | AJ174: 0.2898090507 | AK174: 0.4767106866 | AL174: 0.05236679645 | AM174: 0.2977401614 | AN174: 0.226337254 | AO174: 0.09269469976 | AP174: 0.3639526963 | AQ174: 0.4970585704 | AR174: 0.8552706838 | AS174: =RAND() -> 0.725909779 | AT174: 0.6305397586 | AU174: 0.7312445729 | AV174: 0.9355028249 | AW174: 0.7409558016 | AX174: 0.1864673172
B175: 132 | C175: 0.9913522329 | D175: 0.5184608826 | E175: 0.5460941574 | F175: 0.4019834714 | G175: 0.6721842946 | H175: 0.5108022295 | I175: 0.9196926451 | J175: 0.05880103758 | K175: 0.598716608 | L175: 0.2768975015 | M175: 0.4905853999 | N175: 0.3142333031 | O175: 0.2580424454 | P175: 0.4160205491 | Q175: 0.6944899692 | R175: 0.4663167664 | S175: 0.9060295148 | T175: 0.8005424408 | U175: 0.1619374003 | V175: 0.30443106 | W175: 0.7962039861 | X175: 0.5480977305 | Y175: 0.9698538098 | Z175: 0.04939972529 | AA175: 0.3322608964 | AB175: 0.9488389799 | AC175: 0.8985952164 | AD175: 0.5765942518 | AE175: 0.6972774101 | AF175: 0.9321278855 | AG175: 0.3890240327 | AH175: 0.528230945 | AI175: 0.5260124991 | AJ175: 0.2828762433 | AK175: 0.5507255358 | AL175: 0.8822457282 | AM175: 0.8339945078 | AN175: 0.4492042065 | AO175: 0.5958594084 | AP175: 0.3491020203 | AQ175: 0.3771525621 | AR175: 0.6917984486 | AS175: =RAND() -> 0.6168920788 | AT175: 0.002820882362 | AU175: 0.4296418216 | AV175: 0.1231371864 | AW175: 0.08014026521 | AX175: 0.774395625
B176: 133 | C176: 0.1545379315 | D176: 0.7340993027 | E176: 0.4017299177 | F176: 0.8397610915 | G176: 0.8230465354 | H176: 0.7667096659 | I176: 0.4186960034 | J176: 0.2114451658 | K176: 0.3270308601 | L176: 0.273704037 | M176: 0.8615847664 | N176: 0.3834701217 | O176: 0.9679640263 | P176: 0.2149894745 | Q176: 0.9837962664 | R176: 0.1353975524 | S176: 0.2171543929 | T176: 0.208297804 | U176: 0.2136034597 | V176: 0.649856728 | W176: 0.8832943093 | X176: 0.3832658514 | Y176: 0.4452826739 | Z176: 0.8722996292 | AA176: 0.1116180091 | AB176: 0.2588375569 | AC176: 0.5747283697 | AD176: 0.3100883719 | AE176: 0.316409464 | AF176: 0.4224885809 | AG176: 0.2392511566 | AH176: 0.6048140169 | AI176: 0.3344924736 | AJ176: 0.8265096647 | AK176: 0.7655853255 | AL176: 0.4331991508 | AM176: 0.4463618398 | AN176: 0.02272981405 | AO176: 0.9705815911 | AP176: 0.6348039508 | AQ176: 0.893547833 | AR176: 0.406763494 | AS176: =RAND() -> 0.5451745259 | AT176: 0.2426454662 | AU176: 0.426447518 | AV176: 0.5517289508 | AW176: 0.6557716325 | AX176: 0.1782506298
B177: 134 | C177: 0.236933199 | D177: 0.2684705727 | E177: 0.8822258219 | F177: 0.879576721 | G177: 0.8225872823 | H177: 0.9496007129 | I177: 0.6777176947 | J177: 0.05322962759 | K177: 0.5538738572 | L177: 0.01085799564 | M177: 0.04740646021 | N177: 0.1360922142 | O177: 0.6531114269 | P177: 0.07124558828 | Q177: 0.01414859025 | R177: 0.3748156537 | S177: 0.02772023122 | T177: 0.07348662458 | U177: 0.04310844914 | V177: 0.9418305693 | W177: 0.09971454801 | X177: 0.2905038992 | Y177: 0.5756233625 | Z177: 0.7500682055 | AA177: 0.5572203895 | AB177: 0.4845998188 | AC177: 0.768062026 | AD177: 0.1809135725 | AE177: 0.92959718 | AF177: 0.7791197188 | AG177: 0.9111845616 | AH177: 0.6700394174 | AI177: 0.3863714993 | AJ177: 0.7061128381 | AK177: 0.8293861361 | AL177: 0.611173407 | AM177: 0.3833687305 | AN177: 0.5132735968 | AO177: 0.6312661171 | AP177: 0.9917484522 | AQ177: 0.3118302822 | AR177: 0.5257233381 | AS177: =RAND() -> 0.6460326004 | AT177: 0.4560247918 | AU177: 0.07708018762 | AV177: 0.06883849525 | AW177: 0.9910879357 | AX177: 0.1409528935
B178: 135 | C178: 0.185568742 | D178: 0.1775402401 | E178: 0.07118029613 | F178: 0.6752908745 | G178: 0.7071352051 | H178: 0.7933828579 | I178: 0.2721319625 | J178: 0.3139357961 | K178: 0.3550823706 | L178: 0.8000816298 | M178: 0.7645149157 | N178: 0.7758624601 | O178: 0.6975062964 | P178: 0.2153239099 | Q178: 0.8412354226 | R178: 0.8913356728 | S178: 0.9399967643 | T178: 0.6772004796 | U178: 0.6209172144 | V178: 0.09466700644 | W178: 0.9324785217 | X178: 0.07545180751 | Y178: 0.0134984706 | Z178: 0.02548889558 | AA178: 0.9021588451 | AB178: 0.1815199455 | AC178: 0.480166622 | AD178: 0.04640284747 | AE178: 0.6169787422 | AF178: 0.1539973578 | AG178: 0.3173910805 | AH178: 0.1541127005 | AI178: 0.4583034513 | AJ178: 0.3053839697 | AK178: 0.7763203354 | AL178: 0.0545484982 | AM178: 0.9375213981 | AN178: 0.5957804322 | AO178: 0.9821593165 | AP178: 0.4662640691 | AQ178: 0.8420781493 | AR178: 0.5647788644 | AS178: =RAND() -> 0.9200576747 | AT178: 0.3966192091 | AU178: 0.891150225 | AV178: 0.7233069098 | AW178: 0.2884274593 | AX178: 0.1845027631
B179: 136 | C179: 0.09147315427 | D179: 0.6724454587 | E179: 0.163336445 | F179: 0.8715850613 | G179: 0.08761384311 | H179: 0.3728381013 | I179: 0.04122211644 | J179: 0.9285243354 | K179: 0.03934613376 | L179: 0.9991321234 | M179: 0.8483595619 | N179: 0.7283340066 | O179: 0.3687330861 | P179: 0.8050842815 | Q179: 0.7699506436 | R179: 0.6758678345 | S179: 0.05350163089 | T179: 0.5879090599 | U179: 0.8740554167 | V179: 0.4119487654 | W179: 0.9018809866 | X179: 0.01194626841 | Y179: 0.6620709797 | Z179: 0.5066044816 | AA179: 0.730937011 | AB179: 0.1261241815 | AC179: 0.6701511593 | AD179: 0.1606396418 | AE179: 0.1052035767 | AF179: 0.2241813688 | AG179: 0.08289410392 | AH179: 0.1936126992 | AI179: 0.604397868 | AJ179: 0.1366573812 | AK179: 0.7036064955 | AL179: 0.3504385809 | AM179: 0.117043376 | AN179: 0.1233453751 | AO179: 0.8681393862 | AP179: 0.8441698551 | AQ179: 0.8335489035 | AR179: 0.6973071098 | AS179: =RAND() -> 0.8730576963 | AT179: 0.1226064859 | AU179: 0.1075427604 | AV179: 0.415492676 | AW179: 0.1712997156 | AX179: 0.305242228
B180: 137 | C180: 0.7337027652 | D180: 0.1375685495 | E180: 0.272423328 | F180: 0.7990390206 | G180: 0.1248626242 | H180: 0.6274086072 | I180: 0.202049547 | J180: 0.9039833527 | K180: 0.7130583459 | L180: 0.6160906369 | M180: 0.6790988199 | N180: 0.8872207843 | O180: 0.7022509838 | P180: 0.5222864478 | Q180: 0.4164747756 | R180: 0.3063317465 | S180: 0.8069105842 | T180: 0.6136015742 | U180: 0.4600739835 | V180: 0.4258569343 | W180: 0.5672920452 | X180: 0.5699643956 | Y180: 0.4348136548 | Z180: 0.2711447878 | AA180: 0.4571422661 | AB180: 0.9932693847 | AC180: 0.1477521648 | AD180: 0.571366293 | AE180: 0.7482060323 | AF180: 0.5741642089 | AG180: 0.1228721059 | AH180: 0.1717371304 | AI180: 0.7552973752 | AJ180: 0.4066643644 | AK180: 0.7269556552 | AL180: 0.3967653157 | AM180: 0.2400375009 | AN180: 0.9028941989 | AO180: 0.5817201734 | AP180: 0.9935945868 | AQ180: 0.2999935746 | AR180: 0.2381379008 | AS180: =RAND() -> 0.6147938537 | AT180: 0.5255177087 | AU180: 0.4639990099 | AV180: 0.2268725846 | AW180: 0.1115169042 | AX180: 0.6324731078
B181: 138 | C181: 0.9384513077 | D181: 0.1500741349 | E181: 0.1082674006 | F181: 0.09171043431 | G181: 0.631878704 | H181: 0.4349881637 | I181: 0.805930395 | J181: 0.9529553716 | K181: 0.1213473943 | L181: 0.3411497654 | M181: 0.2928091877 | N181: 0.8465819309 | O181: 0.620993009 | P181: 0.8886290499 | Q181: 0.2085635337 | R181: 0.9916940206 | S181: 0.01688678947 | T181: 0.4681527322 | U181: 0.2972417491 | V181: 0.762514417 | W181: 0.2693286293 | X181: 0.4343099054 | Y181: 0.6902096625 | Z181: 0.9477571844 | AA181: 0.3707473412 | AB181: 0.6543463523 | AC181: 0.6387394479 | AD181: 0.1784482334 | AE181: 0.4086050624 | AF181: 0.8054378865 | AG181: 0.9030536317 | AH181: 0.1194375191 | AI181: 0.6284748118 | AJ181: 0.09805256825 | AK181: 0.0452489882 | AL181: 0.2363902857 | AM181: 0.3238749504 | AN181: 0.4150167704 | AO181: 0.7639148235 | AP181: 0.6333941221 | AQ181: 0.01558876038 | AR181: 0.7378989458 | AS181: =RAND() -> 0.05479668858 | AT181: 0.7133270052 | AU181: 0.2341500042 | AV181: 0.994716295 | AW181: 0.393149943 | AX181: 0.3420979755
B182: 139 | C182: 0.9152964955 | D182: 0.5393057975 | E182: 0.5673364178 | F182: 0.754487056 | G182: 0.5341581881 | H182: 0.8276700257 | I182: 0.974385073 | J182: 0.8837233117 | K182: 0.8532109359 | L182: 0.5692615806 | M182: 0.6860262435 | N182: 0.2521075354 | O182: 0.6100043567 | P182: 0.7560921466 | Q182: 0.3628646994 | R182: 0.8054542387 | S182: 0.7692147618 | T182: 0.3680898805 | U182: 0.05770233251 | V182: 0.3829186774 | W182: 0.06081491357 | X182: 0.0949420464 | Y182: 0.02412949528 | Z182: 0.5836435683 | AA182: 0.5911415121 | AB182: 0.08301638536 | AC182: 0.561491559 | AD182: 0.6094590452 | AE182: 0.4457814061 | AF182: 0.262059944 | AG182: 0.5597184825 | AH182: 0.1252695849 | AI182: 0.5832142538 | AJ182: 0.0881176088 | AK182: 0.777345147 | AL182: 0.170075448 | AM182: 0.4014031291 | AN182: 0.5138419271 | AO182: 0.9360198379 | AP182: 0.6372743249 | AQ182: 0.2115156054 | AR182: 0.05935555696 | AS182: =RAND() -> 0.1511325197 | AT182: 0.8227256395 | AU182: 0.9891880766 | AV182: 0.7295313507 | AW182: 0.7438868863 | AX182: 0.2328619719
B183: 140 | C183: 0.4539857816 | D183: 0.1070042588 | E183: 0.1101562536 | F183: 0.2946011761 | G183: 0.9808454949 | H183: 0.5023804912 | I183: 0.1945844635 | J183: 0.3015285716 | K183: 0.8326003465 | L183: 0.5029895532 | M183: 0.4056530973 | N183: 0.9338445617 | O183: 0.2903015498 | P183: 0.2085942848 | Q183: 0.5646452718 | R183: 0.400303797 | S183: 0.1660880738 | T183: 0.8216311169 | U183: 0.2444929844 | V183: 0.4608546269 | W183: 0.09514596782 | X183: 0.1648559585 | Y183: 0.4142243484 | Z183: 0.870170156 | AA183: 0.5499140007 | AB183: 0.1370898441 | AC183: 0.8772487831 | AD183: 0.424845863 | AE183: 0.755502374 | AF183: 0.9678214671 | AG183: 0.09888439951 | AH183: 0.6088824443 | AI183: 0.7801634046 | AJ183: 0.7494670384 | AK183: 0.5889556771 | AL183: 0.9333034484 | AM183: 0.119197011 | AN183: 0.7492878437 | AO183: 0.2011379004 | AP183: 0.2932972908 | AQ183: 0.5330978632 | AR183: 0.07026648521 | AS183: =RAND() -> 0.7271969744 | AT183: 0.2953094151 | AU183: 0.03630559811 | AV183: 0.4835516908 | AW183: 0.4021636184 | AX183: 0.1827958911
B184: 141 | C184: 0.2119389708 | D184: 0.3074013189 | E184: 0.9734918345 | F184: 0.5144152424 | G184: 0.05557008114 | H184: 0.8585428474 | I184: 0.04417151598 | J184: 0.9131867226 | K184: 0.6254128335 | L184: 0.4614078764 | M184: 0.9023359503 | N184: 0.8569476804 | O184: 0.754686854 | P184: 0.03453279623 | Q184: 0.1779924628 | R184: 0.9860218955 | S184: 0.1200893979 | T184: 0.4102163217 | U184: 0.8190114477 | V184: 0.9245362633 | W184: 0.7623709878 | X184: 0.279486099 | Y184: 0.2438043852 | Z184: 0.8396488829 | AA184: 0.7609473458 | AB184: 0.7277278508 | AC184: 0.8508855539 | AD184: 0.3114321682 | AE184: 0.6111417475 | AF184: 0.9152308774 | AG184: 0.3364411614 | AH184: 0.8821415681 | AI184: 0.5656718383 | AJ184: 0.4339101719 | AK184: 0.2663876466 | AL184: 0.8680288141 | AM184: 0.3021801114 | AN184: 0.1346859336 | AO184: 0.2489843965 | AP184: 0.009737670422 | AQ184: 0.02776271105 | AR184: 0.7991914153 | AS184: =RAND() -> 0.8557804173 | AT184: 0.9735985004 | AU184: 0.8736352209 | AV184: 0.6970009616 | AW184: 0.3163597996 | AX184: 0.005896145695
B185: 142 | C185: 0.2389072198 | D185: 0.9573938966 | E185: 0.5285851039 | F185: 0.7956491756 | G185: 0.6956341684 | H185: 0.1501363149 | I185: 0.9145147551 | J185: 0.04807320981 | K185: 0.2653409582 | L185: 0.9686084852 | M185: 0.7040830527 | N185: 0.5656049492 | O185: 0.9788919714 | P185: 0.5882315299 | Q185: 0.8450440887 | R185: 0.2754232342 | S185: 0.02270249462 | T185: 0.011869543 | U185: 0.9178968033 | V185: 0.5576757165 | W185: 0.7637414016 | X185: 0.503067189 | Y185: 0.8049986262 | Z185: 0.6335544653 | AA185: 0.3007283553 | AB185: 0.4900736935 | AC185: 0.8371712293 | AD185: 0.9061708884 | AE185: 0.8328442109 | AF185: 0.2162558855 | AG185: 0.2063672659 | AH185: 0.04846368292 | AI185: 0.8782672881 | AJ185: 0.3488606768 | AK185: 0.921775434 | AL185: 0.8045221476 | AM185: 0.1816365719 | AN185: 0.6407841444 | AO185: 0.01334285736 | AP185: 0.7443886995 | AQ185: 0.6030333042 | AR185: 0.2649434805 | AS185: =RAND() -> 0.9504652484 | AT185: 0.4432579226 | AU185: 0.3446808824 | AV185: 0.9418413771 | AW185: 0.3636888856 | AX185: 0.04373624002
B186: 143 | C186: 0.902411863 | D186: 0.6664765443 | E186: 0.8713311045 | F186: 0.7493644523 | G186: 0.3028387433 | H186: 0.2561157601 | I186: 0.410989133 | J186: 0.2417165544 | K186: 0.8449740114 | L186: 0.6186041845 | M186: 0.8239513763 | N186: 0.4680090771 | O186: 0.03774866532 | P186: 0.8168973382 | Q186: 0.7948254923 | R186: 0.5343879412 | S186: 0.6263752286 | T186: 0.8649436722 | U186: 0.210600444 | V186: 0.9928181126 | W186: 0.4407735028 | X186: 0.5360480054 | Y186: 0.6934121217 | Z186: 0.325663788 | AA186: 0.2114092666 | AB186: 0.1522824063 | AC186: 0.8191595516 | AD186: 0.3529717194 | AE186: 0.301554938 | AF186: 0.8423538981 | AG186: 0.6149400171 | AH186: 0.791291314 | AI186: 0.4715448058 | AJ186: 0.1340281587 | AK186: 0.1175051405 | AL186: 0.7722317579 | AM186: 0.9455499053 | AN186: 0.3231120706 | AO186: 0.684073627 | AP186: 0.0760191083 | AQ186: 0.3869261146 | AR186: 0.09760671854 | AS186: =RAND() -> 0.9309044353 | AT186: 0.1764485234 | AU186: 0.409907441 | AV186: 0.4060932803 | AW186: 0.5728637076 | AX186: 0.1354226047
B187: 144 | C187: 0.8440671041 | D187: 0.1418481862 | E187: 0.2464610849 | F187: 0.9044011269 | G187: 0.9400808278 | H187: 0.2649462871 | I187: 0.7331058011 | J187: 0.4600133146 | K187: 0.414953595 | L187: 0.1050077053 | M187: 0.3844764041 | N187: 0.3382501294 | O187: 0.5054335034 | P187: 0.2368376118 | Q187: 0.7319755639 | R187: 0.6244871567 | S187: 0.7461886206 | T187: 0.9075631332 | U187: 0.9383204668 | V187: 0.4343903882 | W187: 0.6532800658 | X187: 0.1316870423 | Y187: 0.04885132126 | Z187: 0.2358835427 | AA187: 0.2233434393 | AB187: 0.04943597838 | AC187: 0.5261171032 | AD187: 0.270764881 | AE187: 0.08432771513 | AF187: 0.9674577642 | AG187: 0.1629393656 | AH187: 0.1893020214 | AI187: 0.5846088525 | AJ187: 0.9507876677 | AK187: 0.0843802418 | AL187: 0.1425815443 | AM187: 0.3844617605 | AN187: 0.1117606163 | AO187: 0.7179628611 | AP187: 0.9118773937 | AQ187: 0.443633914 | AR187: 0.3473587036 | AS187: =RAND() -> 0.01483353611 | AT187: 0.7146074416 | AU187: 0.03830273398 | AV187: 0.9354941779 | AW187: 0.9050668944 | AX187: 0.07197301759
B188: 145 | C188: 0.3064657741 | D188: 0.1794575498 | E188: 0.4195232679 | F188: 0.800549174 | G188: 0.7152971632 | H188: 0.9049790569 | I188: 0.8652997649 | J188: 0.5976804536 | K188: 0.2260245541 | L188: 0.08719892477 | M188: 0.04813783482 | N188: 0.4742931862 | O188: 0.8382248976 | P188: 0.9839239749 | Q188: 0.9263406439 | R188: 0.4574002615 | S188: 0.9080586395 | T188: 0.8658543181 | U188: 0.3829057001 | V188: 0.700239296 | W188: 0.6485478189 | X188: 0.2455955243 | Y188: 0.7268087501 | Z188: 0.08530298798 | AA188: 0.04704079664 | AB188: 0.2427215924 | AC188: 0.3777332696 | AD188: 0.1770046997 | AE188: 0.5921946965 | AF188: 0.9870245431 | AG188: 0.1790051466 | AH188: 0.3527422618 | AI188: 0.8831170498 | AJ188: 0.8115864557 | AK188: 0.6359623423 | AL188: 0.9174045267 | AM188: 0.06327062845 | AN188: 0.9264180064 | AO188: 0.66555053 | AP188: 0.5995540023 | AQ188: 0.2358518243 | AR188: 0.04237765074 | AS188: =RAND() -> 0.4602064962 | AT188: 0.6275494096 | AU188: 0.5131016759 | AV188: 0.07707154922 | AW188: 0.1823811422 | AX188: 0.708629854
B189: 146 | C189: 0.6803654719 | D189: 0.9223526852 | E189: 0.2383292033 | F189: 0.3974270123 | G189: 0.8526422131 | H189: 0.4338920313 | I189: 0.1604583884 | J189: 0.1112671861 | K189: 0.166888255 | L189: 0.4224205455 | M189: 0.871109771 | N189: 0.5083212361 | O189: 0.6622307481 | P189: 0.5897673792 | Q189: 0.6815048533 | R189: 0.6987037448 | S189: 0.3032673124 | T189: 0.7810649327 | U189: 0.8285969997 | V189: 0.2290438302 | W189: 0.8624797854 | X189: 0.7098831741 | Y189: 0.1892847994 | Z189: 0.3065712859 | AA189: 0.8094717664 | AB189: 0.7179359936 | AC189: 0.1651249085 | AD189: 0.3779703599 | AE189: 0.9003279887 | AF189: 0.7707134672 | AG189: 0.3470916357 | AH189: 0.2126941698 | AI189: 0.9042342281 | AJ189: 0.9690974208 | AK189: 0.8204242918 | AL189: 0.5489509589 | AM189: 0.4777107239 | AN189: 0.878136754 | AO189: 0.11252141 | AP189: 0.8882697821 | AQ189: 0.4096741676 | AR189: 0.5619961023 | AS189: =RAND() -> 0.02001636639 | AT189: 0.4837695464 | AU189: 0.8365967185 | AV189: 0.761665221 | AW189: 0.556631703 | AX189: 0.629978119
B190: 147 | C190: 0.03423139291 | D190: 0.8610340916 | E190: 0.4072247236 | F190: 0.2653802377 | G190: 0.08414801064 | H190: 0.8124343145 | I190: 0.4989186606 | J190: 0.723497589 | K190: 0.1925778428 | L190: 0.7303538634 | M190: 0.2356953617 | N190: 0.5079360372 | O190: 0.5699633924 | P190: 0.3066682866 | Q190: 0.5507180762 | R190: 0.841919122 | S190: 0.9388393975 | T190: 0.7221877609 | U190: 0.5513001692 | V190: 0.1893167326 | W190: 0.2790767816 | X190: 0.7882550691 | Y190: 0.7314038834 | Z190: 0.9802392668 | AA190: 0.8140402118 | AB190: 0.9639461265 | AC190: 0.446002921 | AD190: 0.9248625789 | AE190: 0.5949238393 | AF190: 0.6110658809 | AG190: 0.9449448128 | AH190: 0.5055812904 | AI190: 0.01876620161 | AJ190: 0.250558943 | AK190: 0.6340856321 | AL190: 0.868110445 | AM190: 0.5692903399 | AN190: 0.02340775728 | AO190: 0.5899071097 | AP190: 0.1543856263 | AQ190: 0.9242789149 | AR190: 0.3766148686 | AS190: =RAND() -> 0.7584490882 | AT190: 0.8386664544 | AU190: 0.7119145457 | AV190: 0.5825817255 | AW190: 0.4956391138 | AX190: 0.5281056828
B191: 148 | C191: 0.5169675378 | D191: 0.07580050407 | E191: 0.5555455711 | F191: 0.3318335981 | G191: 0.3041720515 | H191: 0.1093484758 | I191: 0.7576595076 | J191: 0.8254260952 | K191: 0.3216301389 | L191: 0.8025599743 | M191: 0.04527967729 | N191: 0.9277147787 | O191: 0.6378243874 | P191: 0.9049514429 | Q191: 0.7006774411 | R191: 0.8588492485 | S191: 0.4295257961 | T191: 0.6321944223 | U191: 0.8293534738 | V191: 0.7639887141 | W191: 0.387949259 | X191: 0.8575967506 | Y191: 0.8270104817 | Z191: 0.1897397631 | AA191: 0.3185194721 | AB191: 0.3594949105 | AC191: 0.002185402889 | AD191: 0.1224621768 | AE191: 0.171838356 | AF191: 0.4841116421 | AG191: 0.7022842825 | AH191: 0.2658551377 | AI191: 0.4811176568 | AJ191: 0.5976079526 | AK191: 0.7155961567 | AL191: 0.504824286 | AM191: 0.2273517847 | AN191: 0.02381300926 | AO191: 0.640354991 | AP191: 0.3967485428 | AQ191: 0.209749341 | AR191: 0.2498362064 | AS191: =RAND() -> 0.02060084863 | AT191: 0.2323420715 | AU191: 0.9564411051 | AV191: 0.4354841051 | AW191: 0.8812984989 | AX191: 0.2065722493
B192: 149 | C192: 0.8563876944 | D192: 0.9167385272 | E192: 0.02344111451 | F192: 0.9285196464 | G192: 0.3737066758 | H192: 0.5984698413 | I192: 0.2041827089 | J192: 0.8134534767 | K192: 0.3649287459 | L192: 0.5892350944 | M192: 0.3871894289 | N192: 0.9965234308 | O192: 0.9696401506 | P192: 0.3373849093 | Q192: 0.04990787599 | R192: 0.7676299929 | S192: 0.6201111335 | T192: 0.9179365716 | U192: 0.86418419 | V192: 0.7530347655 | W192: 0.3830501748 | X192: 0.6990292933 | Y192: 0.8134527945 | Z192: 0.7397581608 | AA192: 0.8704924135 | AB192: 0.7150953385 | AC192: 0.2187508514 | AD192: 0.09132852619 | AE192: 0.6192574416 | AF192: 0.1064262884 | AG192: 0.976516751 | AH192: 0.7831277458 | AI192: 0.3525574301 | AJ192: 0.9347433018 | AK192: 0.941344434 | AL192: 0.4104656288 | AM192: 0.6422665715 | AN192: 0.4014424682 | AO192: 0.2286964059 | AP192: 0.2350284457 | AQ192: 0.05298405886 | AR192: 0.3664392829 | AS192: =RAND() -> 0.9648529336 | AT192: 0.8637821764 | AU192: 0.6829498748 | AV192: 0.8490928114 | AW192: 0.80003612 | AX192: 0.7459638048
B193: 150 | C193: 0.223196578 | D193: 0.9716995707 | E193: 0.6784470004 | F193: 0.3477935116 | G193: 0.9493576821 | H193: 0.3532011026 | I193: 0.8350901728 | J193: 0.8086940149 | K193: 0.3892944886 | L193: 0.8271700995 | M193: 0.8378144458 | N193: 0.351080936 | O193: 0.00377704392 | P193: 0.4215837018 | Q193: 0.9022564465 | R193: 0.8810021127 | S193: 0.3864178531 | T193: 0.1652903584 | U193: 0.4766345948 | V193: 0.5986140451 | W193: 0.6328975221 | X193: 0.02923621205 | Y193: 0.2789660602 | Z193: 0.04653226611 | AA193: 0.7726138105 | AB193: 0.6908419159 | AC193: 0.06792820871 | AD193: 0.04652820204 | AE193: 0.8954397028 | AF193: 0.4795442931 | AG193: 0.6691704389 | AH193: 0.9323475115 | AI193: 0.4531124679 | AJ193: 0.3332503293 | AK193: 0.2892341173 | AL193: 0.6001135383 | AM193: 0.6677248478 | AN193: 0.06951844692 | AO193: 0.6821169853 | AP193: 0.9615827799 | AQ193: 0.861841917 | AR193: 0.745328784 | AS193: =RAND() -> 0.7650592476 | AT193: 0.09056826778 | AU193: 0.9876153612 | AV193: 0.563697871 | AW193: 0.04963099543 | AX193: 0.1527716895
B194: 151 | C194: 0.5141042468 | D194: 0.2456785294 | E194: 0.1076833935 | F194: 0.9877872842 | G194: 0.2324744103 | H194: 0.6730561053 | I194: 0.6031875057 | J194: 0.4440855634 | K194: 0.96937874 | L194: 0.7271740643 | M194: 0.1554666366 | N194: 0.05363386645 | O194: 0.7135557778 | P194: 0.7427759457 | Q194: 0.7033804227 | R194: 0.0935064974 | S194: 0.9230425579 | T194: 0.457748881 | U194: 0.03706370496 | V194: 0.916424988 | W194: 0.783250288 | X194: 0.8678882358 | Y194: 0.2753377892 | Z194: 0.6196390941 | AA194: 0.09025226314 | AB194: 0.1508419609 | AC194: 0.4781093355 | AD194: 0.5538572078 | AE194: 0.2577418474 | AF194: 0.2647049795 | AG194: 0.3335967122 | AH194: 0.1759235707 | AI194: 0.3094045139 | AJ194: 0.790091742 | AK194: 0.04226389193 | AL194: 0.8002406948 | AM194: 0.4682421088 | AN194: 0.8498974442 | AO194: 0.3540207744 | AP194: 0.2452376485 | AQ194: 0.1070823073 | AR194: 0.6100640893 | AS194: =RAND() -> 0.5322176951 | AT194: 0.909705932 | AU194: 0.1492990809 | AV194: 0.7183969002 | AW194: 0.5388186796 | AX194: 0.04281404659
B195: 152 | C195: 0.5215799905 | D195: 0.7442955537 | E195: 0.3838213991 | F195: 0.1701977204 | G195: 0.9082702365 | H195: 0.6304428247 | I195: 0.1940893066 | J195: 0.7867110446 | K195: 0.7527766548 | L195: 0.1075893182 | M195: 0.3563449898 | N195: 0.6174617981 | O195: 0.484507344 | P195: 0.940433089 | Q195: 0.9311848938 | R195: 0.3480983927 | S195: 0.9364388635 | T195: 0.9739710419 | U195: 0.8863158008 | V195: 0.3215246802 | W195: 0.5533082501 | X195: 0.0219869182 | Y195: 0.6081690608 | Z195: 0.3534623494 | AA195: 0.738543812 | AB195: 0.9908071845 | AC195: 0.6294682399 | AD195: 0.6926152772 | AE195: 0.9190076337 | AF195: 0.3999575407 | AG195: 0.4605969698 | AH195: 0.5398863939 | AI195: 0.6515122323 | AJ195: 0.266442032 | AK195: 0.3764652713 | AL195: 0.5395948067 | AM195: 0.3735140562 | AN195: 0.5924396515 | AO195: 0.1793128252 | AP195: 0.4418194294 | AQ195: 0.2934192419 | AR195: 0.4491467476 | AS195: =RAND() -> 0.2318625839 | AT195: 0.4412778519 | AU195: 0.1819950572 | AV195: 0.02620450137 | AW195: 0.1006827237 | AX195: 0.1493492642
B196: 153 | C196: 0.2615686937 | D196: 0.1737977649 | E196: 0.7883839638 | F196: 0.006630635392 | G196: 0.3407339085 | H196: 0.05411752309 | I196: 0.07186687125 | J196: 0.6950752702 | K196: 0.9892397751 | L196: 0.375086714 | M196: 0.119126448 | N196: 0.5871921847 | O196: 0.30782559 | P196: 0.168417403 | Q196: 0.7889585417 | R196: 0.4411615591 | S196: 0.2078156138 | T196: 0.7814024227 | U196: 0.4975015362 | V196: 0.4432204778 | W196: 0.3174583745 | X196: 0.7418602437 | Y196: 0.1711876394 | Z196: 0.134046566 | AA196: 0.6324911985 | AB196: 0.806080047 | AC196: 0.4316782999 | AD196: 0.3013111648 | AE196: 0.3957900419 | AF196: 0.3625562624 | AG196: 0.8612210343 | AH196: 0.5951114606 | AI196: 0.7217513944 | AJ196: 0.3490837601 | AK196: 0.5234926856 | AL196: 0.08393852019 | AM196: 0.9247270226 | AN196: 0.8012754321 | AO196: 0.3679264188 | AP196: 0.3969349265 | AQ196: 0.1557341218 | AR196: 0.3195330501 | AS196: =RAND() -> 0.7224651454 | AT196: 0.6627238232 | AU196: 0.07049868644 | AV196: 0.9533620723 | AW196: 0.09275384963 | AX196: 0.7344381327
B197: 154 | C197: 0.5176496606 | D197: 0.6184638099 | E197: 0.6091098943 | F197: 0.5066084096 | G197: 0.2723352573 | H197: 0.1151450805 | I197: 0.5149462367 | J197: 0.7519534594 | K197: 0.8985189513 | L197: 0.6117776421 | M197: 0.7240592302 | N197: 0.06369215089 | O197: 0.6757206231 | P197: 0.7189813676 | Q197: 0.4679636513 | R197: 0.6675320489 | S197: 0.8390292623 | T197: 0.4598362417 | U197: 0.7111431366 | V197: 0.3249010333 | W197: 0.9509794218 | X197: 0.8582049437 | Y197: 0.08528395964 | Z197: 0.4315300996 | AA197: 0.1698351251 | AB197: 0.7795037807 | AC197: 0.1145925738 | AD197: 0.9099123133 | AE197: 0.7724808749 | AF197: 0.2058462431 | AG197: 0.8739765285 | AH197: 0.9783438759 | AI197: 0.7748938838 | AJ197: 0.1807864329 | AK197: 0.386537051 | AL197: 0.7382873214 | AM197: 0.9075016975 | AN197: 0.8028808832 | AO197: 0.2461163998 | AP197: 0.8345059156 | AQ197: 0.7423124313 | AR197: 0.4829713106 | AS197: =RAND() -> 0.8342507913 | AT197: 0.9890081232 | AU197: 0.6558178894 | AV197: 0.2591723736 | AW197: 0.2166786104 | AX197: 0.482223024
B198: 155 | C198: 0.5456957938 | D198: 0.1986200924 | E198: 0.03030483501 | F198: 0.2832944882 | G198: 0.4154527424 | H198: 0.9260550003 | I198: 0.1598624731 | J198: 0.13400208 | K198: 0.4920401491 | L198: 0.9370844062 | M198: 0.2575638073 | N198: 0.6206975978 | O198: 0.9014205254 | P198: 0.09877928753 | Q198: 0.769993862 | R198: 0.05083029539 | S198: 0.7637665824 | T198: 0.665960138 | U198: 0.01675509132 | V198: 0.07596252499 | W198: 0.5789408537 | X198: 0.938125606 | Y198: 0.6428771772 | Z198: 0.7168054384 | AA198: 0.8804806492 | AB198: 0.9838378814 | AC198: 0.2934697947 | AD198: 0.005450054469 | AE198: 0.8702910021 | AF198: 0.9367441454 | AG198: 0.1317809016 | AH198: 0.6495862716 | AI198: 0.2096624819 | AJ198: 0.8612499133 | AK198: 0.1923775494 | AL198: 0.1349249661 | AM198: 0.7374369502 | AN198: 0.101226151 | AO198: 0.9669541717 | AP198: 0.8005405068 | AQ198: 0.1495086551 | AR198: 0.856365025 | AS198: =RAND() -> 0.5801904424 | AT198: 0.586481493 | AU198: 0.2988176147 | AV198: 0.910324781 | AW198: 0.2174004869 | AX198: 0.4334060165
B199: 156 | C199: 0.3106207995 | D199: 0.7860344053 | E199: 0.535217372 | F199: 0.3036027289 | G199: 0.1086013151 | H199: 0.5849990848 | I199: 0.1875749839 | J199: 0.9676362819 | K199: 0.8564724237 | L199: 0.05727228915 | M199: 0.8719122893 | N199: 0.732290279 | O199: 0.5872335473 | P199: 0.3150968898 | Q199: 0.7785403966 | R199: 0.6789787067 | S199: 0.2384393519 | T199: 0.2921209283 | U199: 0.8773187087 | V199: 0.3447835598 | W199: 0.4762646422 | X199: 0.9397521649 | Y199: 0.9762484159 | Z199: 0.3395985046 | AA199: 0.1420225722 | AB199: 0.2012538534 | AC199: 0.5681779883 | AD199: 0.8608130627 | AE199: 0.2390829772 | AF199: 0.4756718519 | AG199: 0.5118336334 | AH199: 0.4710618942 | AI199: 0.6416708257 | AJ199: 0.7576649312 | AK199: 0.5486498752 | AL199: 0.0616856147 | AM199: 0.8503533602 | AN199: 0.7342054844 | AO199: 0.6757177114 | AP199: 0.5036940575 | AQ199: 0.3646265268 | AR199: 0.5825583935 | AS199: =RAND() -> 0.5655445962 | AT199: 0.5388163723 | AU199: 0.9717709307 | AV199: 0.5128498187 | AW199: 0.8965539359 | AX199: 0.4310405737
B200: 157 | C200: 0.03171083407 | D200: 0.8238714805 | E200: 0.3116124663 | F200: 0.1453853756 | G200: 0.4697408424 | H200: 0.8220692083 | I200: 0.02844299115 | J200: 0.6453593205 | K200: 0.9971721756 | L200: 0.5218037251 | M200: 0.8122741615 | N200: 0.4611281364 | O200: 0.7877079586 | P200: 0.8235399141 | Q200: 0.5239295206 | R200: 0.7472521358 | S200: 0.3923389432 | T200: 0.9010211371 | U200: 0.7126862431 | V200: 0.4796955336 | W200: 0.7036997183 | X200: 0.008566114978 | Y200: 0.9872746635 | Z200: 0.839522005 | AA200: 0.005243886614 | AB200: 0.5780228171 | AC200: 0.4720385328 | AD200: 0.1251007815 | AE200: 0.5678806901 | AF200: 0.8279270219 | AG200: 0.6294219661 | AH200: 0.8569796592 | AI200: 0.5788857754 | AJ200: 0.8854714306 | AK200: 0.864265646 | AL200: 0.7414586403 | AM200: 0.8909376264 | AN200: 0.938722074 | AO200: 0.1230965257 | AP200: 0.2779614329 | AQ200: 0.5966532826 | AR200: 0.552354753 | AS200: =RAND() -> 0.55769009 | AT200: 0.05731405653 | AU200: 0.09575492655 | AV200: 0.1785759571 | AW200: 0.01950870583 | AX200: 0.09691157751
B201: 158 | C201: 0.8489431311 | D201: 0.2984716499 | E201: 0.2381582061 | F201: 0.0365519319 | G201: 0.573324719 | H201: 0.6504329974 | I201: 0.2560667244 | J201: 0.1128075976 | K201: 0.5402421746 | L201: 0.7478461085 | M201: 0.4284505798 | N201: 0.104609518 | O201: 0.6299279528 | P201: 0.9128306712 | Q201: 0.3451442574 | R201: 0.08983490552 | S201: 0.6981475168 | T201: 0.6974610213 | U201: 0.297799146 | V201: 0.6355209942 | W201: 0.04556058294 | X201: 0.3286980376 | Y201: 0.4071503862 | Z201: 0.8381819823 | AA201: 0.04564231582 | AB201: 0.2462310501 | AC201: 0.3837689515 | AD201: 0.6132485224 | AE201: 0.4719289584 | AF201: 0.08091925513 | AG201: 0.1086407773 | AH201: 0.9234456634 | AI201: 0.5790444945 | AJ201: 0.2591367081 | AK201: 0.779063625 | AL201: 0.9354935899 | AM201: 0.06868433952 | AN201: 0.9523085356 | AO201: 0.4974517822 | AP201: 0.2414752245 | AQ201: 0.7059319019 | AR201: 0.1353362799 | AS201: =RAND() -> 0.3124302064 | AT201: 0.9378438032 | AU201: 0.7071190857 | AV201: 0.08695275684 | AW201: 0.1500144163 | AX201: 0.438771679
B202: 159 | C202: 0.6829203732 | D202: 0.6007857453 | E202: 0.5121822839 | F202: 0.0453248031 | G202: 0.8513762735 | H202: 0.3195672968 | I202: 0.9144459046 | J202: 0.9640581742 | K202: 0.3886011733 | L202: 0.79605739 | M202: 0.06986027216 | N202: 0.5931606775 | O202: 0.4441229368 | P202: 0.001363282622 | Q202: 0.4245394327 | R202: 0.7922312368 | S202: 0.5469205573 | T202: 0.3893657664 | U202: 0.6619699969 | V202: 0.9947971613 | W202: 0.6794310189 | X202: 0.9036215073 | Y202: 0.5826308995 | Z202: 0.4495211742 | AA202: 0.5904768326 | AB202: 0.3182602078 | AC202: 0.4847112043 | AD202: 0.603332608 | AE202: 0.7800052217 | AF202: 0.9770090565 | AG202: 0.1357532375 | AH202: 0.7671248772 | AI202: 0.7182547034 | AJ202: 0.6333753495 | AK202: 0.8340947698 | AL202: 0.8018513758 | AM202: 0.3244456649 | AN202: 0.2176404595 | AO202: 0.9124109149 | AP202: 0.6794860959 | AQ202: 0.6495193839 | AR202: 0.09677988291 | AS202: =RAND() -> 0.9020107491 | AT202: 0.3111311644 | AU202: 0.2780833671 | AV202: 0.3491481499 | AW202: 0.6205585255 | AX202: 0.2046195705
B203: 160 | C203: 0.5595294028 | D203: 0.1895941084 | E203: 0.2580729357 | F203: 0.5508134199 | G203: 0.6297748442 | H203: 0.01163092355 | I203: 0.6663705686 | J203: 0.5871877953 | K203: 0.3964312626 | L203: 0.2983368291 | M203: 0.392958266 | N203: 0.07311481561 | O203: 0.374301563 | P203: 0.5698857134 | Q203: 0.2213223281 | R203: 0.4026903409 | S203: 0.4681975434 | T203: 0.5166262919 | U203: 0.398085831 | V203: 0.718928631 | W203: 0.699008573 | X203: 0.2724381454 | Y203: 0.1365279835 | Z203: 0.6313774124 | AA203: 0.260228422 | AB203: 0.5122284136 | AC203: 0.8789900578 | AD203: 0.7741855604 | AE203: 0.3831492328 | AF203: 0.1137878844 | AG203: 0.7119667383 | AH203: 0.7246075573 | AI203: 0.3306837464 | AJ203: 0.3783796553 | AK203: 0.6200287747 | AL203: 0.3427580612 | AM203: 0.1276572943 | AN203: 0.9408707619 | AO203: 0.9909588099 | AP203: 0.8172967434 | AQ203: 0.9419869184 | AR203: 0.518784523 | AS203: =RAND() -> 0.7569435808 | AT203: 0.4307797668 | AU203: 0.6989823248 | AV203: 0.04794409032 | AW203: 0.9843380539 | AX203: 0.04008896021
B204: 161 | C204: 0.5385309841 | D204: 0.0470817748 | E204: 0.5051710298 | F204: 0.524683884 | G204: 0.4672723752 | H204: 0.9334766618 | I204: 0.0819686434 | J204: 0.1620809723 | K204: 0.5608322478 | L204: 0.3651218335 | M204: 0.98316215 | N204: 0.9016774207 | O204: 0.761980803 | P204: 0.7753430765 | Q204: 0.5600997628 | R204: 0.05888760891 | S204: 0.08316598669 | T204: 0.1042215102 | U204: 0.8710772841 | V204: 0.3454644724 | W204: 0.1330327584 | X204: 0.7654689441 | Y204: 0.7799427398 | Z204: 0.09980303608 | AA204: 0.5834403729 | AB204: 0.1969176581 | AC204: 0.1018236833 | AD204: 0.5114132466 | AE204: 0.6998122481 | AF204: 0.4936901539 | AG204: 0.1020107849 | AH204: 0.354012691 | AI204: 0.5075958636 | AJ204: 0.1714063161 | AK204: 0.02617617879 | AL204: 0.1579125395 | AM204: 0.1940355897 | AN204: 0.9010016322 | AO204: 0.9725392461 | AP204: 0.7358350158 | AQ204: 0.8823943734 | AR204: 0.02126425505 | AS204: =RAND() -> 0.9745966922 | AT204: 0.04639877075 | AU204: 0.5686752569 | AV204: 0.6657582681 | AW204: 0.3433493888 | AX204: 0.3806680197
B205: 162 | C205: 0.4943236461 | D205: 0.8506341863 | E205: 0.8660342787 | F205: 0.2255660121 | G205: 0.06874559831 | H205: 0.3509645678 | I205: 0.3986759178 | J205: 0.480014261 | K205: 0.3850461095 | L205: 0.3075742366 | M205: 0.5197412533 | N205: 0.3844557874 | O205: 0.5733354195 | P205: 0.3321360895 | Q205: 0.5834986702 | R205: 0.7704828297 | S205: 0.6555040523 | T205: 0.8340446059 | U205: 0.7617413826 | V205: 0.5846810189 | W205: 0.7281984475 | X205: 0.07725007683 | Y205: 0.8517096346 | Z205: 0.5119213468 | AA205: 0.9316182556 | AB205: 0.6020222094 | AC205: 0.9183563936 | AD205: 0.1897444262 | AE205: 0.6827305886 | AF205: 0.8486486037 | AG205: 0.7410548048 | AH205: 0.8559132054 | AI205: 0.2827548743 | AJ205: 0.3431833894 | AK205: 0.6429283046 | AL205: 0.5107009605 | AM205: 0.004361152649 | AN205: 0.5686436892 | AO205: 0.8136255741 | AP205: 0.9218095541 | AQ205: 0.04524183273 | AR205: 0.1458441019 | AS205: =RAND() -> 0.3398675704 | AT205: 0.08111248506 | AU205: 0.3197051735 | AV205: 0.1286927827 | AW205: 0.4984605329 | AX205: 0.2617806633
B206: 163 | C206: 0.8575543707 | D206: 0.1365512648 | E206: 0.02574613611 | F206: 0.04016996878 | G206: 0.5750445695 | H206: 0.4787867673 | I206: 0.6033262107 | J206: 0.7067237917 | K206: 0.6920702186 | L206: 0.0113239528 | M206: 0.05197772528 | N206: 0.4262593253 | O206: 0.742439403 | P206: 0.5769573588 | Q206: 0.6407429282 | R206: 0.5171730288 | S206: 0.423597432 | T206: 0.2208857303 | U206: 0.3723530823 | V206: 0.2995734991 | W206: 0.253526623 | X206: 0.8485097076 | Y206: 0.8120004494 | Z206: 0.6631866492 | AA206: 0.9135581453 | AB206: 0.4652105304 | AC206: 0.3343273313 | AD206: 0.4862819044 | AE206: 0.4225891502 | AF206: 0.711011947 | AG206: 0.8773312691 | AH206: 0.9087699991 | AI206: 0.5511207407 | AJ206: 0.07292903482 | AK206: 0.2593779849 | AL206: 0.2296510201 | AM206: 0.2325031161 | AN206: 0.1091135144 | AO206: 0.6203836799 | AP206: 0.7266178727 | AQ206: 0.2919899821 | AR206: 0.06354743242 | AS206: =RAND() -> 0.5545907293 | AT206: 0.6297523686 | AU206: 0.08230759468 | AV206: 0.1141114167 | AW206: 0.9278557893 | AX206: 0.6738053797
B207: 164 | C207: 0.4596827002 | D207: 0.7440455519 | E207: 0.4818324508 | F207: 0.5497683395 | G207: 0.7230997299 | H207: 0.7533660448 | I207: 0.434003625 | J207: 0.08590433264 | K207: 0.3218618618 | L207: 0.4492602166 | M207: 0.402027643 | N207: 0.07755463228 | O207: 0.961015131 | P207: 0.703830829 | Q207: 0.2251512312 | R207: 0.2354567212 | S207: 0.1467588857 | T207: 0.05485031649 | U207: 0.4876844398 | V207: 0.222764438 | W207: 0.3035453537 | X207: 0.6184469648 | Y207: 0.2295403061 | Z207: 0.1082498184 | AA207: 0.8313411185 | AB207: 0.3828387072 | AC207: 0.2768968691 | AD207: 0.773314571 | AE207: 0.690614845 | AF207: 0.4876609733 | AG207: 0.8948162444 | AH207: 0.7299440219 | AI207: 0.70114688 | AJ207: 0.3271875118 | AK207: 0.8979242649 | AL207: 0.1662784036 | AM207: 0.5082212687 | AN207: 0.2950160503 | AO207: 0.1475580931 | AP207: 0.6614971161 | AQ207: 0.2833739519 | AR207: 0.8736088276 | AS207: =RAND() -> 0.1897442607 | AT207: 0.1589994067 | AU207: 0.08736730142 | AV207: 0.7667551877 | AW207: 0.713081293 | AX207: 0.5403130793
B208: 165 | C208: 0.5560417476 | D208: 0.6110870616 | E208: 0.2126506657 | F208: 0.9510805767 | G208: 0.224111514 | H208: 0.313598826 | I208: 0.7326717713 | J208: 0.1745644044 | K208: 0.3217694042 | L208: 0.4680246241 | M208: 0.4075914556 | N208: 0.704126789 | O208: 0.1360780533 | P208: 0.6821302217 | Q208: 0.2576258052 | R208: 0.6695301326 | S208: 0.2187615002 | T208: 0.7571726348 | U208: 0.8949333283 | V208: 0.5789484949 | W208: 0.7946740774 | X208: 0.3400697565 | Y208: 0.644553933 | Z208: 0.0370220685 | AA208: 0.4482906589 | AB208: 0.093602942 | AC208: 0.3814236366 | AD208: 0.7744694772 | AE208: 0.8378847712 | AF208: 0.3778305849 | AG208: 0.4599709888 | AH208: 0.1024295464 | AI208: 0.2551221281 | AJ208: 0.6681344099 | AK208: 0.1132959757 | AL208: 0.4121579114 | AM208: 0.9881346822 | AN208: 0.002872407436 | AO208: 0.9111886621 | AP208: 0.4964467883 | AQ208: 0.3018367887 | AR208: 0.4414104819 | AS208: =RAND() -> 0.9086444599 | AT208: 0.2361228513 | AU208: 0.4801658868 | AV208: 0.7455575526 | AW208: 0.8773549857 | AX208: 0.2681262385
B209: 166 | C209: 0.3952757325 | D209: 0.8454033845 | E209: 0.102681658 | F209: 0.5987467248 | G209: 0.4354988732 | H209: 0.4151731866 | I209: 0.09246775554 | J209: 0.8025332969 | K209: 0.3127835096 | L209: 0.1947766267 | M209: 0.0274471626 | N209: 0.9534476604 | O209: 0.2791355188 | P209: 0.9440641858 | Q209: 0.9732527401 | R209: 0.2484433269 | S209: 0.3461680008 | T209: 0.3772561797 | U209: 0.5979351225 | V209: 0.4874909401 | W209: 0.2633083529 | X209: 0.3779863363 | Y209: 0.8372770717 | Z209: 0.5478789991 | AA209: 0.2269874873 | AB209: 0.6919702863 | AC209: 0.6835270936 | AD209: 0.9221504652 | AE209: 0.4731920516 | AF209: 0.7779949803 | AG209: 0.5054339912 | AH209: 0.9730376902 | AI209: 0.7449676871 | AJ209: 0.1112579622 | AK209: 0.7873953628 | AL209: 0.05182623658 | AM209: 0.06469082832 | AN209: 0.02011144161 | AO209: 0.02233552933 | AP209: 0.01033556461 | AQ209: 0.7061040401 | AR209: 0.6815479994 | AS209: =RAND() -> 0.7745996746 | AT209: 0.04482051533 | AU209: 0.4130865413 | AV209: 0.2585066214 | AW209: 0.7076843437 | AX209: 0.01417517902
B210: 167 | C210: 0.1226793929 | D210: 0.8545839659 | E210: 0.3179520519 | F210: 0.7486833988 | G210: 0.828111578 | H210: 0.4095046742 | I210: 0.7608965518 | J210: 0.8676126587 | K210: 0.3611180893 | L210: 0.2767184419 | M210: 0.702436296 | N210: 0.05273373293 | O210: 0.5981501693 | P210: 0.05371857886 | Q210: 0.565307238 | R210: 0.9206536084 | S210: 0.02060349292 | T210: 0.788160383 | U210: 0.5580533845 | V210: 0.2955230441 | W210: 0.4610593825 | X210: 0.2703983691 | Y210: 0.4578005879 | Z210: 0.0150349798 | AA210: 0.8902695242 | AB210: 0.8018504448 | AC210: 0.4361256058 | AD210: 0.9497091734 | AE210: 0.5567176485 | AF210: 0.2020721076 | AG210: 0.8263035592 | AH210: 0.3488795194 | AI210: 0.8122067043 | AJ210: 0.822956188 | AK210: 0.1856546877 | AL210: 0.2102359498 | AM210: 0.9736332297 | AN210: 0.7334700227 | AO210: 0.1702792048 | AP210: 0.5999558568 | AQ210: 0.8018350005 | AR210: 0.3180080056 | AS210: =RAND() -> 0.7161178396 | AT210: 0.7061550125 | AU210: 0.3752369082 | AV210: 0.4403888555 | AW210: 0.9784633158 | AX210: 0.260237289
B211: 168 | C211: 0.8637758928 | D211: 0.9935348529 | E211: 0.504209007 | F211: 0.4055422948 | G211: 0.2970277575 | H211: 0.1166826295 | I211: 0.2205183442 | J211: 0.2833128247 | K211: 0.9194976206 | L211: 0.8894613317 | M211: 0.6229015614 | N211: 0.06668769323 | O211: 0.2232464806 | P211: 0.9555128971 | Q211: 0.2944765675 | R211: 0.3032249331 | S211: 0.7210032146 | T211: 0.7097893397 | U211: 0.4332978339 | V211: 0.5131872573 | W211: 0.9841238406 | X211: 0.2224402479 | Y211: 0.04520110048 | Z211: 0.1874142247 | AA211: 0.8377579392 | AB211: 0.08372744326 | AC211: 0.699084814 | AD211: 0.09439487568 | AE211: 0.8893903319 | AF211: 0.7959090825 | AG211: 0.2219532098 | AH211: 0.9474629861 | AI211: 0.01755013095 | AJ211: 0.2099849776 | AK211: 0.4423808674 | AL211: 0.4671250753 | AM211: 0.768473506 | AN211: 0.7356672287 | AO211: 0.2197953463 | AP211: 0.874735117 | AQ211: 0.5265439749 | AR211: 0.7755103111 | AS211: =RAND() -> 0.4268999087 | AT211: 0.1953572259 | AU211: 0.9678633618 | AV211: 0.754547243 | AW211: 0.1582761276 | AX211: 0.6691070784
B212: 169 | C212: 0.393004576 | D212: 0.8693976737 | E212: 2.406846056e-06 | F212: 0.63481518 | G212: 0.9206373308 | H212: 0.9578308103 | I212: 0.2635972282 | J212: 0.4149685352 | K212: 0.3206558047 | L212: 0.4390072984 | M212: 0.5319356935 | N212: 0.08757878308 | O212: 0.2567915527 | P212: 0.02502264858 | Q212: 0.4693499561 | R212: 0.5373451954 | S212: 0.8769827397 | T212: 0.4248442213 | U212: 0.6613845352 | V212: 0.1167333146 | W212: 0.642804117 | X212: 0.2264632278 | Y212: 0.5979193584 | Z212: 0.6860209103 | AA212: 0.1539033381 | AB212: 0.7276181261 | AC212: 0.3569558947 | AD212: 0.6326275286 | AE212: 0.03665069708 | AF212: 0.2830445375 | AG212: 0.7606405697 | AH212: 0.2676498007 | AI212: 0.5134441541 | AJ212: 0.4955394484 | AK212: 0.6607300643 | AL212: 0.7644646252 | AM212: 0.006450235844 | AN212: 0.989756763 | AO212: 0.7787054181 | AP212: 0.6069769263 | AQ212: 0.5042114854 | AR212: 0.9898564219 | AS212: =RAND() -> 0.0005380493373 | AT212: 0.9815502871 | AU212: 0.8418970557 | AV212: 0.5180135808 | AW212: 0.4753439574 | AX212: 0.9280370242
... 910 more rows

Sheet Rates
G2: 1 | H2: =G2+1 -> 2 | I2: 3 | J2: 4 | K2: 5 | L2: 6 | M2: 7 | N2: 8 | Q2: 1 | R2: 2 | S2: 3 | T2: 4 | U2: 5 | V2: 6 | W2: 7 | Z2: 1 | AA2: 2 | AB2: 3 | AC2: 4 | AD2: 5 | AG2: 1 | AH2: 2 | AI2: 3 | AJ2: 4 | AK2: 5 | AL2: 6 | AM2: 7 | AN2: 8 | AQ2: 1 | AR2: 2 | AS2: 3 | AT2: 4 | AU2: 5 | AV2: 6 | AW2: 7 | AX2: 8 | AY2: 9 | AZ2: 10
O3: Total | X3: Total | AE3: Total | AO3: Total | BA3: Total
A4: Year | B4: =StartYear -> 2020 | D4: Target Wgts: | F4: 1 | G4: =VLOOKUP(ScenarioNo,ScenarioDataTable,$F4+G$2) -> 0.125 | H4: 0.125 | I4: 0.125 | J4: 0.125 | K4: 0.125 | L4: 0.125 | M4: 0.125 | N4: 0.125 | O4: =SUM(G4:N4) -> 1 | P4: =F8+N2 -> 41 | Q4: =VLOOKUP(ScenarioNo,ScenarioDataTable,$P4+Q$2) -> 0.1428571429 | R4: 0.1428571429 | S4: 0.1428571429 | T4: 0.1428571429 | U4: 0.1428571429 | V4: 0.1428571429 | W4: 0.1428571429 | X4: =SUM(Q4:W4) -> 1 | Y4: =P8+W2 -> 76 | Z4: =VLOOKUP(ScenarioNo,ScenarioDataTable,$Y4+Z$2) -> 0.2 | AA4: 0.2 | AB4: 0.2 | AC4: 0.2 | AD4: 0.2 | AE4: =SUM(Z4:AD4) -> 1 | AF4: =Y8+AD2 -> 101 | AG4: =VLOOKUP(ScenarioNo,ScenarioDataTable,$AF4+AG$2) -> 0.125 | AH4: 0.125 | AI4: 0.125 | AJ4: 0.125 | AK4: 0.125 | AL4: 0.125 | AM4: 0.125 | AN4: 0.125 | AO4: =SUM(AG4:AN4) -> 1 | AP4: =AF8+AN2 -> 141 | AQ4: =VLOOKUP(ScenarioNo,ScenarioDataTable,$AP4+AQ$2) -> 0.082 | AR4: 0.102 | AS4: 0.102 | AT4: 0.102 | AU4: 0.102 | AV4: 0.102 | AW4: 0.102 | AX4: 0.102 | AY4: 0.102 | AZ4: 0.102 | BA4: =SUM(AQ4:AZ4) -> 1
B5: =B4+1 -> 2021 | F5: =$N$2+F4 -> 9 | G5: 0.09 | H5: 0.13 | I5: 0.13 | J5: 0.13 | K5: 0.13 | L5: 0.13 | M5: 0.13 | N5: 0.13 | O5: =SUM(G5:N5) -> 1 | P5: =$W$2+P4 -> 48 | Q5: 0.118 | R5: 0.147 | S5: 0.147 | T5: 0.147 | U5: 0.147 | V5: 0.147 | W5: 0.147 | X5: =SUM(Q5:W5) -> 1 | Y5: =$AD$2+Y4 -> 81 | Z5: 0.16 | AA5: 0.21 | AB5: 0.21 | AC5: 0.21 | AD5: 0.21 | AE5: =SUM(Z5:AD5) -> 1 | AF5: =$AN$2+AF4 -> 109 | AG5: 0.13 | AH5: 0.13 | AI5: 0.13 | AJ5: 0.13 | AK5: 0.13 | AL5: 0.09 | AM5: 0.13 | AN5: 0.13 | AO5: =SUM(AG5:AN5) -> 1 | AP5: =$AZ$2+AP4 -> 151 | AQ5: 0.064 | AR5: 0.104 | AS5: 0.104 | AT5: 0.104 | AU5: 0.104 | AV5: 0.104 | AW5: 0.104 | AX5: 0.104 | AY5: 0.104 | AZ5: 0.104 | BA5: =SUM(AQ5:AZ5) -> 1
B6: =B5+1 -> 2022 | F6: =$N$2+F5 -> 17 | G6: 0.055 | H6: 0.135 | I6: 0.135 | J6: 0.135 | K6: 0.135 | L6: 0.135 | M6: 0.135 | N6: 0.135 | O6: 1 | P6: =$W$2+P5 -> 55 | Q6: 0.1 | R6: 0.15 | S6: 0.15 | T6: 0.15 | U6: 0.15 | V6: 0.15 | W6: 0.15 | X6: 1 | Y6: =$AD$2+Y5 -> 86 | Z6: 0.12 | AA6: 0.22 | AB6: 0.22 | AC6: 0.22 | AD6: 0.22 | AE6: 1 | AF6: =$AN$2+AF5 -> 117 | AG6: 0.135 | AH6: 0.135 | AI6: 0.135 | AJ6: 0.135 | AK6: 0.135 | AL6: 0.055 | AM6: 0.135 | AN6: 0.135 | AO6: 1 | AP6: =$AZ$2+AP5 -> 161 | AQ6: 0.046 | AR6: 0.106 | AS6: 0.106 | AT6: 0.106 | AU6: 0.106 | AV6: 0.106 | AW6: 0.106 | AX6: 0.106 | AY6: 0.106 | AZ6: 0.106 | BA6: 1
B7: =B6+1 -> 2023 | F7: 25 | G7: 0.02 | H7: 0.14 | I7: 0.14 | J7: 0.14 | K7: 0.14 | L7: 0.14 | M7: 0.14 | N7: 0.14 | O7: 1 | P7: 62 | Q7: 0.07 | R7: 0.155 | S7: 0.155 | T7: 0.155 | U7: 0.155 | V7: 0.155 | W7: 0.155 | X7: 1 | Y7: 91 | Z7: 0.08 | AA7: 0.23 | AB7: 0.23 | AC7: 0.23 | AD7: 0.23 | AE7: 1 | AF7: 125 | AG7: 0.14 | AH7: 0.14 | AI7: 0.14 | AJ7: 0.14 | AK7: 0.14 | AL7: 0.02 | AM7: 0.14 | AN7: 0.14 | AO7: 1 | AP7: 171 | AQ7: 0.028 | AR7: 0.108 | AS7: 0.108 | AT7: 0.108 | AU7: 0.108 | AV7: 0.108 | AW7: 0.108 | AX7: 0.108 | AY7: 0.108 | AZ7: 0.108 | BA7: 1
B8: =B7+1 -> 2024 | F8: 33 | G8: 0 | H8: 0.14 | I8: 0.14 | J8: 0.14 | K8: 0.145 | L8: 0.145 | M8: 0.145 | N8: 0.145 | O8: 1 | P8: 69 | Q8: 0.04 | R8: 0.16 | S8: 0.16 | T8: 0.16 | U8: 0.16 | V8: 0.16 | W8: 0.16 | X8: 1 | Y8: 96 | Z8: 0.04 | AA8: 0.24 | AB8: 0.24 | AC8: 0.24 | AD8: 0.24 | AE8: 1 | AF8: 133 | AG8: 0.145 | AH8: 0.14 | AI8: 0.14 | AJ8: 0.14 | AK8: 0.145 | AL8: 0 | AM8: 0.145 | AN8: 0.145 | AO8: 1 | AP8: 181 | AQ8: 0.01 | AR8: 0.11 | AS8: 0.11 | AT8: 0.11 | AU8: 0.11 | AV8: 0.11 | AW8: 0.11 | AX8: 0.11 | AY8: 0.11 | AZ8: 0.11 | BA8: 1
B10: =B4 -> 2020 | D10: Target Cum: | G10: 0 | H10: =SUM($G4:G4) -> 0.125 | I10: =SUM($G4:H4) -> 0.25 | J10: =SUM($G4:I4) -> 0.375 | K10: =SUM($G4:J4) -> 0.5 | L10: =SUM($G4:K4) -> 0.625 | M10: =SUM($G4:L4) -> 0.75 | N10: =SUM($G4:M4) -> 0.875 | Q10: 0 | R10: =SUM($Q4:Q4) -> 0.1428571429 | S10: =SUM($Q4:R4) -> 0.2857142857 | T10: =SUM($Q4:S4) -> 0.4285714286 | U10: =SUM($Q4:T4) -> 0.5714285714 | V10: =SUM($Q4:U4) -> 0.7142857143 | W10: =SUM($Q4:V4) -> 0.8571428571 | Z10: 0 | AA10: =SUM(Z4:$Z4) -> 0.2 | AB10: =SUM($Z4:AA4) -> 0.4 | AC10: =SUM($Z4:AB4) -> 0.6 | AD10: =SUM($Z4:AC4) -> 0.8 | AG10: 0 | AH10: =SUM($AG4:AG4) -> 0.125 | AI10: =SUM($AG4:AH4) -> 0.25 | AJ10: =SUM($AG4:AI4) -> 0.375 | AK10: =SUM($AG4:AJ4) -> 0.5 | AL10: =SUM($AG4:AK4) -> 0.625 | AM10: =SUM($AG4:AL4) -> 0.75 | AN10: =SUM($AG4:AM4) -> 0.875 | AQ10: 0 | AR10: =SUM($AQ4:AQ4) -> 0.082 | AS10: =SUM($AQ4:AR4) -> 0.184 | AT10: =SUM($AQ4:AS4) -> 0.286 | AU10: =SUM($AQ4:AT4) -> 0.388 | AV10: =SUM($AQ4:AU4) -> 0.49 | AW10: =SUM($AQ4:AV4) -> 0.592 | AX10: =SUM($AQ4:AW4) -> 0.694 | AY10: =SUM($AQ4:AX4) -> 0.796 | AZ10: =SUM($AQ4:AY4) -> 0.898
B11: =B5 -> 2021 | G11: 0 | H11: =SUM($G5:G5) -> 0.09 | I11: =SUM($G5:H5) -> 0.22 | J11: =SUM($G5:I5) -> 0.35 | K11: =SUM($G5:J5) -> 0.48 | L11: =SUM($G5:K5) -> 0.61 | M11: =SUM($G5:L5) -> 0.74 | N11: =SUM($G5:M5) -> 0.87 | Q11: 0 | R11: =SUM($Q5:Q5) -> 0.118 | S11: =SUM($Q5:R5) -> 0.265 | T11: =SUM($Q5:S5) -> 0.412 | U11: =SUM($Q5:T5) -> 0.559 | V11: =SUM($Q5:U5) -> 0.706 | W11: =SUM($Q5:V5) -> 0.853 | Z11: 0 | AA11: =SUM(Z5:$Z5) -> 0.16 | AB11: =SUM($Z5:AA5) -> 0.37 | AC11: =SUM($Z5:AB5) -> 0.58 | AD11: =SUM($Z5:AC5) -> 0.79 | AG11: 0 | AH11: =SUM($AG5:AG5) -> 0.13 | AI11: =SUM($AG5:AH5) -> 0.26 | AJ11: =SUM($AG5:AI5) -> 0.39 | AK11: =SUM($AG5:AJ5) -> 0.52 | AL11: =SUM($AG5:AK5) -> 0.65 | AM11: =SUM($AG5:AL5) -> 0.74 | AN11: =SUM($AG5:AM5) -> 0.87 | AQ11: 0 | AR11: =SUM($AQ5:AQ5) -> 0.064 | AS11: =SUM($AQ5:AR5) -> 0.168 | AT11: =SUM($AQ5:AS5) -> 0.272 | AU11: =SUM($AQ5:AT5) -> 0.376 | AV11: =SUM($AQ5:AU5) -> 0.48 | AW11: =SUM($AQ5:AV5) -> 0.584 | AX11: =SUM($AQ5:AW5) -> 0.688 | AY11: =SUM($AQ5:AX5) -> 0.792 | AZ11: =SUM($AQ5:AY5) -> 0.896
B12: =B6 -> 2022 | G12: 0 | H12: =SUM($G6:G6) -> 0.055 | I12: =SUM($G6:H6) -> 0.19 | J12: =SUM($G6:I6) -> 0.325 | K12: =SUM($G6:J6) -> 0.46 | L12: =SUM($G6:K6) -> 0.595 | M12: =SUM($G6:L6) -> 0.73 | N12: =SUM($G6:M6) -> 0.865 | Q12: 0 | R12: =SUM($Q6:Q6) -> 0.1 | S12: =SUM($Q6:R6) -> 0.25 | T12: =SUM($Q6:S6) -> 0.4 | U12: =SUM($Q6:T6) -> 0.55 | V12: =SUM($Q6:U6) -> 0.7 | W12: =SUM($Q6:V6) -> 0.85 | Z12: 0 | AA12: =SUM(Z6:$Z6) -> 0.12 | AB12: =SUM($Z6:AA6) -> 0.34 | AC12: =SUM($Z6:AB6) -> 0.56 | AD12: =SUM($Z6:AC6) -> 0.78 | AG12: 0 | AH12: =SUM($AG6:AG6) -> 0.135 | AI12: =SUM($AG6:AH6) -> 0.27 | AJ12: =SUM($AG6:AI6) -> 0.405 | AK12: =SUM($AG6:AJ6) -> 0.54 | AL12: =SUM($AG6:AK6) -> 0.675 | AM12: =SUM($AG6:AL6) -> 0.73 | AN12: =SUM($AG6:AM6) -> 0.865 | AQ12: 0 | AR12: =SUM($AQ6:AQ6) -> 0.046 | AS12: =SUM($AQ6:AR6) -> 0.152 | AT12: =SUM($AQ6:AS6) -> 0.258 | AU12: =SUM($AQ6:AT6) -> 0.364 | AV12: =SUM($AQ6:AU6) -> 0.47 | AW12: =SUM($AQ6:AV6) -> 0.576 | AX12: =SUM($AQ6:AW6) -> 0.682 | AY12: =SUM($AQ6:AX6) -> 0.788 | AZ12: =SUM($AQ6:AY6) -> 0.894
B13: =B7 -> 2023 | G13: 0 | H13: =SUM($G7:G7) -> 0.02 | I13: =SUM($G7:H7) -> 0.16 | J13: =SUM($G7:I7) -> 0.3 | K13: =SUM($G7:J7) -> 0.44 | L13: =SUM($G7:K7) -> 0.58 | M13: =SUM($G7:L7) -> 0.72 | N13: =SUM($G7:M7) -> 0.86 | Q13: 0 | R13: =SUM($Q7:Q7) -> 0.07 | S13: =SUM($Q7:R7) -> 0.225 | T13: =SUM($Q7:S7) -> 0.38 | U13: =SUM($Q7:T7) -> 0.535 | V13: =SUM($Q7:U7) -> 0.69 | W13: =SUM($Q7:V7) -> 0.845 | Z13: 0 | AA13: =SUM(Z7:$Z7) -> 0.08 | AB13: =SUM($Z7:AA7) -> 0.31 | AC13: =SUM($Z7:AB7) -> 0.54 | AD13: =SUM($Z7:AC7) -> 0.77 | AG13: 0 | AH13: =SUM($AG7:AG7) -> 0.14 | AI13: =SUM($AG7:AH7) -> 0.28 | AJ13: =SUM($AG7:AI7) -> 0.42 | AK13: =SUM($AG7:AJ7) -> 0.56 | AL13: =SUM($AG7:AK7) -> 0.7 | AM13: =SUM($AG7:AL7) -> 0.72 | AN13: =SUM($AG7:AM7) -> 0.86 | AQ13: 0 | AR13: =SUM($AQ7:AQ7) -> 0.028 | AS13: =SUM($AQ7:AR7) -> 0.136 | AT13: =SUM($AQ7:AS7) -> 0.244 | AU13: =SUM($AQ7:AT7) -> 0.352 | AV13: =SUM($AQ7:AU7) -> 0.46 | AW13: =SUM($AQ7:AV7) -> 0.568 | AX13: =SUM($AQ7:AW7) -> 0.676 | AY13: =SUM($AQ7:AX7) -> 0.784 | AZ13: =SUM($AQ7:AY7) -> 0.892
B14: =B8 -> 2024 | G14: 0 | H14: =SUM($G8:G8) -> 0 | I14: =SUM($G8:H8) -> 0.14 | J14: =SUM($G8:I8) -> 0.28 | K14: =SUM($G8:J8) -> 0.42 | L14: =SUM($G8:K8) -> 0.565 | M14: =SUM($G8:L8) -> 0.71 | N14: =SUM($G8:M8) -> 0.855 | Q14: 0 | R14: =SUM($Q8:Q8) -> 0.04 | S14: =SUM($Q8:R8) -> 0.2 | T14: =SUM($Q8:S8) -> 0.36 | U14: =SUM($Q8:T8) -> 0.52 | V14: =SUM($Q8:U8) -> 0.68 | W14: =SUM($Q8:V8) -> 0.84 | Z14: 0 | AA14: =SUM(Z8:$Z8) -> 0.04 | AB14: =SUM($Z8:AA8) -> 0.28 | AC14: =SUM($Z8:AB8) -> 0.52 | AD14: =SUM($Z8:AC8) -> 0.76 | AG14: 0 | AH14: =SUM($AG8:AG8) -> 0.145 | AI14: =SUM($AG8:AH8) -> 0.285 | AJ14: =SUM($AG8:AI8) -> 0.425 | AK14: =SUM($AG8:AJ8) -> 0.565 | AL14: =SUM($AG8:AK8) -> 0.71 | AM14: =SUM($AG8:AL8) -> 0.71 | AN14: =SUM($AG8:AM8) -> 0.855 | AQ14: 0 | AR14: =SUM($AQ8:AQ8) -> 0.01 | AS14: =SUM($AQ8:AR8) -> 0.12 | AT14: =SUM($AQ8:AS8) -> 0.23 | AU14: =SUM($AQ8:AT8) -> 0.34 | AV14: =SUM($AQ8:AU8) -> 0.45 | AW14: =SUM($AQ8:AV8) -> 0.56 | AX14: =SUM($AQ8:AW8) -> 0.67 | AY14: =SUM($AQ8:AX8) -> 0.78 | AZ14: =SUM($AQ8:AY8) -> 0.89
A18: 1 | B18: =A18+1 -> 2 | C18: =B18+1 -> 3 | D18: 4 | E18: 5 | F18: 6 | G18: 7 | H18: 8 | I18: 9 | J18: 10 | K18: 11 | L18: 12 | M18: 13 | N18: 14 | O18: 15 | P18: 16 | Q18: 17 | R18: 18 | S18: 19 | T18: 20 | U18: 21 | V18: 22 | W18: 23 | X18: 24 | Y18: 25 | Z18: 26 | AA18: 27 | AB18: 28 | AC18: 29 | AD18: 30 | AE18: 31 | AF18: 32 | AG18: 33 | AH18: 34 | AI18: 35 | AJ18: 36 | AK18: 37 | AL18: 38 | AM18: 39 | AN18: 40 | AO18: 41 | AP18: 42 | AQ18: 43 | AR18: 44 | AS18: 45 | AT18: 46 | AU18: 47 | AV18: 48 | AW18: 49 | AX18: 50 | AY18: 51 | AZ18: 52 | BA18: 53
BD20: Current | BE20: Prior | BG20: Averages Using Current In Force and Prior Rates
A21: Rate | C21: Percent | E21: Fixed | G21: Territory Relativities | Q21: Limit/Amount Factors | Z21: Rating Group 1 | AG21: Rating Group 2 | AQ21: Rating Group 3 | BD21: Average | BE21: Average | BG21: Territory | BH21: Limit | BI21: Group 1 | BJ21: Group 2 | BK21: Group 3
A22: Level | B22: Date | C22: Change | D22: Base | E22: Fee | G22: 1 | H22: 2 | I22: 3 | J22: 4 | K22: 5 | L22: 6 | M22: 7 | N22: 8 | O22: Avg | Q22: 1 | R22: 2 | S22: 3 | T22: 4 | U22: 5 | V22: 6 | W22: 7 | X22: Avg | Z22: 1 | AA22: 2 | AB22: 3 | AC22: 4 | AD22: 5 | AE22: Avg | AG22: 1 | AH22: 2 | AI22: 3 | AJ22: 4 | AK22: 5 | AL22: 6 | AM22: 7 | AN22: 8 | AO22: Avg | AQ22: 1 | AR22: 2 | AS22: 3 | AT22: 4 | AU22: 5 | AV22: 6 | AW22: 7 | AX22: 8 | AY22: 9 | AZ22: 10 | BA22: Avg | BC22: Rate Change Description | BD22: Premium | BE22: Premium | BG22: Avg | BH22: Avg | BI22: Avg | BJ22: Avg | BK22: Avg
A23: 1 | B23: =DATE(StartYear-1,7,1) -> 2019-07-01 | C23: 0 | D23: 500 | E23: 25 | G23: 1 | H23: 1.3 | I23: 1.5 | J23: 0.85 | K23: 1.15 | L23: 2 | M23: 1.85 | N23: 2.25 | O23: =SUMPRODUCT($G62:$N62,G23:N23) -> 1.4875 | Q23: 1 | R23: 1.2 | S23: 1.3 | T23: 1.35 | U23: 1.4 | V23: 1.45 | W23: 1.5 | X23: =SUMPRODUCT($Q62:$W62,Q23:W23) -> 1.314285714 | Z23: 0.9 | AA23: 1 | AB23: 1.05 | AC23: 1.1 | AD23: 1.15 | AE23: =SUMPRODUCT($Z62:$AD62,Z23:AD23) -> 1.04 | AG23: 3 | AH23: 2.5 | AI23: 2 | AJ23: 1.5 | AK23: 1.25 | AL23: 1 | AM23: 1.05 | AN23: 1.35 | AO23: =SUMPRODUCT($AG62:$AN62,AG23:AN23) -> 1.70625 | AQ23: 1 | AR23: 1.2 | AS23: 1.5 | AT23: 1.15 | AU23: 0.9 | AV23: 1.75 | AW23: 1.35 | AX23: 0.75 | AY23: 2 | AZ23: 1.85 | BA23: =SUMPRODUCT($AQ62:$AZ62,AQ23:AZ23) -> 1.3519 | BC23: Intial Rating Plan | BD23: =PRODUCT(O23,X23,AE23,AO23,BA23)*D23+E23 -> 2369.970253
A24: 2 | B24: =DATE($B$4,7,15) -> 2020-07-15 | C24: =BD24/BE24-1 -> 0.04946956558 | D24: 525 | E24: 25 | G24: 1 | H24: 1.3 | I24: 1.5 | J24: 0.85 | K24: 1.15 | L24: 2 | M24: 1.85 | N24: 2.25 | O24: =SUMPRODUCT($G63:$N63,G24:N24) -> 1.482967033 | Q24: 1 | R24: 1.2 | S24: 1.3 | T24: 1.35 | U24: 1.4 | V24: 1.45 | W24: 1.5 | X24: =SUMPRODUCT($Q63:$W63,Q24:W24) -> 1.323351648 | Z24: 0.9 | AA24: 1 | AB24: 1.05 | AC24: 1.1 | AD24: 1.15 | AE24: =SUMPRODUCT($Z63:$AD63,Z24:AD24) -> 1.033241758 | AG24: 3 | AH24: 2.5 | AI24: 2 | AJ24: 1.5 | AK24: 1.25 | AL24: 1 | AM24: 1.05 | AN24: 1.35 | AO24: =SUMPRODUCT($AG63:$AN63,AG24:AN24) -> 1.706593407 | AQ24: 1 | AR24: 1.2 | AS24: 1.5 | AT24: 1.15 | AU24: 0.9 | AV24: 1.75 | AW24: 1.35 | AX24: 0.75 | AY24: 2 | AZ24: 1.85 | BA24: =SUMPRODUCT($AQ63:$AZ63,AQ24:AZ24) -> 1.347527473 | BC24: Only base rate change | BD24: =PRODUCT(O24,X24,AE24,AO24,BA24)*D24+E24 -> 2473.136922 | BE24: =PRODUCT(BG24:BK24)*D23+E23 -> 2356.558974 | BG24: =SUMPRODUCT($G63:$N63,G23:N23) -> 1.482967033 | BH24: =SUMPRODUCT($Q63:$W63,Q23:W23) -> 1.323351648 | BI24: =SUMPRODUCT($Z63:$AD63,Z23:AD23) -> 1.033241758 | BJ24: =SUMPRODUCT($AG63:$AN63,AG23:AN23) -> 1.706593407 | BK24: =SUMPRODUCT($AQ63:$AZ63,AQ23:AZ23) -> 1.347527473
A25: 3 | B25: =DATE($B$4+1,1,15) -> 2021-01-15 | C25: =BD25/BE25-1 -> 0.04029362756 | D25: 535 | E25: 25 | G25: 1 | H25: 1.4 | I25: 1.55 | J25: 0.9 | K25: 1.15 | L25: 2 | M25: 1.9 | N25: 2.2 | O25: 1.502173913 | Q25: 1 | R25: 1.2 | S25: 1.3 | T25: 1.35 | U25: 1.4 | V25: 1.45 | W25: 1.5 | X25: 1.333695652 | Z25: 0.9 | AA25: 1 | AB25: 1.05 | AC25: 1.1 | AD25: 1.15 | AE25: 1.036956522 | AG25: 3 | AH25: 2.5 | AI25: 2 | AJ25: 1.5 | AK25: 1.25 | AL25: 1 | AM25: 1.05 | AN25: 1.35 | AO25: 1.702445652 | AQ25: 1 | AR25: 1.2 | AS25: 1.5 | AT25: 1.15 | AU25: 0.9 | AV25: 1.75 | AW25: 1.35 | AX25: 0.75 | AY25: 2 | AZ25: 1.85 | BA25: 1.37201087 | BC25: Base rate and territory relativity changes | BD25: 2621.104017 | BE25: =PRODUCT(BG25:BK25)*D24+E24 -> 2519.58096 | BG25: =SUMPRODUCT($G64:$N64,G24:N24) -> 1.470923913 | BH25: =SUMPRODUCT($Q64:$W64,Q24:W24) -> 1.333695652 | BI25: =SUMPRODUCT($Z64:$AD64,Z24:AD24) -> 1.036956522 | BJ25: =SUMPRODUCT($AG64:$AN64,AG24:AN24) -> 1.702445652 | BK25: =SUMPRODUCT($AQ64:$AZ64,AQ24:AZ24) -> 1.37201087
A26: 4 | B26: =DATE($B$4+1,8,1) -> 2021-08-01 | C26: 0.05410524244 | D26: 650 | E26: 27.5 | G26: 1 | H26: 1.4 | I26: 1.55 | J26: 0.9 | K26: 1.15 | L26: 2 | M26: 1.9 | N26: 2.2 | O26: 1.518232044 | Q26: 0.82 | R26: 1 | S26: 1.1 | T26: 1.35 | U26: 1.2 | V26: 1.25 | W26: 1.3 | X26: 1.142762431 | Z26: 0.9 | AA26: 1 | AB26: 1.05 | AC26: 1.1 | AD26: 1.15 | AE26: 1.035359116 | AG26: 3 | AH26: 2.5 | AI26: 2 | AJ26: 1.5 | AK26: 1.25 | AL26: 1 | AM26: 1.05 | AN26: 1.35 | AO26: 1.751933702 | AQ26: 1 | AR26: 1.2 | AS26: 1.5 | AT26: 1.15 | AU26: 0.9 | AV26: 1.75 | AW26: 1.35 | AX26: 0.75 | AY26: 2 | AZ26: 1.85 | BA26: 1.366298343 | BC26: Base limit changed so factors and base rate adjusted, and fixed fee increased | BD26: 2822.370468 | BE26: 2677.503492 | BG26: 1.518232044 | BH26: 1.317679558 | BI26: 1.035359116 | BJ26: 1.751933702 | BK26: 1.366298343
A27: 5 | B27: =DATE($B$4+2,2,1) -> 2022-02-01 | C27: 0.01293471882 | D27: 675 | E27: 27.5 | G27: 1 | H27: 1.4 | I27: 1.55 | J27: 0.9 | K27: 1.15 | L27: 2 | M27: 1.9 | N27: 2.2 | O27: 1.529076087 | Q27: 0.82 | R27: 1 | S27: 1.1 | T27: 1.35 | U27: 1.2 | V27: 1.25 | W27: 1.3 | X27: 1.15548913 | Z27: 0.9 | AA27: 1 | AB27: 1.05 | AC27: 1.1 | AD27: 1.15 | AE27: 1.044021739 | AG27: 2.5 | AH27: 1.9 | AI27: 2.2 | AJ27: 1.8 | AK27: 1.1 | AL27: 1.2 | AM27: 1 | AN27: 1.8 | AO27: 1.679891304 | AQ27: 1 | AR27: 1.2 | AS27: 1.5 | AT27: 1.15 | AU27: 0.9 | AV27: 1.75 | AW27: 1.35 | AX27: 0.75 | AY27: 2 | AZ27: 1.85 | BA27: 1.361413043 | BC27: Base rate and realignment of Rating Group 2 factors | BD27: 2875.102496 | BE27: =PRODUCT(BG27:BK27)*D26+E26 -> 2838.388735 | BG27: 1.529076087 | BH27: 1.15548913 | BI27: 1.044021739 | BJ27: 1.72201087 | BK27: 1.361413043
A28: 6 | B28: =DATE($B$4+2,10,1) -> 2022-10-01 | C28: 0.09120362311 | D28: 700 | E28: 27.5 | G28: 1 | H28: 1.4 | I28: 1.55 | J28: 0.9 | K28: 1.15 | L28: 2 | M28: 1.9 | N28: 2.2 | O28: 1.562021858 | Q28: 0.82 | R28: 1 | S28: 1.1 | T28: 1.35 | U28: 1.2 | V28: 1.25 | W28: 1.3 | X28: 1.142459016 | Z28: 0.9 | AA28: 1 | AB28: 1.05 | AC28: 1.1 | AD28: 1.15 | AE28: 1.058469945 | AG28: 2.5 | AH28: 1.9 | AI28: 2.2 | AJ28: 1.8 | AK28: 1.1 | AL28: 1.2 | AM28: 1 | AN28: 1.8 | AO28: 1.718032787 | AQ28: 1 | AR28: 1.2 | AS28: 1.3 | AT28: 1.35 | AU28: 1 | AV28: 1.8 | AW28: 1.2 | AX28: 0.9 | AY28: 2.25 | AZ28: 2.1 | BA28: 1.431967213 | BC28: Base rate and Rating Group 3 factor adjustments | BD28: 3280.385895 | BE28: 3006.208764 | BG28: 1.562021858 | BH28: 1.142459016 | BI28: 1.058469945 | BJ28: 1.718032787 | BK28: 1.359836066
A29: 7 | B29: =DATE($B$4+3,3,1) -> 2023-03-01 | C29: 0.0007941914004 | D29: 700 | E29: 30 | G29: 1 | H29: 1.4 | I29: 1.55 | J29: 0.9 | K29: 1.15 | L29: 2 | M29: 1.9 | N29: 2.2 | O29: 1.555801105 | Q29: 0.82 | R29: 1 | S29: 1.1 | T29: 1.35 | U29: 1.2 | V29: 1.25 | W29: 1.3 | X29: 1.152265193 | Z29: 0.9 | AA29: 1 | AB29: 1.05 | AC29: 1.1 | AD29: 1.15 | AE29: 1.060497238 | AG29: 2.5 | AH29: 1.9 | AI29: 2.2 | AJ29: 1.8 | AK29: 1.1 | AL29: 1.2 | AM29: 1 | AN29: 1.8 | AO29: 1.662983425 | AQ29: 1 | AR29: 1.2 | AS29: 1.3 | AT29: 1.35 | AU29: 1 | AV29: 1.8 | AW29: 1.2 | AX29: 0.9 | AY29: 2.25 | AZ29: 2.1 | BA29: 1.409944751 | BC29: Fixed fee increase | BD29: 3150.355792 | BE29: 3147.855792 | BG29: 1.555801105 | BH29: 1.152265193 | BI29: 1.060497238 | BJ29: 1.662983425 | BK29: 1.409944751
A30: 8 | B30: =DATE($B$4+3,10,15) -> 2023-10-15 | C30: 0.03090145838 | D30: 730 | E30: 30 | G30: 1 | H30: 1.5 | I30: 1.4 | J30: 1.1 | K30: 0.9 | L30: 1.85 | M30: 1.7 | N30: 2.35 | O30: 1.524043716 | Q30: 0.8 | R30: 1 | S30: 1.12 | T30: 1.35 | U30: 1.24 | V30: 1.3 | W30: 1.36 | X30: 1.174590164 | Z30: 0.9 | AA30: 1 | AB30: 1.05 | AC30: 1.1 | AD30: 1.15 | AE30: 1.066939891 | AG30: 2.5 | AH30: 1.9 | AI30: 2.2 | AJ30: 1.8 | AK30: 1.1 | AL30: 1.2 | AM30: 1 | AN30: 1.8 | AO30: 1.678142077 | AQ30: 1 | AR30: 1.2 | AS30: 1.3 | AT30: 1.35 | AU30: 1 | AV30: 1.8 | AW30: 1.2 | AX30: 0.9 | AY30: 2.25 | AZ30: 2.1 | BA30: 1.429508197 | BC30: Base rate change and adjustments to territory and limit factors | BD30: 3374.736995 | BE30: 3273.578641 | BG30: 1.571038251 | BH30: 1.152349727 | BI30: 1.066939891 | BJ30: 1.678142077 | BK30: 1.429508197
A31: 9 | B31: =DATE($B$4+4,3,15) -> 2024-03-15 | C31: 0.02037193102 | D31: 745 | E31: 30 | G31: 1 | H31: 1.5 | I31: 1.4 | J31: 1.1 | K31: 0.9 | L31: 1.85 | M31: 1.7 | N31: 2.35 | O31: 1.527472527 | Q31: 0.8 | R31: 1 | S31: 1.12 | T31: 1.35 | U31: 1.24 | V31: 1.3 | W31: 1.36 | X31: 1.187857143 | Z31: 0.9 | AA31: 1 | AB31: 1.05 | AC31: 1.1 | AD31: 1.15 | AE31: 1.067857143 | AG31: 2.5 | AH31: 1.9 | AI31: 2.2 | AJ31: 1.8 | AK31: 1.1 | AL31: 1.2 | AM31: 1 | AN31: 1.8 | AO31: 1.724725275 | AQ31: 1 | AR31: 1.2 | AS31: 1.3 | AT31: 1.35 | AU31: 1 | AV31: 1.8 | AW31: 1.2 | AX31: 0.9 | AY31: 2.25 | AZ31: 2.1 | BA31: 1.423351648 | BC31: Only base rate change | BD31: =PRODUCT(O31,X31,AE31,AO31,BA31)*D31+E31 -> 3573.555079 | BE31: 3502.208332 | BG31: 1.527472527 | BH31: 1.187857143 | BI31: 1.067857143 | BJ31: 1.724725275 | BK31: 1.423351648
A32: 10 | B32: =DATE($B$4+4,11,1) -> 2024-11-01 | C32: 0.06488858804 | D32: 700 | E32: 33 | G32: 1.05 | H32: 1.6275 | I32: 1.47 | J32: 1.155 | K32: 0.855 | L32: 1.7575 | M32: 1.615 | N32: 2.2325 | O32: 1.487336957 | Q32: 0.88 | R32: 1.1 | S32: 1.232 | T32: 1.485 | U32: 1.364 | V32: 1.43 | W32: 1.496 | X32: 1.316891304 | Z32: 1 | AA32: 1 | AB32: 1.3 | AC32: 1.05 | AD32: 1.2 | AE32: 1.14375 | AG32: 2.5 | AH32: 1.9 | AI32: 2.2 | AJ32: 1.8 | AK32: 1.1 | AL32: 1.2 | AM32: 1 | AN32: 1.8 | AO32: 1.716304348 | AQ32: 1 | AR32: 1.2 | AS32: 1.3 | AT32: 1.35 | AU32: 1 | AV32: 1.71 | AW32: 1.14 | AX32: 0.855 | AY32: 2.1375 | AZ32: 1.995 | BA32: 1.369619565 | BC32: Base rate, fixed fee, and all factors, except Rating Group 2, adjusted | BD32: 3719.2323 | BE32: 3492.60227 | BG32: 1.494021739 | BH32: 1.197173913 | BI32: 1.070652174 | BJ32: 1.716304348 | BK32: 1.414130435
A34: Rate | C34: Policy In force Weights by Relativity - Policies
A35: Level | B35: Date
A36: 1 | B36: =B23 -> 2019-07-01 | G36: =G4 -> 0.125 | H36: =H4 -> 0.125 | I36: 0.125 | J36: 0.125 | K36: 0.125 | L36: 0.125 | M36: 0.125 | N36: 0.125 | O36: =SUM(G36:N36) -> 1 | Q36: 0.1428571429 | R36: 0.1428571429 | S36: 0.1428571429 | T36: 0.1428571429 | U36: 0.1428571429 | V36: 0.1428571429 | W36: 0.1428571429 | X36: =SUM(Q36:W36) -> 1 | Z36: 0.2 | AA36: 0.2 | AB36: 0.2 | AC36: 0.2 | AD36: 0.2 | AE36: =SUM(Z36:AD36) -> 1 | AG36: 0.125 | AH36: 0.125 | AI36: 0.125 | AJ36: 0.125 | AK36: 0.125 | AL36: 0.125 | AM36: 0.125 | AN36: 0.125 | AO36: =SUM(AG36:AN36) -> 1 | AQ36: 0.082 | AR36: 0.102 | AS36: 0.102 | AT36: 0.102 | AU36: 0.102 | AV36: 0.102 | AW36: 0.102 | AX36: 0.102 | AY36: 0.102 | AZ36: 0.102 | BA36: =SUM(AQ36:AZ36) -> 1
A37: 2 | B37: =B24 -> 2020-07-15 | C37: =E37-D37 -> 182 | D37: =MATCH(EDATE(B37,-6),Policies!$B$5:$B$2014,0) -> 199 | E37: =MATCH(B37,Policies!$B$5:$B$2014,0) -> 381 | G37: =COUNTIF(OFFSET(Policies!$K$4,$D37,0,$E37-$D37,1),G$22)/$C37 -> 0.09340659341 | H37: =COUNTIF(OFFSET(Policies!$K$4,$D37,0,$E37-$D37,1),H$22)/$C37 -> 0.1538461538 | I37: =COUNTIF(OFFSET(Policies!$K$4,$D37,0,$E37-$D37,1),I$22)/$C37 -> 0.1153846154 | J37: =COUNTIF(OFFSET(Policies!$K$4,$D37,0,$E37-$D37,1),J$22)/$C37 -> 0.0989010989 | K37: =COUNTIF(OFFSET(Policies!$K$4,$D37,0,$E37-$D37,1),K$22)/$C37 -> 0.1758241758 | L37: =COUNTIF(OFFSET(Policies!$K$4,$D37,0,$E37-$D37,1),L$22)/$C37 -> 0.08791208791 | M37: =COUNTIF(OFFSET(Policies!$K$4,$D37,0,$E37-$D37,1),M$22)/$C37 -> 0.1593406593 | N37: =COUNTIF(OFFSET(Policies!$K$4,$D37,0,$E37-$D37,1),N$22)/$C37 -> 0.1153846154 | O37: =SUM(G37:N37) -> 1 | Q37: =COUNTIF(OFFSET(Policies!$L$4,$D37,0,$E37-$D37,1),Q$22)/$C37 -> 0.1538461538 | R37: =COUNTIF(OFFSET(Policies!$L$4,$D37,0,$E37-$D37,1),R$22)/$C37 -> 0.1208791209 | S37: =COUNTIF(OFFSET(Policies!$L$4,$D37,0,$E37-$D37,1),S$22)/$C37 -> 0.0989010989 | T37: =COUNTIF(OFFSET(Policies!$L$4,$D37,0,$E37-$D37,1),T$22)/$C37 -> 0.1043956044 | U37: =COUNTIF(OFFSET(Policies!$L$4,$D37,0,$E37-$D37,1),U$22)/$C37 -> 0.2032967033 | V37: =COUNTIF(OFFSET(Policies!$L$4,$D37,0,$E37-$D37,1),V$22)/$C37 -> 0.1538461538 | W37: =COUNTIF(OFFSET(Policies!$L$4,$D37,0,$E37-$D37,1),W$22)/$C37 -> 0.1648351648 | X37: =SUM(Q37:W37) -> 1 | Z37: =COUNTIF(OFFSET(Policies!$M$4,$D37,0,$E37-$D37,1),Z$22)/$C37 -> 0.2087912088 | AA37: =COUNTIF(OFFSET(Policies!$M$4,$D37,0,$E37-$D37,1),AA$22)/$C37 -> 0.2527472527 | AB37: =COUNTIF(OFFSET(Policies!$M$4,$D37,0,$E37-$D37,1),AB$22)/$C37 -> 0.1813186813 | AC37: =COUNTIF(OFFSET(Policies!$M$4,$D37,0,$E37-$D37,1),AC$22)/$C37 -> 0.1703296703 | AD37: =COUNTIF(OFFSET(Policies!$M$4,$D37,0,$E37-$D37,1),AD$22)/$C37 -> 0.1868131868 | AE37: =SUM(Z37:AD37) -> 1 | AG37: =COUNTIF(OFFSET(Policies!$N$4,$D37,0,$E37-$D37,1),AG$22)/$C37 -> 0.1263736264 | AH37: =COUNTIF(OFFSET(Policies!$N$4,$D37,0,$E37-$D37,1),AH$22)/$C37 -> 0.1208791209 | AI37: =COUNTIF(OFFSET(Policies!$N$4,$D37,0,$E37-$D37,1),AI$22)/$C37 -> 0.1373626374 | AJ37: =COUNTIF(OFFSET(Policies!$N$4,$D37,0,$E37-$D37,1),AJ$22)/$C37 -> 0.1043956044 | AK37: =COUNTIF(OFFSET(Policies!$N$4,$D37,0,$E37-$D37,1),AK$22)/$C37 -> 0.1208791209 | AL37: =COUNTIF(OFFSET(Policies!$N$4,$D37,0,$E37-$D37,1),AL$22)/$C37 -> 0.1263736264 | AM37: =COUNTIF(OFFSET(Policies!$N$4,$D37,0,$E37-$D37,1),AM$22)/$C37 -> 0.1318681319 | AN37: =COUNTIF(OFFSET(Policies!$N$4,$D37,0,$E37-$D37,1),AN$22)/$C37 -> 0.1318681319 | AO37: =SUM(AG37:AN37) -> 1 | AQ37: =COUNTIF(OFFSET(Policies!$O$4,$D37,0,$E37-$D37,1),AQ$22)/$C37 -> 0.05494505495 | AR37: =COUNTIF(OFFSET(Policies!$O$4,$D37,0,$E37-$D37,1),AR$22)/$C37 -> 0.1263736264 | AS37: =COUNTIF(OFFSET(Policies!$O$4,$D37,0,$E37-$D37,1),AS$22)/$C37 -> 0.03846153846 | AT37: =COUNTIF(OFFSET(Policies!$O$4,$D37,0,$E37-$D37,1),AT$22)/$C37 -> 0.1043956044 | AU37: =COUNTIF(OFFSET(Policies!$O$4,$D37,0,$E37-$D37,1),AU$22)/$C37 -> 0.1043956044 | AV37: =COUNTIF(OFFSET(Policies!$O$4,$D37,0,$E37-$D37,1),AV$22)/$C37 -> 0.08791208791 | AW37: =COUNTIF(OFFSET(Policies!$O$4,$D37,0,$E37-$D37,1),AW$22)/$C37 -> 0.1098901099 | AX37: =COUNTIF(OFFSET(Policies!$O$4,$D37,0,$E37-$D37,1),AX$22)/$C37 -> 0.1263736264 | AY37: =COUNTIF(OFFSET(Policies!$O$4,$D37,0,$E37-$D37,1),AY$22)/$C37 -> 0.0989010989 | AZ37: =COUNTIF(OFFSET(Policies!$O$4,$D37,0,$E37-$D37,1),AZ$22)/$C37 -> 0.1483516484 | BA37: =SUM(AQ37:AZ37) -> 1
A38: 3 | B38: 2021-01-15 | C38: =E38-D38 -> 184 | D38: =MATCH(EDATE(B38,-6),Policies!$B$5:$B$2014,0) -> 381 | E38: =MATCH(B38,Policies!$B$5:$B$2014,0) -> 565 | G38: =COUNTIF(OFFSET(Policies!$K$4,$D38,0,$E38-$D38,1),G$22)/$C38 -> 0.1195652174 | H38: =COUNTIF(OFFSET(Policies!$K$4,$D38,0,$E38-$D38,1),H$22)/$C38 -> 0.1793478261 | I38: =COUNTIF(OFFSET(Policies!$K$4,$D38,0,$E38-$D38,1),I$22)/$C38 -> 0.1358695652 | J38: =COUNTIF(OFFSET(Policies!$K$4,$D38,0,$E38-$D38,1),J$22)/$C38 -> 0.08152173913 | K38: =COUNTIF(OFFSET(Policies!$K$4,$D38,0,$E38-$D38,1),K$22)/$C38 -> 0.1467391304 | L38: =COUNTIF(OFFSET(Policies!$K$4,$D38,0,$E38-$D38,1),L$22)/$C38 -> 0.09239130435 | M38: =COUNTIF(OFFSET(Policies!$K$4,$D38,0,$E38-$D38,1),M$22)/$C38 -> 0.1467391304 | N38: =COUNTIF(OFFSET(Policies!$K$4,$D38,0,$E38-$D38,1),N$22)/$C38 -> 0.09782608696 | O38: 1 | Q38: =COUNTIF(OFFSET(Policies!$L$4,$D38,0,$E38-$D38,1),Q$22)/$C38 -> 0.1358695652 | R38: =COUNTIF(OFFSET(Policies!$L$4,$D38,0,$E38-$D38,1),R$22)/$C38 -> 0.09782608696 | S38: =COUNTIF(OFFSET(Policies!$L$4,$D38,0,$E38-$D38,1),S$22)/$C38 -> 0.1358695652 | T38: =COUNTIF(OFFSET(Policies!$L$4,$D38,0,$E38-$D38,1),T$22)/$C38 -> 0.08695652174 | U38: =COUNTIF(OFFSET(Policies!$L$4,$D38,0,$E38-$D38,1),U$22)/$C38 -> 0.1902173913 | V38: =COUNTIF(OFFSET(Policies!$L$4,$D38,0,$E38-$D38,1),V$22)/$C38 -> 0.1956521739 | W38: =COUNTIF(OFFSET(Policies!$L$4,$D38,0,$E38-$D38,1),W$22)/$C38 -> 0.1576086957 | X38: 1 | Z38: =COUNTIF(OFFSET(Policies!$M$4,$D38,0,$E38-$D38,1),Z$22)/$C38 -> 0.1956521739 | AA38: =COUNTIF(OFFSET(Policies!$M$4,$D38,0,$E38-$D38,1),AA$22)/$C38 -> 0.2445652174 | AB38: =COUNTIF(OFFSET(Policies!$M$4,$D38,0,$E38-$D38,1),AB$22)/$C38 -> 0.1902173913 | AC38: =COUNTIF(OFFSET(Policies!$M$4,$D38,0,$E38-$D38,1),AC$22)/$C38 -> 0.1684782609 | AD38: =COUNTIF(OFFSET(Policies!$M$4,$D38,0,$E38-$D38,1),AD$22)/$C38 -> 0.2010869565 | AE38: 1 | AG38: =COUNTIF(OFFSET(Policies!$N$4,$D38,0,$E38-$D38,1),AG$22)/$C38 -> 0.1358695652 | AH38: =COUNTIF(OFFSET(Policies!$N$4,$D38,0,$E38-$D38,1),AH$22)/$C38 -> 0.1141304348 | AI38: =COUNTIF(OFFSET(Policies!$N$4,$D38,0,$E38-$D38,1),AI$22)/$C38 -> 0.125 | AJ38: =COUNTIF(OFFSET(Policies!$N$4,$D38,0,$E38-$D38,1),AJ$22)/$C38 -> 0.1032608696 | AK38: =COUNTIF(OFFSET(Policies!$N$4,$D38,0,$E38-$D38,1),AK$22)/$C38 -> 0.1195652174 | AL38: =COUNTIF(OFFSET(Policies!$N$4,$D38,0,$E38-$D38,1),AL$22)/$C38 -> 0.125 | AM38: =COUNTIF(OFFSET(Policies!$N$4,$D38,0,$E38-$D38,1),AM$22)/$C38 -> 0.1467391304 | AN38: =COUNTIF(OFFSET(Policies!$N$4,$D38,0,$E38-$D38,1),AN$22)/$C38 -> 0.1304347826 | AO38: 1 | AQ38: =COUNTIF(OFFSET(Policies!$O$4,$D38,0,$E38-$D38,1),AQ$22)/$C38 -> 0.0597826087 | AR38: =COUNTIF(OFFSET(Policies!$O$4,$D38,0,$E38-$D38,1),AR$22)/$C38 -> 0.1358695652 | AS38: =COUNTIF(OFFSET(Policies!$O$4,$D38,0,$E38-$D38,1),AS$22)/$C38 -> 0.03804347826 | AT38: =COUNTIF(OFFSET(Policies!$O$4,$D38,0,$E38-$D38,1),AT$22)/$C38 -> 0.1086956522 | AU38: =COUNTIF(OFFSET(Policies!$O$4,$D38,0,$E38-$D38,1),AU$22)/$C38 -> 0.07608695652 | AV38: =COUNTIF(OFFSET(Policies!$O$4,$D38,0,$E38-$D38,1),AV$22)/$C38 -> 0.1032608696 | AW38: =COUNTIF(OFFSET(Policies!$O$4,$D38,0,$E38-$D38,1),AW$22)/$C38 -> 0.1413043478 | AX38: =COUNTIF(OFFSET(Policies!$O$4,$D38,0,$E38-$D38,1),AX$22)/$C38 -> 0.09782608696 | AY38: =COUNTIF(OFFSET(Policies!$O$4,$D38,0,$E38-$D38,1),AY$22)/$C38 -> 0.07608695652 | AZ38: =COUNTIF(OFFSET(Policies!$O$4,$D38,0,$E38-$D38,1),AZ$22)/$C38 -> 0.1630434783 | BA38: 1
A39: 4 | B39: 2021-08-01 | C39: 181 | D39: =MATCH(EDATE(B39,-6),Policies!$B$5:$B$2014,0) -> 582 | E39: =MATCH(B39,Policies!$B$5:$B$2014,0) -> 763 | G39: =COUNTIF(OFFSET(Policies!$K$4,$D39,0,$E39-$D39,1),G$22)/$C39 -> 0.1215469613 | H39: =COUNTIF(OFFSET(Policies!$K$4,$D39,0,$E39-$D39,1),H$22)/$C39 -> 0.182320442 | I39: =COUNTIF(OFFSET(Policies!$K$4,$D39,0,$E39-$D39,1),I$22)/$C39 -> 0.1436464088 | J39: =COUNTIF(OFFSET(Policies!$K$4,$D39,0,$E39-$D39,1),J$22)/$C39 -> 0.06629834254 | K39: =COUNTIF(OFFSET(Policies!$K$4,$D39,0,$E39-$D39,1),K$22)/$C39 -> 0.1436464088 | L39: =COUNTIF(OFFSET(Policies!$K$4,$D39,0,$E39-$D39,1),L$22)/$C39 -> 0.1160220994 | M39: =COUNTIF(OFFSET(Policies!$K$4,$D39,0,$E39-$D39,1),M$22)/$C39 -> 0.1215469613 | N39: =COUNTIF(OFFSET(Policies!$K$4,$D39,0,$E39-$D39,1),N$22)/$C39 -> 0.1049723757 | O39: 1 | Q39: =COUNTIF(OFFSET(Policies!$L$4,$D39,0,$E39-$D39,1),Q$22)/$C39 -> 0.1491712707 | R39: =COUNTIF(OFFSET(Policies!$L$4,$D39,0,$E39-$D39,1),R$22)/$C39 -> 0.1436464088 | S39: =COUNTIF(OFFSET(Policies!$L$4,$D39,0,$E39-$D39,1),S$22)/$C39 -> 0.1215469613 | T39: =COUNTIF(OFFSET(Policies!$L$4,$D39,0,$E39-$D39,1),T$22)/$C39 -> 0.1104972376 | U39: =COUNTIF(OFFSET(Policies!$L$4,$D39,0,$E39-$D39,1),U$22)/$C39 -> 0.1602209945 | V39: =COUNTIF(OFFSET(Policies!$L$4,$D39,0,$E39-$D39,1),V$22)/$C39 -> 0.1546961326 | W39: =COUNTIF(OFFSET(Policies!$L$4,$D39,0,$E39-$D39,1),W$22)/$C39 -> 0.1602209945 | X39: 1 | Z39: =COUNTIF(OFFSET(Policies!$M$4,$D39,0,$E39-$D39,1),Z$22)/$C39 -> 0.2099447514 | AA39: =COUNTIF(OFFSET(Policies!$M$4,$D39,0,$E39-$D39,1),AA$22)/$C39 -> 0.2375690608 | AB39: =COUNTIF(OFFSET(Policies!$M$4,$D39,0,$E39-$D39,1),AB$22)/$C39 -> 0.1767955801 | AC39: =COUNTIF(OFFSET(Policies!$M$4,$D39,0,$E39-$D39,1),AC$22)/$C39 -> 0.1767955801 | AD39: =COUNTIF(OFFSET(Policies!$M$4,$D39,0,$E39-$D39,1),AD$22)/$C39 -> 0.1988950276 | AE39: 1 | AG39: =COUNTIF(OFFSET(Policies!$N$4,$D39,0,$E39-$D39,1),AG$22)/$C39 -> 0.138121547 | AH39: =COUNTIF(OFFSET(Policies!$N$4,$D39,0,$E39-$D39,1),AH$22)/$C39 -> 0.1325966851 | AI39: =COUNTIF(OFFSET(Policies!$N$4,$D39,0,$E39-$D39,1),AI$22)/$C39 -> 0.1325966851 | AJ39: =COUNTIF(OFFSET(Policies!$N$4,$D39,0,$E39-$D39,1),AJ$22)/$C39 -> 0.1325966851 | AK39: =COUNTIF(OFFSET(Policies!$N$4,$D39,0,$E39-$D39,1),AK$22)/$C39 -> 0.1104972376 | AL39: =COUNTIF(OFFSET(Policies!$N$4,$D39,0,$E39-$D39,1),AL$22)/$C39 -> 0.0773480663 | AM39: =COUNTIF(OFFSET(Policies!$N$4,$D39,0,$E39-$D39,1),AM$22)/$C39 -> 0.1546961326 | AN39: =COUNTIF(OFFSET(Policies!$N$4,$D39,0,$E39-$D39,1),AN$22)/$C39 -> 0.1215469613 | AO39: 1 | AQ39: =COUNTIF(OFFSET(Policies!$O$4,$D39,0,$E39-$D39,1),AQ$22)/$C39 -> 0.06077348066 | AR39: =COUNTIF(OFFSET(Policies!$O$4,$D39,0,$E39-$D39,1),AR$22)/$C39 -> 0.1270718232 | AS39: =COUNTIF(OFFSET(Policies!$O$4,$D39,0,$E39-$D39,1),AS$22)/$C39 -> 0.04419889503 | AT39: =COUNTIF(OFFSET(Policies!$O$4,$D39,0,$E39-$D39,1),AT$22)/$C39 -> 0.09392265193 | AU39: =COUNTIF(OFFSET(Policies!$O$4,$D39,0,$E39-$D39,1),AU$22)/$C39 -> 0.08287292818 | AV39: =COUNTIF(OFFSET(Policies!$O$4,$D39,0,$E39-$D39,1),AV$22)/$C39 -> 0.1104972376 | AW39: =COUNTIF(OFFSET(Policies!$O$4,$D39,0,$E39-$D39,1),AW$22)/$C39 -> 0.1104972376 | AX39: =COUNTIF(OFFSET(Policies!$O$4,$D39,0,$E39-$D39,1),AX$22)/$C39 -> 0.1270718232 | AY39: =COUNTIF(OFFSET(Policies!$O$4,$D39,0,$E39-$D39,1),AY$22)/$C39 -> 0.1104972376 | AZ39: =COUNTIF(OFFSET(Policies!$O$4,$D39,0,$E39-$D39,1),AZ$22)/$C39 -> 0.1325966851 | BA39: 1
A40: 5 | B40: 2022-02-01 | C40: 184 | D40: =MATCH(EDATE(B40,-6),Policies!$B$5:$B$2014,0) -> 763 | E40: =MATCH(B40,Policies!$B$5:$B$2014,0) -> 947 | G40: =COUNTIF(OFFSET(Policies!$K$4,$D40,0,$E40-$D40,1),G$22)/$C40 -> 0.1086956522 | H40: =COUNTIF(OFFSET(Policies!$K$4,$D40,0,$E40-$D40,1),H$22)/$C40 -> 0.1793478261 | I40: =COUNTIF(OFFSET(Policies!$K$4,$D40,0,$E40-$D40,1),I$22)/$C40 -> 0.152173913 | J40: =COUNTIF(OFFSET(Policies!$K$4,$D40,0,$E40-$D40,1),J$22)/$C40 -> 0.07065217391 | K40: =COUNTIF(OFFSET(Policies!$K$4,$D40,0,$E40-$D40,1),K$22)/$C40 -> 0.1358695652 | L40: =COUNTIF(OFFSET(Policies!$K$4,$D40,0,$E40-$D40,1),L$22)/$C40 -> 0.09782608696 | M40: =COUNTIF(OFFSET(Policies!$K$4,$D40,0,$E40-$D40,1),M$22)/$C40 -> 0.1467391304 | N40: =COUNTIF(OFFSET(Policies!$K$4,$D40,0,$E40-$D40,1),N$22)/$C40 -> 0.1086956522 | O40: 1 | Q40: =COUNTIF(OFFSET(Policies!$L$4,$D40,0,$E40-$D40,1),Q$22)/$C40 -> 0.125 | R40: =COUNTIF(OFFSET(Policies!$L$4,$D40,0,$E40-$D40,1),R$22)/$C40 -> 0.1576086957 | S40: =COUNTIF(OFFSET(Policies!$L$4,$D40,0,$E40-$D40,1),S$22)/$C40 -> 0.1141304348 | T40: =COUNTIF(OFFSET(Policies!$L$4,$D40,0,$E40-$D40,1),T$22)/$C40 -> 0.1358695652 | U40: =COUNTIF(OFFSET(Policies!$L$4,$D40,0,$E40-$D40,1),U$22)/$C40 -> 0.1413043478 | V40: =COUNTIF(OFFSET(Policies!$L$4,$D40,0,$E40-$D40,1),V$22)/$C40 -> 0.1413043478 | W40: =COUNTIF(OFFSET(Policies!$L$4,$D40,0,$E40-$D40,1),W$22)/$C40 -> 0.1847826087 | X40: 1 | Z40: =COUNTIF(OFFSET(Policies!$M$4,$D40,0,$E40-$D40,1),Z$22)/$C40 -> 0.2010869565 | AA40: =COUNTIF(OFFSET(Policies!$M$4,$D40,0,$E40-$D40,1),AA$22)/$C40 -> 0.1847826087 | AB40: =COUNTIF(OFFSET(Policies!$M$4,$D40,0,$E40-$D40,1),AB$22)/$C40 -> 0.1793478261 | AC40: =COUNTIF(OFFSET(Policies!$M$4,$D40,0,$E40-$D40,1),AC$22)/$C40 -> 0.2010869565 | AD40: =COUNTIF(OFFSET(Policies!$M$4,$D40,0,$E40-$D40,1),AD$22)/$C40 -> 0.2336956522 | AE40: 1 | AG40: =COUNTIF(OFFSET(Policies!$N$4,$D40,0,$E40-$D40,1),AG$22)/$C40 -> 0.1086956522 | AH40: =COUNTIF(OFFSET(Policies!$N$4,$D40,0,$E40-$D40,1),AH$22)/$C40 -> 0.1576086957 | AI40: =COUNTIF(OFFSET(Policies!$N$4,$D40,0,$E40-$D40,1),AI$22)/$C40 -> 0.1358695652 | AJ40: =COUNTIF(OFFSET(Policies!$N$4,$D40,0,$E40-$D40,1),AJ$22)/$C40 -> 0.1141304348 | AK40: =COUNTIF(OFFSET(Policies!$N$4,$D40,0,$E40-$D40,1),AK$22)/$C40 -> 0.1195652174 | AL40: =COUNTIF(OFFSET(Policies!$N$4,$D40,0,$E40-$D40,1),AL$22)/$C40 -> 0.1086956522 | AM40: =COUNTIF(OFFSET(Policies!$N$4,$D40,0,$E40-$D40,1),AM$22)/$C40 -> 0.1467391304 | AN40: =COUNTIF(OFFSET(Policies!$N$4,$D40,0,$E40-$D40,1),AN$22)/$C40 -> 0.1086956522 | AO40: 1 | AQ40: =COUNTIF(OFFSET(Policies!$O$4,$D40,0,$E40-$D40,1),AQ$22)/$C40 -> 0.0597826087 | AR40: =COUNTIF(OFFSET(Policies!$O$4,$D40,0,$E40-$D40,1),AR$22)/$C40 -> 0.152173913 | AS40: =COUNTIF(OFFSET(Policies!$O$4,$D40,0,$E40-$D40,1),AS$22)/$C40 -> 0.05434782609 | AT40: =COUNTIF(OFFSET(Policies!$O$4,$D40,0,$E40-$D40,1),AT$22)/$C40 -> 0.08152173913 | AU40: =COUNTIF(OFFSET(Policies!$O$4,$D40,0,$E40-$D40,1),AU$22)/$C40 -> 0.08695652174 | AV40: =COUNTIF(OFFSET(Policies!$O$4,$D40,0,$E40-$D40,1),AV$22)/$C40 -> 0.1195652174 | AW40: =COUNTIF(OFFSET(Policies!$O$4,$D40,0,$E40-$D40,1),AW$22)/$C40 -> 0.09782608696 | AX40: =COUNTIF(OFFSET(Policies!$O$4,$D40,0,$E40-$D40,1),AX$22)/$C40 -> 0.1195652174 | AY40: =COUNTIF(OFFSET(Policies!$O$4,$D40,0,$E40-$D40,1),AY$22)/$C40 -> 0.08152173913 | AZ40: =COUNTIF(OFFSET(Policies!$O$4,$D40,0,$E40-$D40,1),AZ$22)/$C40 -> 0.1467391304 | BA40: 1
A41: 6 | B41: 2022-10-01 | C41: 183 | D41: =MATCH(EDATE(B41,-6),Policies!$B$5:$B$2014,0) -> 1006 | E41: =MATCH(B41,Policies!$B$5:$B$2014,0) -> 1189 | G41: =COUNTIF(OFFSET(Policies!$K$4,$D41,0,$E41-$D41,1),G$22)/$C41 -> 0.07650273224 | H41: =COUNTIF(OFFSET(Policies!$K$4,$D41,0,$E41-$D41,1),H$22)/$C41 -> 0.1912568306 | I41: =COUNTIF(OFFSET(Policies!$K$4,$D41,0,$E41-$D41,1),I$22)/$C41 -> 0.1584699454 | J41: =COUNTIF(OFFSET(Policies!$K$4,$D41,0,$E41-$D41,1),J$22)/$C41 -> 0.06010928962 | K41: =COUNTIF(OFFSET(Policies!$K$4,$D41,0,$E41-$D41,1),K$22)/$C41 -> 0.1420765027 | L41: =COUNTIF(OFFSET(Policies!$K$4,$D41,0,$E41-$D41,1),L$22)/$C41 -> 0.07650273224 | M41: =COUNTIF(OFFSET(Policies!$K$4,$D41,0,$E41-$D41,1),M$22)/$C41 -> 0.1584699454 | N41: =COUNTIF(OFFSET(Policies!$K$4,$D41,0,$E41-$D41,1),N$22)/$C41 -> 0.1366120219 | O41: 1 | Q41: =COUNTIF(OFFSET(Policies!$L$4,$D41,0,$E41-$D41,1),Q$22)/$C41 -> 0.1420765027 | R41: =COUNTIF(OFFSET(Policies!$L$4,$D41,0,$E41-$D41,1),R$22)/$C41 -> 0.174863388 | S41: =COUNTIF(OFFSET(Policies!$L$4,$D41,0,$E41-$D41,1),S$22)/$C41 -> 0.1256830601 | T41: =COUNTIF(OFFSET(Policies!$L$4,$D41,0,$E41-$D41,1),T$22)/$C41 -> 0.1420765027 | U41: =COUNTIF(OFFSET(Policies!$L$4,$D41,0,$E41-$D41,1),U$22)/$C41 -> 0.131147541 | V41: =COUNTIF(OFFSET(Policies!$L$4,$D41,0,$E41-$D41,1),V$22)/$C41 -> 0.1147540984 | W41: =COUNTIF(OFFSET(Policies!$L$4,$D41,0,$E41-$D41,1),W$22)/$C41 -> 0.1693989071 | X41: 1 | Z41: =COUNTIF(OFFSET(Policies!$M$4,$D41,0,$E41-$D41,1),Z$22)/$C41 -> 0.1366120219 | AA41: =COUNTIF(OFFSET(Policies!$M$4,$D41,0,$E41-$D41,1),AA$22)/$C41 -> 0.1639344262 | AB41: =COUNTIF(OFFSET(Policies!$M$4,$D41,0,$E41-$D41,1),AB$22)/$C41 -> 0.2131147541 | AC41: =COUNTIF(OFFSET(Policies!$M$4,$D41,0,$E41-$D41,1),AC$22)/$C41 -> 0.2295081967 | AD41: =COUNTIF(OFFSET(Policies!$M$4,$D41,0,$E41-$D41,1),AD$22)/$C41 -> 0.2568306011 | AE41: 1 | AG41: =COUNTIF(OFFSET(Policies!$N$4,$D41,0,$E41-$D41,1),AG$22)/$C41 -> 0.131147541 | AH41: =COUNTIF(OFFSET(Policies!$N$4,$D41,0,$E41-$D41,1),AH$22)/$C41 -> 0.131147541 | AI41: =COUNTIF(OFFSET(Policies!$N$4,$D41,0,$E41-$D41,1),AI$22)/$C41 -> 0.1475409836 | AJ41: =COUNTIF(OFFSET(Policies!$N$4,$D41,0,$E41-$D41,1),AJ$22)/$C41 -> 0.1147540984 | AK41: =COUNTIF(OFFSET(Policies!$N$4,$D41,0,$E41-$D41,1),AK$22)/$C41 -> 0.131147541 | AL41: =COUNTIF(OFFSET(Policies!$N$4,$D41,0,$E41-$D41,1),AL$22)/$C41 -> 0.06010928962 | AM41: =COUNTIF(OFFSET(Policies!$N$4,$D41,0,$E41-$D41,1),AM$22)/$C41 -> 0.1475409836 | AN41: =COUNTIF(OFFSET(Policies!$N$4,$D41,0,$E41-$D41,1),AN$22)/$C41 -> 0.1366120219 | AO41: 1 | AQ41: =COUNTIF(OFFSET(Policies!$O$4,$D41,0,$E41-$D41,1),AQ$22)/$C41 -> 0.04918032787 | AR41: =COUNTIF(OFFSET(Policies!$O$4,$D41,0,$E41-$D41,1),AR$22)/$C41 -> 0.1202185792 | AS41: =COUNTIF(OFFSET(Policies!$O$4,$D41,0,$E41-$D41,1),AS$22)/$C41 -> 0.07103825137 | AT41: =COUNTIF(OFFSET(Policies!$O$4,$D41,0,$E41-$D41,1),AT$22)/$C41 -> 0.09289617486 | AU41: =COUNTIF(OFFSET(Policies!$O$4,$D41,0,$E41-$D41,1),AU$22)/$C41 -> 0.07650273224 | AV41: =COUNTIF(OFFSET(Policies!$O$4,$D41,0,$E41-$D41,1),AV$22)/$C41 -> 0.1202185792 | AW41: =COUNTIF(OFFSET(Policies!$O$4,$D41,0,$E41-$D41,1),AW$22)/$C41 -> 0.1256830601 | AX41: =COUNTIF(OFFSET(Policies!$O$4,$D41,0,$E41-$D41,1),AX$22)/$C41 -> 0.131147541 | AY41: =COUNTIF(OFFSET(Policies!$O$4,$D41,0,$E41-$D41,1),AY$22)/$C41 -> 0.07650273224 | AZ41: =COUNTIF(OFFSET(Policies!$O$4,$D41,0,$E41-$D41,1),AZ$22)/$C41 -> 0.1366120219 | BA41: 1
A42: 7 | B42: 2023-03-01 | C42: 181 | D42: =MATCH(EDATE(B42,-6),Policies!$B$5:$B$2014,0) -> 1159 | E42: =MATCH(B42,Policies!$B$5:$B$2014,0) -> 1340 | G42: =COUNTIF(OFFSET(Policies!$K$4,$D42,0,$E42-$D42,1),G$22)/$C42 -> 0.07182320442 | H42: =COUNTIF(OFFSET(Policies!$K$4,$D42,0,$E42-$D42,1),H$22)/$C42 -> 0.2044198895 | I42: =COUNTIF(OFFSET(Policies!$K$4,$D42,0,$E42-$D42,1),I$22)/$C42 -> 0.1546961326 | J42: =COUNTIF(OFFSET(Policies!$K$4,$D42,0,$E42-$D42,1),J$22)/$C42 -> 0.07182320442 | K42: =COUNTIF(OFFSET(Policies!$K$4,$D42,0,$E42-$D42,1),K$22)/$C42 -> 0.1325966851 | L42: =COUNTIF(OFFSET(Policies!$K$4,$D42,0,$E42-$D42,1),L$22)/$C42 -> 0.08287292818 | M42: =COUNTIF(OFFSET(Policies!$K$4,$D42,0,$E42-$D42,1),M$22)/$C42 -> 0.1491712707 | N42: =COUNTIF(OFFSET(Policies!$K$4,$D42,0,$E42-$D42,1),N$22)/$C42 -> 0.1325966851 | O42: 1 | Q42: =COUNTIF(OFFSET(Policies!$L$4,$D42,0,$E42-$D42,1),Q$22)/$C42 -> 0.1270718232 | R42: =COUNTIF(OFFSET(Policies!$L$4,$D42,0,$E42-$D42,1),R$22)/$C42 -> 0.1602209945 | S42: =COUNTIF(OFFSET(Policies!$L$4,$D42,0,$E42-$D42,1),S$22)/$C42 -> 0.1270718232 | T42: =COUNTIF(OFFSET(Policies!$L$4,$D42,0,$E42-$D42,1),T$22)/$C42 -> 0.1436464088 | U42: =COUNTIF(OFFSET(Policies!$L$4,$D42,0,$E42-$D42,1),U$22)/$C42 -> 0.1436464088 | V42: =COUNTIF(OFFSET(Policies!$L$4,$D42,0,$E42-$D42,1),V$22)/$C42 -> 0.1215469613 | W42: =COUNTIF(OFFSET(Policies!$L$4,$D42,0,$E42-$D42,1),W$22)/$C42 -> 0.1767955801 | X42: 1 | Z42: =COUNTIF(OFFSET(Policies!$M$4,$D42,0,$E42-$D42,1),Z$22)/$C42 -> 0.09944751381 | AA42: =COUNTIF(OFFSET(Policies!$M$4,$D42,0,$E42-$D42,1),AA$22)/$C42 -> 0.182320442 | AB42: =COUNTIF(OFFSET(Policies!$M$4,$D42,0,$E42-$D42,1),AB$22)/$C42 -> 0.2541436464 | AC42: =COUNTIF(OFFSET(Policies!$M$4,$D42,0,$E42-$D42,1),AC$22)/$C42 -> 0.2375690608 | AD42: =COUNTIF(OFFSET(Policies!$M$4,$D42,0,$E42-$D42,1),AD$22)/$C42 -> 0.226519337 | AE42: 1 | AG42: =COUNTIF(OFFSET(Policies!$N$4,$D42,0,$E42-$D42,1),AG$22)/$C42 -> 0.1104972376 | AH42: =COUNTIF(OFFSET(Policies!$N$4,$D42,0,$E42-$D42,1),AH$22)/$C42 -> 0.1215469613 | AI42: =COUNTIF(OFFSET(Policies!$N$4,$D42,0,$E42-$D42,1),AI$22)/$C42 -> 0.1491712707 | AJ42: =COUNTIF(OFFSET(Policies!$N$4,$D42,0,$E42-$D42,1),AJ$22)/$C42 -> 0.08839779006 | AK42: =COUNTIF(OFFSET(Policies!$N$4,$D42,0,$E42-$D42,1),AK$22)/$C42 -> 0.1436464088 | AL42: =COUNTIF(OFFSET(Policies!$N$4,$D42,0,$E42-$D42,1),AL$22)/$C42 -> 0.06629834254 | AM42: =COUNTIF(OFFSET(Policies!$N$4,$D42,0,$E42-$D42,1),AM$22)/$C42 -> 0.182320442 | AN42: =COUNTIF(OFFSET(Policies!$N$4,$D42,0,$E42-$D42,1),AN$22)/$C42 -> 0.138121547 | AO42: 1 | AQ42: =COUNTIF(OFFSET(Policies!$O$4,$D42,0,$E42-$D42,1),AQ$22)/$C42 -> 0.05524861878 | AR42: =COUNTIF(OFFSET(Policies!$O$4,$D42,0,$E42-$D42,1),AR$22)/$C42 -> 0.1436464088 | AS42: =COUNTIF(OFFSET(Policies!$O$4,$D42,0,$E42-$D42,1),AS$22)/$C42 -> 0.07182320442 | AT42: =COUNTIF(OFFSET(Policies!$O$4,$D42,0,$E42-$D42,1),AT$22)/$C42 -> 0.09392265193 | AU42: =COUNTIF(OFFSET(Policies!$O$4,$D42,0,$E42-$D42,1),AU$22)/$C42 -> 0.09944751381 | AV42: =COUNTIF(OFFSET(Policies!$O$4,$D42,0,$E42-$D42,1),AV$22)/$C42 -> 0.1160220994 | AW42: =COUNTIF(OFFSET(Policies!$O$4,$D42,0,$E42-$D42,1),AW$22)/$C42 -> 0.1104972376 | AX42: =COUNTIF(OFFSET(Policies!$O$4,$D42,0,$E42-$D42,1),AX$22)/$C42 -> 0.1160220994 | AY42: =COUNTIF(OFFSET(Policies!$O$4,$D42,0,$E42-$D42,1),AY$22)/$C42 -> 0.07182320442 | AZ42: =COUNTIF(OFFSET(Policies!$O$4,$D42,0,$E42-$D42,1),AZ$22)/$C42 -> 0.1215469613 | BA42: 1
A43: 8 | B43: 2023-10-15 | C43: 183 | D43: =MATCH(EDATE(B43,-6),Policies!$B$5:$B$2014,0) -> 1385 | E43: =MATCH(B43,Policies!$B$5:$B$2014,0) -> 1568 | G43: =COUNTIF(OFFSET(Policies!$K$4,$D43,0,$E43-$D43,1),G$22)/$C43 -> 0.08743169399 | H43: =COUNTIF(OFFSET(Policies!$K$4,$D43,0,$E43-$D43,1),H$22)/$C43 -> 0.174863388 | I43: =COUNTIF(OFFSET(Policies!$K$4,$D43,0,$E43-$D43,1),I$22)/$C43 -> 0.1256830601 | J43: =COUNTIF(OFFSET(Policies!$K$4,$D43,0,$E43-$D43,1),J$22)/$C43 -> 0.08196721311 | K43: =COUNTIF(OFFSET(Policies!$K$4,$D43,0,$E43-$D43,1),K$22)/$C43 -> 0.1147540984 | L43: =COUNTIF(OFFSET(Policies!$K$4,$D43,0,$E43-$D43,1),L$22)/$C43 -> 0.1147540984 | M43: =COUNTIF(OFFSET(Policies!$K$4,$D43,0,$E43-$D43,1),M$22)/$C43 -> 0.174863388 | N43: =COUNTIF(OFFSET(Policies!$K$4,$D43,0,$E43-$D43,1),N$22)/$C43 -> 0.1256830601 | O43: 1 | Q43: =COUNTIF(OFFSET(Policies!$L$4,$D43,0,$E43-$D43,1),Q$22)/$C43 -> 0.131147541 | R43: =COUNTIF(OFFSET(Policies!$L$4,$D43,0,$E43-$D43,1),R$22)/$C43 -> 0.1584699454 | S43: =COUNTIF(OFFSET(Policies!$L$4,$D43,0,$E43-$D43,1),S$22)/$C43 -> 0.1147540984 | T43: =COUNTIF(OFFSET(Policies!$L$4,$D43,0,$E43-$D43,1),T$22)/$C43 -> 0.1475409836 | U43: =COUNTIF(OFFSET(Policies!$L$4,$D43,0,$E43-$D43,1),U$22)/$C43 -> 0.1475409836 | V43: =COUNTIF(OFFSET(Policies!$L$4,$D43,0,$E43-$D43,1),V$22)/$C43 -> 0.1366120219 | W43: =COUNTIF(OFFSET(Policies!$L$4,$D43,0,$E43-$D43,1),W$22)/$C43 -> 0.1639344262 | X43: 1 | Z43: =COUNTIF(OFFSET(Policies!$M$4,$D43,0,$E43-$D43,1),Z$22)/$C43 -> 0.06557377049 | AA43: =COUNTIF(OFFSET(Policies!$M$4,$D43,0,$E43-$D43,1),AA$22)/$C43 -> 0.2076502732 | AB43: =COUNTIF(OFFSET(Policies!$M$4,$D43,0,$E43-$D43,1),AB$22)/$C43 -> 0.2513661202 | AC43: =COUNTIF(OFFSET(Policies!$M$4,$D43,0,$E43-$D43,1),AC$22)/$C43 -> 0.2076502732 | AD43: =COUNTIF(OFFSET(Policies!$M$4,$D43,0,$E43-$D43,1),AD$22)/$C43 -> 0.2677595628 | AE43: 1 | AG43: =COUNTIF(OFFSET(Policies!$N$4,$D43,0,$E43-$D43,1),AG$22)/$C43 -> 0.09289617486 | AH43: =COUNTIF(OFFSET(Policies!$N$4,$D43,0,$E43-$D43,1),AH$22)/$C43 -> 0.1147540984 | AI43: =COUNTIF(OFFSET(Policies!$N$4,$D43,0,$E43-$D43,1),AI$22)/$C43 -> 0.1584699454 | AJ43: =COUNTIF(OFFSET(Policies!$N$4,$D43,0,$E43-$D43,1),AJ$22)/$C43 -> 0.131147541 | AK43: =COUNTIF(OFFSET(Policies!$N$4,$D43,0,$E43-$D43,1),AK$22)/$C43 -> 0.1366120219 | AL43: =COUNTIF(OFFSET(Policies!$N$4,$D43,0,$E43-$D43,1),AL$22)/$C43 -> 0.06557377049 | AM43: =COUNTIF(OFFSET(Policies!$N$4,$D43,0,$E43-$D43,1),AM$22)/$C43 -> 0.1584699454 | AN43: =COUNTIF(OFFSET(Policies!$N$4,$D43,0,$E43-$D43,1),AN$22)/$C43 -> 0.1420765027 | AO43: 1 | AQ43: =COUNTIF(OFFSET(Policies!$O$4,$D43,0,$E43-$D43,1),AQ$22)/$C43 -> 0.02732240437 | AR43: =COUNTIF(OFFSET(Policies!$O$4,$D43,0,$E43-$D43,1),AR$22)/$C43 -> 0.1256830601 | AS43: =COUNTIF(OFFSET(Policies!$O$4,$D43,0,$E43-$D43,1),AS$22)/$C43 -> 0.07103825137 | AT43: =COUNTIF(OFFSET(Policies!$O$4,$D43,0,$E43-$D43,1),AT$22)/$C43 -> 0.07650273224 | AU43: =COUNTIF(OFFSET(Policies!$O$4,$D43,0,$E43-$D43,1),AU$22)/$C43 -> 0.09836065574 | AV43: =COUNTIF(OFFSET(Policies!$O$4,$D43,0,$E43-$D43,1),AV$22)/$C43 -> 0.1202185792 | AW43: =COUNTIF(OFFSET(Policies!$O$4,$D43,0,$E43-$D43,1),AW$22)/$C43 -> 0.1475409836 | AX43: =COUNTIF(OFFSET(Policies!$O$4,$D43,0,$E43-$D43,1),AX$22)/$C43 -> 0.1256830601 | AY43: =COUNTIF(OFFSET(Policies!$O$4,$D43,0,$E43-$D43,1),AY$22)/$C43 -> 0.09836065574 | AZ43: =COUNTIF(OFFSET(Policies!$O$4,$D43,0,$E43-$D43,1),AZ$22)/$C43 -> 0.1092896175 | BA43: 1
A44: 9 | B44: 2024-03-15 | C44: 182 | D44: =MATCH(EDATE(B44,-6),Policies!$B$5:$B$2014,0) -> 1538 | E44: =MATCH(B44,Policies!$B$5:$B$2014,0) -> 1720 | G44: =COUNTIF(OFFSET(Policies!$K$4,$D44,0,$E44-$D44,1),G$22)/$C44 -> 0.07142857143 | H44: =COUNTIF(OFFSET(Policies!$K$4,$D44,0,$E44-$D44,1),H$22)/$C44 -> 0.1813186813 | I44: =COUNTIF(OFFSET(Policies!$K$4,$D44,0,$E44-$D44,1),I$22)/$C44 -> 0.1098901099 | J44: =COUNTIF(OFFSET(Policies!$K$4,$D44,0,$E44-$D44,1),J$22)/$C44 -> 0.08791208791 | K44: =COUNTIF(OFFSET(Policies!$K$4,$D44,0,$E44-$D44,1),K$22)/$C44 -> 0.1263736264 | L44: =COUNTIF(OFFSET(Policies!$K$4,$D44,0,$E44-$D44,1),L$22)/$C44 -> 0.0989010989 | M44: =COUNTIF(OFFSET(Policies!$K$4,$D44,0,$E44-$D44,1),M$22)/$C44 -> 0.1923076923 | N44: =COUNTIF(OFFSET(Policies!$K$4,$D44,0,$E44-$D44,1),N$22)/$C44 -> 0.1318681319 | O44: 1 | Q44: =COUNTIF(OFFSET(Policies!$L$4,$D44,0,$E44-$D44,1),Q$22)/$C44 -> 0.1208791209 | R44: =COUNTIF(OFFSET(Policies!$L$4,$D44,0,$E44-$D44,1),R$22)/$C44 -> 0.1208791209 | S44: =COUNTIF(OFFSET(Policies!$L$4,$D44,0,$E44-$D44,1),S$22)/$C44 -> 0.1318681319 | T44: =COUNTIF(OFFSET(Policies!$L$4,$D44,0,$E44-$D44,1),T$22)/$C44 -> 0.1593406593 | U44: =COUNTIF(OFFSET(Policies!$L$4,$D44,0,$E44-$D44,1),U$22)/$C44 -> 0.1758241758 | V44: =COUNTIF(OFFSET(Policies!$L$4,$D44,0,$E44-$D44,1),V$22)/$C44 -> 0.1098901099 | W44: =COUNTIF(OFFSET(Policies!$L$4,$D44,0,$E44-$D44,1),W$22)/$C44 -> 0.1813186813 | X44: 1 | Z44: =COUNTIF(OFFSET(Policies!$M$4,$D44,0,$E44-$D44,1),Z$22)/$C44 -> 0.06593406593 | AA44: =COUNTIF(OFFSET(Policies!$M$4,$D44,0,$E44-$D44,1),AA$22)/$C44 -> 0.1978021978 | AB44: =COUNTIF(OFFSET(Policies!$M$4,$D44,0,$E44-$D44,1),AB$22)/$C44 -> 0.2747252747 | AC44: =COUNTIF(OFFSET(Policies!$M$4,$D44,0,$E44-$D44,1),AC$22)/$C44 -> 0.1703296703 | AD44: =COUNTIF(OFFSET(Policies!$M$4,$D44,0,$E44-$D44,1),AD$22)/$C44 -> 0.2912087912 | AE44: 1 | AG44: =COUNTIF(OFFSET(Policies!$N$4,$D44,0,$E44-$D44,1),AG$22)/$C44 -> 0.1263736264 | AH44: =COUNTIF(OFFSET(Policies!$N$4,$D44,0,$E44-$D44,1),AH$22)/$C44 -> 0.1153846154 | AI44: =COUNTIF(OFFSET(Policies!$N$4,$D44,0,$E44-$D44,1),AI$22)/$C44 -> 0.1593406593 | AJ44: =COUNTIF(OFFSET(Policies!$N$4,$D44,0,$E44-$D44,1),AJ$22)/$C44 -> 0.1483516484 | AK44: =COUNTIF(OFFSET(Policies!$N$4,$D44,0,$E44-$D44,1),AK$22)/$C44 -> 0.1153846154 | AL44: =COUNTIF(OFFSET(Policies!$N$4,$D44,0,$E44-$D44,1),AL$22)/$C44 -> 0.06593406593 | AM44: =COUNTIF(OFFSET(Policies!$N$4,$D44,0,$E44-$D44,1),AM$22)/$C44 -> 0.1483516484 | AN44: =COUNTIF(OFFSET(Policies!$N$4,$D44,0,$E44-$D44,1),AN$22)/$C44 -> 0.1208791209 | AO44: 1 | AQ44: =COUNTIF(OFFSET(Policies!$O$4,$D44,0,$E44-$D44,1),AQ$22)/$C44 -> 0.02747252747 | AR44: =COUNTIF(OFFSET(Policies!$O$4,$D44,0,$E44-$D44,1),AR$22)/$C44 -> 0.1318681319 | AS44: =COUNTIF(OFFSET(Policies!$O$4,$D44,0,$E44-$D44,1),AS$22)/$C44 -> 0.07142857143 | AT44: =COUNTIF(OFFSET(Policies!$O$4,$D44,0,$E44-$D44,1),AT$22)/$C44 -> 0.08241758242 | AU44: =COUNTIF(OFFSET(Policies!$O$4,$D44,0,$E44-$D44,1),AU$22)/$C44 -> 0.0989010989 | AV44: =COUNTIF(OFFSET(Policies!$O$4,$D44,0,$E44-$D44,1),AV$22)/$C44 -> 0.1098901099 | AW44: =COUNTIF(OFFSET(Policies!$O$4,$D44,0,$E44-$D44,1),AW$22)/$C44 -> 0.1373626374 | AX44: =COUNTIF(OFFSET(Policies!$O$4,$D44,0,$E44-$D44,1),AX$22)/$C44 -> 0.1318681319 | AY44: =COUNTIF(OFFSET(Policies!$O$4,$D44,0,$E44-$D44,1),AY$22)/$C44 -> 0.0989010989 | AZ44: =COUNTIF(OFFSET(Policies!$O$4,$D44,0,$E44-$D44,1),AZ$22)/$C44 -> 0.1098901099 | BA44: 1
A45: 10 | B45: 2024-11-01 | C45: 184 | D45: =MATCH(EDATE(B45,-6),Policies!$B$5:$B$2014,0) -> 1767 | E45: =MATCH(B45,Policies!$B$5:$B$2014,0) -> 1951 | G45: =COUNTIF(OFFSET(Policies!$K$4,$D45,0,$E45-$D45,1),G$22)/$C45 -> 0.04347826087 | H45: =COUNTIF(OFFSET(Policies!$K$4,$D45,0,$E45-$D45,1),H$22)/$C45 -> 0.1630434783 | I45: =COUNTIF(OFFSET(Policies!$K$4,$D45,0,$E45-$D45,1),I$22)/$C45 -> 0.125 | J45: =COUNTIF(OFFSET(Policies!$K$4,$D45,0,$E45-$D45,1),J$22)/$C45 -> 0.1195652174 | K45: =COUNTIF(OFFSET(Policies!$K$4,$D45,0,$E45-$D45,1),K$22)/$C45 -> 0.1467391304 | L45: =COUNTIF(OFFSET(Policies!$K$4,$D45,0,$E45-$D45,1),L$22)/$C45 -> 0.08695652174 | M45: =COUNTIF(OFFSET(Policies!$K$4,$D45,0,$E45-$D45,1),M$22)/$C45 -> 0.2065217391 | N45: =COUNTIF(OFFSET(Policies!$K$4,$D45,0,$E45-$D45,1),N$22)/$C45 -> 0.1086956522 | O45: 1 | Q45: =COUNTIF(OFFSET(Policies!$L$4,$D45,0,$E45-$D45,1),Q$22)/$C45 -> 0.07608695652 | R45: =COUNTIF(OFFSET(Policies!$L$4,$D45,0,$E45-$D45,1),R$22)/$C45 -> 0.1630434783 | S45: =COUNTIF(OFFSET(Policies!$L$4,$D45,0,$E45-$D45,1),S$22)/$C45 -> 0.125 | T45: =COUNTIF(OFFSET(Policies!$L$4,$D45,0,$E45-$D45,1),T$22)/$C45 -> 0.152173913 | U45: =COUNTIF(OFFSET(Policies!$L$4,$D45,0,$E45-$D45,1),U$22)/$C45 -> 0.1793478261 | V45: =COUNTIF(OFFSET(Policies!$L$4,$D45,0,$E45-$D45,1),V$22)/$C45 -> 0.1413043478 | W45: =COUNTIF(OFFSET(Policies!$L$4,$D45,0,$E45-$D45,1),W$22)/$C45 -> 0.1630434783 | X45: 1 | Z45: =COUNTIF(OFFSET(Policies!$M$4,$D45,0,$E45-$D45,1),Z$22)/$C45 -> 0.04347826087 | AA45: =COUNTIF(OFFSET(Policies!$M$4,$D45,0,$E45-$D45,1),AA$22)/$C45 -> 0.222826087 | AB45: =COUNTIF(OFFSET(Policies!$M$4,$D45,0,$E45-$D45,1),AB$22)/$C45 -> 0.2554347826 | AC45: =COUNTIF(OFFSET(Policies!$M$4,$D45,0,$E45-$D45,1),AC$22)/$C45 -> 0.1902173913 | AD45: =COUNTIF(OFFSET(Policies!$M$4,$D45,0,$E45-$D45,1),AD$22)/$C45 -> 0.2880434783 | AE45: 1 | AG45: =COUNTIF(OFFSET(Policies!$N$4,$D45,0,$E45-$D45,1),AG$22)/$C45 -> 0.1086956522 | AH45: =COUNTIF(OFFSET(Policies!$N$4,$D45,0,$E45-$D45,1),AH$22)/$C45 -> 0.125 | AI45: =COUNTIF(OFFSET(Policies!$N$4,$D45,0,$E45-$D45,1),AI$22)/$C45 -> 0.1630434783 | AJ45: =COUNTIF(OFFSET(Policies!$N$4,$D45,0,$E45-$D45,1),AJ$22)/$C45 -> 0.1413043478 | AK45: =COUNTIF(OFFSET(Policies!$N$4,$D45,0,$E45-$D45,1),AK$22)/$C45 -> 0.1141304348 | AL45: =COUNTIF(OFFSET(Policies!$N$4,$D45,0,$E45-$D45,1),AL$22)/$C45 -> 0.03804347826 | AM45: =COUNTIF(OFFSET(Policies!$N$4,$D45,0,$E45-$D45,1),AM$22)/$C45 -> 0.1684782609 | AN45: =COUNTIF(OFFSET(Policies!$N$4,$D45,0,$E45-$D45,1),AN$22)/$C45 -> 0.1413043478 | AO45: 1 | AQ45: =COUNTIF(OFFSET(Policies!$O$4,$D45,0,$E45-$D45,1),AQ$22)/$C45 -> 0.02717391304 | AR45: =COUNTIF(OFFSET(Policies!$O$4,$D45,0,$E45-$D45,1),AR$22)/$C45 -> 0.1467391304 | AS45: =COUNTIF(OFFSET(Policies!$O$4,$D45,0,$E45-$D45,1),AS$22)/$C45 -> 0.08695652174 | AT45: =COUNTIF(OFFSET(Policies!$O$4,$D45,0,$E45-$D45,1),AT$22)/$C45 -> 0.0652173913 | AU45: =COUNTIF(OFFSET(Policies!$O$4,$D45,0,$E45-$D45,1),AU$22)/$C45 -> 0.1195652174 | AV45: =COUNTIF(OFFSET(Policies!$O$4,$D45,0,$E45-$D45,1),AV$22)/$C45 -> 0.09239130435 | AW45: =COUNTIF(OFFSET(Policies!$O$4,$D45,0,$E45-$D45,1),AW$22)/$C45 -> 0.1141304348 | AX45: =COUNTIF(OFFSET(Policies!$O$4,$D45,0,$E45-$D45,1),AX$22)/$C45 -> 0.1304347826 | AY45: =COUNTIF(OFFSET(Policies!$O$4,$D45,0,$E45-$D45,1),AY$22)/$C45 -> 0.08695652174 | AZ45: =COUNTIF(OFFSET(Policies!$O$4,$D45,0,$E45-$D45,1),AZ$22)/$C45 -> 0.1304347826 | BA45: 1
A47: Rate | C47: Policy In force Weights by Relativity - Growth
A48: Level | B48: Date
A49: 1 | B49: =B36 -> 2019-07-01 | G49: =G4 -> 0.125 | H49: =H4 -> 0.125 | I49: 0.125 | J49: 0.125 | K49: 0.125 | L49: 0.125 | M49: 0.125 | N49: 0.125 | O49: =SUM(G49:N49) -> 1 | Q49: =Q4 -> 0.1428571429 | R49: 0.1428571429 | S49: 0.1428571429 | T49: 0.1428571429 | U49: 0.1428571429 | V49: 0.1428571429 | W49: 0.1428571429 | X49: =SUM(Q49:W49) -> 1 | Z49: =Z4 -> 0.2 | AA49: 0.2 | AB49: 0.2 | AC49: 0.2 | AD49: 0.2 | AE49: =SUM(Z49:AD49) -> 1 | AG49: =AG4 -> 0.125 | AH49: 0.125 | AI49: 0.125 | AJ49: 0.125 | AK49: 0.125 | AL49: 0.125 | AM49: 0.125 | AN49: 0.125 | AO49: =SUM(AG49:AN49) -> 1 | AQ49: =AQ4 -> 0.082 | AR49: 0.102 | AS49: 0.102 | AT49: 0.102 | AU49: 0.102 | AV49: 0.102 | AW49: 0.102 | AX49: 0.102 | AY49: 0.102 | AZ49: 0.102 | BA49: =SUM(AQ49:AZ49) -> 1
A50: 2 | B50: =B37 -> 2020-07-15 | C50: =E50-D50 -> 0 | D50: =COUNTIF(OFFSET(Growth!$J$5,0,0,MATCH(EDATE(B50,-6),Growth!$B$5:$B$2014,0),1),"<>0") -> 0 | E50: =COUNTIF(OFFSET(Growth!$J$5,0,0,MATCH(B50,Growth!$B$5:$B$2014,0),1),"<>0") -> 0 | G50: =IFERROR(COUNTIF(OFFSET(Growth!$K$4,$D37,0,$E37-$D37,1),G$22)/$C50,0) -> 0 | H50: =IFERROR(COUNTIF(OFFSET(Growth!$K$4,$D37,0,$E37-$D37,1),H$22)/$C50,0) -> 0 | I50: =IFERROR(COUNTIF(OFFSET(Growth!$K$4,$D37,0,$E37-$D37,1),I$22)/$C50,0) -> 0 | J50: =IFERROR(COUNTIF(OFFSET(Growth!$K$4,$D37,0,$E37-$D37,1),J$22)/$C50,0) -> 0 | K50: =IFERROR(COUNTIF(OFFSET(Growth!$K$4,$D37,0,$E37-$D37,1),K$22)/$C50,0) -> 0 | L50: =IFERROR(COUNTIF(OFFSET(Growth!$K$4,$D37,0,$E37-$D37,1),L$22)/$C50,0) -> 0 | M50: =IFERROR(COUNTIF(OFFSET(Growth!$K$4,$D37,0,$E37-$D37,1),M$22)/$C50,0) -> 0 | N50: =IFERROR(COUNTIF(OFFSET(Growth!$K$4,$D37,0,$E37-$D37,1),N$22)/$C50,0) -> 0 | O50: =SUM(G50:N50) -> 0 | Q50: =IFERROR(COUNTIF(OFFSET(Growth!$L$4,$D37,0,$E37-$D37,1),Q$22)/$C50,0) -> 0 | R50: =IFERROR(COUNTIF(OFFSET(Growth!$L$4,$D37,0,$E37-$D37,1),R$22)/$C50,0) -> 0 | S50: =IFERROR(COUNTIF(OFFSET(Growth!$L$4,$D37,0,$E37-$D37,1),S$22)/$C50,0) -> 0 | T50: =IFERROR(COUNTIF(OFFSET(Growth!$L$4,$D37,0,$E37-$D37,1),T$22)/$C50,0) -> 0 | U50: =IFERROR(COUNTIF(OFFSET(Growth!$L$4,$D37,0,$E37-$D37,1),U$22)/$C50,0) -> 0 | V50: =IFERROR(COUNTIF(OFFSET(Growth!$L$4,$D37,0,$E37-$D37,1),V$22)/$C50,0) -> 0 | W50: =IFERROR(COUNTIF(OFFSET(Growth!$L$4,$D37,0,$E37-$D37,1),W$22)/$C50,0) -> 0 | X50: =SUM(Q50:W50) -> 0 | Z50: =IFERROR(COUNTIF(OFFSET(Growth!$M$4,$D37,0,$E37-$D37,1),Z$22)/$C50,0) -> 0 | AA50: =IFERROR(COUNTIF(OFFSET(Growth!$M$4,$D37,0,$E37-$D37,1),AA$22)/$C50,0) -> 0 | AB50: =IFERROR(COUNTIF(OFFSET(Growth!$M$4,$D37,0,$E37-$D37,1),AB$22)/$C50,0) -> 0 | AC50: =IFERROR(COUNTIF(OFFSET(Growth!$M$4,$D37,0,$E37-$D37,1),AC$22)/$C50,0) -> 0 | AD50: =IFERROR(COUNTIF(OFFSET(Growth!$M$4,$D37,0,$E37-$D37,1),AD$22)/$C50,0) -> 0 | AE50: =SUM(Z50:AD50) -> 0 | AG50: =IFERROR(COUNTIF(OFFSET(Growth!$N$4,$D37,0,$E37-$D37,1),AG$22)/$C50,0) -> 0 | AH50: =IFERROR(COUNTIF(OFFSET(Growth!$N$4,$D37,0,$E37-$D37,1),AH$22)/$C50,0) -> 0 | AI50: =IFERROR(COUNTIF(OFFSET(Growth!$N$4,$D37,0,$E37-$D37,1),AI$22)/$C50,0) -> 0 | AJ50: =IFERROR(COUNTIF(OFFSET(Growth!$N$4,$D37,0,$E37-$D37,1),AJ$22)/$C50,0) -> 0 | AK50: =IFERROR(COUNTIF(OFFSET(Growth!$N$4,$D37,0,$E37-$D37,1),AK$22)/$C50,0) -> 0 | AL50: =IFERROR(COUNTIF(OFFSET(Growth!$N$4,$D37,0,$E37-$D37,1),AL$22)/$C50,0) -> 0 | AM50: =IFERROR(COUNTIF(OFFSET(Growth!$N$4,$D37,0,$E37-$D37,1),AM$22)/$C50,0) -> 0 | AN50: =IFERROR(COUNTIF(OFFSET(Growth!$N$4,$D37,0,$E37-$D37,1),AN$22)/$C50,0) -> 0 | AO50: =SUM(AG50:AN50) -> 0 | AQ50: =IFERROR(COUNTIF(OFFSET(Growth!$O$4,$D37,0,$E37-$D37,1),AQ$22)/$C50,0) -> 0 | AR50: =IFERROR(COUNTIF(OFFSET(Growth!$O$4,$D37,0,$E37-$D37,1),AR$22)/$C50,0) -> 0 | AS50: =IFERROR(COUNTIF(OFFSET(Growth!$O$4,$D37,0,$E37-$D37,1),AS$22)/$C50,0) -> 0 | AT50: =IFERROR(COUNTIF(OFFSET(Growth!$O$4,$D37,0,$E37-$D37,1),AT$22)/$C50,0) -> 0 | AU50: =IFERROR(COUNTIF(OFFSET(Growth!$O$4,$D37,0,$E37-$D37,1),AU$22)/$C50,0) -> 0 | AV50: =IFERROR(COUNTIF(OFFSET(Growth!$O$4,$D37,0,$E37-$D37,1),AV$22)/$C50,0) -> 0 | AW50: =IFERROR(COUNTIF(OFFSET(Growth!$O$4,$D37,0,$E37-$D37,1),AW$22)/$C50,0) -> 0 | AX50: =IFERROR(COUNTIF(OFFSET(Growth!$O$4,$D37,0,$E37-$D37,1),AX$22)/$C50,0) -> 0 | AY50: =IFERROR(COUNTIF(OFFSET(Growth!$O$4,$D37,0,$E37-$D37,1),AY$22)/$C50,0) -> 0 | AZ50: =IFERROR(COUNTIF(OFFSET(Growth!$O$4,$D37,0,$E37-$D37,1),AZ$22)/$C50,0) -> 0 | BA50: =SUM(AQ50:AZ50) -> 0
A51: 3 | B51: 2021-01-15 | C51: =E51-D51 -> 0 | D51: =COUNTIF(OFFSET(Growth!$J$5,0,0,MATCH(EDATE(B51,-6),Growth!$B$5:$B$2014,0),1),"<>0") -> 0 | E51: =COUNTIF(OFFSET(Growth!$J$5,0,0,MATCH(B51,Growth!$B$5:$B$2014,0),1),"<>0") -> 0 | G51: =IFERROR(COUNTIF(OFFSET(Growth!$K$4,$D38,0,$E38-$D38,1),G$22)/$C51,0) -> 0 | H51: =IFERROR(COUNTIF(OFFSET(Growth!$K$4,$D38,0,$E38-$D38,1),H$22)/$C51,0) -> 0 | I51: =IFERROR(COUNTIF(OFFSET(Growth!$K$4,$D38,0,$E38-$D38,1),I$22)/$C51,0) -> 0 | J51: =IFERROR(COUNTIF(OFFSET(Growth!$K$4,$D38,0,$E38-$D38,1),J$22)/$C51,0) -> 0 | K51: =IFERROR(COUNTIF(OFFSET(Growth!$K$4,$D38,0,$E38-$D38,1),K$22)/$C51,0) -> 0 | L51: =IFERROR(COUNTIF(OFFSET(Growth!$K$4,$D38,0,$E38-$D38,1),L$22)/$C51,0) -> 0 | M51: =IFERROR(COUNTIF(OFFSET(Growth!$K$4,$D38,0,$E38-$D38,1),M$22)/$C51,0) -> 0 | N51: =IFERROR(COUNTIF(OFFSET(Growth!$K$4,$D38,0,$E38-$D38,1),N$22)/$C51,0) -> 0 | O51: 0 | Q51: =IFERROR(COUNTIF(OFFSET(Growth!$L$4,$D38,0,$E38-$D38,1),Q$22)/$C51,0) -> 0 | R51: =IFERROR(COUNTIF(OFFSET(Growth!$L$4,$D38,0,$E38-$D38,1),R$22)/$C51,0) -> 0 | S51: =IFERROR(COUNTIF(OFFSET(Growth!$L$4,$D38,0,$E38-$D38,1),S$22)/$C51,0) -> 0 | T51: =IFERROR(COUNTIF(OFFSET(Growth!$L$4,$D38,0,$E38-$D38,1),T$22)/$C51,0) -> 0 | U51: =IFERROR(COUNTIF(OFFSET(Growth!$L$4,$D38,0,$E38-$D38,1),U$22)/$C51,0) -> 0 | V51: =IFERROR(COUNTIF(OFFSET(Growth!$L$4,$D38,0,$E38-$D38,1),V$22)/$C51,0) -> 0 | W51: =IFERROR(COUNTIF(OFFSET(Growth!$L$4,$D38,0,$E38-$D38,1),W$22)/$C51,0) -> 0 | X51: 0 | Z51: =IFERROR(COUNTIF(OFFSET(Growth!$M$4,$D38,0,$E38-$D38,1),Z$22)/$C51,0) -> 0 | AA51: =IFERROR(COUNTIF(OFFSET(Growth!$M$4,$D38,0,$E38-$D38,1),AA$22)/$C51,0) -> 0 | AB51: =IFERROR(COUNTIF(OFFSET(Growth!$M$4,$D38,0,$E38-$D38,1),AB$22)/$C51,0) -> 0 | AC51: =IFERROR(COUNTIF(OFFSET(Growth!$M$4,$D38,0,$E38-$D38,1),AC$22)/$C51,0) -> 0 | AD51: =IFERROR(COUNTIF(OFFSET(Growth!$M$4,$D38,0,$E38-$D38,1),AD$22)/$C51,0) -> 0 | AE51: 0 | AG51: =IFERROR(COUNTIF(OFFSET(Growth!$N$4,$D38,0,$E38-$D38,1),AG$22)/$C51,0) -> 0 | AH51: =IFERROR(COUNTIF(OFFSET(Growth!$N$4,$D38,0,$E38-$D38,1),AH$22)/$C51,0) -> 0 | AI51: =IFERROR(COUNTIF(OFFSET(Growth!$N$4,$D38,0,$E38-$D38,1),AI$22)/$C51,0) -> 0 | AJ51: =IFERROR(COUNTIF(OFFSET(Growth!$N$4,$D38,0,$E38-$D38,1),AJ$22)/$C51,0) -> 0 | AK51: =IFERROR(COUNTIF(OFFSET(Growth!$N$4,$D38,0,$E38-$D38,1),AK$22)/$C51,0) -> 0 | AL51: =IFERROR(COUNTIF(OFFSET(Growth!$N$4,$D38,0,$E38-$D38,1),AL$22)/$C51,0) -> 0 | AM51: =IFERROR(COUNTIF(OFFSET(Growth!$N$4,$D38,0,$E38-$D38,1),AM$22)/$C51,0) -> 0 | AN51: =IFERROR(COUNTIF(OFFSET(Growth!$N$4,$D38,0,$E38-$D38,1),AN$22)/$C51,0) -> 0 | AO51: 0 | AQ51: =IFERROR(COUNTIF(OFFSET(Growth!$O$4,$D38,0,$E38-$D38,1),AQ$22)/$C51,0) -> 0 | AR51: =IFERROR(COUNTIF(OFFSET(Growth!$O$4,$D38,0,$E38-$D38,1),AR$22)/$C51,0) -> 0 | AS51: =IFERROR(COUNTIF(OFFSET(Growth!$O$4,$D38,0,$E38-$D38,1),AS$22)/$C51,0) -> 0 | AT51: =IFERROR(COUNTIF(OFFSET(Growth!$O$4,$D38,0,$E38-$D38,1),AT$22)/$C51,0) -> 0 | AU51: =IFERROR(COUNTIF(OFFSET(Growth!$O$4,$D38,0,$E38-$D38,1),AU$22)/$C51,0) -> 0 | AV51: =IFERROR(COUNTIF(OFFSET(Growth!$O$4,$D38,0,$E38-$D38,1),AV$22)/$C51,0) -> 0 | AW51: =IFERROR(COUNTIF(OFFSET(Growth!$O$4,$D38,0,$E38-$D38,1),AW$22)/$C51,0) -> 0 | AX51: =IFERROR(COUNTIF(OFFSET(Growth!$O$4,$D38,0,$E38-$D38,1),AX$22)/$C51,0) -> 0 | AY51: =IFERROR(COUNTIF(OFFSET(Growth!$O$4,$D38,0,$E38-$D38,1),AY$22)/$C51,0) -> 0 | AZ51: =IFERROR(COUNTIF(OFFSET(Growth!$O$4,$D38,0,$E38-$D38,1),AZ$22)/$C51,0) -> 0 | BA51: 0
A52: 4 | B52: 2021-08-01 | C52: 0 | D52: =COUNTIF(OFFSET(Growth!$J$5,0,0,MATCH(EDATE(B52,-6),Growth!$B$5:$B$2014,0),1),"<>0") -> 0 | E52: =COUNTIF(OFFSET(Growth!$J$5,0,0,MATCH(B52,Growth!$B$5:$B$2014,0),1),"<>0") -> 0 | G52: =IFERROR(COUNTIF(OFFSET(Growth!$K$4,$D39,0,$E39-$D39,1),G$22)/$C52,0) -> 0 | H52: =IFERROR(COUNTIF(OFFSET(Growth!$K$4,$D39,0,$E39-$D39,1),H$22)/$C52,0) -> 0 | I52: =IFERROR(COUNTIF(OFFSET(Growth!$K$4,$D39,0,$E39-$D39,1),I$22)/$C52,0) -> 0 | J52: =IFERROR(COUNTIF(OFFSET(Growth!$K$4,$D39,0,$E39-$D39,1),J$22)/$C52,0) -> 0 | K52: =IFERROR(COUNTIF(OFFSET(Growth!$K$4,$D39,0,$E39-$D39,1),K$22)/$C52,0) -> 0 | L52: =IFERROR(COUNTIF(OFFSET(Growth!$K$4,$D39,0,$E39-$D39,1),L$22)/$C52,0) -> 0 | M52: =IFERROR(COUNTIF(OFFSET(Growth!$K$4,$D39,0,$E39-$D39,1),M$22)/$C52,0) -> 0 | N52: =IFERROR(COUNTIF(OFFSET(Growth!$K$4,$D39,0,$E39-$D39,1),N$22)/$C52,0) -> 0 | O52: 0 | Q52: =IFERROR(COUNTIF(OFFSET(Growth!$L$4,$D39,0,$E39-$D39,1),Q$22)/$C52,0) -> 0 | R52: =IFERROR(COUNTIF(OFFSET(Growth!$L$4,$D39,0,$E39-$D39,1),R$22)/$C52,0) -> 0 | S52: =IFERROR(COUNTIF(OFFSET(Growth!$L$4,$D39,0,$E39-$D39,1),S$22)/$C52,0) -> 0 | T52: =IFERROR(COUNTIF(OFFSET(Growth!$L$4,$D39,0,$E39-$D39,1),T$22)/$C52,0) -> 0 | U52: =IFERROR(COUNTIF(OFFSET(Growth!$L$4,$D39,0,$E39-$D39,1),U$22)/$C52,0) -> 0 | V52: =IFERROR(COUNTIF(OFFSET(Growth!$L$4,$D39,0,$E39-$D39,1),V$22)/$C52,0) -> 0 | W52: =IFERROR(COUNTIF(OFFSET(Growth!$L$4,$D39,0,$E39-$D39,1),W$22)/$C52,0) -> 0 | X52: 0 | Z52: =IFERROR(COUNTIF(OFFSET(Growth!$M$4,$D39,0,$E39-$D39,1),Z$22)/$C52,0) -> 0 | AA52: =IFERROR(COUNTIF(OFFSET(Growth!$M$4,$D39,0,$E39-$D39,1),AA$22)/$C52,0) -> 0 | AB52: =IFERROR(COUNTIF(OFFSET(Growth!$M$4,$D39,0,$E39-$D39,1),AB$22)/$C52,0) -> 0 | AC52: =IFERROR(COUNTIF(OFFSET(Growth!$M$4,$D39,0,$E39-$D39,1),AC$22)/$C52,0) -> 0 | AD52: =IFERROR(COUNTIF(OFFSET(Growth!$M$4,$D39,0,$E39-$D39,1),AD$22)/$C52,0) -> 0 | AE52: 0 | AG52: =IFERROR(COUNTIF(OFFSET(Growth!$N$4,$D39,0,$E39-$D39,1),AG$22)/$C52,0) -> 0 | AH52: =IFERROR(COUNTIF(OFFSET(Growth!$N$4,$D39,0,$E39-$D39,1),AH$22)/$C52,0) -> 0 | AI52: =IFERROR(COUNTIF(OFFSET(Growth!$N$4,$D39,0,$E39-$D39,1),AI$22)/$C52,0) -> 0 | AJ52: =IFERROR(COUNTIF(OFFSET(Growth!$N$4,$D39,0,$E39-$D39,1),AJ$22)/$C52,0) -> 0 | AK52: =IFERROR(COUNTIF(OFFSET(Growth!$N$4,$D39,0,$E39-$D39,1),AK$22)/$C52,0) -> 0 | AL52: =IFERROR(COUNTIF(OFFSET(Growth!$N$4,$D39,0,$E39-$D39,1),AL$22)/$C52,0) -> 0 | AM52: =IFERROR(COUNTIF(OFFSET(Growth!$N$4,$D39,0,$E39-$D39,1),AM$22)/$C52,0) -> 0 | AN52: =IFERROR(COUNTIF(OFFSET(Growth!$N$4,$D39,0,$E39-$D39,1),AN$22)/$C52,0) -> 0 | AO52: 0 | AQ52: =IFERROR(COUNTIF(OFFSET(Growth!$O$4,$D39,0,$E39-$D39,1),AQ$22)/$C52,0) -> 0 | AR52: =IFERROR(COUNTIF(OFFSET(Growth!$O$4,$D39,0,$E39-$D39,1),AR$22)/$C52,0) -> 0 | AS52: =IFERROR(COUNTIF(OFFSET(Growth!$O$4,$D39,0,$E39-$D39,1),AS$22)/$C52,0) -> 0 | AT52: =IFERROR(COUNTIF(OFFSET(Growth!$O$4,$D39,0,$E39-$D39,1),AT$22)/$C52,0) -> 0 | AU52: =IFERROR(COUNTIF(OFFSET(Growth!$O$4,$D39,0,$E39-$D39,1),AU$22)/$C52,0) -> 0 | AV52: =IFERROR(COUNTIF(OFFSET(Growth!$O$4,$D39,0,$E39-$D39,1),AV$22)/$C52,0) -> 0 | AW52: =IFERROR(COUNTIF(OFFSET(Growth!$O$4,$D39,0,$E39-$D39,1),AW$22)/$C52,0) -> 0 | AX52: =IFERROR(COUNTIF(OFFSET(Growth!$O$4,$D39,0,$E39-$D39,1),AX$22)/$C52,0) -> 0 | AY52: =IFERROR(COUNTIF(OFFSET(Growth!$O$4,$D39,0,$E39-$D39,1),AY$22)/$C52,0) -> 0 | AZ52: =IFERROR(COUNTIF(OFFSET(Growth!$O$4,$D39,0,$E39-$D39,1),AZ$22)/$C52,0) -> 0 | BA52: 0
A53: 5 | B53: 2022-02-01 | C53: 0 | D53: =COUNTIF(OFFSET(Growth!$J$5,0,0,MATCH(EDATE(B53,-6),Growth!$B$5:$B$2014,0),1),"<>0") -> 0 | E53: =COUNTIF(OFFSET(Growth!$J$5,0,0,MATCH(B53,Growth!$B$5:$B$2014,0),1),"<>0") -> 0 | G53: =IFERROR(COUNTIF(OFFSET(Growth!$K$4,$D40,0,$E40-$D40,1),G$22)/$C53,0) -> 0 | H53: =IFERROR(COUNTIF(OFFSET(Growth!$K$4,$D40,0,$E40-$D40,1),H$22)/$C53,0) -> 0 | I53: =IFERROR(COUNTIF(OFFSET(Growth!$K$4,$D40,0,$E40-$D40,1),I$22)/$C53,0) -> 0 | J53: =IFERROR(COUNTIF(OFFSET(Growth!$K$4,$D40,0,$E40-$D40,1),J$22)/$C53,0) -> 0 | K53: =IFERROR(COUNTIF(OFFSET(Growth!$K$4,$D40,0,$E40-$D40,1),K$22)/$C53,0) -> 0 | L53: =IFERROR(COUNTIF(OFFSET(Growth!$K$4,$D40,0,$E40-$D40,1),L$22)/$C53,0) -> 0 | M53: =IFERROR(COUNTIF(OFFSET(Growth!$K$4,$D40,0,$E40-$D40,1),M$22)/$C53,0) -> 0 | N53: =IFERROR(COUNTIF(OFFSET(Growth!$K$4,$D40,0,$E40-$D40,1),N$22)/$C53,0) -> 0 | O53: 0 | Q53: =IFERROR(COUNTIF(OFFSET(Growth!$L$4,$D40,0,$E40-$D40,1),Q$22)/$C53,0) -> 0 | R53: =IFERROR(COUNTIF(OFFSET(Growth!$L$4,$D40,0,$E40-$D40,1),R$22)/$C53,0) -> 0 | S53: =IFERROR(COUNTIF(OFFSET(Growth!$L$4,$D40,0,$E40-$D40,1),S$22)/$C53,0) -> 0 | T53: =IFERROR(COUNTIF(OFFSET(Growth!$L$4,$D40,0,$E40-$D40,1),T$22)/$C53,0) -> 0 | U53: =IFERROR(COUNTIF(OFFSET(Growth!$L$4,$D40,0,$E40-$D40,1),U$22)/$C53,0) -> 0 | V53: =IFERROR(COUNTIF(OFFSET(Growth!$L$4,$D40,0,$E40-$D40,1),V$22)/$C53,0) -> 0 | W53: =IFERROR(COUNTIF(OFFSET(Growth!$L$4,$D40,0,$E40-$D40,1),W$22)/$C53,0) -> 0 | X53: 0 | Z53: =IFERROR(COUNTIF(OFFSET(Growth!$M$4,$D40,0,$E40-$D40,1),Z$22)/$C53,0) -> 0 | AA53: =IFERROR(COUNTIF(OFFSET(Growth!$M$4,$D40,0,$E40-$D40,1),AA$22)/$C53,0) -> 0 | AB53: =IFERROR(COUNTIF(OFFSET(Growth!$M$4,$D40,0,$E40-$D40,1),AB$22)/$C53,0) -> 0 | AC53: =IFERROR(COUNTIF(OFFSET(Growth!$M$4,$D40,0,$E40-$D40,1),AC$22)/$C53,0) -> 0 | AD53: =IFERROR(COUNTIF(OFFSET(Growth!$M$4,$D40,0,$E40-$D40,1),AD$22)/$C53,0) -> 0 | AE53: 0 | AG53: =IFERROR(COUNTIF(OFFSET(Growth!$N$4,$D40,0,$E40-$D40,1),AG$22)/$C53,0) -> 0 | AH53: =IFERROR(COUNTIF(OFFSET(Growth!$N$4,$D40,0,$E40-$D40,1),AH$22)/$C53,0) -> 0 | AI53: =IFERROR(COUNTIF(OFFSET(Growth!$N$4,$D40,0,$E40-$D40,1),AI$22)/$C53,0) -> 0 | AJ53: =IFERROR(COUNTIF(OFFSET(Growth!$N$4,$D40,0,$E40-$D40,1),AJ$22)/$C53,0) -> 0 | AK53: =IFERROR(COUNTIF(OFFSET(Growth!$N$4,$D40,0,$E40-$D40,1),AK$22)/$C53,0) -> 0 | AL53: =IFERROR(COUNTIF(OFFSET(Growth!$N$4,$D40,0,$E40-$D40,1),AL$22)/$C53,0) -> 0 | AM53: =IFERROR(COUNTIF(OFFSET(Growth!$N$4,$D40,0,$E40-$D40,1),AM$22)/$C53,0) -> 0 | AN53: =IFERROR(COUNTIF(OFFSET(Growth!$N$4,$D40,0,$E40-$D40,1),AN$22)/$C53,0) -> 0 | AO53: 0 | AQ53: =IFERROR(COUNTIF(OFFSET(Growth!$O$4,$D40,0,$E40-$D40,1),AQ$22)/$C53,0) -> 0 | AR53: =IFERROR(COUNTIF(OFFSET(Growth!$O$4,$D40,0,$E40-$D40,1),AR$22)/$C53,0) -> 0 | AS53: =IFERROR(COUNTIF(OFFSET(Growth!$O$4,$D40,0,$E40-$D40,1),AS$22)/$C53,0) -> 0 | AT53: =IFERROR(COUNTIF(OFFSET(Growth!$O$4,$D40,0,$E40-$D40,1),AT$22)/$C53,0) -> 0 | AU53: =IFERROR(COUNTIF(OFFSET(Growth!$O$4,$D40,0,$E40-$D40,1),AU$22)/$C53,0) -> 0 | AV53: =IFERROR(COUNTIF(OFFSET(Growth!$O$4,$D40,0,$E40-$D40,1),AV$22)/$C53,0) -> 0 | AW53: =IFERROR(COUNTIF(OFFSET(Growth!$O$4,$D40,0,$E40-$D40,1),AW$22)/$C53,0) -> 0 | AX53: =IFERROR(COUNTIF(OFFSET(Growth!$O$4,$D40,0,$E40-$D40,1),AX$22)/$C53,0) -> 0 | AY53: =IFERROR(COUNTIF(OFFSET(Growth!$O$4,$D40,0,$E40-$D40,1),AY$22)/$C53,0) -> 0 | AZ53: =IFERROR(COUNTIF(OFFSET(Growth!$O$4,$D40,0,$E40-$D40,1),AZ$22)/$C53,0) -> 0 | BA53: 0
A54: 6 | B54: 2022-10-01 | C54: 0 | D54: =COUNTIF(OFFSET(Growth!$J$5,0,0,MATCH(EDATE(B54,-6),Growth!$B$5:$B$2014,0),1),"<>0") -> 0 | E54: =COUNTIF(OFFSET(Growth!$J$5,0,0,MATCH(B54,Growth!$B$5:$B$2014,0),1),"<>0") -> 0 | G54: =IFERROR(COUNTIF(OFFSET(Growth!$K$4,$D41,0,$E41-$D41,1),G$22)/$C54,0) -> 0 | H54: =IFERROR(COUNTIF(OFFSET(Growth!$K$4,$D41,0,$E41-$D41,1),H$22)/$C54,0) -> 0 | I54: =IFERROR(COUNTIF(OFFSET(Growth!$K$4,$D41,0,$E41-$D41,1),I$22)/$C54,0) -> 0 | J54: =IFERROR(COUNTIF(OFFSET(Growth!$K$4,$D41,0,$E41-$D41,1),J$22)/$C54,0) -> 0 | K54: =IFERROR(COUNTIF(OFFSET(Growth!$K$4,$D41,0,$E41-$D41,1),K$22)/$C54,0) -> 0 | L54: =IFERROR(COUNTIF(OFFSET(Growth!$K$4,$D41,0,$E41-$D41,1),L$22)/$C54,0) -> 0 | M54: =IFERROR(COUNTIF(OFFSET(Growth!$K$4,$D41,0,$E41-$D41,1),M$22)/$C54,0) -> 0 | N54: =IFERROR(COUNTIF(OFFSET(Growth!$K$4,$D41,0,$E41-$D41,1),N$22)/$C54,0) -> 0 | O54: 0 | Q54: =IFERROR(COUNTIF(OFFSET(Growth!$L$4,$D41,0,$E41-$D41,1),Q$22)/$C54,0) -> 0 | R54: =IFERROR(COUNTIF(OFFSET(Growth!$L$4,$D41,0,$E41-$D41,1),R$22)/$C54,0) -> 0 | S54: =IFERROR(COUNTIF(OFFSET(Growth!$L$4,$D41,0,$E41-$D41,1),S$22)/$C54,0) -> 0 | T54: =IFERROR(COUNTIF(OFFSET(Growth!$L$4,$D41,0,$E41-$D41,1),T$22)/$C54,0) -> 0 | U54: =IFERROR(COUNTIF(OFFSET(Growth!$L$4,$D41,0,$E41-$D41,1),U$22)/$C54,0) -> 0 | V54: =IFERROR(COUNTIF(OFFSET(Growth!$L$4,$D41,0,$E41-$D41,1),V$22)/$C54,0) -> 0 | W54: =IFERROR(COUNTIF(OFFSET(Growth!$L$4,$D41,0,$E41-$D41,1),W$22)/$C54,0) -> 0 | X54: 0 | Z54: =IFERROR(COUNTIF(OFFSET(Growth!$M$4,$D41,0,$E41-$D41,1),Z$22)/$C54,0) -> 0 | AA54: =IFERROR(COUNTIF(OFFSET(Growth!$M$4,$D41,0,$E41-$D41,1),AA$22)/$C54,0) -> 0 | AB54: =IFERROR(COUNTIF(OFFSET(Growth!$M$4,$D41,0,$E41-$D41,1),AB$22)/$C54,0) -> 0 | AC54: =IFERROR(COUNTIF(OFFSET(Growth!$M$4,$D41,0,$E41-$D41,1),AC$22)/$C54,0) -> 0 | AD54: =IFERROR(COUNTIF(OFFSET(Growth!$M$4,$D41,0,$E41-$D41,1),AD$22)/$C54,0) -> 0 | AE54: 0 | AG54: =IFERROR(COUNTIF(OFFSET(Growth!$N$4,$D41,0,$E41-$D41,1),AG$22)/$C54,0) -> 0 | AH54: =IFERROR(COUNTIF(OFFSET(Growth!$N$4,$D41,0,$E41-$D41,1),AH$22)/$C54,0) -> 0 | AI54: =IFERROR(COUNTIF(OFFSET(Growth!$N$4,$D41,0,$E41-$D41,1),AI$22)/$C54,0) -> 0 | AJ54: =IFERROR(COUNTIF(OFFSET(Growth!$N$4,$D41,0,$E41-$D41,1),AJ$22)/$C54,0) -> 0 | AK54: =IFERROR(COUNTIF(OFFSET(Growth!$N$4,$D41,0,$E41-$D41,1),AK$22)/$C54,0) -> 0 | AL54: =IFERROR(COUNTIF(OFFSET(Growth!$N$4,$D41,0,$E41-$D41,1),AL$22)/$C54,0) -> 0 | AM54: =IFERROR(COUNTIF(OFFSET(Growth!$N$4,$D41,0,$E41-$D41,1),AM$22)/$C54,0) -> 0 | AN54: =IFERROR(COUNTIF(OFFSET(Growth!$N$4,$D41,0,$E41-$D41,1),AN$22)/$C54,0) -> 0 | AO54: 0 | AQ54: =IFERROR(COUNTIF(OFFSET(Growth!$O$4,$D41,0,$E41-$D41,1),AQ$22)/$C54,0) -> 0 | AR54: =IFERROR(COUNTIF(OFFSET(Growth!$O$4,$D41,0,$E41-$D41,1),AR$22)/$C54,0) -> 0 | AS54: =IFERROR(COUNTIF(OFFSET(Growth!$O$4,$D41,0,$E41-$D41,1),AS$22)/$C54,0) -> 0 | AT54: =IFERROR(COUNTIF(OFFSET(Growth!$O$4,$D41,0,$E41-$D41,1),AT$22)/$C54,0) -> 0 | AU54: =IFERROR(COUNTIF(OFFSET(Growth!$O$4,$D41,0,$E41-$D41,1),AU$22)/$C54,0) -> 0 | AV54: =IFERROR(COUNTIF(OFFSET(Growth!$O$4,$D41,0,$E41-$D41,1),AV$22)/$C54,0) -> 0 | AW54: =IFERROR(COUNTIF(OFFSET(Growth!$O$4,$D41,0,$E41-$D41,1),AW$22)/$C54,0) -> 0 | AX54: =IFERROR(COUNTIF(OFFSET(Growth!$O$4,$D41,0,$E41-$D41,1),AX$22)/$C54,0) -> 0 | AY54: =IFERROR(COUNTIF(OFFSET(Growth!$O$4,$D41,0,$E41-$D41,1),AY$22)/$C54,0) -> 0 | AZ54: =IFERROR(COUNTIF(OFFSET(Growth!$O$4,$D41,0,$E41-$D41,1),AZ$22)/$C54,0) -> 0 | BA54: 0
A55: 7 | B55: 2023-03-01 | C55: 0 | D55: =COUNTIF(OFFSET(Growth!$J$5,0,0,MATCH(EDATE(B55,-6),Growth!$B$5:$B$2014,0),1),"<>0") -> 0 | E55: =COUNTIF(OFFSET(Growth!$J$5,0,0,MATCH(B55,Growth!$B$5:$B$2014,0),1),"<>0") -> 0 | G55: =IFERROR(COUNTIF(OFFSET(Growth!$K$4,$D42,0,$E42-$D42,1),G$22)/$C55,0) -> 0 | H55: =IFERROR(COUNTIF(OFFSET(Growth!$K$4,$D42,0,$E42-$D42,1),H$22)/$C55,0) -> 0 | I55: =IFERROR(COUNTIF(OFFSET(Growth!$K$4,$D42,0,$E42-$D42,1),I$22)/$C55,0) -> 0 | J55: =IFERROR(COUNTIF(OFFSET(Growth!$K$4,$D42,0,$E42-$D42,1),J$22)/$C55,0) -> 0 | K55: =IFERROR(COUNTIF(OFFSET(Growth!$K$4,$D42,0,$E42-$D42,1),K$22)/$C55,0) -> 0 | L55: =IFERROR(COUNTIF(OFFSET(Growth!$K$4,$D42,0,$E42-$D42,1),L$22)/$C55,0) -> 0 | M55: =IFERROR(COUNTIF(OFFSET(Growth!$K$4,$D42,0,$E42-$D42,1),M$22)/$C55,0) -> 0 | N55: =IFERROR(COUNTIF(OFFSET(Growth!$K$4,$D42,0,$E42-$D42,1),N$22)/$C55,0) -> 0 | O55: 0 | Q55: =IFERROR(COUNTIF(OFFSET(Growth!$L$4,$D42,0,$E42-$D42,1),Q$22)/$C55,0) -> 0 | R55: =IFERROR(COUNTIF(OFFSET(Growth!$L$4,$D42,0,$E42-$D42,1),R$22)/$C55,0) -> 0 | S55: =IFERROR(COUNTIF(OFFSET(Growth!$L$4,$D42,0,$E42-$D42,1),S$22)/$C55,0) -> 0 | T55: =IFERROR(COUNTIF(OFFSET(Growth!$L$4,$D42,0,$E42-$D42,1),T$22)/$C55,0) -> 0 | U55: =IFERROR(COUNTIF(OFFSET(Growth!$L$4,$D42,0,$E42-$D42,1),U$22)/$C55,0) -> 0 | V55: =IFERROR(COUNTIF(OFFSET(Growth!$L$4,$D42,0,$E42-$D42,1),V$22)/$C55,0) -> 0 | W55: =IFERROR(COUNTIF(OFFSET(Growth!$L$4,$D42,0,$E42-$D42,1),W$22)/$C55,0) -> 0 | X55: 0 | Z55: =IFERROR(COUNTIF(OFFSET(Growth!$M$4,$D42,0,$E42-$D42,1),Z$22)/$C55,0) -> 0 | AA55: =IFERROR(COUNTIF(OFFSET(Growth!$M$4,$D42,0,$E42-$D42,1),AA$22)/$C55,0) -> 0 | AB55: =IFERROR(COUNTIF(OFFSET(Growth!$M$4,$D42,0,$E42-$D42,1),AB$22)/$C55,0) -> 0 | AC55: =IFERROR(COUNTIF(OFFSET(Growth!$M$4,$D42,0,$E42-$D42,1),AC$22)/$C55,0) -> 0 | AD55: =IFERROR(COUNTIF(OFFSET(Growth!$M$4,$D42,0,$E42-$D42,1),AD$22)/$C55,0) -> 0 | AE55: 0 | AG55: =IFERROR(COUNTIF(OFFSET(Growth!$N$4,$D42,0,$E42-$D42,1),AG$22)/$C55,0) -> 0 | AH55: =IFERROR(COUNTIF(OFFSET(Growth!$N$4,$D42,0,$E42-$D42,1),AH$22)/$C55,0) -> 0 | AI55: =IFERROR(COUNTIF(OFFSET(Growth!$N$4,$D42,0,$E42-$D42,1),AI$22)/$C55,0) -> 0 | AJ55: =IFERROR(COUNTIF(OFFSET(Growth!$N$4,$D42,0,$E42-$D42,1),AJ$22)/$C55,0) -> 0 | AK55: =IFERROR(COUNTIF(OFFSET(Growth!$N$4,$D42,0,$E42-$D42,1),AK$22)/$C55,0) -> 0 | AL55: =IFERROR(COUNTIF(OFFSET(Growth!$N$4,$D42,0,$E42-$D42,1),AL$22)/$C55,0) -> 0 | AM55: =IFERROR(COUNTIF(OFFSET(Growth!$N$4,$D42,0,$E42-$D42,1),AM$22)/$C55,0) -> 0 | AN55: =IFERROR(COUNTIF(OFFSET(Growth!$N$4,$D42,0,$E42-$D42,1),AN$22)/$C55,0) -> 0 | AO55: 0 | AQ55: =IFERROR(COUNTIF(OFFSET(Growth!$O$4,$D42,0,$E42-$D42,1),AQ$22)/$C55,0) -> 0 | AR55: =IFERROR(COUNTIF(OFFSET(Growth!$O$4,$D42,0,$E42-$D42,1),AR$22)/$C55,0) -> 0 | AS55: =IFERROR(COUNTIF(OFFSET(Growth!$O$4,$D42,0,$E42-$D42,1),AS$22)/$C55,0) -> 0 | AT55: =IFERROR(COUNTIF(OFFSET(Growth!$O$4,$D42,0,$E42-$D42,1),AT$22)/$C55,0) -> 0 | AU55: =IFERROR(COUNTIF(OFFSET(Growth!$O$4,$D42,0,$E42-$D42,1),AU$22)/$C55,0) -> 0 | AV55: =IFERROR(COUNTIF(OFFSET(Growth!$O$4,$D42,0,$E42-$D42,1),AV$22)/$C55,0) -> 0 | AW55: =IFERROR(COUNTIF(OFFSET(Growth!$O$4,$D42,0,$E42-$D42,1),AW$22)/$C55,0) -> 0 | AX55: =IFERROR(COUNTIF(OFFSET(Growth!$O$4,$D42,0,$E42-$D42,1),AX$22)/$C55,0) -> 0 | AY55: =IFERROR(COUNTIF(OFFSET(Growth!$O$4,$D42,0,$E42-$D42,1),AY$22)/$C55,0) -> 0 | AZ55: =IFERROR(COUNTIF(OFFSET(Growth!$O$4,$D42,0,$E42-$D42,1),AZ$22)/$C55,0) -> 0 | BA55: 0
A56: 8 | B56: 2023-10-15 | C56: 0 | D56: =COUNTIF(OFFSET(Growth!$J$5,0,0,MATCH(EDATE(B56,-6),Growth!$B$5:$B$2014,0),1),"<>0") -> 0 | E56: =COUNTIF(OFFSET(Growth!$J$5,0,0,MATCH(B56,Growth!$B$5:$B$2014,0),1),"<>0") -> 0 | G56: =IFERROR(COUNTIF(OFFSET(Growth!$K$4,$D43,0,$E43-$D43,1),G$22)/$C56,0) -> 0 | H56: =IFERROR(COUNTIF(OFFSET(Growth!$K$4,$D43,0,$E43-$D43,1),H$22)/$C56,0) -> 0 | I56: =IFERROR(COUNTIF(OFFSET(Growth!$K$4,$D43,0,$E43-$D43,1),I$22)/$C56,0) -> 0 | J56: =IFERROR(COUNTIF(OFFSET(Growth!$K$4,$D43,0,$E43-$D43,1),J$22)/$C56,0) -> 0 | K56: =IFERROR(COUNTIF(OFFSET(Growth!$K$4,$D43,0,$E43-$D43,1),K$22)/$C56,0) -> 0 | L56: =IFERROR(COUNTIF(OFFSET(Growth!$K$4,$D43,0,$E43-$D43,1),L$22)/$C56,0) -> 0 | M56: =IFERROR(COUNTIF(OFFSET(Growth!$K$4,$D43,0,$E43-$D43,1),M$22)/$C56,0) -> 0 | N56: =IFERROR(COUNTIF(OFFSET(Growth!$K$4,$D43,0,$E43-$D43,1),N$22)/$C56,0) -> 0 | O56: 0 | Q56: =IFERROR(COUNTIF(OFFSET(Growth!$L$4,$D43,0,$E43-$D43,1),Q$22)/$C56,0) -> 0 | R56: =IFERROR(COUNTIF(OFFSET(Growth!$L$4,$D43,0,$E43-$D43,1),R$22)/$C56,0) -> 0 | S56: =IFERROR(COUNTIF(OFFSET(Growth!$L$4,$D43,0,$E43-$D43,1),S$22)/$C56,0) -> 0 | T56: =IFERROR(COUNTIF(OFFSET(Growth!$L$4,$D43,0,$E43-$D43,1),T$22)/$C56,0) -> 0 | U56: =IFERROR(COUNTIF(OFFSET(Growth!$L$4,$D43,0,$E43-$D43,1),U$22)/$C56,0) -> 0 | V56: =IFERROR(COUNTIF(OFFSET(Growth!$L$4,$D43,0,$E43-$D43,1),V$22)/$C56,0) -> 0 | W56: =IFERROR(COUNTIF(OFFSET(Growth!$L$4,$D43,0,$E43-$D43,1),W$22)/$C56,0) -> 0 | X56: 0 | Z56: =IFERROR(COUNTIF(OFFSET(Growth!$M$4,$D43,0,$E43-$D43,1),Z$22)/$C56,0) -> 0 | AA56: =IFERROR(COUNTIF(OFFSET(Growth!$M$4,$D43,0,$E43-$D43,1),AA$22)/$C56,0) -> 0 | AB56: =IFERROR(COUNTIF(OFFSET(Growth!$M$4,$D43,0,$E43-$D43,1),AB$22)/$C56,0) -> 0 | AC56: =IFERROR(COUNTIF(OFFSET(Growth!$M$4,$D43,0,$E43-$D43,1),AC$22)/$C56,0) -> 0 | AD56: =IFERROR(COUNTIF(OFFSET(Growth!$M$4,$D43,0,$E43-$D43,1),AD$22)/$C56,0) -> 0 | AE56: 0 | AG56: =IFERROR(COUNTIF(OFFSET(Growth!$N$4,$D43,0,$E43-$D43,1),AG$22)/$C56,0) -> 0 | AH56: =IFERROR(COUNTIF(OFFSET(Growth!$N$4,$D43,0,$E43-$D43,1),AH$22)/$C56,0) -> 0 | AI56: =IFERROR(COUNTIF(OFFSET(Growth!$N$4,$D43,0,$E43-$D43,1),AI$22)/$C56,0) -> 0 | AJ56: =IFERROR(COUNTIF(OFFSET(Growth!$N$4,$D43,0,$E43-$D43,1),AJ$22)/$C56,0) -> 0 | AK56: =IFERROR(COUNTIF(OFFSET(Growth!$N$4,$D43,0,$E43-$D43,1),AK$22)/$C56,0) -> 0 | AL56: =IFERROR(COUNTIF(OFFSET(Growth!$N$4,$D43,0,$E43-$D43,1),AL$22)/$C56,0) -> 0 | AM56: =IFERROR(COUNTIF(OFFSET(Growth!$N$4,$D43,0,$E43-$D43,1),AM$22)/$C56,0) -> 0 | AN56: =IFERROR(COUNTIF(OFFSET(Growth!$N$4,$D43,0,$E43-$D43,1),AN$22)/$C56,0) -> 0 | AO56: 0 | AQ56: =IFERROR(COUNTIF(OFFSET(Growth!$O$4,$D43,0,$E43-$D43,1),AQ$22)/$C56,0) -> 0 | AR56: =IFERROR(COUNTIF(OFFSET(Growth!$O$4,$D43,0,$E43-$D43,1),AR$22)/$C56,0) -> 0 | AS56: =IFERROR(COUNTIF(OFFSET(Growth!$O$4,$D43,0,$E43-$D43,1),AS$22)/$C56,0) -> 0 | AT56: =IFERROR(COUNTIF(OFFSET(Growth!$O$4,$D43,0,$E43-$D43,1),AT$22)/$C56,0) -> 0 | AU56: =IFERROR(COUNTIF(OFFSET(Growth!$O$4,$D43,0,$E43-$D43,1),AU$22)/$C56,0) -> 0 | AV56: =IFERROR(COUNTIF(OFFSET(Growth!$O$4,$D43,0,$E43-$D43,1),AV$22)/$C56,0) -> 0 | AW56: =IFERROR(COUNTIF(OFFSET(Growth!$O$4,$D43,0,$E43-$D43,1),AW$22)/$C56,0) -> 0 | AX56: =IFERROR(COUNTIF(OFFSET(Growth!$O$4,$D43,0,$E43-$D43,1),AX$22)/$C56,0) -> 0 | AY56: =IFERROR(COUNTIF(OFFSET(Growth!$O$4,$D43,0,$E43-$D43,1),AY$22)/$C56,0) -> 0 | AZ56: =IFERROR(COUNTIF(OFFSET(Growth!$O$4,$D43,0,$E43-$D43,1),AZ$22)/$C56,0) -> 0 | BA56: 0
A57: 9 | B57: 2024-03-15 | C57: 0 | D57: =COUNTIF(OFFSET(Growth!$J$5,0,0,MATCH(EDATE(B57,-6),Growth!$B$5:$B$2014,0),1),"<>0") -> 0 | E57: =COUNTIF(OFFSET(Growth!$J$5,0,0,MATCH(B57,Growth!$B$5:$B$2014,0),1),"<>0") -> 0 | G57: =IFERROR(COUNTIF(OFFSET(Growth!$K$4,$D44,0,$E44-$D44,1),G$22)/$C57,0) -> 0 | H57: =IFERROR(COUNTIF(OFFSET(Growth!$K$4,$D44,0,$E44-$D44,1),H$22)/$C57,0) -> 0 | I57: =IFERROR(COUNTIF(OFFSET(Growth!$K$4,$D44,0,$E44-$D44,1),I$22)/$C57,0) -> 0 | J57: =IFERROR(COUNTIF(OFFSET(Growth!$K$4,$D44,0,$E44-$D44,1),J$22)/$C57,0) -> 0 | K57: =IFERROR(COUNTIF(OFFSET(Growth!$K$4,$D44,0,$E44-$D44,1),K$22)/$C57,0) -> 0 | L57: =IFERROR(COUNTIF(OFFSET(Growth!$K$4,$D44,0,$E44-$D44,1),L$22)/$C57,0) -> 0 | M57: =IFERROR(COUNTIF(OFFSET(Growth!$K$4,$D44,0,$E44-$D44,1),M$22)/$C57,0) -> 0 | N57: =IFERROR(COUNTIF(OFFSET(Growth!$K$4,$D44,0,$E44-$D44,1),N$22)/$C57,0) -> 0 | O57: 0 | Q57: =IFERROR(COUNTIF(OFFSET(Growth!$L$4,$D44,0,$E44-$D44,1),Q$22)/$C57,0) -> 0 | R57: =IFERROR(COUNTIF(OFFSET(Growth!$L$4,$D44,0,$E44-$D44,1),R$22)/$C57,0) -> 0 | S57: =IFERROR(COUNTIF(OFFSET(Growth!$L$4,$D44,0,$E44-$D44,1),S$22)/$C57,0) -> 0 | T57: =IFERROR(COUNTIF(OFFSET(Growth!$L$4,$D44,0,$E44-$D44,1),T$22)/$C57,0) -> 0 | U57: =IFERROR(COUNTIF(OFFSET(Growth!$L$4,$D44,0,$E44-$D44,1),U$22)/$C57,0) -> 0 | V57: =IFERROR(COUNTIF(OFFSET(Growth!$L$4,$D44,0,$E44-$D44,1),V$22)/$C57,0) -> 0 | W57: =IFERROR(COUNTIF(OFFSET(Growth!$L$4,$D44,0,$E44-$D44,1),W$22)/$C57,0) -> 0 | X57: 0 | Z57: =IFERROR(COUNTIF(OFFSET(Growth!$M$4,$D44,0,$E44-$D44,1),Z$22)/$C57,0) -> 0 | AA57: =IFERROR(COUNTIF(OFFSET(Growth!$M$4,$D44,0,$E44-$D44,1),AA$22)/$C57,0) -> 0 | AB57: =IFERROR(COUNTIF(OFFSET(Growth!$M$4,$D44,0,$E44-$D44,1),AB$22)/$C57,0) -> 0 | AC57: =IFERROR(COUNTIF(OFFSET(Growth!$M$4,$D44,0,$E44-$D44,1),AC$22)/$C57,0) -> 0 | AD57: =IFERROR(COUNTIF(OFFSET(Growth!$M$4,$D44,0,$E44-$D44,1),AD$22)/$C57,0) -> 0 | AE57: 0 | AG57: =IFERROR(COUNTIF(OFFSET(Growth!$N$4,$D44,0,$E44-$D44,1),AG$22)/$C57,0) -> 0 | AH57: =IFERROR(COUNTIF(OFFSET(Growth!$N$4,$D44,0,$E44-$D44,1),AH$22)/$C57,0) -> 0 | AI57: =IFERROR(COUNTIF(OFFSET(Growth!$N$4,$D44,0,$E44-$D44,1),AI$22)/$C57,0) -> 0 | AJ57: =IFERROR(COUNTIF(OFFSET(Growth!$N$4,$D44,0,$E44-$D44,1),AJ$22)/$C57,0) -> 0 | AK57: =IFERROR(COUNTIF(OFFSET(Growth!$N$4,$D44,0,$E44-$D44,1),AK$22)/$C57,0) -> 0 | AL57: =IFERROR(COUNTIF(OFFSET(Growth!$N$4,$D44,0,$E44-$D44,1),AL$22)/$C57,0) -> 0 | AM57: =IFERROR(COUNTIF(OFFSET(Growth!$N$4,$D44,0,$E44-$D44,1),AM$22)/$C57,0) -> 0 | AN57: =IFERROR(COUNTIF(OFFSET(Growth!$N$4,$D44,0,$E44-$D44,1),AN$22)/$C57,0) -> 0 | AO57: 0 | AQ57: =IFERROR(COUNTIF(OFFSET(Growth!$O$4,$D44,0,$E44-$D44,1),AQ$22)/$C57,0) -> 0 | AR57: =IFERROR(COUNTIF(OFFSET(Growth!$O$4,$D44,0,$E44-$D44,1),AR$22)/$C57,0) -> 0 | AS57: =IFERROR(COUNTIF(OFFSET(Growth!$O$4,$D44,0,$E44-$D44,1),AS$22)/$C57,0) -> 0 | AT57: =IFERROR(COUNTIF(OFFSET(Growth!$O$4,$D44,0,$E44-$D44,1),AT$22)/$C57,0) -> 0 | AU57: =IFERROR(COUNTIF(OFFSET(Growth!$O$4,$D44,0,$E44-$D44,1),AU$22)/$C57,0) -> 0 | AV57: =IFERROR(COUNTIF(OFFSET(Growth!$O$4,$D44,0,$E44-$D44,1),AV$22)/$C57,0) -> 0 | AW57: =IFERROR(COUNTIF(OFFSET(Growth!$O$4,$D44,0,$E44-$D44,1),AW$22)/$C57,0) -> 0 | AX57: =IFERROR(COUNTIF(OFFSET(Growth!$O$4,$D44,0,$E44-$D44,1),AX$22)/$C57,0) -> 0 | AY57: =IFERROR(COUNTIF(OFFSET(Growth!$O$4,$D44,0,$E44-$D44,1),AY$22)/$C57,0) -> 0 | AZ57: =IFERROR(COUNTIF(OFFSET(Growth!$O$4,$D44,0,$E44-$D44,1),AZ$22)/$C57,0) -> 0 | BA57: 0
A58: 10 | B58: 2024-11-01 | C58: 0 | D58: =COUNTIF(OFFSET(Growth!$J$5,0,0,MATCH(EDATE(B58,-6),Growth!$B$5:$B$2014,0),1),"<>0") -> 0 | E58: =COUNTIF(OFFSET(Growth!$J$5,0,0,MATCH(B58,Growth!$B$5:$B$2014,0),1),"<>0") -> 0 | G58: =IFERROR(COUNTIF(OFFSET(Growth!$K$4,$D45,0,$E45-$D45,1),G$22)/$C58,0) -> 0 | H58: =IFERROR(COUNTIF(OFFSET(Growth!$K$4,$D45,0,$E45-$D45,1),H$22)/$C58,0) -> 0 | I58: =IFERROR(COUNTIF(OFFSET(Growth!$K$4,$D45,0,$E45-$D45,1),I$22)/$C58,0) -> 0 | J58: =IFERROR(COUNTIF(OFFSET(Growth!$K$4,$D45,0,$E45-$D45,1),J$22)/$C58,0) -> 0 | K58: =IFERROR(COUNTIF(OFFSET(Growth!$K$4,$D45,0,$E45-$D45,1),K$22)/$C58,0) -> 0 | L58: =IFERROR(COUNTIF(OFFSET(Growth!$K$4,$D45,0,$E45-$D45,1),L$22)/$C58,0) -> 0 | M58: =IFERROR(COUNTIF(OFFSET(Growth!$K$4,$D45,0,$E45-$D45,1),M$22)/$C58,0) -> 0 | N58: =IFERROR(COUNTIF(OFFSET(Growth!$K$4,$D45,0,$E45-$D45,1),N$22)/$C58,0) -> 0 | O58: 0 | Q58: =IFERROR(COUNTIF(OFFSET(Growth!$L$4,$D45,0,$E45-$D45,1),Q$22)/$C58,0) -> 0 | R58: =IFERROR(COUNTIF(OFFSET(Growth!$L$4,$D45,0,$E45-$D45,1),R$22)/$C58,0) -> 0 | S58: =IFERROR(COUNTIF(OFFSET(Growth!$L$4,$D45,0,$E45-$D45,1),S$22)/$C58,0) -> 0 | T58: =IFERROR(COUNTIF(OFFSET(Growth!$L$4,$D45,0,$E45-$D45,1),T$22)/$C58,0) -> 0 | U58: =IFERROR(COUNTIF(OFFSET(Growth!$L$4,$D45,0,$E45-$D45,1),U$22)/$C58,0) -> 0 | V58: =IFERROR(COUNTIF(OFFSET(Growth!$L$4,$D45,0,$E45-$D45,1),V$22)/$C58,0) -> 0 | W58: =IFERROR(COUNTIF(OFFSET(Growth!$L$4,$D45,0,$E45-$D45,1),W$22)/$C58,0) -> 0 | X58: 0 | Z58: =IFERROR(COUNTIF(OFFSET(Growth!$M$4,$D45,0,$E45-$D45,1),Z$22)/$C58,0) -> 0 | AA58: =IFERROR(COUNTIF(OFFSET(Growth!$M$4,$D45,0,$E45-$D45,1),AA$22)/$C58,0) -> 0 | AB58: =IFERROR(COUNTIF(OFFSET(Growth!$M$4,$D45,0,$E45-$D45,1),AB$22)/$C58,0) -> 0 | AC58: =IFERROR(COUNTIF(OFFSET(Growth!$M$4,$D45,0,$E45-$D45,1),AC$22)/$C58,0) -> 0 | AD58: =IFERROR(COUNTIF(OFFSET(Growth!$M$4,$D45,0,$E45-$D45,1),AD$22)/$C58,0) -> 0 | AE58: 0 | AG58: =IFERROR(COUNTIF(OFFSET(Growth!$N$4,$D45,0,$E45-$D45,1),AG$22)/$C58,0) -> 0 | AH58: =IFERROR(COUNTIF(OFFSET(Growth!$N$4,$D45,0,$E45-$D45,1),AH$22)/$C58,0) -> 0 | AI58: =IFERROR(COUNTIF(OFFSET(Growth!$N$4,$D45,0,$E45-$D45,1),AI$22)/$C58,0) -> 0 | AJ58: =IFERROR(COUNTIF(OFFSET(Growth!$N$4,$D45,0,$E45-$D45,1),AJ$22)/$C58,0) -> 0 | AK58: =IFERROR(COUNTIF(OFFSET(Growth!$N$4,$D45,0,$E45-$D45,1),AK$22)/$C58,0) -> 0 | AL58: =IFERROR(COUNTIF(OFFSET(Growth!$N$4,$D45,0,$E45-$D45,1),AL$22)/$C58,0) -> 0 | AM58: =IFERROR(COUNTIF(OFFSET(Growth!$N$4,$D45,0,$E45-$D45,1),AM$22)/$C58,0) -> 0 | AN58: =IFERROR(COUNTIF(OFFSET(Growth!$N$4,$D45,0,$E45-$D45,1),AN$22)/$C58,0) -> 0 | AO58: 0 | AQ58: =IFERROR(COUNTIF(OFFSET(Growth!$O$4,$D45,0,$E45-$D45,1),AQ$22)/$C58,0) -> 0 | AR58: =IFERROR(COUNTIF(OFFSET(Growth!$O$4,$D45,0,$E45-$D45,1),AR$22)/$C58,0) -> 0 | AS58: =IFERROR(COUNTIF(OFFSET(Growth!$O$4,$D45,0,$E45-$D45,1),AS$22)/$C58,0) -> 0 | AT58: =IFERROR(COUNTIF(OFFSET(Growth!$O$4,$D45,0,$E45-$D45,1),AT$22)/$C58,0) -> 0 | AU58: =IFERROR(COUNTIF(OFFSET(Growth!$O$4,$D45,0,$E45-$D45,1),AU$22)/$C58,0) -> 0 | AV58: =IFERROR(COUNTIF(OFFSET(Growth!$O$4,$D45,0,$E45-$D45,1),AV$22)/$C58,0) -> 0 | AW58: =IFERROR(COUNTIF(OFFSET(Growth!$O$4,$D45,0,$E45-$D45,1),AW$22)/$C58,0) -> 0 | AX58: =IFERROR(COUNTIF(OFFSET(Growth!$O$4,$D45,0,$E45-$D45,1),AX$22)/$C58,0) -> 0 | AY58: =IFERROR(COUNTIF(OFFSET(Growth!$O$4,$D45,0,$E45-$D45,1),AY$22)/$C58,0) -> 0 | AZ58: =IFERROR(COUNTIF(OFFSET(Growth!$O$4,$D45,0,$E45-$D45,1),AZ$22)/$C58,0) -> 0 | BA58: 0
A60: Rate | C60: Policy In force Weights by Relativity - Policies & Growth
A61: Level | B61: Date
A62: 1 | B62: =B49 -> 2019-07-01 | G62: =G4 -> 0.125 | H62: =H4 -> 0.125 | I62: 0.125 | J62: 0.125 | K62: 0.125 | L62: 0.125 | M62: 0.125 | N62: 0.125 | O62: =SUM(G62:N62) -> 1 | Q62: =Q4 -> 0.1428571429 | R62: 0.1428571429 | S62: 0.1428571429 | T62: 0.1428571429 | U62: 0.1428571429 | V62: 0.1428571429 | W62: 0.1428571429 | X62: =SUM(Q62:W62) -> 1 | Z62: =Z4 -> 0.2 | AA62: 0.2 | AB62: 0.2 | AC62: 0.2 | AD62: 0.2 | AE62: =SUM(Z62:AD62) -> 1 | AG62: =AG4 -> 0.125 | AH62: 0.125 | AI62: 0.125 | AJ62: 0.125 | AK62: 0.125 | AL62: 0.125 | AM62: 0.125 | AN62: 0.125 | AO62: =SUM(AG62:AN62) -> 1 | AQ62: =AQ4 -> 0.082 | AR62: 0.102 | AS62: 0.102 | AT62: 0.102 | AU62: 0.102 | AV62: 0.102 | AW62: 0.102 | AX62: 0.102 | AY62: 0.102 | AZ62: 0.102 | BA62: =SUM(AQ62:AZ62) -> 1
A63: 2 | B63: =B50 -> 2020-07-15 | G63: =(COUNTIF(OFFSET(Policies!$K$4,$D37,0,$E37-$D37,1),G$22)+COUNTIF(OFFSET(Growth!$K$4,$D37,0,$E37-$D37,1),G$22))/($C37+$C50) -> 0.09340659341 | H63: =(COUNTIF(OFFSET(Policies!$K$4,$D37,0,$E37-$D37,1),H$22)+COUNTIF(OFFSET(Growth!$K$4,$D37,0,$E37-$D37,1),H$22))/($C37+$C50) -> 0.1538461538 | I63: =(COUNTIF(OFFSET(Policies!$K$4,$D37,0,$E37-$D37,1),I$22)+COUNTIF(OFFSET(Growth!$K$4,$D37,0,$E37-$D37,1),I$22))/($C37+$C50) -> 0.1153846154 | J63: =(COUNTIF(OFFSET(Policies!$K$4,$D37,0,$E37-$D37,1),J$22)+COUNTIF(OFFSET(Growth!$K$4,$D37,0,$E37-$D37,1),J$22))/($C37+$C50) -> 0.0989010989 | K63: =(COUNTIF(OFFSET(Policies!$K$4,$D37,0,$E37-$D37,1),K$22)+COUNTIF(OFFSET(Growth!$K$4,$D37,0,$E37-$D37,1),K$22))/($C37+$C50) -> 0.1758241758 | L63: =(COUNTIF(OFFSET(Policies!$K$4,$D37,0,$E37-$D37,1),L$22)+COUNTIF(OFFSET(Growth!$K$4,$D37,0,$E37-$D37,1),L$22))/($C37+$C50) -> 0.08791208791 | M63: =(COUNTIF(OFFSET(Policies!$K$4,$D37,0,$E37-$D37,1),M$22)+COUNTIF(OFFSET(Growth!$K$4,$D37,0,$E37-$D37,1),M$22))/($C37+$C50) -> 0.1593406593 | N63: =(COUNTIF(OFFSET(Policies!$K$4,$D37,0,$E37-$D37,1),N$22)+COUNTIF(OFFSET(Growth!$K$4,$D37,0,$E37-$D37,1),N$22))/($C37+$C50) -> 0.1153846154 | O63: =SUM(G63:N63) -> 1 | Q63: =(COUNTIF(OFFSET(Policies!$L$4,$D37,0,$E37-$D37,1),Q$22)+COUNTIF(OFFSET(Growth!$L$4,$D37,0,$E37-$D37,1),Q$22))/($C37+$C50) -> 0.1538461538 | R63: =(COUNTIF(OFFSET(Policies!$L$4,$D37,0,$E37-$D37,1),R$22)+COUNTIF(OFFSET(Growth!$L$4,$D37,0,$E37-$D37,1),R$22))/($C37+$C50) -> 0.1208791209 | S63: =(COUNTIF(OFFSET(Policies!$L$4,$D37,0,$E37-$D37,1),S$22)+COUNTIF(OFFSET(Growth!$L$4,$D37,0,$E37-$D37,1),S$22))/($C37+$C50) -> 0.0989010989 | T63: =(COUNTIF(OFFSET(Policies!$L$4,$D37,0,$E37-$D37,1),T$22)+COUNTIF(OFFSET(Growth!$L$4,$D37,0,$E37-$D37,1),T$22))/($C37+$C50) -> 0.1043956044 | U63: =(COUNTIF(OFFSET(Policies!$L$4,$D37,0,$E37-$D37,1),U$22)+COUNTIF(OFFSET(Growth!$L$4,$D37,0,$E37-$D37,1),U$22))/($C37+$C50) -> 0.2032967033 | V63: =(COUNTIF(OFFSET(Policies!$L$4,$D37,0,$E37-$D37,1),V$22)+COUNTIF(OFFSET(Growth!$L$4,$D37,0,$E37-$D37,1),V$22))/($C37+$C50) -> 0.1538461538 | W63: =(COUNTIF(OFFSET(Policies!$L$4,$D37,0,$E37-$D37,1),W$22)+COUNTIF(OFFSET(Growth!$L$4,$D37,0,$E37-$D37,1),W$22))/($C37+$C50) -> 0.1648351648 | X63: =SUM(Q63:W63) -> 1 | Z63: =(COUNTIF(OFFSET(Policies!$M$4,$D37,0,$E37-$D37,1),Z$22)+COUNTIF(OFFSET(Growth!$M$4,$D37,0,$E37-$D37,1),Z$22))/($C37+$C50) -> 0.2087912088 | AA63: =(COUNTIF(OFFSET(Policies!$M$4,$D37,0,$E37-$D37,1),AA$22)+COUNTIF(OFFSET(Growth!$M$4,$D37,0,$E37-$D37,1),AA$22))/($C37+$C50) -> 0.2527472527 | AB63: =(COUNTIF(OFFSET(Policies!$M$4,$D37,0,$E37-$D37,1),AB$22)+COUNTIF(OFFSET(Growth!$M$4,$D37,0,$E37-$D37,1),AB$22))/($C37+$C50) -> 0.1813186813 | AC63: =(COUNTIF(OFFSET(Policies!$M$4,$D37,0,$E37-$D37,1),AC$22)+COUNTIF(OFFSET(Growth!$M$4,$D37,0,$E37-$D37,1),AC$22))/($C37+$C50) -> 0.1703296703 | AD63: =(COUNTIF(OFFSET(Policies!$M$4,$D37,0,$E37-$D37,1),AD$22)+COUNTIF(OFFSET(Growth!$M$4,$D37,0,$E37-$D37,1),AD$22))/($C37+$C50) -> 0.1868131868 | AE63: =SUM(Z63:AD63) -> 1 | AG63: =(COUNTIF(OFFSET(Policies!$N$4,$D37,0,$E37-$D37,1),AG$22)+COUNTIF(OFFSET(Growth!$N$4,$D37,0,$E37-$D37,1),AG$22))/($C37+$C50) -> 0.1263736264 | AH63: =(COUNTIF(OFFSET(Policies!$N$4,$D37,0,$E37-$D37,1),AH$22)+COUNTIF(OFFSET(Growth!$N$4,$D37,0,$E37-$D37,1),AH$22))/($C37+$C50) -> 0.1208791209 | AI63: =(COUNTIF(OFFSET(Policies!$N$4,$D37,0,$E37-$D37,1),AI$22)+COUNTIF(OFFSET(Growth!$N$4,$D37,0,$E37-$D37,1),AI$22))/($C37+$C50) -> 0.1373626374 | AJ63: =(COUNTIF(OFFSET(Policies!$N$4,$D37,0,$E37-$D37,1),AJ$22)+COUNTIF(OFFSET(Growth!$N$4,$D37,0,$E37-$D37,1),AJ$22))/($C37+$C50) -> 0.1043956044 | AK63: =(COUNTIF(OFFSET(Policies!$N$4,$D37,0,$E37-$D37,1),AK$22)+COUNTIF(OFFSET(Growth!$N$4,$D37,0,$E37-$D37,1),AK$22))/($C37+$C50) -> 0.1208791209 | AL63: =(COUNTIF(OFFSET(Policies!$N$4,$D37,0,$E37-$D37,1),AL$22)+COUNTIF(OFFSET(Growth!$N$4,$D37,0,$E37-$D37,1),AL$22))/($C37+$C50) -> 0.1263736264 | AM63: =(COUNTIF(OFFSET(Policies!$N$4,$D37,0,$E37-$D37,1),AM$22)+COUNTIF(OFFSET(Growth!$N$4,$D37,0,$E37-$D37,1),AM$22))/($C37+$C50) -> 0.1318681319 | AN63: =(COUNTIF(OFFSET(Policies!$N$4,$D37,0,$E37-$D37,1),AN$22)+COUNTIF(OFFSET(Growth!$N$4,$D37,0,$E37-$D37,1),AN$22))/($C37+$C50) -> 0.1318681319 | AO63: =SUM(AG63:AN63) -> 1 | AQ63: =(COUNTIF(OFFSET(Policies!$O$4,$D37,0,$E37-$D37,1),AQ$22)+COUNTIF(OFFSET(Growth!$O$4,$D37,0,$E37-$D37,1),AQ$22))/($C37+$C50) -> 0.05494505495 | AR63: =(COUNTIF(OFFSET(Policies!$O$4,$D37,0,$E37-$D37,1),AR$22)+COUNTIF(OFFSET(Growth!$O$4,$D37,0,$E37-$D37,1),AR$22))/($C37+$C50) -> 0.1263736264 | AS63: =(COUNTIF(OFFSET(Policies!$O$4,$D37,0,$E37-$D37,1),AS$22)+COUNTIF(OFFSET(Growth!$O$4,$D37,0,$E37-$D37,1),AS$22))/($C37+$C50) -> 0.03846153846 | AT63: =(COUNTIF(OFFSET(Policies!$O$4,$D37,0,$E37-$D37,1),AT$22)+COUNTIF(OFFSET(Growth!$O$4,$D37,0,$E37-$D37,1),AT$22))/($C37+$C50) -> 0.1043956044 | AU63: =(COUNTIF(OFFSET(Policies!$O$4,$D37,0,$E37-$D37,1),AU$22)+COUNTIF(OFFSET(Growth!$O$4,$D37,0,$E37-$D37,1),AU$22))/($C37+$C50) -> 0.1043956044 | AV63: =(COUNTIF(OFFSET(Policies!$O$4,$D37,0,$E37-$D37,1),AV$22)+COUNTIF(OFFSET(Growth!$O$4,$D37,0,$E37-$D37,1),AV$22))/($C37+$C50) -> 0.08791208791 | AW63: =(COUNTIF(OFFSET(Policies!$O$4,$D37,0,$E37-$D37,1),AW$22)+COUNTIF(OFFSET(Growth!$O$4,$D37,0,$E37-$D37,1),AW$22))/($C37+$C50) -> 0.1098901099 | AX63: =(COUNTIF(OFFSET(Policies!$O$4,$D37,0,$E37-$D37,1),AX$22)+COUNTIF(OFFSET(Growth!$O$4,$D37,0,$E37-$D37,1),AX$22))/($C37+$C50) -> 0.1263736264 | AY63: =(COUNTIF(OFFSET(Policies!$O$4,$D37,0,$E37-$D37,1),AY$22)+COUNTIF(OFFSET(Growth!$O$4,$D37,0,$E37-$D37,1),AY$22))/($C37+$C50) -> 0.0989010989 | AZ63: =(COUNTIF(OFFSET(Policies!$O$4,$D37,0,$E37-$D37,1),AZ$22)+COUNTIF(OFFSET(Growth!$O$4,$D37,0,$E37-$D37,1),AZ$22))/($C37+$C50) -> 0.1483516484 | BA63: =SUM(AQ63:AZ63) -> 1
A64: 3 | B64: 2021-01-15 | G64: =(COUNTIF(OFFSET(Policies!$K$4,$D38,0,$E38-$D38,1),G$22)+COUNTIF(OFFSET(Growth!$K$4,$D38,0,$E38-$D38,1),G$22))/($C38+$C51) -> 0.1195652174 | H64: =(COUNTIF(OFFSET(Policies!$K$4,$D38,0,$E38-$D38,1),H$22)+COUNTIF(OFFSET(Growth!$K$4,$D38,0,$E38-$D38,1),H$22))/($C38+$C51) -> 0.1793478261 | I64: =(COUNTIF(OFFSET(Policies!$K$4,$D38,0,$E38-$D38,1),I$22)+COUNTIF(OFFSET(Growth!$K$4,$D38,0,$E38-$D38,1),I$22))/($C38+$C51) -> 0.1358695652 | J64: =(COUNTIF(OFFSET(Policies!$K$4,$D38,0,$E38-$D38,1),J$22)+COUNTIF(OFFSET(Growth!$K$4,$D38,0,$E38-$D38,1),J$22))/($C38+$C51) -> 0.08152173913 | K64: =(COUNTIF(OFFSET(Policies!$K$4,$D38,0,$E38-$D38,1),K$22)+COUNTIF(OFFSET(Growth!$K$4,$D38,0,$E38-$D38,1),K$22))/($C38+$C51) -> 0.1467391304 | L64: =(COUNTIF(OFFSET(Policies!$K$4,$D38,0,$E38-$D38,1),L$22)+COUNTIF(OFFSET(Growth!$K$4,$D38,0,$E38-$D38,1),L$22))/($C38+$C51) -> 0.09239130435 | M64: =(COUNTIF(OFFSET(Policies!$K$4,$D38,0,$E38-$D38,1),M$22)+COUNTIF(OFFSET(Growth!$K$4,$D38,0,$E38-$D38,1),M$22))/($C38+$C51) -> 0.1467391304 | N64: =(COUNTIF(OFFSET(Policies!$K$4,$D38,0,$E38-$D38,1),N$22)+COUNTIF(OFFSET(Growth!$K$4,$D38,0,$E38-$D38,1),N$22))/($C38+$C51) -> 0.09782608696 | O64: 1 | Q64: =(COUNTIF(OFFSET(Policies!$L$4,$D38,0,$E38-$D38,1),Q$22)+COUNTIF(OFFSET(Growth!$L$4,$D38,0,$E38-$D38,1),Q$22))/($C38+$C51) -> 0.1358695652 | R64: =(COUNTIF(OFFSET(Policies!$L$4,$D38,0,$E38-$D38,1),R$22)+COUNTIF(OFFSET(Growth!$L$4,$D38,0,$E38-$D38,1),R$22))/($C38+$C51) -> 0.09782608696 | S64: =(COUNTIF(OFFSET(Policies!$L$4,$D38,0,$E38-$D38,1),S$22)+COUNTIF(OFFSET(Growth!$L$4,$D38,0,$E38-$D38,1),S$22))/($C38+$C51) -> 0.1358695652 | T64: =(COUNTIF(OFFSET(Policies!$L$4,$D38,0,$E38-$D38,1),T$22)+COUNTIF(OFFSET(Growth!$L$4,$D38,0,$E38-$D38,1),T$22))/($C38+$C51) -> 0.08695652174 | U64: =(COUNTIF(OFFSET(Policies!$L$4,$D38,0,$E38-$D38,1),U$22)+COUNTIF(OFFSET(Growth!$L$4,$D38,0,$E38-$D38,1),U$22))/($C38+$C51) -> 0.1902173913 | V64: =(COUNTIF(OFFSET(Policies!$L$4,$D38,0,$E38-$D38,1),V$22)+COUNTIF(OFFSET(Growth!$L$4,$D38,0,$E38-$D38,1),V$22))/($C38+$C51) -> 0.1956521739 | W64: =(COUNTIF(OFFSET(Policies!$L$4,$D38,0,$E38-$D38,1),W$22)+COUNTIF(OFFSET(Growth!$L$4,$D38,0,$E38-$D38,1),W$22))/($C38+$C51) -> 0.1576086957 | X64: 1 | Z64: =(COUNTIF(OFFSET(Policies!$M$4,$D38,0,$E38-$D38,1),Z$22)+COUNTIF(OFFSET(Growth!$M$4,$D38,0,$E38-$D38,1),Z$22))/($C38+$C51) -> 0.1956521739 | AA64: =(COUNTIF(OFFSET(Policies!$M$4,$D38,0,$E38-$D38,1),AA$22)+COUNTIF(OFFSET(Growth!$M$4,$D38,0,$E38-$D38,1),AA$22))/($C38+$C51) -> 0.2445652174 | AB64: =(COUNTIF(OFFSET(Policies!$M$4,$D38,0,$E38-$D38,1),AB$22)+COUNTIF(OFFSET(Growth!$M$4,$D38,0,$E38-$D38,1),AB$22))/($C38+$C51) -> 0.1902173913 | AC64: =(COUNTIF(OFFSET(Policies!$M$4,$D38,0,$E38-$D38,1),AC$22)+COUNTIF(OFFSET(Growth!$M$4,$D38,0,$E38-$D38,1),AC$22))/($C38+$C51) -> 0.1684782609 | AD64: =(COUNTIF(OFFSET(Policies!$M$4,$D38,0,$E38-$D38,1),AD$22)+COUNTIF(OFFSET(Growth!$M$4,$D38,0,$E38-$D38,1),AD$22))/($C38+$C51) -> 0.2010869565 | AE64: 1 | AG64: =(COUNTIF(OFFSET(Policies!$N$4,$D38,0,$E38-$D38,1),AG$22)+COUNTIF(OFFSET(Growth!$N$4,$D38,0,$E38-$D38,1),AG$22))/($C38+$C51) -> 0.1358695652 | AH64: =(COUNTIF(OFFSET(Policies!$N$4,$D38,0,$E38-$D38,1),AH$22)+COUNTIF(OFFSET(Growth!$N$4,$D38,0,$E38-$D38,1),AH$22))/($C38+$C51) -> 0.1141304348 | AI64: =(COUNTIF(OFFSET(Policies!$N$4,$D38,0,$E38-$D38,1),AI$22)+COUNTIF(OFFSET(Growth!$N$4,$D38,0,$E38-$D38,1),AI$22))/($C38+$C51) -> 0.125 | AJ64: =(COUNTIF(OFFSET(Policies!$N$4,$D38,0,$E38-$D38,1),AJ$22)+COUNTIF(OFFSET(Growth!$N$4,$D38,0,$E38-$D38,1),AJ$22))/($C38+$C51) -> 0.1032608696 | AK64: =(COUNTIF(OFFSET(Policies!$N$4,$D38,0,$E38-$D38,1),AK$22)+COUNTIF(OFFSET(Growth!$N$4,$D38,0,$E38-$D38,1),AK$22))/($C38+$C51) -> 0.1195652174 | AL64: =(COUNTIF(OFFSET(Policies!$N$4,$D38,0,$E38-$D38,1),AL$22)+COUNTIF(OFFSET(Growth!$N$4,$D38,0,$E38-$D38,1),AL$22))/($C38+$C51) -> 0.125 | AM64: =(COUNTIF(OFFSET(Policies!$N$4,$D38,0,$E38-$D38,1),AM$22)+COUNTIF(OFFSET(Growth!$N$4,$D38,0,$E38-$D38,1),AM$22))/($C38+$C51) -> 0.1467391304 | AN64: =(COUNTIF(OFFSET(Policies!$N$4,$D38,0,$E38-$D38,1),AN$22)+COUNTIF(OFFSET(Growth!$N$4,$D38,0,$E38-$D38,1),AN$22))/($C38+$C51) -> 0.1304347826 | AO64: 1 | AQ64: =(COUNTIF(OFFSET(Policies!$O$4,$D38,0,$E38-$D38,1),AQ$22)+COUNTIF(OFFSET(Growth!$O$4,$D38,0,$E38-$D38,1),AQ$22))/($C38+$C51) -> 0.0597826087 | AR64: =(COUNTIF(OFFSET(Policies!$O$4,$D38,0,$E38-$D38,1),AR$22)+COUNTIF(OFFSET(Growth!$O$4,$D38,0,$E38-$D38,1),AR$22))/($C38+$C51) -> 0.1358695652 | AS64: =(COUNTIF(OFFSET(Policies!$O$4,$D38,0,$E38-$D38,1),AS$22)+COUNTIF(OFFSET(Growth!$O$4,$D38,0,$E38-$D38,1),AS$22))/($C38+$C51) -> 0.03804347826 | AT64: =(COUNTIF(OFFSET(Policies!$O$4,$D38,0,$E38-$D38,1),AT$22)+COUNTIF(OFFSET(Growth!$O$4,$D38,0,$E38-$D38,1),AT$22))/($C38+$C51) -> 0.1086956522 | AU64: =(COUNTIF(OFFSET(Policies!$O$4,$D38,0,$E38-$D38,1),AU$22)+COUNTIF(OFFSET(Growth!$O$4,$D38,0,$E38-$D38,1),AU$22))/($C38+$C51) -> 0.07608695652 | AV64: =(COUNTIF(OFFSET(Policies!$O$4,$D38,0,$E38-$D38,1),AV$22)+COUNTIF(OFFSET(Growth!$O$4,$D38,0,$E38-$D38,1),AV$22))/($C38+$C51) -> 0.1032608696 | AW64: =(COUNTIF(OFFSET(Policies!$O$4,$D38,0,$E38-$D38,1),AW$22)+COUNTIF(OFFSET(Growth!$O$4,$D38,0,$E38-$D38,1),AW$22))/($C38+$C51) -> 0.1413043478 | AX64: =(COUNTIF(OFFSET(Policies!$O$4,$D38,0,$E38-$D38,1),AX$22)+COUNTIF(OFFSET(Growth!$O$4,$D38,0,$E38-$D38,1),AX$22))/($C38+$C51) -> 0.09782608696 | AY64: =(COUNTIF(OFFSET(Policies!$O$4,$D38,0,$E38-$D38,1),AY$22)+COUNTIF(OFFSET(Growth!$O$4,$D38,0,$E38-$D38,1),AY$22))/($C38+$C51) -> 0.07608695652 | AZ64: =(COUNTIF(OFFSET(Policies!$O$4,$D38,0,$E38-$D38,1),AZ$22)+COUNTIF(OFFSET(Growth!$O$4,$D38,0,$E38-$D38,1),AZ$22))/($C38+$C51) -> 0.1630434783 | BA64: 1
